Workbook

Sheet はじめに
A2: 起動費等の事後精算の覚書にもとづき、 「不約定単価内訳兼起動費事後精算情報様式」（以下「様式」という。）をご提出・ご報告いただき、精算を行います。
A4: １.記載箇所について
B6: シート名「入力シート」にご記載をお願いします。
A8: ２.記載方法について
B10: シート名「入力シート」の『行数変更』ボタン押下により、起動費等の事後精算の対象に応じた行数を設定ください。
B11: 様式は提供期間の属する月次単位とし、精算の対象となる系統コードごと、30分コマごとにご作成ください。
B12: なお、詳細な記載方法は、別シートの「記載例」・「入力方法等の規制」・「精算パターン（持ち下げ供出機区分）毎の入力内容規制」をご参照ください。
B13: シート名「入力シート」に必要な情報を記載いただけましたら、『CSV変換』ボタン押下のうえ、出力したデータを任意のフォルダへ保存ください（『CSV変換』ボタン押下時にエラーメッセージが表示された場合は、シート名「エラーメッセージ一覧」を参照ください。）
A15: ３.「ファイル名称」について
B17: シート名「入力シート」の『CSV変換』ボタン押下により出力したファイル名称は変更しないようお願いします。
B18: 例：202504_A000_3_不約定単価内訳兼起動費事後精算情報様式.csv
A20: ４.提出期日について
B22: 「様式」および「作成支援ツール」のご提出は、提供期間が属する月が１月、２月、４月、５月、７月、８月、10月または11月である場合は提供期間が属する月の翌月の第５営業日までに、
B23: 提供期間が属する月が３月、６月、９月または12月である場合は提供期間が属する月の翌月の第２営業日までに属地TSOへメールでご提出ください。
B24: なお、ご提出いただくデータは、様式の作成に用いた本ツールおよびシート名「入力シート」の『CSV変換』ボタン押下により出力したCSVデータをご提出ください。

Sheet 入力シート
B2: 取引年月 | D2: 0
B3: MMSコード
B4: 対象エリア
B5: ファイル名称 | C5: =$C$2&"_"&$C$3&"_"&LEFT($C$4,1)&"_不約定単価内訳兼起動費事後精算情報様式" -> ___不約定単価内訳兼起動費事後精算情報様式
B7: 事象NO | C7: 精算パターン | D7: 余力活用契約対象リソース区分 | E7: 取引日 | F7: 時刻コード | G7: 持ち下げ供出機区分 | H7: 系統コード | I7: 系統コード(差替後) | J7: 商品区分 | K7: 売り入札ID | L7: 約定番号 | M7: 約定識別ID | N7: MMS起動費単価 | O7: 加重平均前のΔkW単価 | P7: 加重平均起動費未回収分相当額 | Q7: 最低出力までの発電電力量の機会費用単価 | R7: 発電計画 | S7: 最低出力 | T7: 約定希望ΔkW | U7: ΔkW約定量 | V7: 最低出力までの発電電力量の機会費用単価×(約定希望ΔkW-ΔkW約定量) | W7: 最低出力維持した場合の費用合計 | X7: 停止・再起動にかかる費用 | Y7: 事象毎の最終行 | Z7: 妥当性確認 | AA7: 応札状況 | AB7: 約定状況 | AC7: 並解列状態(実績) | AD7: 起動費未回収分相当額 | AE7: 最低出力までの発電電力量の機会費用 | AF7: 停止・再起動にかかる費用 | AI7: 精算対象 申請小計 | AJ7: 起動費未回収分相当額 | AK7: 最低出力までの発電電力量の機会費用 | AL7: 停止・再起動にかかる費用 | AM7: 合計
N8: （円/kW） | O8: （円/kW） | P8: （円/kW） | Q8: （円/kW） | R8: （kWh） | S8: （kWh） | T8: （kW） | U8: （kW） | V8: （円） | W8: （円） | X8: （円） | AD8: （円） | AE8: （円） | AF8: （円） | AJ8: （円） | AK8: （円） | AL8: （円） | AM8: （円）
B9: ※起動費未回収が発生した事象NOを付定すること ※複合市場商品および三次調整力②商品へ１回分の起動費等を按分計上して入札し，両市場において起動費等の事後精算を申請する場合は，市場ごとに事象NOを分けずに同一の事象NOとして申請を実施すること | D9: ※対象の場合は「１」，非対象の場合は「０」を入力 | G9: ※持ち下げ供出機を加重平均で入札した場合に選択 | H9: ※電源差替がない場合は精算対象となるリソースの系統コードを記載すること ※電源差替後のリソースにより精算する場合は，差替前のリソースの系統コードを記載すること | I9: ※起動費単価分が登録されている電源に電源差替を実施する場合に記載すること | L9: ※持ち下げ供出機区分が該当する場合，起動供出機の約定番号を記載すること ※同一時刻コードにおいて，複数の約定番号がある場合は，いずれか1つを記載すること | M9: ※持ち下げ供出機区分に該当する場合，起動供出機の約定識別IDを記載すること ※同一時刻コードにおいて，約定番号に紐づく約定識別IDが複数存在する場合は，いずれか1つを記載すること ※電源差し替えを実施した場合，差替え元の約定識別IDを記載すること(持ち下げ供出機区分に該当する場合,起動供出機の初回約定識別IDを記載すること) | N9: ※MMSに登録された起動費単価分を原則用いること ※ 「全量不落」の精算パターンで「最低出力までの発電電力量の機会費用」の事後精算の対象がある場合，様式都合により，属地TSOと事前に確認の上，「MMSに登録された起動費単価分」に当該単価を加算して記載すること | O9: ※持ち下げ供出機区分が該当する場合に記載すること | P9: ※ 持ち下げ供出機区分が該当する場合に記載すること | Q9: ※卸電力市場価格（スポット市場価格：実績）と限界費用との差額を用いること ※加重平均で入札し，一部不落となった場合は，情報を記載するリソースのΔkW単価に含めた起動供出機の最低出力までの発電電力量の加重平均機会費用相当額を精算対象とする ※加重平均で入札し，起動供出機または持ち下げ供出機，またはその双方において一部のリソースが全量不落となったブロックに，起動供出機または持ち下げ供出機の情報を記載する場合は，起動供出機または持ち下げ供出機のΔkW単価に含めた起動供出機の最低出力までの発電電力量の加重平均機会費用相当額を精算対象とする。 （ただし，起動供出機が全量不落となった場合は，起動供出機の起動により機会費用が発生した場合に限る。そのため別途TSOからデータ提出を求める場合がある。なお、起動供出機のΔkW単価に含めた起動供出機の最低出力までの発電電力量の加重平均機会費用相当額については様式都合により，属地TSOと事前に確認の上， 「加重平均起動費未回収分相当額（P列）」に加算して記載すること） | V9: ※加重平均で入札した場合は，最低出力までの発電電力量の加重平均機会費用相当額×(約定希望ΔkW-ΔkW約定量) | W9: ※精算パターン「約定間全量不落(約定間停止・再起動)」を選択した場合，事象NOごとの最終行に合計値表示 | X9: ※１停止・再起動費は最後のブロックに記載すること ※２ 余力活用契約を締結している電源でBG計画上停止・再起動としていたが、実績は停止しなかった場合も、BG計画上の「停止・再起動費」を記載すること | AD9: ※加重平均で入札した場合は，加重平均起動費未回収分相当額 | AE9: ※加重平均で入札した場合は，最低出力までの発電電力量の加重平均機会費用相当額 | AF9: ※約定間全量不落時において，停止・再起動するよりも，最低出力維持した方が経済的だった場合，後者を事後精算対象とする | AJ9: =SUM(AD:AD) -> 0 | AK9: =SUM(AE:AE) -> 0 | AL9: =SUM(AF:AF) -> 0 | AM9: =ROUNDDOWN(SUM(AJ9:AL9),0) -> 0

Sheet 精算パターンマトリクス表
C2: 事象 | D2: 持ち下げ供出機区分 | E2: 契約 | F2: 発電計画 | G2: ＴＳＯ運用 | H2: 精算の範囲 | N2: 精算パターン
H3: 起動費 | I3: 機会費用 | J3: ー | K3: ー | L3: ー | M3: ー
C5: 一部不落 | D5: ー | E5: 基本的に起動費事後精算対象のため省略 | H5: ● | I5: ● | J5: ー | K5: ー | L5: ー | M5: ー | N5: ③
C6: 全量不落 | H6: ● | I6: ●※１ | J6: ー | K6: ー | L6: ー | M6: ー | N6: ②
C7: 約定間一部不落 | H7: ● | I7: ● | J7: ー | K7: ー | L7: ー | M7: ー | N7: ③
C8: 事象 | D8: 持ち下げ供出機区分 | E8: 契約 | F8: 発電計画 | G8: ＴＳＯ運用 | H8: 約定間不落ブロックの起動費 | I8: 約定間不落ブロックの機会費用 | J8: 停止・再起動費 | K8: 妥当性確認 | L8: 余力活用でのＶ１・Ｖ２精算 | M8: 余力活用でのＶ３精算 | N8: 精算パターン
C10: 約定間全量不落 | D10: ー | E10: 需給調整市場 | F10: 最低出力で連続運転 | G10: ー | H10: ● | I10: ● | J10: ー | K10: ー | L10: ー | M10: ー | N10: ①、⑨※２
E11: 需給調整市場+余力活用契約 | G11: 停止・再起動 | H11: ● | I11: ● | J11: ー | K11: ー | L11: ● | M11: ● | N11: ⑥
E12: 需給調整市場+余力活用契約 | G12: 発電計画どおり | H12: ● | I12: ● | J12: ー | K12: ー | L12: ー | M12: ー | N12: ①
E13: 需給調整市場 | F13: 停止・再起動 | G13: ー | H13: ● | I13: ●※３ | J13: ●※４ | K13: ● | L13: ー | M13: ー | N13: ④、⑩※5
E14: 需給調整市場+余力活用契約 | G14: 発電計画どおり | H14: ● | I14: ●※３ | J14: ●※４ | K14: ● | L14: ー | M14: ー | N14: ④
E15: 需給調整市場+余力活用契約 | G15: 最低出力で連続運転 | H15: ● | I15: ●※３ | J15: ●※４ | K15: ● | L15: ● | M15: ● | N15: ⑤
F16: ※１ 約定ブロックのΔｋW供出に伴い全量不落ブロックにおいて最低出力の維持が必要な場合、当該ブロックの機会費用を事後精算対象とする。
F17: ※２ 起動費等を按分して複合市場商品および三次調整力②のΔｋＷ単価に含め入札した結果、いずれか一方の商品区分で全ブロック全量不落となった場合、不約定単価内訳兼起動費事 後精算情報様式における精算パターンは「１：約定間全量不落（最低出力維持）」を選択し、同一の事象No.として記載すること。
F18: ※３ 約定間全量不落時において、停止・再起動にかかる費用よりも、最低出力維持した費用の方が経済的だった場合、後者を事後精算対象とする。
F19: ※４ 約定間全量不落時において、最低出力維持した費用よりも、停止・再起動にかかる費用の方が経済的だった場合、後者を事後精算対象とする。
F20: ※５ 起動費等を按分して複合市場商品および三次調整力②のΔｋＷ単価に含め入札した結果、約定間不落ブロックが発生し、不落ブロックにおいて停止・再起動を行った場合、不約定単価 内訳兼起動費事後精算情報様式における精算パターンは「４：約定間全量不落（約定間停止・再起動）」を選択し、同一の事象No.として記載すること。
C23: 起動供出機と持ち下げ供出機の単価を加重平均にて入札した場合
C24: 事象 | D24: 持ち下げ供出機区分 | E24: 契約 | F24: 発電計画 | G24: ＴＳＯ運用 | H24: 精算の範囲 | N24: 精算パターン
H25: 加重平均の 起動費 | I25: 加重平均の 機会費用 | J25: ー | K25: ー | L25: ー | M25: ー
C27: 一部不落 | D27: 該当(持ち下げ供出機) | E27: 基本的に起動費事後精算対象のため省略 | H27: ●※１ | I27: ●※２ | J27: ー | K27: ー | L27: ー | M27: ー | N27: ⑦-2
D28: 該当(起動供出機) | H28: ●※３ | I28: ● | J28: ー | K28: ー | L28: ー | M28: ー | N28: ⑦-2
C29: 全量不落 | D29: 該当(持ち下げ供出機) | H29: ●※１ | I29: ●※２ | J29: ー | K29: ー | L29: ー | M29: ー | N29: ⑦-1
D30: 該当(起動供出機) | H30: ●※３ | I30: ●※４ | J30: ー | K30: ー | L30: ー | M30: ー | N30: ⑦-1
C31: 約定間一部不落 | D31: 該当(持ち下げ供出機) | H31: ●※１ | I31: ●※２ | J31: ー | K31: ー | L31: ー | M31: ー | N31: ⑦-3
D32: 該当(起動供出機) | H32: ●※３ | I32: ● | J32: ー | K32: ー | L32: ー | M32: ー | N32: ⑦-3
C33: 事象 | D33: 持ち下げ供出機区分 | E33: 契約 | F33: 発電計画 | G33: ＴＳＯ運用 | H33: 約定間不落ブロックの加重平均の起動費 | I33: 約定間不落ブロックの加重平均の機会費用 | J33: 停止・再起動費 | K33: 妥当性確認 | L33: 余力活用でのＶ１・Ｖ２精算 | M33: 余力活用でのＶ３精算 | N33: 精算パターン
C35: 約定間全量不落 | D35: 該当(持ち下げ供出機) | E35: 需給調整市場 | F35: 最低出力で連続運転 | G35: ー | H35: ●※１ | I35: ●※２ | J35: ー | K35: ー | L35: ー | M35: ー | N35: ①、⑪※５
D36: 該当(起動供出機) | H36: ●※３ | I36: ● | J36: ー | K36: ー | L36: ー | M36: ー | N36: ①、⑪※５
D37: 該当(持ち下げ供出機) | E37: 需給調整市場+余力活用契約 | G37: 停止・再起動 | H37: ●※１ | I37: ●※２ | J37: ー | K37: ー | L37: ー | M37: ー | N37: ⑧
D38: 該当(起動供出機) | H38: ●※３ | I38: ● | J38: ー | K38: ー | L38: ● | M38: ● | N38: ⑧
D39: 該当(持ち下げ供出機) | E39: 需給調整市場+余力活用契約 | G39: 発電計画どおり | H39: ●※１ | I39: ●※２ | J39: ー | K39: ー | L39: ー | M39: ー | N39: ①
D40: 該当(起動供出機) | H40: ●※３ | I40: ● | J40: ー | K40: ー | L40: ー | M40: ー | N40: ①
D41: 該当(持ち下げ供出機) | E41: 需給調整市場 | F41: 停止・再起動 | G41: ー | H41: ●※１ | I41: ●※２、６ | J41: ー | K41: ー | L41: ー | M41: ー | N41: ④※７
D42: 該当(起動供出機) | H42: ●※３ | I42: ●※８ | J42: ●※９ | K42: ● | L42: ー | M42: ー | N42: ④※７
D43: 該当(持ち下げ供出機) | E43: 需給調整市場+余力活用契約 | G43: 発電計画どおり | H43: ●※１ | I43: ●※２、６ | J43: ー | K43: ー | L43: ー | M43: ー | N43: ④※７
D44: 該当(起動供出機) | H44: ●※３ | I44: ●※８ | J44: ●※９ | K44: ● | L44: ー | M44: ー | N44: ④※７
D45: 該当(持ち下げ供出機) | E45: 需給調整市場+余力活用契約 | G45: 最低出力で連続運転 | H45: ●※１ | I45: ●※２、６ | J45: ー | K45: ー | L45: ー | M45: ー | N45: ⑤
D46: 該当(起動供出機) | H46: ●※３ | I46: ●※８ | J46: ●※９ | K46: ● | L46: ● | M46: ● | N46: ⑤
F47: ※１ 持ち下げ供出機に織り込んだ起動供出機の起動費単価分とする。
F48: ※２ 持ち下げ供出機に織り込んだ起動供出機の機会費用単価分とする。
F49: ※３ 加重平均のΔkW価格から加重平均前のΔkW価格のうち、機会費用、一定額等を差し引いた価格とする。
F50: ※４ 起動供出機の「最低出力までの発電電力量の機会費用」が発生した場合に限り事後精算対象とする。
F51: ※５ 起動費等を按分して複合市場商品および三次調整力②のΔｋＷ単価に含め入札した結果、いずれか一方の商品区分で全ブロック全量不落となった場合、不約定単価内訳兼起動費事 後精算情報様式における精算パターンは「１：約定間全量不落（最低出力維持）」を選択し、同一の事象No.として記載すること。
F53: ※６ 起動供出機と持ち下げ供出機が同一ブロックで約定間全量不落となったとき、起動供出機における停止・再起動にかかる費用よりも、最低出力維持した費用の方が経済的だった場合に 限り事後精算対象とする。
F55: ※７ 起動費等を按分して複合市場商品および三次調整力②のΔｋＷ単価に含め入札した結果、約定間不落ブロックが発生し、不落ブロックにおいて停止・再起動を行った場合、不約定単価 内訳兼起動費事後精算情報様式における精算パターンは「４：約定間全量不落（約定間停止・再起動）」を選択し、同一の事象No.として記載すること。
F57: ※８ 約定間全量不落時において、停止・再起動にかかる費用よりも、最低出力維持した費用の方が経済的だった場合、後者を事後精算対象とする。
F58: ※９ 約定間全量不落時において、最低出力維持した費用よりも、停止・再起動にかかる費用の方が経済的だった場合、後者を事後精算対象とする。

Sheet 記載例_精算パターン① 約定間全量不落(最低出力維持)
B2: 取引年月 | C2: 202504
B3: MMSコード | C3: A000
B4: 対象エリア | C4: 3：東京
B5: ファイル名称 | C5: =$C$2&"_"&$C$3&"_"&LEFT($C$4,1)&"_不約定単価内訳兼起動費事後精算情報様式" -> 202504_A000_3_不約定単価内訳兼起動費事後精算情報様式
B7: =入力シート!B7 -> 事象NO | C7: =入力シート!C7 -> 精算パターン | D7: =入力シート!D7 -> 余力活用契約対象リソース区分 | E7: =入力シート!E7 -> 取引日 | F7: =入力シート!F7 -> 時刻コード | G7: =入力シート!G7 -> 持ち下げ供出機区分 | H7: =入力シート!H7 -> 系統コード | I7: =入力シート!I7 -> 系統コード(差替後) | J7: =入力シート!J7 -> 商品区分 | K7: =入力シート!K7 -> 売り入札ID | L7: =入力シート!L7 -> 約定番号 | M7: =入力シート!M7 -> 約定識別ID | N7: =入力シート!N7 -> MMS起動費単価 | O7: =入力シート!O7 -> 加重平均前のΔkW単価 | P7: =入力シート!P7 -> 加重平均起動費未回収分相当額 | Q7: =入力シート!Q7 -> 最低出力までの発電電力量の機会費用単価 | R7: =入力シート!R7 -> 発電計画 | S7: =入力シート!S7 -> 最低出力 | T7: =入力シート!T7 -> 約定希望ΔkW | U7: =入力シート!U7 -> ΔkW約定量 | V7: =入力シート!V7 -> 最低出力までの発電電力量の機会費用単価×(約定希望ΔkW-ΔkW約定量) | W7: =入力シート!W7 -> 最低出力維持した場合の費用合計 | X7: =入力シート!X7 -> 停止・再起動にかかる費用 | Y7: =入力シート!Y7 -> 事象毎の最終行 | Z7: =入力シート!Z7 -> 妥当性確認 | AA7: =入力シート!AA7 -> 応札状況 | AB7: =入力シート!AB7 -> 約定状況 | AC7: =入力シート!AC7 -> 並解列状態(実績) | AD7: =入力シート!AD7 -> 起動費未回収分相当額 | AE7: =入力シート!AE7 -> 最低出力までの発電電力量の機会費用 | AF7: =入力シート!AF7 -> 停止・再起動にかかる費用 | AI7: =入力シート!AI7 -> 精算対象 申請小計 | AJ7: =入力シート!AJ7 -> 起動費未回収分相当額 | AK7: =入力シート!AK7 -> 最低出力までの発電電力量の機会費用 | AL7: =入力シート!AL7 -> 停止・再起動にかかる費用 | AM7: =入力シート!AM7 -> 合計
N8: （円/kW） | O8: （円/kW） | P8: （円/kW） | Q8: （円/kW） | R8: （kWh） | S8: （kWh） | T8: （kW） | U8: （kW） | V8: （円） | W8: （円） | X8: （円） | AD8: （円） | AE8: （円） | AF8: （円） | AJ8: （円） | AK8: （円） | AL8: （円） | AM8: （円）
B9: =IF(入力シート!B9<>"",入力シート!B9,"") -> ※起動費未回収が発生した事象NOを付定すること ※複合市場商品および三次調整力②商品へ１回分の起動費等を按分計上して入札し，両市場において起動費等の事後精算を申請する場合は，市場ごとに事象NOを分けずに同一の事象NOとして申請を実施すること | C9: =IF(入力シート!C9<>"",入力シート!C9,"") ->  | D9: =IF(入力シート!D9<>"",入力シート!D9,"") -> ※対象の場合は「１」，非対象の場合は「０」を入力 | E9: =IF(入力シート!E9<>"",入力シート!E9,"") ->  | F9: =IF(入力シート!F9<>"",入力シート!F9,"") ->  | G9: =IF(入力シート!G9<>"",入力シート!G9,"") -> ※持ち下げ供出機を加重平均で入札した場合に選択 | H9: =IF(入力シート!H9<>"",入力シート!H9,"") -> ※電源差替がない場合は精算対象となるリソースの系統コードを記載すること ※電源差替後のリソースにより精算する場合は，差替前のリソースの系統コードを記載すること | I9: =IF(入力シート!I9<>"",入力シート!I9,"") -> ※起動費単価分が登録されている電源に電源差替を実施する場合に記載すること | J9: =IF(入力シート!J9<>"",入力シート!J9,"") ->  | K9: =IF(入力シート!K9<>"",入力シート!K9,"") ->  | L9: =IF(入力シート!L9<>"",入力シート!L9,"") -> ※持ち下げ供出機区分が該当する場合，起動供出機の約定番号を記載すること ※同一時刻コードにおいて，複数の約定番号がある場合は，いずれか1つを記載すること | M9: =IF(入力シート!M9<>"",入力シート!M9,"") -> ※持ち下げ供出機区分に該当する場合，起動供出機の約定識別IDを記載すること ※同一時刻コードにおいて，約定番号に紐づく約定識別IDが複数存在する場合は，いずれか1つを記載すること ※電源差し替えを実施した場合，差替え元の約定識別IDを記載すること(持ち下げ供出機区分に該当する場合,起動供出機の初回約定識別IDを記載すること) | N9: =IF(入力シート!N9<>"",入力シート!N9,"") -> ※MMSに登録された起動費単価分を原則用いること ※ 「全量不落」の精算パターンで「最低出力までの発電電力量の機会費用」の事後精算の対象がある場合，様式都合により，属地TSOと事前に確認の上，「MMSに登録された起動費単価分」に当該単価を加算して記載すること | O9: =IF(入力シート!O9<>"",入力シート!O9,"") -> ※持ち下げ供出機区分が該当する場合に記載すること | P9: =IF(入力シート!P9<>"",入力シート!P9,"") -> ※ 持ち下げ供出機区分が該当する場合に記載すること | Q9: =IF(入力シート!Q9<>"",入力シート!Q9,"") -> ※卸電力市場価格（スポット市場価格：実績）と限界費用との差額を用いること ※加重平均で入札し，一部不落となった場合は，情報を記載するリソースのΔkW単価に含めた起動供出機の最低出力までの発電電力量の加重平均機会費用相当額を精算対象とする ※加重平均で入札し，起動供出機または持ち下げ供出機，またはその双方において一部のリソースが全量不落となったブロックに，起動供出機または持ち下げ供出機の情報を記載する場合は，起動供出機または持ち下げ供出機のΔkW単価に含めた起動供出機の最低出力までの発電電力量の加重平均機会費用相当額を精算対象とする。 （ただし，起動供出機が全量不落となった場合は，起動供出機の起動により機会費用が発生した場合に限る。そのため別途TSOからデータ提出を求める場合がある。なお、起動供出機のΔkW単価に含めた起動供出機の最低出力までの発電電力量の加重平均機会費用相当額については様式都合により，属地TSOと事前に確認の上， 「加重平均起動費未回収分相当額（P列）」に加算して記載すること） | R9: =IF(入力シート!R9<>"",入力シート!R9,"") ->  | S9: =IF(入力シート!S9<>"",入力シート!S9,"") ->  | T9: =IF(入力シート!T9<>"",入力シート!T9,"") ->  | U9: =IF(入力シート!U9<>"",入力シート!U9,"") ->  | V9: =IF(入力シート!V9<>"",入力シート!V9,"") -> ※加重平均で入札した場合は，最低出力までの発電電力量の加重平均機会費用相当額×(約定希望ΔkW-ΔkW約定量) | W9: =IF(入力シート!W9<>"",入力シート!W9,"") -> ※精算パターン「約定間全量不落(約定間停止・再起動)」を選択した場合，事象NOごとの最終行に合計値表示 | X9: =IF(入力シート!X9<>"",入力シート!X9,"") -> ※１停止・再起動費は最後のブロックに記載すること ※２ 余力活用契約を締結している電源でBG計画上停止・再起動としていたが、実績は停止しなかった場合も、BG計画上の「停止・再起動費」を記載すること | Y9: =IF(入力シート!Y9<>"",入力シート!Y9,"") ->  | Z9: =IF(入力シート!Z9<>"",入力シート!Z9,"") ->  | AA9: =IF(入力シート!AA9<>"",入力シート!AA9,"") ->  | AB9: =IF(入力シート!AB9<>"",入力シート!AB9,"") ->  | AC9: =IF(入力シート!AC9<>"",入力シート!AC9,"") ->  | AD9: =IF(入力シート!AD9<>"",入力シート!AD9,"") -> ※加重平均で入札した場合は，加重平均起動費未回収分相当額 | AE9: =IF(入力シート!AE9<>"",入力シート!AE9,"") -> ※加重平均で入札した場合は，最低出力までの発電電力量の加重平均機会費用相当額 | AF9: =IF(入力シート!AF9<>"",入力シート!AF9,"") -> ※約定間全量不落時において，停止・再起動するよりも，最低出力維持した方が経済的だった場合，後者を事後精算対象とする | AJ9: =SUM($AD10:$AD2831) -> 3329000 | AK9: =SUM($AE10:$AE2831) -> 225000 | AL9: =SUM($AF10:$AF2831) -> 0 | AM9: =ROUNDDOWN(SUM(AJ9:AL9),0) -> 3554000
B10: 1 | C10: 1：約定間全量不落（最低出力維持） | D10: 0：非対象 | E10: 20250401 | F10: 4 | H10: ○A○○○ | J10: 2：三次調整力② | K10: ○○○○○○ | N10: 33.29 | Q10: 2.25 | R10: 20000 | S10: 20000 | T10: 50000 | U10: 0 | V10: =Q10*(T10-U10) -> 112500 | W10: =IF(X10 > 0, SUMIFS(V:V, B:B, B10, Z:Z, 1), 0) -> 0 | Y10: =IF(ISNUMBER(B10), IF(COUNTIF($B$10:$B10, B10)=COUNTIF($B:$B, B10), "1", "0"), "") -> 0 | Z10: =IF(OR($C10=List!$C$5,$C10=List!$C$6,$C10=List!$C$11,$C10=List!$C$13), 1, 0) -> 0 | AA10: =_xlfn.IFS(T10="","未応札",T10>0,"応札") -> 応札 | AB10: =_xlfn.IFS(U10=0,"未約定",U10=T10,"約定",U10<T10,"一部約定") -> 未約定 | AC10: 1：並列 | AD10: =IF(AA10="応札",IF($AB10="未約定",IF(OR($G10=List!$F$2:$F$3), $P10*$T10, $N10*$T10),IF($AB10="一部約定",IF(OR($G10=List!$F$2:$F$3), $P10*($T10-$U10), $N10*($T10-$U10)),"")),"") -> 1664500 | AE10: =IF(ISBLANK($R10),IF(OR($AB10="一部約定",$AB10="未約定"),$Q10*($T10-$U10),""),IF($R10=0,"", IF(OR($AB10="一部約定", $AB10="未約定"), $Q10*($T10-$U10), ""))) -> 112500 | AF10: =IF(AND($AA10="応札",$AB10="未約定"), IF($W10<>0, IF($X10<$W10, IF($X10<>0, $X10, ""), IF($W10<>0, $W10, "")), IF($X10<>0, $X10, "")), "") -> 
B11: 1 | C11: 1：約定間全量不落（最低出力維持） | D11: 0：非対象 | E11: 20250401 | F11: 5 | H11: ○A○○○ | J11: 2：三次調整力② | K11: ○○○○○○ | N11: 33.29 | Q11: 2.25 | R11: 20000 | S11: 20000 | T11: 50000 | U11: 0 | V11: =Q11*(T11-U11) -> 112500 | W11: =IF(X11 > 0, SUMIFS(V:V, B:B, B11, Z:Z, 1), 0) -> 0 | Y11: =IF(ISNUMBER(B11), IF(COUNTIF($B$10:$B11, B11)=COUNTIF($B:$B, B11), "1", "0"), "") -> 1 | Z11: =IF(OR($C11=List!$C$5,$C11=List!$C$6,$C11=List!$C$11,$C11=List!$C$13), 1, 0) -> 0 | AA11: =_xlfn.IFS(T11="","未応札",T11>0,"応札") -> 応札 | AB11: =_xlfn.IFS(U11=0,"未約定",U11=T11,"約定",U11<T11,"一部約定") -> 未約定 | AC11: 1：並列 | AD11: =IF(AA11="応札",IF($AB11="未約定",IF(OR($G11=List!$F$2:$F$3), $P11*$T11, $N11*$T11),IF($AB11="一部約定",IF(OR($G11=List!$F$2:$F$3), $P11*($T11-$U11), $N11*($T11-$U11)),"")),"") -> 1664500 | AE11: =IF(ISBLANK($R11),IF(OR($AB11="一部約定",$AB11="未約定"),$Q11*($T11-$U11),""),IF($R11=0,"", IF(OR($AB11="一部約定", $AB11="未約定"), $Q11*($T11-$U11), ""))) -> 112500 | AF11: =IF(AND($AA11="応札",$AB11="未約定"), IF($W11<>0, IF($X11<$W11, IF($X11<>0, $X11, ""), IF($W11<>0, $W11, "")), IF($X11<>0, $X11, "")), "") -> 
V12: 0 | W12: 0 | Y12: =IF(ISNUMBER(B12), IF(COUNTIF($B$10:$B12, B12)=COUNTIF($B:$B, B12), "1", "0"), "") ->  | Z12: =IF(OR($C12=List!$C$5,$C12=List!$C$6,$C12=List!$C$11,$C12=List!$C$13), 1, 0) -> 0 | AA12: =_xlfn.IFS(T12="","未応札",T12>0,"応札") -> 未応札 | AB12: =_xlfn.IFS(U12=0,"未約定",U12=T12,"約定",U12<T12,"一部約定") -> 未約定 | AD12: =IF(AA12="応札",IF($AB12="未約定",IF(OR($G12=List!$F$2:$F$3), $P12*$T12, $N12*$T12),IF($AB12="一部約定",IF(OR($G12=List!$F$2:$F$3), $P12*($T12-$U12), $N12*($T12-$U12)),"")),"") ->  | AE12: 0
V13: 0 | W13: 0 | Y13: =IF(ISNUMBER(B13), IF(COUNTIF($B$10:$B13, B13)=COUNTIF($B:$B, B13), "1", "0"), "") ->  | Z13: =IF(OR($C13=List!$C$5,$C13=List!$C$6,$C13=List!$C$11,$C13=List!$C$13), 1, 0) -> 0 | AA13: =_xlfn.IFS(T13="","未応札",T13>0,"応札") -> 未応札 | AB13: =_xlfn.IFS(U13=0,"未約定",U13=T13,"約定",U13<T13,"一部約定") -> 未約定 | AD13: =IF(AA13="応札",IF($AB13="未約定",IF(OR($G13=List!$F$2:$F$3), $P13*$T13, $N13*$T13),IF($AB13="一部約定",IF(OR($G13=List!$F$2:$F$3), $P13*($T13-$U13), $N13*($T13-$U13)),"")),"") ->  | AE13: 0
V14: 0 | W14: 0 | Y14: =IF(ISNUMBER(B14), IF(COUNTIF($B$10:$B14, B14)=COUNTIF($B:$B, B14), "1", "0"), "") ->  | Z14: =IF(OR($C14=List!$C$5,$C14=List!$C$6,$C14=List!$C$11,$C14=List!$C$13), 1, 0) -> 0 | AA14: =_xlfn.IFS(T14="","未応札",T14>0,"応札") -> 未応札 | AB14: =_xlfn.IFS(U14=0,"未約定",U14=T14,"約定",U14<T14,"一部約定") -> 未約定 | AD14: =IF(AA14="応札",IF($AB14="未約定",IF(OR($G14=List!$F$2:$F$3), $P14*$T14, $N14*$T14),IF($AB14="一部約定",IF(OR($G14=List!$F$2:$F$3), $P14*($T14-$U14), $N14*($T14-$U14)),"")),"") ->  | AE14: =IF(ISBLANK($R14),IF(OR($AB14="一部約定",$AB14="未約定"),$Q14*($T14-$U14),""),IF($R14=0,"", IF(OR($AB14="一部約定", $AB14="未約定"), $Q14*($T14-$U14), ""))) -> 0
V15: 0 | W15: 0 | Y15: =IF(ISNUMBER(B15), IF(COUNTIF($B$10:$B15, B15)=COUNTIF($B:$B, B15), "1", "0"), "") ->  | Z15: =IF(OR($C15=List!$C$5,$C15=List!$C$6,$C15=List!$C$11,$C15=List!$C$13), 1, 0) -> 0 | AA15: =_xlfn.IFS(T15="","未応札",T15>0,"応札") -> 未応札 | AB15: =_xlfn.IFS(U15=0,"未約定",U15=T15,"約定",U15<T15,"一部約定") -> 未約定 | AD15: =IF(AA15="応札",IF($AB15="未約定",IF(OR($G15=List!$F$2:$F$3), $P15*$T15, $N15*$T15),IF($AB15="一部約定",IF(OR($G15=List!$F$2:$F$3), $P15*($T15-$U15), $N15*($T15-$U15)),"")),"") ->  | AE15: =IF(ISBLANK($R15),IF(OR($AB15="一部約定",$AB15="未約定"),$Q15*($T15-$U15),""),IF($R15=0,"", IF(OR($AB15="一部約定", $AB15="未約定"), $Q15*($T15-$U15), ""))) -> 0
V16: 0 | W16: 0 | Y16: =IF(ISNUMBER(B16), IF(COUNTIF($B$10:$B16, B16)=COUNTIF($B:$B, B16), "1", "0"), "") ->  | Z16: =IF(OR($C16=List!$C$5,$C16=List!$C$6,$C16=List!$C$11,$C16=List!$C$13), 1, 0) -> 0 | AA16: =_xlfn.IFS(T16="","未応札",T16>0,"応札") -> 未応札 | AB16: =_xlfn.IFS(U16=0,"未約定",U16=T16,"約定",U16<T16,"一部約定") -> 未約定 | AD16: =IF(AA16="応札",IF($AB16="未約定",IF(OR($G16=List!$F$2:$F$3), $P16*$T16, $N16*$T16),IF($AB16="一部約定",IF(OR($G16=List!$F$2:$F$3), $P16*($T16-$U16), $N16*($T16-$U16)),"")),"") ->  | AE16: 0
V17: 0 | W17: 0 | Y17: =IF(ISNUMBER(B17), IF(COUNTIF($B$10:$B17, B17)=COUNTIF($B:$B, B17), "1", "0"), "") ->  | Z17: =IF(OR($C17=List!$C$5,$C17=List!$C$6,$C17=List!$C$11,$C17=List!$C$13), 1, 0) -> 0 | AA17: =_xlfn.IFS(T17="","未応札",T17>0,"応札") -> 未応札 | AB17: =_xlfn.IFS(U17=0,"未約定",U17=T17,"約定",U17<T17,"一部約定") -> 未約定 | AD17: =IF(AA17="応札",IF($AB17="未約定",IF(OR($G17=List!$F$2:$F$3), $P17*$T17, $N17*$T17),IF($AB17="一部約定",IF(OR($G17=List!$F$2:$F$3), $P17*($T17-$U17), $N17*($T17-$U17)),"")),"") ->  | AE17: 0
V18: 0 | W18: 0 | Y18: =IF(ISNUMBER(B18), IF(COUNTIF($B$10:$B18, B18)=COUNTIF($B:$B, B18), "1", "0"), "") ->  | Z18: =IF(OR($C18=List!$C$5,$C18=List!$C$6,$C18=List!$C$11,$C18=List!$C$13), 1, 0) -> 0 | AA18: =_xlfn.IFS(T18="","未応札",T18>0,"応札") -> 未応札 | AB18: =_xlfn.IFS(U18=0,"未約定",U18=T18,"約定",U18<T18,"一部約定") -> 未約定 | AD18: =IF(AA18="応札",IF($AB18="未約定",IF(OR($G18=List!$F$2:$F$3), $P18*$T18, $N18*$T18),IF($AB18="一部約定",IF(OR($G18=List!$F$2:$F$3), $P18*($T18-$U18), $N18*($T18-$U18)),"")),"") ->  | AE18: =IF(ISBLANK($R18),IF(OR($AB18="一部約定",$AB18="未約定"),$Q18*($T18-$U18),""),IF($R18=0,"", IF(OR($AB18="一部約定", $AB18="未約定"), $Q18*($T18-$U18), ""))) -> 0
V19: 0 | W19: 0 | Y19: =IF(ISNUMBER(B19), IF(COUNTIF($B$10:$B19, B19)=COUNTIF($B:$B, B19), "1", "0"), "") ->  | Z19: =IF(OR($C19=List!$C$5,$C19=List!$C$6,$C19=List!$C$11,$C19=List!$C$13), 1, 0) -> 0 | AA19: =_xlfn.IFS(T19="","未応札",T19>0,"応札") -> 未応札 | AB19: =_xlfn.IFS(U19=0,"未約定",U19=T19,"約定",U19<T19,"一部約定") -> 未約定 | AD19: =IF(AA19="応札",IF($AB19="未約定",IF(OR($G19=List!$F$2:$F$3), $P19*$T19, $N19*$T19),IF($AB19="一部約定",IF(OR($G19=List!$F$2:$F$3), $P19*($T19-$U19), $N19*($T19-$U19)),"")),"") ->  | AE19: =IF(ISBLANK($R19),IF(OR($AB19="一部約定",$AB19="未約定"),$Q19*($T19-$U19),""),IF($R19=0,"", IF(OR($AB19="一部約定", $AB19="未約定"), $Q19*($T19-$U19), ""))) -> 0
V20: 0 | W20: 0 | Y20: =IF(ISNUMBER(B20), IF(COUNTIF($B$10:$B20, B20)=COUNTIF($B:$B, B20), "1", "0"), "") ->  | Z20: =IF(OR($C20=List!$C$5,$C20=List!$C$6,$C20=List!$C$11,$C20=List!$C$13), 1, 0) -> 0 | AA20: =_xlfn.IFS(T20="","未応札",T20>0,"応札") -> 未応札 | AB20: =_xlfn.IFS(U20=0,"未約定",U20=T20,"約定",U20<T20,"一部約定") -> 未約定 | AD20: =IF(AA20="応札",IF($AB20="未約定",IF(OR($G20=List!$F$2:$F$3), $P20*$T20, $N20*$T20),IF($AB20="一部約定",IF(OR($G20=List!$F$2:$F$3), $P20*($T20-$U20), $N20*($T20-$U20)),"")),"") ->  | AE20: 0
V21: 0 | W21: 0 | Y21: =IF(ISNUMBER(B21), IF(COUNTIF($B$10:$B21, B21)=COUNTIF($B:$B, B21), "1", "0"), "") ->  | Z21: =IF(OR($C21=List!$C$5,$C21=List!$C$6,$C21=List!$C$11,$C21=List!$C$13), 1, 0) -> 0 | AA21: =_xlfn.IFS(T21="","未応札",T21>0,"応札") -> 未応札 | AB21: =_xlfn.IFS(U21=0,"未約定",U21=T21,"約定",U21<T21,"一部約定") -> 未約定 | AD21: =IF(AA21="応札",IF($AB21="未約定",IF(OR($G21=List!$F$2:$F$3), $P21*$T21, $N21*$T21),IF($AB21="一部約定",IF(OR($G21=List!$F$2:$F$3), $P21*($T21-$U21), $N21*($T21-$U21)),"")),"") ->  | AE21: 0
V22: 0 | W22: 0 | Y22: =IF(ISNUMBER(B22), IF(COUNTIF($B$10:$B22, B22)=COUNTIF($B:$B, B22), "1", "0"), "") ->  | Z22: =IF(OR($C22=List!$C$5,$C22=List!$C$6,$C22=List!$C$11,$C22=List!$C$13), 1, 0) -> 0 | AA22: =_xlfn.IFS(T22="","未応札",T22>0,"応札") -> 未応札 | AB22: =_xlfn.IFS(U22=0,"未約定",U22=T22,"約定",U22<T22,"一部約定") -> 未約定 | AD22: =IF(AA22="応札",IF($AB22="未約定",IF(OR($G22=List!$F$2:$F$3), $P22*$T22, $N22*$T22),IF($AB22="一部約定",IF(OR($G22=List!$F$2:$F$3), $P22*($T22-$U22), $N22*($T22-$U22)),"")),"") ->  | AE22: 0
V23: 0 | W23: 0 | Y23: =IF(ISNUMBER(B23), IF(COUNTIF($B$10:$B23, B23)=COUNTIF($B:$B, B23), "1", "0"), "") ->  | Z23: =IF(OR($C23=List!$C$5,$C23=List!$C$6,$C23=List!$C$11,$C23=List!$C$13), 1, 0) -> 0 | AA23: =_xlfn.IFS(T23="","未応札",T23>0,"応札") -> 未応札 | AB23: =_xlfn.IFS(U23=0,"未約定",U23=T23,"約定",U23<T23,"一部約定") -> 未約定 | AD23: =IF(AA23="応札",IF($AB23="未約定",IF(OR($G23=List!$F$2:$F$3), $P23*$T23, $N23*$T23),IF($AB23="一部約定",IF(OR($G23=List!$F$2:$F$3), $P23*($T23-$U23), $N23*($T23-$U23)),"")),"") ->  | AE23: 0
V24: 0 | W24: 0 | Y24: =IF(ISNUMBER(B24), IF(COUNTIF($B$10:$B24, B24)=COUNTIF($B:$B, B24), "1", "0"), "") ->  | Z24: =IF(OR($C24=List!$C$5,$C24=List!$C$6,$C24=List!$C$11,$C24=List!$C$13), 1, 0) -> 0 | AA24: =_xlfn.IFS(T24="","未応札",T24>0,"応札") -> 未応札 | AB24: =_xlfn.IFS(U24=0,"未約定",U24=T24,"約定",U24<T24,"一部約定") -> 未約定 | AD24: =IF(AA24="応札",IF($AB24="未約定",IF(OR($G24=List!$F$2:$F$3), $P24*$T24, $N24*$T24),IF($AB24="一部約定",IF(OR($G24=List!$F$2:$F$3), $P24*($T24-$U24), $N24*($T24-$U24)),"")),"") ->  | AE24: 0
V25: 0 | W25: 0 | Y25: =IF(ISNUMBER(B25), IF(COUNTIF($B$10:$B25, B25)=COUNTIF($B:$B, B25), "1", "0"), "") ->  | Z25: =IF(OR($C25=List!$C$5,$C25=List!$C$6,$C25=List!$C$11,$C25=List!$C$13), 1, 0) -> 0 | AA25: =_xlfn.IFS(T25="","未応札",T25>0,"応札") -> 未応札 | AB25: =_xlfn.IFS(U25=0,"未約定",U25=T25,"約定",U25<T25,"一部約定") -> 未約定 | AD25: =IF(AA25="応札",IF($AB25="未約定",IF(OR($G25=List!$F$2:$F$3), $P25*$T25, $N25*$T25),IF($AB25="一部約定",IF(OR($G25=List!$F$2:$F$3), $P25*($T25-$U25), $N25*($T25-$U25)),"")),"") ->  | AE25: 0
V26: 0 | W26: 0 | Y26: =IF(ISNUMBER(B26), IF(COUNTIF($B$10:$B26, B26)=COUNTIF($B:$B, B26), "1", "0"), "") ->  | Z26: =IF(OR($C26=List!$C$5,$C26=List!$C$6,$C26=List!$C$11,$C26=List!$C$13), 1, 0) -> 0 | AA26: =_xlfn.IFS(T26="","未応札",T26>0,"応札") -> 未応札 | AB26: =_xlfn.IFS(U26=0,"未約定",U26=T26,"約定",U26<T26,"一部約定") -> 未約定 | AD26: =IF(AA26="応札",IF($AB26="未約定",IF(OR($G26=List!$F$2:$F$3), $P26*$T26, $N26*$T26),IF($AB26="一部約定",IF(OR($G26=List!$F$2:$F$3), $P26*($T26-$U26), $N26*($T26-$U26)),"")),"") ->  | AE26: 0
V27: 0 | W27: 0 | Y27: =IF(ISNUMBER(B27), IF(COUNTIF($B$10:$B27, B27)=COUNTIF($B:$B, B27), "1", "0"), "") ->  | Z27: =IF(OR($C27=List!$C$5,$C27=List!$C$6,$C27=List!$C$11,$C27=List!$C$13), 1, 0) -> 0 | AA27: =_xlfn.IFS(T27="","未応札",T27>0,"応札") -> 未応札 | AB27: =_xlfn.IFS(U27=0,"未約定",U27=T27,"約定",U27<T27,"一部約定") -> 未約定 | AD27: =IF(AA27="応札",IF($AB27="未約定",IF(OR($G27=List!$F$2:$F$3), $P27*$T27, $N27*$T27),IF($AB27="一部約定",IF(OR($G27=List!$F$2:$F$3), $P27*($T27-$U27), $N27*($T27-$U27)),"")),"") ->  | AE27: 0
V28: 0 | W28: 0 | Y28: =IF(ISNUMBER(B28), IF(COUNTIF($B$10:$B28, B28)=COUNTIF($B:$B, B28), "1", "0"), "") ->  | Z28: =IF(OR($C28=List!$C$5,$C28=List!$C$6,$C28=List!$C$11,$C28=List!$C$13), 1, 0) -> 0 | AA28: =_xlfn.IFS(T28="","未応札",T28>0,"応札") -> 未応札 | AB28: =_xlfn.IFS(U28=0,"未約定",U28=T28,"約定",U28<T28,"一部約定") -> 未約定 | AD28: =IF(AA28="応札",IF($AB28="未約定",IF(OR($G28=List!$F$2:$F$3), $P28*$T28, $N28*$T28),IF($AB28="一部約定",IF(OR($G28=List!$F$2:$F$3), $P28*($T28-$U28), $N28*($T28-$U28)),"")),"") ->  | AE28: 0
V29: 0 | W29: 0 | Y29: =IF(ISNUMBER(B29), IF(COUNTIF($B$10:$B29, B29)=COUNTIF($B:$B, B29), "1", "0"), "") ->  | Z29: =IF(OR($C29=List!$C$5,$C29=List!$C$6,$C29=List!$C$11,$C29=List!$C$13), 1, 0) -> 0 | AA29: =_xlfn.IFS(T29="","未応札",T29>0,"応札") -> 未応札 | AB29: =_xlfn.IFS(U29=0,"未約定",U29=T29,"約定",U29<T29,"一部約定") -> 未約定 | AD29: =IF(AA29="応札",IF($AB29="未約定",IF(OR($G29=List!$F$2:$F$3), $P29*$T29, $N29*$T29),IF($AB29="一部約定",IF(OR($G29=List!$F$2:$F$3), $P29*($T29-$U29), $N29*($T29-$U29)),"")),"") ->  | AE29: 0
V30: 0 | W30: 0 | Y30: =IF(ISNUMBER(B30), IF(COUNTIF($B$10:$B30, B30)=COUNTIF($B:$B, B30), "1", "0"), "") ->  | Z30: =IF(OR($C30=List!$C$5,$C30=List!$C$6,$C30=List!$C$11,$C30=List!$C$13), 1, 0) -> 0 | AA30: =_xlfn.IFS(T30="","未応札",T30>0,"応札") -> 未応札 | AB30: =_xlfn.IFS(U30=0,"未約定",U30=T30,"約定",U30<T30,"一部約定") -> 未約定 | AD30: =IF(AA30="応札",IF($AB30="未約定",IF(OR($G30=List!$F$2:$F$3), $P30*$T30, $N30*$T30),IF($AB30="一部約定",IF(OR($G30=List!$F$2:$F$3), $P30*($T30-$U30), $N30*($T30-$U30)),"")),"") ->  | AE30: 0
V31: 0 | W31: 0 | Y31: =IF(ISNUMBER(B31), IF(COUNTIF($B$10:$B31, B31)=COUNTIF($B:$B, B31), "1", "0"), "") ->  | Z31: =IF(OR($C31=List!$C$5,$C31=List!$C$6,$C31=List!$C$11,$C31=List!$C$13), 1, 0) -> 0 | AA31: =_xlfn.IFS(T31="","未応札",T31>0,"応札") -> 未応札 | AB31: =_xlfn.IFS(U31=0,"未約定",U31=T31,"約定",U31<T31,"一部約定") -> 未約定 | AD31: =IF(AA31="応札",IF($AB31="未約定",IF(OR($G31=List!$F$2:$F$3), $P31*$T31, $N31*$T31),IF($AB31="一部約定",IF(OR($G31=List!$F$2:$F$3), $P31*($T31-$U31), $N31*($T31-$U31)),"")),"") ->  | AE31: 0
V32: 0 | W32: 0 | Y32: =IF(ISNUMBER(B32), IF(COUNTIF($B$10:$B32, B32)=COUNTIF($B:$B, B32), "1", "0"), "") ->  | Z32: =IF(OR($C32=List!$C$5,$C32=List!$C$6,$C32=List!$C$11,$C32=List!$C$13), 1, 0) -> 0 | AA32: =_xlfn.IFS(T32="","未応札",T32>0,"応札") -> 未応札 | AB32: =_xlfn.IFS(U32=0,"未約定",U32=T32,"約定",U32<T32,"一部約定") -> 未約定 | AD32: =IF(AA32="応札",IF($AB32="未約定",IF(OR($G32=List!$F$2:$F$3), $P32*$T32, $N32*$T32),IF($AB32="一部約定",IF(OR($G32=List!$F$2:$F$3), $P32*($T32-$U32), $N32*($T32-$U32)),"")),"") ->  | AE32: 0
V33: 0 | W33: 0 | Y33: =IF(ISNUMBER(B33), IF(COUNTIF($B$10:$B33, B33)=COUNTIF($B:$B, B33), "1", "0"), "") ->  | Z33: =IF(OR($C33=List!$C$5,$C33=List!$C$6,$C33=List!$C$11,$C33=List!$C$13), 1, 0) -> 0 | AA33: =_xlfn.IFS(T33="","未応札",T33>0,"応札") -> 未応札 | AB33: =_xlfn.IFS(U33=0,"未約定",U33=T33,"約定",U33<T33,"一部約定") -> 未約定 | AD33: =IF(AA33="応札",IF($AB33="未約定",IF(OR($G33=List!$F$2:$F$3), $P33*$T33, $N33*$T33),IF($AB33="一部約定",IF(OR($G33=List!$F$2:$F$3), $P33*($T33-$U33), $N33*($T33-$U33)),"")),"") ->  | AE33: 0
V34: 0 | W34: 0 | Y34: =IF(ISNUMBER(B34), IF(COUNTIF($B$10:$B34, B34)=COUNTIF($B:$B, B34), "1", "0"), "") ->  | Z34: =IF(OR($C34=List!$C$5,$C34=List!$C$6,$C34=List!$C$11,$C34=List!$C$13), 1, 0) -> 0 | AA34: =_xlfn.IFS(T34="","未応札",T34>0,"応札") -> 未応札 | AB34: =_xlfn.IFS(U34=0,"未約定",U34=T34,"約定",U34<T34,"一部約定") -> 未約定 | AD34: =IF(AA34="応札",IF($AB34="未約定",IF(OR($G34=List!$F$2:$F$3), $P34*$T34, $N34*$T34),IF($AB34="一部約定",IF(OR($G34=List!$F$2:$F$3), $P34*($T34-$U34), $N34*($T34-$U34)),"")),"") ->  | AE34: 0
V35: 0 | W35: 0 | Y35: =IF(ISNUMBER(B35), IF(COUNTIF($B$10:$B35, B35)=COUNTIF($B:$B, B35), "1", "0"), "") ->  | Z35: =IF(OR($C35=List!$C$5,$C35=List!$C$6,$C35=List!$C$11,$C35=List!$C$13), 1, 0) -> 0 | AA35: =_xlfn.IFS(T35="","未応札",T35>0,"応札") -> 未応札 | AB35: =_xlfn.IFS(U35=0,"未約定",U35=T35,"約定",U35<T35,"一部約定") -> 未約定 | AD35: =IF(AA35="応札",IF($AB35="未約定",IF(OR($G35=List!$F$2:$F$3), $P35*$T35, $N35*$T35),IF($AB35="一部約定",IF(OR($G35=List!$F$2:$F$3), $P35*($T35-$U35), $N35*($T35-$U35)),"")),"") ->  | AE35: 0
V36: 0 | W36: 0 | Y36: =IF(ISNUMBER(B36), IF(COUNTIF($B$10:$B36, B36)=COUNTIF($B:$B, B36), "1", "0"), "") ->  | Z36: =IF(OR($C36=List!$C$5,$C36=List!$C$6,$C36=List!$C$11,$C36=List!$C$13), 1, 0) -> 0 | AA36: =_xlfn.IFS(T36="","未応札",T36>0,"応札") -> 未応札 | AB36: =_xlfn.IFS(U36=0,"未約定",U36=T36,"約定",U36<T36,"一部約定") -> 未約定 | AD36: =IF(AA36="応札",IF($AB36="未約定",IF(OR($G36=List!$F$2:$F$3), $P36*$T36, $N36*$T36),IF($AB36="一部約定",IF(OR($G36=List!$F$2:$F$3), $P36*($T36-$U36), $N36*($T36-$U36)),"")),"") ->  | AE36: 0
V37: 0 | W37: 0 | Y37: =IF(ISNUMBER(B37), IF(COUNTIF($B$10:$B37, B37)=COUNTIF($B:$B, B37), "1", "0"), "") ->  | Z37: =IF(OR($C37=List!$C$5,$C37=List!$C$6,$C37=List!$C$11,$C37=List!$C$13), 1, 0) -> 0 | AA37: =_xlfn.IFS(T37="","未応札",T37>0,"応札") -> 未応札 | AB37: =_xlfn.IFS(U37=0,"未約定",U37=T37,"約定",U37<T37,"一部約定") -> 未約定 | AD37: =IF(AA37="応札",IF($AB37="未約定",IF(OR($G37=List!$F$2:$F$3), $P37*$T37, $N37*$T37),IF($AB37="一部約定",IF(OR($G37=List!$F$2:$F$3), $P37*($T37-$U37), $N37*($T37-$U37)),"")),"") ->  | AE37: 0
V38: 0 | W38: 0 | Y38: =IF(ISNUMBER(B38), IF(COUNTIF($B$10:$B38, B38)=COUNTIF($B:$B, B38), "1", "0"), "") ->  | Z38: =IF(OR($C38=List!$C$5,$C38=List!$C$6,$C38=List!$C$11,$C38=List!$C$13), 1, 0) -> 0 | AA38: =_xlfn.IFS(T38="","未応札",T38>0,"応札") -> 未応札 | AB38: =_xlfn.IFS(U38=0,"未約定",U38=T38,"約定",U38<T38,"一部約定") -> 未約定 | AD38: =IF(AA38="応札",IF($AB38="未約定",IF(OR($G38=List!$F$2:$F$3), $P38*$T38, $N38*$T38),IF($AB38="一部約定",IF(OR($G38=List!$F$2:$F$3), $P38*($T38-$U38), $N38*($T38-$U38)),"")),"") ->  | AE38: 0
V39: 0 | W39: 0 | Y39: =IF(ISNUMBER(B39), IF(COUNTIF($B$10:$B39, B39)=COUNTIF($B:$B, B39), "1", "0"), "") ->  | Z39: =IF(OR($C39=List!$C$5,$C39=List!$C$6,$C39=List!$C$11,$C39=List!$C$13), 1, 0) -> 0 | AA39: =_xlfn.IFS(T39="","未応札",T39>0,"応札") -> 未応札 | AB39: =_xlfn.IFS(U39=0,"未約定",U39=T39,"約定",U39<T39,"一部約定") -> 未約定 | AD39: =IF(AA39="応札",IF($AB39="未約定",IF(OR($G39=List!$F$2:$F$3), $P39*$T39, $N39*$T39),IF($AB39="一部約定",IF(OR($G39=List!$F$2:$F$3), $P39*($T39-$U39), $N39*($T39-$U39)),"")),"") ->  | AE39: 0

Sheet 記載例_精算パターン②全量不落
B2: 取引年月 | C2: 202504
B3: MMSコード | C3: A000
B4: 対象エリア | C4: 3：東京
B5: ファイル名称 | C5: =$C$2&"_"&$C$3&"_"&LEFT($C$4,1)&"_不約定単価内訳兼起動費事後精算情報様式" -> 202504_A000_3_不約定単価内訳兼起動費事後精算情報様式
B7: =入力シート!B7 -> 事象NO | C7: =入力シート!C7 -> 精算パターン | D7: =入力シート!D7 -> 余力活用契約対象リソース区分 | E7: =入力シート!E7 -> 取引日 | F7: =入力シート!F7 -> 時刻コード | G7: =入力シート!G7 -> 持ち下げ供出機区分 | H7: =入力シート!H7 -> 系統コード | I7: =入力シート!I7 -> 系統コード(差替後) | J7: =入力シート!J7 -> 商品区分 | K7: =入力シート!K7 -> 売り入札ID | L7: =入力シート!L7 -> 約定番号 | M7: =入力シート!M7 -> 約定識別ID | N7: =入力シート!N7 -> MMS起動費単価 | O7: =入力シート!O7 -> 加重平均前のΔkW単価 | P7: =入力シート!P7 -> 加重平均起動費未回収分相当額 | Q7: =入力シート!Q7 -> 最低出力までの発電電力量の機会費用単価 | R7: =入力シート!R7 -> 発電計画 | S7: =入力シート!S7 -> 最低出力 | T7: =入力シート!T7 -> 約定希望ΔkW | U7: =入力シート!U7 -> ΔkW約定量 | V7: =入力シート!V7 -> 最低出力までの発電電力量の機会費用単価×(約定希望ΔkW-ΔkW約定量) | W7: =入力シート!W7 -> 最低出力維持した場合の費用合計 | X7: =入力シート!X7 -> 停止・再起動にかかる費用 | Y7: =入力シート!Y7 -> 事象毎の最終行 | Z7: =入力シート!Z7 -> 妥当性確認 | AA7: =入力シート!AA7 -> 応札状況 | AB7: =入力シート!AB7 -> 約定状況 | AC7: =入力シート!AC7 -> 並解列状態(実績) | AD7: =入力シート!AD7 -> 起動費未回収分相当額 | AE7: =入力シート!AE7 -> 最低出力までの発電電力量の機会費用 | AF7: =入力シート!AF7 -> 停止・再起動にかかる費用 | AI7: =入力シート!AI7 -> 精算対象 申請小計 | AJ7: =入力シート!AJ7 -> 起動費未回収分相当額 | AK7: =入力シート!AK7 -> 最低出力までの発電電力量の機会費用 | AL7: =入力シート!AL7 -> 停止・再起動にかかる費用 | AM7: =入力シート!AM7 -> 合計
N8: （円/kW） | O8: （円/kW） | P8: （円/kW） | Q8: （円/kW） | R8: （kWh） | S8: （kWh） | T8: （kW） | U8: （kW） | V8: （円） | W8: （円） | X8: （円） | AD8: （円） | AE8: （円） | AF8: （円） | AJ8: （円） | AK8: （円） | AL8: （円） | AM8: （円）
B9: =IF(入力シート!B9<>"",入力シート!B9,"") -> ※起動費未回収が発生した事象NOを付定すること ※複合市場商品および三次調整力②商品へ１回分の起動費等を按分計上して入札し，両市場において起動費等の事後精算を申請する場合は，市場ごとに事象NOを分けずに同一の事象NOとして申請を実施すること | C9: =IF(入力シート!C9<>"",入力シート!C9,"") ->  | D9: =IF(入力シート!D9<>"",入力シート!D9,"") -> ※対象の場合は「１」，非対象の場合は「０」を入力 | E9: =IF(入力シート!E9<>"",入力シート!E9,"") ->  | F9: =IF(入力シート!F9<>"",入力シート!F9,"") ->  | G9: =IF(入力シート!G9<>"",入力シート!G9,"") -> ※持ち下げ供出機を加重平均で入札した場合に選択 | H9: =IF(入力シート!H9<>"",入力シート!H9,"") -> ※電源差替がない場合は精算対象となるリソースの系統コードを記載すること ※電源差替後のリソースにより精算する場合は，差替前のリソースの系統コードを記載すること | I9: =IF(入力シート!I9<>"",入力シート!I9,"") -> ※起動費単価分が登録されている電源に電源差替を実施する場合に記載すること | J9: =IF(入力シート!J9<>"",入力シート!J9,"") ->  | K9: =IF(入力シート!K9<>"",入力シート!K9,"") ->  | L9: =IF(入力シート!L9<>"",入力シート!L9,"") -> ※持ち下げ供出機区分が該当する場合，起動供出機の約定番号を記載すること ※同一時刻コードにおいて，複数の約定番号がある場合は，いずれか1つを記載すること | M9: =IF(入力シート!M9<>"",入力シート!M9,"") -> ※持ち下げ供出機区分に該当する場合，起動供出機の約定識別IDを記載すること ※同一時刻コードにおいて，約定番号に紐づく約定識別IDが複数存在する場合は，いずれか1つを記載すること ※電源差し替えを実施した場合，差替え元の約定識別IDを記載すること(持ち下げ供出機区分に該当する場合,起動供出機の初回約定識別IDを記載すること) | N9: =IF(入力シート!N9<>"",入力シート!N9,"") -> ※MMSに登録された起動費単価分を原則用いること ※ 「全量不落」の精算パターンで「最低出力までの発電電力量の機会費用」の事後精算の対象がある場合，様式都合により，属地TSOと事前に確認の上，「MMSに登録された起動費単価分」に当該単価を加算して記載すること | O9: =IF(入力シート!O9<>"",入力シート!O9,"") -> ※持ち下げ供出機区分が該当する場合に記載すること | P9: =IF(入力シート!P9<>"",入力シート!P9,"") -> ※ 持ち下げ供出機区分が該当する場合に記載すること | Q9: =IF(入力シート!Q9<>"",入力シート!Q9,"") -> ※卸電力市場価格（スポット市場価格：実績）と限界費用との差額を用いること ※加重平均で入札し，一部不落となった場合は，情報を記載するリソースのΔkW単価に含めた起動供出機の最低出力までの発電電力量の加重平均機会費用相当額を精算対象とする ※加重平均で入札し，起動供出機または持ち下げ供出機，またはその双方において一部のリソースが全量不落となったブロックに，起動供出機または持ち下げ供出機の情報を記載する場合は，起動供出機または持ち下げ供出機のΔkW単価に含めた起動供出機の最低出力までの発電電力量の加重平均機会費用相当額を精算対象とする。 （ただし，起動供出機が全量不落となった場合は，起動供出機の起動により機会費用が発生した場合に限る。そのため別途TSOからデータ提出を求める場合がある。なお、起動供出機のΔkW単価に含めた起動供出機の最低出力までの発電電力量の加重平均機会費用相当額については様式都合により，属地TSOと事前に確認の上， 「加重平均起動費未回収分相当額（P列）」に加算して記載すること） | R9: =IF(入力シート!R9<>"",入力シート!R9,"") ->  | S9: =IF(入力シート!S9<>"",入力シート!S9,"") ->  | T9: =IF(入力シート!T9<>"",入力シート!T9,"") ->  | U9: =IF(入力シート!U9<>"",入力シート!U9,"") ->  | V9: =IF(入力シート!V9<>"",入力シート!V9,"") -> ※加重平均で入札した場合は，最低出力までの発電電力量の加重平均機会費用相当額×(約定希望ΔkW-ΔkW約定量) | W9: =IF(入力シート!W9<>"",入力シート!W9,"") -> ※精算パターン「約定間全量不落(約定間停止・再起動)」を選択した場合，事象NOごとの最終行に合計値表示 | X9: =IF(入力シート!X9<>"",入力シート!X9,"") -> ※１停止・再起動費は最後のブロックに記載すること ※２ 余力活用契約を締結している電源でBG計画上停止・再起動としていたが、実績は停止しなかった場合も、BG計画上の「停止・再起動費」を記載すること | Y9: =IF(入力シート!Y9<>"",入力シート!Y9,"") ->  | Z9: =IF(入力シート!Z9<>"",入力シート!Z9,"") ->  | AA9: =IF(入力シート!AA9<>"",入力シート!AA9,"") ->  | AB9: =IF(入力シート!AB9<>"",入力シート!AB9,"") ->  | AC9: =IF(入力シート!AC9<>"",入力シート!AC9,"") ->  | AD9: =IF(入力シート!AD9<>"",入力シート!AD9,"") -> ※加重平均で入札した場合は，加重平均起動費未回収分相当額 | AE9: =IF(入力シート!AE9<>"",入力シート!AE9,"") -> ※加重平均で入札した場合は，最低出力までの発電電力量の加重平均機会費用相当額 | AF9: =IF(入力シート!AF9<>"",入力シート!AF9,"") -> ※約定間全量不落時において，停止・再起動するよりも，最低出力維持した方が経済的だった場合，後者を事後精算対象とする | AJ9: =SUM($AD10:$AD2831) -> 3027600 | AK9: =SUM($AE10:$AE2831) -> 0 | AL9: =SUM($AF10:$AF2831) -> 0 | AM9: =ROUNDDOWN(SUM(AJ9:AL9),0) -> 3027600
B10: 1 | C10: 2：全量不落 | D10: 0：非対象 | E10: 20250401 | F10: 2 | H10: ○B○○○ | J10: 2：三次調整力② | K10: ○○○○○○ | N10: 25.23 | R10: 0 | S10: 0 | T10: 40000 | U10: 0 | V10: =Q10*(T10-U10) -> 0 | W10: =IF(X10 > 0, SUMIFS(V:V, B:B, B10, Z:Z, 1), 0) -> 0 | Y10: =IF(ISNUMBER(B10), IF(COUNTIF($B$10:$B10, B10)=COUNTIF($B:$B, B10), "1", "0"), "") -> 0 | Z10: =IF(OR($C10=List!$C$5,$C10=List!$C$6,$C10=List!$C$11,$C10=List!$C$13), 1, 0) -> 0 | AA10: =_xlfn.IFS(T10="","未応札",T10>0,"応札") -> 応札 | AB10: =_xlfn.IFS(U10=0,"未約定",U10=T10,"約定",U10<T10,"一部約定") -> 未約定 | AC10: 2：解列 | AD10: =IF(AA10="応札",IF($AB10="未約定",IF(OR($G10=List!$F$2:$F$3), $P10*$T10, $N10*$T10),IF($AB10="一部約定",IF(OR($G10=List!$F$2:$F$3), $P10*($T10-$U10), $N10*($T10-$U10)),"")),"") -> 1009200 | AE10: =IF(ISBLANK($R10),IF(OR($AB10="一部約定",$AB10="未約定"),$Q10*($T10-$U10),""),IF($R10=0,"", IF(OR($AB10="一部約定", $AB10="未約定"), $Q10*($T10-$U10), ""))) ->  | AF10: =IF(AND($AA10="応札",$AB10="未約定"), IF($W10<>0, IF($X10<$W10, IF($X10<>0, $X10, ""), IF($W10<>0, $W10, "")), IF($X10<>0, $X10, "")), "") -> 
B11: 1 | C11: 2：全量不落 | D11: 0：非対象 | E11: 20250401 | F11: 6 | H11: ○B○○○ | J11: 2：三次調整力② | K11: ○○○○○○ | N11: 25.23 | R11: 0 | S11: 0 | T11: 40000 | U11: 0 | V11: =Q11*(T11-U11) -> 0 | W11: =IF(X11 > 0, SUMIFS(V:V, B:B, B11, Z:Z, 1), 0) -> 0 | Y11: =IF(ISNUMBER(B11), IF(COUNTIF($B$10:$B11, B11)=COUNTIF($B:$B, B11), "1", "0"), "") -> 0 | Z11: =IF(OR($C11=List!$C$5,$C11=List!$C$6,$C11=List!$C$11,$C11=List!$C$13), 1, 0) -> 0 | AA11: =_xlfn.IFS(T11="","未応札",T11>0,"応札") -> 応札 | AB11: =_xlfn.IFS(U11=0,"未約定",U11=T11,"約定",U11<T11,"一部約定") -> 未約定 | AC11: 2：解列 | AD11: =IF(AA11="応札",IF($AB11="未約定",IF(OR($G11=List!$F$2:$F$3), $P11*$T11, $N11*$T11),IF($AB11="一部約定",IF(OR($G11=List!$F$2:$F$3), $P11*($T11-$U11), $N11*($T11-$U11)),"")),"") -> 1009200 | AE11: =IF(ISBLANK($R11),IF(OR($AB11="一部約定",$AB11="未約定"),$Q11*($T11-$U11),""),IF($R11=0,"", IF(OR($AB11="一部約定", $AB11="未約定"), $Q11*($T11-$U11), ""))) ->  | AF11: =IF(AND($AA11="応札",$AB11="未約定"), IF($W11<>0, IF($X11<$W11, IF($X11<>0, $X11, ""), IF($W11<>0, $W11, "")), IF($X11<>0, $X11, "")), "") -> 
B12: 1 | C12: 2：全量不落 | D12: 0：非対象 | E12: 20250401 | F12: 7 | H12: ○B○○○ | J12: 2：三次調整力② | K12: ○○○○○○ | N12: 25.23 | R12: 0 | S12: 0 | T12: 40000 | U12: 0 | V12: 0 | W12: 0 | Y12: =IF(ISNUMBER(B12), IF(COUNTIF($B$10:$B12, B12)=COUNTIF($B:$B, B12), "1", "0"), "") -> 1 | Z12: =IF(OR($C12=List!$C$5,$C12=List!$C$6,$C12=List!$C$11,$C12=List!$C$13), 1, 0) -> 0 | AA12: =_xlfn.IFS(T12="","未応札",T12>0,"応札") -> 応札 | AB12: =_xlfn.IFS(U12=0,"未約定",U12=T12,"約定",U12<T12,"一部約定") -> 未約定 | AC12: 2：解列 | AD12: =IF(AA12="応札",IF($AB12="未約定",IF(OR($G12=List!$F$2:$F$3), $P12*$T12, $N12*$T12),IF($AB12="一部約定",IF(OR($G12=List!$F$2:$F$3), $P12*($T12-$U12), $N12*($T12-$U12)),"")),"") -> 1009200
V13: 0 | W13: 0 | Y13: =IF(ISNUMBER(B13), IF(COUNTIF($B$10:$B13, B13)=COUNTIF($B:$B, B13), "1", "0"), "") ->  | Z13: =IF(OR($C13=List!$C$5,$C13=List!$C$6,$C13=List!$C$11,$C13=List!$C$13), 1, 0) -> 0 | AA13: =_xlfn.IFS(T13="","未応札",T13>0,"応札") -> 未応札 | AB13: =_xlfn.IFS(U13=0,"未約定",U13=T13,"約定",U13<T13,"一部約定") -> 未約定 | AD13: =IF(AA13="応札",IF($AB13="未約定",IF(OR($G13=List!$F$2:$F$3), $P13*$T13, $N13*$T13),IF($AB13="一部約定",IF(OR($G13=List!$F$2:$F$3), $P13*($T13-$U13), $N13*($T13-$U13)),"")),"") ->  | AE13: 0
V14: 0 | W14: 0 | Y14: =IF(ISNUMBER(B14), IF(COUNTIF($B$10:$B14, B14)=COUNTIF($B:$B, B14), "1", "0"), "") ->  | Z14: =IF(OR($C14=List!$C$5,$C14=List!$C$6,$C14=List!$C$11,$C14=List!$C$13), 1, 0) -> 0 | AA14: =_xlfn.IFS(T14="","未応札",T14>0,"応札") -> 未応札 | AB14: =_xlfn.IFS(U14=0,"未約定",U14=T14,"約定",U14<T14,"一部約定") -> 未約定 | AD14: =IF(AA14="応札",IF($AB14="未約定",IF(OR($G14=List!$F$2:$F$3), $P14*$T14, $N14*$T14),IF($AB14="一部約定",IF(OR($G14=List!$F$2:$F$3), $P14*($T14-$U14), $N14*($T14-$U14)),"")),"") ->  | AE14: 0
V15: 0 | W15: 0 | Y15: =IF(ISNUMBER(B15), IF(COUNTIF($B$10:$B15, B15)=COUNTIF($B:$B, B15), "1", "0"), "") ->  | Z15: =IF(OR($C15=List!$C$5,$C15=List!$C$6,$C15=List!$C$11,$C15=List!$C$13), 1, 0) -> 0 | AA15: =_xlfn.IFS(T15="","未応札",T15>0,"応札") -> 未応札 | AB15: =_xlfn.IFS(U15=0,"未約定",U15=T15,"約定",U15<T15,"一部約定") -> 未約定 | AD15: =IF(AA15="応札",IF($AB15="未約定",IF(OR($G15=List!$F$2:$F$3), $P15*$T15, $N15*$T15),IF($AB15="一部約定",IF(OR($G15=List!$F$2:$F$3), $P15*($T15-$U15), $N15*($T15-$U15)),"")),"") ->  | AE15: 0
V16: 0 | W16: 0 | Y16: =IF(ISNUMBER(B16), IF(COUNTIF($B$10:$B16, B16)=COUNTIF($B:$B, B16), "1", "0"), "") ->  | Z16: =IF(OR($C16=List!$C$5,$C16=List!$C$6,$C16=List!$C$11,$C16=List!$C$13), 1, 0) -> 0 | AA16: =_xlfn.IFS(T16="","未応札",T16>0,"応札") -> 未応札 | AB16: =_xlfn.IFS(U16=0,"未約定",U16=T16,"約定",U16<T16,"一部約定") -> 未約定 | AD16: =IF(AA16="応札",IF($AB16="未約定",IF(OR($G16=List!$F$2:$F$3), $P16*$T16, $N16*$T16),IF($AB16="一部約定",IF(OR($G16=List!$F$2:$F$3), $P16*($T16-$U16), $N16*($T16-$U16)),"")),"") ->  | AE16: 0
V17: 0 | W17: 0 | Y17: =IF(ISNUMBER(B17), IF(COUNTIF($B$10:$B17, B17)=COUNTIF($B:$B, B17), "1", "0"), "") ->  | Z17: =IF(OR($C17=List!$C$5,$C17=List!$C$6,$C17=List!$C$11,$C17=List!$C$13), 1, 0) -> 0 | AA17: =_xlfn.IFS(T17="","未応札",T17>0,"応札") -> 未応札 | AB17: =_xlfn.IFS(U17=0,"未約定",U17=T17,"約定",U17<T17,"一部約定") -> 未約定 | AD17: =IF(AA17="応札",IF($AB17="未約定",IF(OR($G17=List!$F$2:$F$3), $P17*$T17, $N17*$T17),IF($AB17="一部約定",IF(OR($G17=List!$F$2:$F$3), $P17*($T17-$U17), $N17*($T17-$U17)),"")),"") ->  | AE17: 0
V18: 0 | W18: 0 | Y18: =IF(ISNUMBER(B18), IF(COUNTIF($B$10:$B18, B18)=COUNTIF($B:$B, B18), "1", "0"), "") ->  | Z18: =IF(OR($C18=List!$C$5,$C18=List!$C$6,$C18=List!$C$11,$C18=List!$C$13), 1, 0) -> 0 | AA18: =_xlfn.IFS(T18="","未応札",T18>0,"応札") -> 未応札 | AB18: =_xlfn.IFS(U18=0,"未約定",U18=T18,"約定",U18<T18,"一部約定") -> 未約定 | AD18: =IF(AA18="応札",IF($AB18="未約定",IF(OR($G18=List!$F$2:$F$3), $P18*$T18, $N18*$T18),IF($AB18="一部約定",IF(OR($G18=List!$F$2:$F$3), $P18*($T18-$U18), $N18*($T18-$U18)),"")),"") ->  | AE18: 0
V19: 0 | W19: 0 | Y19: =IF(ISNUMBER(B19), IF(COUNTIF($B$10:$B19, B19)=COUNTIF($B:$B, B19), "1", "0"), "") ->  | Z19: =IF(OR($C19=List!$C$5,$C19=List!$C$6,$C19=List!$C$11,$C19=List!$C$13), 1, 0) -> 0 | AA19: =_xlfn.IFS(T19="","未応札",T19>0,"応札") -> 未応札 | AB19: =_xlfn.IFS(U19=0,"未約定",U19=T19,"約定",U19<T19,"一部約定") -> 未約定 | AD19: =IF(AA19="応札",IF($AB19="未約定",IF(OR($G19=List!$F$2:$F$3), $P19*$T19, $N19*$T19),IF($AB19="一部約定",IF(OR($G19=List!$F$2:$F$3), $P19*($T19-$U19), $N19*($T19-$U19)),"")),"") ->  | AE19: 0
V20: 0 | W20: 0 | Y20: =IF(ISNUMBER(B20), IF(COUNTIF($B$10:$B20, B20)=COUNTIF($B:$B, B20), "1", "0"), "") ->  | Z20: =IF(OR($C20=List!$C$5,$C20=List!$C$6,$C20=List!$C$11,$C20=List!$C$13), 1, 0) -> 0 | AA20: =_xlfn.IFS(T20="","未応札",T20>0,"応札") -> 未応札 | AB20: =_xlfn.IFS(U20=0,"未約定",U20=T20,"約定",U20<T20,"一部約定") -> 未約定 | AD20: =IF(AA20="応札",IF($AB20="未約定",IF(OR($G20=List!$F$2:$F$3), $P20*$T20, $N20*$T20),IF($AB20="一部約定",IF(OR($G20=List!$F$2:$F$3), $P20*($T20-$U20), $N20*($T20-$U20)),"")),"") ->  | AE20: 0
V21: 0 | W21: 0 | Y21: =IF(ISNUMBER(B21), IF(COUNTIF($B$10:$B21, B21)=COUNTIF($B:$B, B21), "1", "0"), "") ->  | Z21: =IF(OR($C21=List!$C$5,$C21=List!$C$6,$C21=List!$C$11,$C21=List!$C$13), 1, 0) -> 0 | AA21: =_xlfn.IFS(T21="","未応札",T21>0,"応札") -> 未応札 | AB21: =_xlfn.IFS(U21=0,"未約定",U21=T21,"約定",U21<T21,"一部約定") -> 未約定 | AD21: =IF(AA21="応札",IF($AB21="未約定",IF(OR($G21=List!$F$2:$F$3), $P21*$T21, $N21*$T21),IF($AB21="一部約定",IF(OR($G21=List!$F$2:$F$3), $P21*($T21-$U21), $N21*($T21-$U21)),"")),"") ->  | AE21: 0
V22: 0 | W22: 0 | Y22: =IF(ISNUMBER(B22), IF(COUNTIF($B$10:$B22, B22)=COUNTIF($B:$B, B22), "1", "0"), "") ->  | Z22: =IF(OR($C22=List!$C$5,$C22=List!$C$6,$C22=List!$C$11,$C22=List!$C$13), 1, 0) -> 0 | AA22: =_xlfn.IFS(T22="","未応札",T22>0,"応札") -> 未応札 | AB22: =_xlfn.IFS(U22=0,"未約定",U22=T22,"約定",U22<T22,"一部約定") -> 未約定 | AD22: =IF(AA22="応札",IF($AB22="未約定",IF(OR($G22=List!$F$2:$F$3), $P22*$T22, $N22*$T22),IF($AB22="一部約定",IF(OR($G22=List!$F$2:$F$3), $P22*($T22-$U22), $N22*($T22-$U22)),"")),"") ->  | AE22: 0
V23: 0 | W23: 0 | Y23: =IF(ISNUMBER(B23), IF(COUNTIF($B$10:$B23, B23)=COUNTIF($B:$B, B23), "1", "0"), "") ->  | Z23: =IF(OR($C23=List!$C$5,$C23=List!$C$6,$C23=List!$C$11,$C23=List!$C$13), 1, 0) -> 0 | AA23: =_xlfn.IFS(T23="","未応札",T23>0,"応札") -> 未応札 | AB23: =_xlfn.IFS(U23=0,"未約定",U23=T23,"約定",U23<T23,"一部約定") -> 未約定 | AD23: =IF(AA23="応札",IF($AB23="未約定",IF(OR($G23=List!$F$2:$F$3), $P23*$T23, $N23*$T23),IF($AB23="一部約定",IF(OR($G23=List!$F$2:$F$3), $P23*($T23-$U23), $N23*($T23-$U23)),"")),"") ->  | AE23: 0
V24: 0 | W24: 0 | Y24: =IF(ISNUMBER(B24), IF(COUNTIF($B$10:$B24, B24)=COUNTIF($B:$B, B24), "1", "0"), "") ->  | Z24: =IF(OR($C24=List!$C$5,$C24=List!$C$6,$C24=List!$C$11,$C24=List!$C$13), 1, 0) -> 0 | AA24: =_xlfn.IFS(T24="","未応札",T24>0,"応札") -> 未応札 | AB24: =_xlfn.IFS(U24=0,"未約定",U24=T24,"約定",U24<T24,"一部約定") -> 未約定 | AD24: =IF(AA24="応札",IF($AB24="未約定",IF(OR($G24=List!$F$2:$F$3), $P24*$T24, $N24*$T24),IF($AB24="一部約定",IF(OR($G24=List!$F$2:$F$3), $P24*($T24-$U24), $N24*($T24-$U24)),"")),"") ->  | AE24: 0
V25: 0 | W25: 0 | Y25: =IF(ISNUMBER(B25), IF(COUNTIF($B$10:$B25, B25)=COUNTIF($B:$B, B25), "1", "0"), "") ->  | Z25: =IF(OR($C25=List!$C$5,$C25=List!$C$6,$C25=List!$C$11,$C25=List!$C$13), 1, 0) -> 0 | AA25: =_xlfn.IFS(T25="","未応札",T25>0,"応札") -> 未応札 | AB25: =_xlfn.IFS(U25=0,"未約定",U25=T25,"約定",U25<T25,"一部約定") -> 未約定 | AD25: =IF(AA25="応札",IF($AB25="未約定",IF(OR($G25=List!$F$2:$F$3), $P25*$T25, $N25*$T25),IF($AB25="一部約定",IF(OR($G25=List!$F$2:$F$3), $P25*($T25-$U25), $N25*($T25-$U25)),"")),"") ->  | AE25: 0
V26: 0 | W26: 0 | Y26: =IF(ISNUMBER(B26), IF(COUNTIF($B$10:$B26, B26)=COUNTIF($B:$B, B26), "1", "0"), "") ->  | Z26: =IF(OR($C26=List!$C$5,$C26=List!$C$6,$C26=List!$C$11,$C26=List!$C$13), 1, 0) -> 0 | AA26: =_xlfn.IFS(T26="","未応札",T26>0,"応札") -> 未応札 | AB26: =_xlfn.IFS(U26=0,"未約定",U26=T26,"約定",U26<T26,"一部約定") -> 未約定 | AD26: =IF(AA26="応札",IF($AB26="未約定",IF(OR($G26=List!$F$2:$F$3), $P26*$T26, $N26*$T26),IF($AB26="一部約定",IF(OR($G26=List!$F$2:$F$3), $P26*($T26-$U26), $N26*($T26-$U26)),"")),"") ->  | AE26: 0
V27: 0 | W27: 0 | Y27: =IF(ISNUMBER(B27), IF(COUNTIF($B$10:$B27, B27)=COUNTIF($B:$B, B27), "1", "0"), "") ->  | Z27: =IF(OR($C27=List!$C$5,$C27=List!$C$6,$C27=List!$C$11,$C27=List!$C$13), 1, 0) -> 0 | AA27: =_xlfn.IFS(T27="","未応札",T27>0,"応札") -> 未応札 | AB27: =_xlfn.IFS(U27=0,"未約定",U27=T27,"約定",U27<T27,"一部約定") -> 未約定 | AD27: =IF(AA27="応札",IF($AB27="未約定",IF(OR($G27=List!$F$2:$F$3), $P27*$T27, $N27*$T27),IF($AB27="一部約定",IF(OR($G27=List!$F$2:$F$3), $P27*($T27-$U27), $N27*($T27-$U27)),"")),"") ->  | AE27: 0
V28: 0 | W28: 0 | Y28: =IF(ISNUMBER(B28), IF(COUNTIF($B$10:$B28, B28)=COUNTIF($B:$B, B28), "1", "0"), "") ->  | Z28: =IF(OR($C28=List!$C$5,$C28=List!$C$6,$C28=List!$C$11,$C28=List!$C$13), 1, 0) -> 0 | AA28: =_xlfn.IFS(T28="","未応札",T28>0,"応札") -> 未応札 | AB28: =_xlfn.IFS(U28=0,"未約定",U28=T28,"約定",U28<T28,"一部約定") -> 未約定 | AD28: =IF(AA28="応札",IF($AB28="未約定",IF(OR($G28=List!$F$2:$F$3), $P28*$T28, $N28*$T28),IF($AB28="一部約定",IF(OR($G28=List!$F$2:$F$3), $P28*($T28-$U28), $N28*($T28-$U28)),"")),"") ->  | AE28: 0
V29: 0 | W29: 0 | Y29: =IF(ISNUMBER(B29), IF(COUNTIF($B$10:$B29, B29)=COUNTIF($B:$B, B29), "1", "0"), "") ->  | Z29: =IF(OR($C29=List!$C$5,$C29=List!$C$6,$C29=List!$C$11,$C29=List!$C$13), 1, 0) -> 0 | AA29: =_xlfn.IFS(T29="","未応札",T29>0,"応札") -> 未応札 | AB29: =_xlfn.IFS(U29=0,"未約定",U29=T29,"約定",U29<T29,"一部約定") -> 未約定 | AD29: =IF(AA29="応札",IF($AB29="未約定",IF(OR($G29=List!$F$2:$F$3), $P29*$T29, $N29*$T29),IF($AB29="一部約定",IF(OR($G29=List!$F$2:$F$3), $P29*($T29-$U29), $N29*($T29-$U29)),"")),"") ->  | AE29: 0
V30: 0 | W30: 0 | Y30: =IF(ISNUMBER(B30), IF(COUNTIF($B$10:$B30, B30)=COUNTIF($B:$B, B30), "1", "0"), "") ->  | Z30: =IF(OR($C30=List!$C$5,$C30=List!$C$6,$C30=List!$C$11,$C30=List!$C$13), 1, 0) -> 0 | AA30: =_xlfn.IFS(T30="","未応札",T30>0,"応札") -> 未応札 | AB30: =_xlfn.IFS(U30=0,"未約定",U30=T30,"約定",U30<T30,"一部約定") -> 未約定 | AD30: =IF(AA30="応札",IF($AB30="未約定",IF(OR($G30=List!$F$2:$F$3), $P30*$T30, $N30*$T30),IF($AB30="一部約定",IF(OR($G30=List!$F$2:$F$3), $P30*($T30-$U30), $N30*($T30-$U30)),"")),"") ->  | AE30: 0
V31: 0 | W31: 0 | Y31: =IF(ISNUMBER(B31), IF(COUNTIF($B$10:$B31, B31)=COUNTIF($B:$B, B31), "1", "0"), "") ->  | Z31: =IF(OR($C31=List!$C$5,$C31=List!$C$6,$C31=List!$C$11,$C31=List!$C$13), 1, 0) -> 0 | AA31: =_xlfn.IFS(T31="","未応札",T31>0,"応札") -> 未応札 | AB31: =_xlfn.IFS(U31=0,"未約定",U31=T31,"約定",U31<T31,"一部約定") -> 未約定 | AD31: =IF(AA31="応札",IF($AB31="未約定",IF(OR($G31=List!$F$2:$F$3), $P31*$T31, $N31*$T31),IF($AB31="一部約定",IF(OR($G31=List!$F$2:$F$3), $P31*($T31-$U31), $N31*($T31-$U31)),"")),"") ->  | AE31: 0
V32: 0 | W32: 0 | Y32: =IF(ISNUMBER(B32), IF(COUNTIF($B$10:$B32, B32)=COUNTIF($B:$B, B32), "1", "0"), "") ->  | Z32: =IF(OR($C32=List!$C$5,$C32=List!$C$6,$C32=List!$C$11,$C32=List!$C$13), 1, 0) -> 0 | AA32: =_xlfn.IFS(T32="","未応札",T32>0,"応札") -> 未応札 | AB32: =_xlfn.IFS(U32=0,"未約定",U32=T32,"約定",U32<T32,"一部約定") -> 未約定 | AD32: =IF(AA32="応札",IF($AB32="未約定",IF(OR($G32=List!$F$2:$F$3), $P32*$T32, $N32*$T32),IF($AB32="一部約定",IF(OR($G32=List!$F$2:$F$3), $P32*($T32-$U32), $N32*($T32-$U32)),"")),"") ->  | AE32: 0
V33: 0 | W33: 0 | Y33: =IF(ISNUMBER(B33), IF(COUNTIF($B$10:$B33, B33)=COUNTIF($B:$B, B33), "1", "0"), "") ->  | Z33: =IF(OR($C33=List!$C$5,$C33=List!$C$6,$C33=List!$C$11,$C33=List!$C$13), 1, 0) -> 0 | AA33: =_xlfn.IFS(T33="","未応札",T33>0,"応札") -> 未応札 | AB33: =_xlfn.IFS(U33=0,"未約定",U33=T33,"約定",U33<T33,"一部約定") -> 未約定 | AD33: =IF(AA33="応札",IF($AB33="未約定",IF(OR($G33=List!$F$2:$F$3), $P33*$T33, $N33*$T33),IF($AB33="一部約定",IF(OR($G33=List!$F$2:$F$3), $P33*($T33-$U33), $N33*($T33-$U33)),"")),"") ->  | AE33: 0
V34: 0 | W34: 0 | Y34: =IF(ISNUMBER(B34), IF(COUNTIF($B$10:$B34, B34)=COUNTIF($B:$B, B34), "1", "0"), "") ->  | Z34: =IF(OR($C34=List!$C$5,$C34=List!$C$6,$C34=List!$C$11,$C34=List!$C$13), 1, 0) -> 0 | AA34: =_xlfn.IFS(T34="","未応札",T34>0,"応札") -> 未応札 | AB34: =_xlfn.IFS(U34=0,"未約定",U34=T34,"約定",U34<T34,"一部約定") -> 未約定 | AD34: =IF(AA34="応札",IF($AB34="未約定",IF(OR($G34=List!$F$2:$F$3), $P34*$T34, $N34*$T34),IF($AB34="一部約定",IF(OR($G34=List!$F$2:$F$3), $P34*($T34-$U34), $N34*($T34-$U34)),"")),"") ->  | AE34: 0
V35: 0 | W35: 0 | Y35: =IF(ISNUMBER(B35), IF(COUNTIF($B$10:$B35, B35)=COUNTIF($B:$B, B35), "1", "0"), "") ->  | Z35: =IF(OR($C35=List!$C$5,$C35=List!$C$6,$C35=List!$C$11,$C35=List!$C$13), 1, 0) -> 0 | AA35: =_xlfn.IFS(T35="","未応札",T35>0,"応札") -> 未応札 | AB35: =_xlfn.IFS(U35=0,"未約定",U35=T35,"約定",U35<T35,"一部約定") -> 未約定 | AD35: =IF(AA35="応札",IF($AB35="未約定",IF(OR($G35=List!$F$2:$F$3), $P35*$T35, $N35*$T35),IF($AB35="一部約定",IF(OR($G35=List!$F$2:$F$3), $P35*($T35-$U35), $N35*($T35-$U35)),"")),"") ->  | AE35: 0
V36: 0 | W36: 0 | Y36: =IF(ISNUMBER(B36), IF(COUNTIF($B$10:$B36, B36)=COUNTIF($B:$B, B36), "1", "0"), "") ->  | Z36: =IF(OR($C36=List!$C$5,$C36=List!$C$6,$C36=List!$C$11,$C36=List!$C$13), 1, 0) -> 0 | AA36: =_xlfn.IFS(T36="","未応札",T36>0,"応札") -> 未応札 | AB36: =_xlfn.IFS(U36=0,"未約定",U36=T36,"約定",U36<T36,"一部約定") -> 未約定 | AD36: =IF(AA36="応札",IF($AB36="未約定",IF(OR($G36=List!$F$2:$F$3), $P36*$T36, $N36*$T36),IF($AB36="一部約定",IF(OR($G36=List!$F$2:$F$3), $P36*($T36-$U36), $N36*($T36-$U36)),"")),"") ->  | AE36: 0
V37: 0 | W37: 0 | Y37: =IF(ISNUMBER(B37), IF(COUNTIF($B$10:$B37, B37)=COUNTIF($B:$B, B37), "1", "0"), "") ->  | Z37: =IF(OR($C37=List!$C$5,$C37=List!$C$6,$C37=List!$C$11,$C37=List!$C$13), 1, 0) -> 0 | AA37: =_xlfn.IFS(T37="","未応札",T37>0,"応札") -> 未応札 | AB37: =_xlfn.IFS(U37=0,"未約定",U37=T37,"約定",U37<T37,"一部約定") -> 未約定 | AD37: =IF(AA37="応札",IF($AB37="未約定",IF(OR($G37=List!$F$2:$F$3), $P37*$T37, $N37*$T37),IF($AB37="一部約定",IF(OR($G37=List!$F$2:$F$3), $P37*($T37-$U37), $N37*($T37-$U37)),"")),"") ->  | AE37: 0
V38: 0 | W38: 0 | Y38: =IF(ISNUMBER(B38), IF(COUNTIF($B$10:$B38, B38)=COUNTIF($B:$B, B38), "1", "0"), "") ->  | Z38: =IF(OR($C38=List!$C$5,$C38=List!$C$6,$C38=List!$C$11,$C38=List!$C$13), 1, 0) -> 0 | AA38: =_xlfn.IFS(T38="","未応札",T38>0,"応札") -> 未応札 | AB38: =_xlfn.IFS(U38=0,"未約定",U38=T38,"約定",U38<T38,"一部約定") -> 未約定 | AD38: =IF(AA38="応札",IF($AB38="未約定",IF(OR($G38=List!$F$2:$F$3), $P38*$T38, $N38*$T38),IF($AB38="一部約定",IF(OR($G38=List!$F$2:$F$3), $P38*($T38-$U38), $N38*($T38-$U38)),"")),"") ->  | AE38: 0

Sheet 記載例_精算パターン③一部不落
B2: 取引年月 | C2: 202504
B3: MMSコード | C3: A000
B4: 対象エリア | C4: 3：東京
B5: ファイル名称 | C5: =$C$2&"_"&$C$3&"_"&LEFT($C$4,1)&"_不約定単価内訳兼起動費事後精算情報様式" -> 202504_A000_3_不約定単価内訳兼起動費事後精算情報様式
B7: =入力シート!B7 -> 事象NO | C7: =入力シート!C7 -> 精算パターン | D7: =入力シート!D7 -> 余力活用契約対象リソース区分 | E7: =入力シート!E7 -> 取引日 | F7: =入力シート!F7 -> 時刻コード | G7: =入力シート!G7 -> 持ち下げ供出機区分 | H7: =入力シート!H7 -> 系統コード | I7: =入力シート!I7 -> 系統コード(差替後) | J7: =入力シート!J7 -> 商品区分 | K7: =入力シート!K7 -> 売り入札ID | L7: =入力シート!L7 -> 約定番号 | M7: =入力シート!M7 -> 約定識別ID | N7: =入力シート!N7 -> MMS起動費単価 | O7: =入力シート!O7 -> 加重平均前のΔkW単価 | P7: =入力シート!P7 -> 加重平均起動費未回収分相当額 | Q7: =入力シート!Q7 -> 最低出力までの発電電力量の機会費用単価 | R7: =入力シート!R7 -> 発電計画 | S7: =入力シート!S7 -> 最低出力 | T7: =入力シート!T7 -> 約定希望ΔkW | U7: =入力シート!U7 -> ΔkW約定量 | V7: =入力シート!V7 -> 最低出力までの発電電力量の機会費用単価×(約定希望ΔkW-ΔkW約定量) | W7: =入力シート!W7 -> 最低出力維持した場合の費用合計 | X7: =入力シート!X7 -> 停止・再起動にかかる費用 | Y7: =入力シート!Y7 -> 事象毎の最終行 | Z7: =入力シート!Z7 -> 妥当性確認 | AA7: =入力シート!AA7 -> 応札状況 | AB7: =入力シート!AB7 -> 約定状況 | AC7: =入力シート!AC7 -> 並解列状態(実績) | AD7: =入力シート!AD7 -> 起動費未回収分相当額 | AE7: =入力シート!AE7 -> 最低出力までの発電電力量の機会費用 | AF7: =入力シート!AF7 -> 停止・再起動にかかる費用 | AI7: =入力シート!AI7 -> 精算対象 申請小計 | AJ7: =入力シート!AJ7 -> 起動費未回収分相当額 | AK7: =入力シート!AK7 -> 最低出力までの発電電力量の機会費用 | AL7: =入力シート!AL7 -> 停止・再起動にかかる費用 | AM7: =入力シート!AM7 -> 合計
N8: （円/kW） | O8: （円/kW） | P8: （円/kW） | Q8: （円/kW） | R8: （kWh） | S8: （kWh） | T8: （kW） | U8: （kW） | V8: （円） | W8: （円） | X8: （円） | AD8: （円） | AE8: （円） | AF8: （円） | AJ8: （円） | AK8: （円） | AL8: （円） | AM8: （円）
B9: =IF(入力シート!B9<>"",入力シート!B9,"") -> ※起動費未回収が発生した事象NOを付定すること ※複合市場商品および三次調整力②商品へ１回分の起動費等を按分計上して入札し，両市場において起動費等の事後精算を申請する場合は，市場ごとに事象NOを分けずに同一の事象NOとして申請を実施すること | C9: =IF(入力シート!C9<>"",入力シート!C9,"") ->  | D9: =IF(入力シート!D9<>"",入力シート!D9,"") -> ※対象の場合は「１」，非対象の場合は「０」を入力 | E9: =IF(入力シート!E9<>"",入力シート!E9,"") ->  | F9: =IF(入力シート!F9<>"",入力シート!F9,"") ->  | G9: =IF(入力シート!G9<>"",入力シート!G9,"") -> ※持ち下げ供出機を加重平均で入札した場合に選択 | H9: =IF(入力シート!H9<>"",入力シート!H9,"") -> ※電源差替がない場合は精算対象となるリソースの系統コードを記載すること ※電源差替後のリソースにより精算する場合は，差替前のリソースの系統コードを記載すること | I9: =IF(入力シート!I9<>"",入力シート!I9,"") -> ※起動費単価分が登録されている電源に電源差替を実施する場合に記載すること | J9: =IF(入力シート!J9<>"",入力シート!J9,"") ->  | K9: =IF(入力シート!K9<>"",入力シート!K9,"") ->  | L9: =IF(入力シート!L9<>"",入力シート!L9,"") -> ※持ち下げ供出機区分が該当する場合，起動供出機の約定番号を記載すること ※同一時刻コードにおいて，複数の約定番号がある場合は，いずれか1つを記載すること | M9: =IF(入力シート!M9<>"",入力シート!M9,"") -> ※持ち下げ供出機区分に該当する場合，起動供出機の約定識別IDを記載すること ※同一時刻コードにおいて，約定番号に紐づく約定識別IDが複数存在する場合は，いずれか1つを記載すること ※電源差し替えを実施した場合，差替え元の約定識別IDを記載すること(持ち下げ供出機区分に該当する場合,起動供出機の初回約定識別IDを記載すること) | N9: =IF(入力シート!N9<>"",入力シート!N9,"") -> ※MMSに登録された起動費単価分を原則用いること ※ 「全量不落」の精算パターンで「最低出力までの発電電力量の機会費用」の事後精算の対象がある場合，様式都合により，属地TSOと事前に確認の上，「MMSに登録された起動費単価分」に当該単価を加算して記載すること | O9: =IF(入力シート!O9<>"",入力シート!O9,"") -> ※持ち下げ供出機区分が該当する場合に記載すること | P9: =IF(入力シート!P9<>"",入力シート!P9,"") -> ※ 持ち下げ供出機区分が該当する場合に記載すること | Q9: =IF(入力シート!Q9<>"",入力シート!Q9,"") -> ※卸電力市場価格（スポット市場価格：実績）と限界費用との差額を用いること ※加重平均で入札し，一部不落となった場合は，情報を記載するリソースのΔkW単価に含めた起動供出機の最低出力までの発電電力量の加重平均機会費用相当額を精算対象とする ※加重平均で入札し，起動供出機または持ち下げ供出機，またはその双方において一部のリソースが全量不落となったブロックに，起動供出機または持ち下げ供出機の情報を記載する場合は，起動供出機または持ち下げ供出機のΔkW単価に含めた起動供出機の最低出力までの発電電力量の加重平均機会費用相当額を精算対象とする。 （ただし，起動供出機が全量不落となった場合は，起動供出機の起動により機会費用が発生した場合に限る。そのため別途TSOからデータ提出を求める場合がある。なお、起動供出機のΔkW単価に含めた起動供出機の最低出力までの発電電力量の加重平均機会費用相当額については様式都合により，属地TSOと事前に確認の上， 「加重平均起動費未回収分相当額（P列）」に加算して記載すること） | R9: =IF(入力シート!R9<>"",入力シート!R9,"") ->  | S9: =IF(入力シート!S9<>"",入力シート!S9,"") ->  | T9: =IF(入力シート!T9<>"",入力シート!T9,"") ->  | U9: =IF(入力シート!U9<>"",入力シート!U9,"") ->  | V9: =IF(入力シート!V9<>"",入力シート!V9,"") -> ※加重平均で入札した場合は，最低出力までの発電電力量の加重平均機会費用相当額×(約定希望ΔkW-ΔkW約定量) | W9: =IF(入力シート!W9<>"",入力シート!W9,"") -> ※精算パターン「約定間全量不落(約定間停止・再起動)」を選択した場合，事象NOごとの最終行に合計値表示 | X9: =IF(入力シート!X9<>"",入力シート!X9,"") -> ※１停止・再起動費は最後のブロックに記載すること ※２ 余力活用契約を締結している電源でBG計画上停止・再起動としていたが、実績は停止しなかった場合も、BG計画上の「停止・再起動費」を記載すること | Y9: =IF(入力シート!Y9<>"",入力シート!Y9,"") ->  | Z9: =IF(入力シート!Z9<>"",入力シート!Z9,"") ->  | AA9: =IF(入力シート!AA9<>"",入力シート!AA9,"") ->  | AB9: =IF(入力シート!AB9<>"",入力シート!AB9,"") ->  | AC9: =IF(入力シート!AC9<>"",入力シート!AC9,"") ->  | AD9: =IF(入力シート!AD9<>"",入力シート!AD9,"") -> ※加重平均で入札した場合は，加重平均起動費未回収分相当額 | AE9: =IF(入力シート!AE9<>"",入力シート!AE9,"") -> ※加重平均で入札した場合は，最低出力までの発電電力量の加重平均機会費用相当額 | AF9: =IF(入力シート!AF9<>"",入力シート!AF9,"") -> ※約定間全量不落時において，停止・再起動するよりも，最低出力維持した方が経済的だった場合，後者を事後精算対象とする | AJ9: =SUM($AD10:$AD2831) -> 756900 | AK9: =SUM($AE10:$AE2831) -> 37500 | AL9: =SUM($AF10:$AF2831) -> 0 | AM9: =ROUNDDOWN(SUM(AJ9:AL9),0) -> 794400
B10: 1 | C10: 3：一部不落 | D10: 0：非対象 | E10: 20250401 | F10: 2 | H10: ○C○○○ | J10: 2：三次調整力② | K10: ○○○○○○ | L10: 2025040131DDD○○○○○○ | M10: ○○○○○○ | N10: 25.23 | Q10: 1.25 | R10: 10000 | S10: 10000 | T10: 40000 | U10: 25000 | V10: =Q10*(T10-U10) -> 18750 | W10: =IF(X10 > 0, SUMIFS(V:V, B:B, B10, Z:Z, 1), 0) -> 0 | Y10: =IF(ISNUMBER(B10), IF(COUNTIF($B$10:$B10, B10)=COUNTIF($B:$B, B10), "1", "0"), "") -> 0 | Z10: =IF(OR($C10=List!$C$5,$C10=List!$C$6,$C10=List!$C$11,$C10=List!$C$13), 1, 0) -> 0 | AA10: =_xlfn.IFS(T10="","未応札",T10>0,"応札") -> 応札 | AB10: =_xlfn.IFS(U10=0,"未約定",U10=T10,"約定",U10<T10,"一部約定") -> 一部約定 | AC10: 1：並列 | AD10: =IF(AA10="応札",IF($AB10="未約定",IF(OR($G10=List!$F$2:$F$3), $P10*$T10, $N10*$T10),IF($AB10="一部約定",IF(OR($G10=List!$F$2:$F$3), $P10*($T10-$U10), $N10*($T10-$U10)),"")),"") -> 378450 | AE10: =IF(ISBLANK($R10),IF(OR($AB10="一部約定",$AB10="未約定"),$Q10*($T10-$U10),""),IF($R10=0,"", IF(OR($AB10="一部約定", $AB10="未約定"), $Q10*($T10-$U10), ""))) -> 18750 | AF10: =IF(AND($AA10="応札",$AB10="未約定"), IF($W10<>0, IF($X10<$W10, IF($X10<>0, $X10, ""), IF($W10<>0, $W10, "")), IF($X10<>0, $X10, "")), "") -> 
B11: 1 | C11: 3：一部不落 | D11: 0：非対象 | E11: 20250401 | F11: 5 | H11: ○C○○○ | J11: 2：三次調整力② | K11: ○○○○○○ | L11: 2025040131EEE○○○○○○ | M11: ○○○○○○ | N11: 25.23 | Q11: 1.25 | R11: 10000 | S11: 10000 | T11: 40000 | U11: 25000 | V11: =Q11*(T11-U11) -> 18750 | W11: =IF(X11 > 0, SUMIFS(V:V, B:B, B11, Z:Z, 1), 0) -> 0 | Y11: =IF(ISNUMBER(B11), IF(COUNTIF($B$10:$B11, B11)=COUNTIF($B:$B, B11), "1", "0"), "") -> 1 | Z11: =IF(OR($C11=List!$C$5,$C11=List!$C$6,$C11=List!$C$11,$C11=List!$C$13), 1, 0) -> 0 | AA11: =_xlfn.IFS(T11="","未応札",T11>0,"応札") -> 応札 | AB11: =_xlfn.IFS(U11=0,"未約定",U11=T11,"約定",U11<T11,"一部約定") -> 一部約定 | AC11: 1：並列 | AD11: =IF(AA11="応札",IF($AB11="未約定",IF(OR($G11=List!$F$2:$F$3), $P11*$T11, $N11*$T11),IF($AB11="一部約定",IF(OR($G11=List!$F$2:$F$3), $P11*($T11-$U11), $N11*($T11-$U11)),"")),"") -> 378450 | AE11: =IF(ISBLANK($R11),IF(OR($AB11="一部約定",$AB11="未約定"),$Q11*($T11-$U11),""),IF($R11=0,"", IF(OR($AB11="一部約定", $AB11="未約定"), $Q11*($T11-$U11), ""))) -> 18750 | AF11: =IF(AND($AA11="応札",$AB11="未約定"), IF($W11<>0, IF($X11<$W11, IF($X11<>0, $X11, ""), IF($W11<>0, $W11, "")), IF($X11<>0, $X11, "")), "") -> 
V12: 0 | W12: 0 | Y12: =IF(ISNUMBER(B12), IF(COUNTIF($B$10:$B12, B12)=COUNTIF($B:$B, B12), "1", "0"), "") ->  | Z12: =IF(OR($C12=List!$C$5,$C12=List!$C$6,$C12=List!$C$11,$C12=List!$C$13), 1, 0) -> 0 | AA12: =_xlfn.IFS(T12="","未応札",T12>0,"応札") -> 未応札 | AB12: =_xlfn.IFS(U12=0,"未約定",U12=T12,"約定",U12<T12,"一部約定") -> 未約定 | AD12: =IF(AA12="応札",IF($AB12="未約定",IF(OR($G12=List!$F$2:$F$3), $P12*$T12, $N12*$T12),IF($AB12="一部約定",IF(OR($G12=List!$F$2:$F$3), $P12*($T12-$U12), $N12*($T12-$U12)),"")),"") ->  | AE12: 0
V13: 0 | W13: 0 | Y13: =IF(ISNUMBER(B13), IF(COUNTIF($B$10:$B13, B13)=COUNTIF($B:$B, B13), "1", "0"), "") ->  | Z13: =IF(OR($C13=List!$C$5,$C13=List!$C$6,$C13=List!$C$11,$C13=List!$C$13), 1, 0) -> 0 | AA13: =_xlfn.IFS(T13="","未応札",T13>0,"応札") -> 未応札 | AB13: =_xlfn.IFS(U13=0,"未約定",U13=T13,"約定",U13<T13,"一部約定") -> 未約定 | AD13: =IF(AA13="応札",IF($AB13="未約定",IF(OR($G13=List!$F$2:$F$3), $P13*$T13, $N13*$T13),IF($AB13="一部約定",IF(OR($G13=List!$F$2:$F$3), $P13*($T13-$U13), $N13*($T13-$U13)),"")),"") ->  | AE13: 0
V14: 0 | W14: 0 | Y14: =IF(ISNUMBER(B14), IF(COUNTIF($B$10:$B14, B14)=COUNTIF($B:$B, B14), "1", "0"), "") ->  | Z14: =IF(OR($C14=List!$C$5,$C14=List!$C$6,$C14=List!$C$11,$C14=List!$C$13), 1, 0) -> 0 | AA14: =_xlfn.IFS(T14="","未応札",T14>0,"応札") -> 未応札 | AB14: =_xlfn.IFS(U14=0,"未約定",U14=T14,"約定",U14<T14,"一部約定") -> 未約定 | AD14: =IF(AA14="応札",IF($AB14="未約定",IF(OR($G14=List!$F$2:$F$3), $P14*$T14, $N14*$T14),IF($AB14="一部約定",IF(OR($G14=List!$F$2:$F$3), $P14*($T14-$U14), $N14*($T14-$U14)),"")),"") ->  | AE14: 0
V15: 0 | W15: 0 | Y15: =IF(ISNUMBER(B15), IF(COUNTIF($B$10:$B15, B15)=COUNTIF($B:$B, B15), "1", "0"), "") ->  | Z15: =IF(OR($C15=List!$C$5,$C15=List!$C$6,$C15=List!$C$11,$C15=List!$C$13), 1, 0) -> 0 | AA15: =_xlfn.IFS(T15="","未応札",T15>0,"応札") -> 未応札 | AB15: =_xlfn.IFS(U15=0,"未約定",U15=T15,"約定",U15<T15,"一部約定") -> 未約定 | AD15: =IF(AA15="応札",IF($AB15="未約定",IF(OR($G15=List!$F$2:$F$3), $P15*$T15, $N15*$T15),IF($AB15="一部約定",IF(OR($G15=List!$F$2:$F$3), $P15*($T15-$U15), $N15*($T15-$U15)),"")),"") ->  | AE15: 0
V16: 0 | W16: 0 | Y16: =IF(ISNUMBER(B16), IF(COUNTIF($B$10:$B16, B16)=COUNTIF($B:$B, B16), "1", "0"), "") ->  | Z16: =IF(OR($C16=List!$C$5,$C16=List!$C$6,$C16=List!$C$11,$C16=List!$C$13), 1, 0) -> 0 | AA16: =_xlfn.IFS(T16="","未応札",T16>0,"応札") -> 未応札 | AB16: =_xlfn.IFS(U16=0,"未約定",U16=T16,"約定",U16<T16,"一部約定") -> 未約定 | AD16: =IF(AA16="応札",IF($AB16="未約定",IF(OR($G16=List!$F$2:$F$3), $P16*$T16, $N16*$T16),IF($AB16="一部約定",IF(OR($G16=List!$F$2:$F$3), $P16*($T16-$U16), $N16*($T16-$U16)),"")),"") ->  | AE16: 0
V17: 0 | W17: 0 | Y17: =IF(ISNUMBER(B17), IF(COUNTIF($B$10:$B17, B17)=COUNTIF($B:$B, B17), "1", "0"), "") ->  | Z17: =IF(OR($C17=List!$C$5,$C17=List!$C$6,$C17=List!$C$11,$C17=List!$C$13), 1, 0) -> 0 | AA17: =_xlfn.IFS(T17="","未応札",T17>0,"応札") -> 未応札 | AB17: =_xlfn.IFS(U17=0,"未約定",U17=T17,"約定",U17<T17,"一部約定") -> 未約定 | AD17: =IF(AA17="応札",IF($AB17="未約定",IF(OR($G17=List!$F$2:$F$3), $P17*$T17, $N17*$T17),IF($AB17="一部約定",IF(OR($G17=List!$F$2:$F$3), $P17*($T17-$U17), $N17*($T17-$U17)),"")),"") ->  | AE17: 0
V18: 0 | W18: 0 | Y18: =IF(ISNUMBER(B18), IF(COUNTIF($B$10:$B18, B18)=COUNTIF($B:$B, B18), "1", "0"), "") ->  | Z18: =IF(OR($C18=List!$C$5,$C18=List!$C$6,$C18=List!$C$11,$C18=List!$C$13), 1, 0) -> 0 | AA18: =_xlfn.IFS(T18="","未応札",T18>0,"応札") -> 未応札 | AB18: =_xlfn.IFS(U18=0,"未約定",U18=T18,"約定",U18<T18,"一部約定") -> 未約定 | AD18: =IF(AA18="応札",IF($AB18="未約定",IF(OR($G18=List!$F$2:$F$3), $P18*$T18, $N18*$T18),IF($AB18="一部約定",IF(OR($G18=List!$F$2:$F$3), $P18*($T18-$U18), $N18*($T18-$U18)),"")),"") ->  | AE18: 0
V19: 0 | W19: 0 | Y19: =IF(ISNUMBER(B19), IF(COUNTIF($B$10:$B19, B19)=COUNTIF($B:$B, B19), "1", "0"), "") ->  | Z19: =IF(OR($C19=List!$C$5,$C19=List!$C$6,$C19=List!$C$11,$C19=List!$C$13), 1, 0) -> 0 | AA19: =_xlfn.IFS(T19="","未応札",T19>0,"応札") -> 未応札 | AB19: =_xlfn.IFS(U19=0,"未約定",U19=T19,"約定",U19<T19,"一部約定") -> 未約定 | AD19: =IF(AA19="応札",IF($AB19="未約定",IF(OR($G19=List!$F$2:$F$3), $P19*$T19, $N19*$T19),IF($AB19="一部約定",IF(OR($G19=List!$F$2:$F$3), $P19*($T19-$U19), $N19*($T19-$U19)),"")),"") ->  | AE19: 0
V20: 0 | W20: 0 | Y20: =IF(ISNUMBER(B20), IF(COUNTIF($B$10:$B20, B20)=COUNTIF($B:$B, B20), "1", "0"), "") ->  | Z20: =IF(OR($C20=List!$C$5,$C20=List!$C$6,$C20=List!$C$11,$C20=List!$C$13), 1, 0) -> 0 | AA20: =_xlfn.IFS(T20="","未応札",T20>0,"応札") -> 未応札 | AB20: =_xlfn.IFS(U20=0,"未約定",U20=T20,"約定",U20<T20,"一部約定") -> 未約定 | AD20: =IF(AA20="応札",IF($AB20="未約定",IF(OR($G20=List!$F$2:$F$3), $P20*$T20, $N20*$T20),IF($AB20="一部約定",IF(OR($G20=List!$F$2:$F$3), $P20*($T20-$U20), $N20*($T20-$U20)),"")),"") ->  | AE20: 0
V21: 0 | W21: 0 | Y21: =IF(ISNUMBER(B21), IF(COUNTIF($B$10:$B21, B21)=COUNTIF($B:$B, B21), "1", "0"), "") ->  | Z21: =IF(OR($C21=List!$C$5,$C21=List!$C$6,$C21=List!$C$11,$C21=List!$C$13), 1, 0) -> 0 | AA21: =_xlfn.IFS(T21="","未応札",T21>0,"応札") -> 未応札 | AB21: =_xlfn.IFS(U21=0,"未約定",U21=T21,"約定",U21<T21,"一部約定") -> 未約定 | AD21: =IF(AA21="応札",IF($AB21="未約定",IF(OR($G21=List!$F$2:$F$3), $P21*$T21, $N21*$T21),IF($AB21="一部約定",IF(OR($G21=List!$F$2:$F$3), $P21*($T21-$U21), $N21*($T21-$U21)),"")),"") ->  | AE21: 0
V22: 0 | W22: 0 | Y22: =IF(ISNUMBER(B22), IF(COUNTIF($B$10:$B22, B22)=COUNTIF($B:$B, B22), "1", "0"), "") ->  | Z22: =IF(OR($C22=List!$C$5,$C22=List!$C$6,$C22=List!$C$11,$C22=List!$C$13), 1, 0) -> 0 | AA22: =_xlfn.IFS(T22="","未応札",T22>0,"応札") -> 未応札 | AB22: =_xlfn.IFS(U22=0,"未約定",U22=T22,"約定",U22<T22,"一部約定") -> 未約定 | AD22: =IF(AA22="応札",IF($AB22="未約定",IF(OR($G22=List!$F$2:$F$3), $P22*$T22, $N22*$T22),IF($AB22="一部約定",IF(OR($G22=List!$F$2:$F$3), $P22*($T22-$U22), $N22*($T22-$U22)),"")),"") ->  | AE22: 0
V23: 0 | W23: 0 | Y23: =IF(ISNUMBER(B23), IF(COUNTIF($B$10:$B23, B23)=COUNTIF($B:$B, B23), "1", "0"), "") ->  | Z23: =IF(OR($C23=List!$C$5,$C23=List!$C$6,$C23=List!$C$11,$C23=List!$C$13), 1, 0) -> 0 | AA23: =_xlfn.IFS(T23="","未応札",T23>0,"応札") -> 未応札 | AB23: =_xlfn.IFS(U23=0,"未約定",U23=T23,"約定",U23<T23,"一部約定") -> 未約定 | AD23: =IF(AA23="応札",IF($AB23="未約定",IF(OR($G23=List!$F$2:$F$3), $P23*$T23, $N23*$T23),IF($AB23="一部約定",IF(OR($G23=List!$F$2:$F$3), $P23*($T23-$U23), $N23*($T23-$U23)),"")),"") ->  | AE23: 0
V24: 0 | W24: 0 | Y24: =IF(ISNUMBER(B24), IF(COUNTIF($B$10:$B24, B24)=COUNTIF($B:$B, B24), "1", "0"), "") ->  | Z24: =IF(OR($C24=List!$C$5,$C24=List!$C$6,$C24=List!$C$11,$C24=List!$C$13), 1, 0) -> 0 | AA24: =_xlfn.IFS(T24="","未応札",T24>0,"応札") -> 未応札 | AB24: =_xlfn.IFS(U24=0,"未約定",U24=T24,"約定",U24<T24,"一部約定") -> 未約定 | AD24: =IF(AA24="応札",IF($AB24="未約定",IF(OR($G24=List!$F$2:$F$3), $P24*$T24, $N24*$T24),IF($AB24="一部約定",IF(OR($G24=List!$F$2:$F$3), $P24*($T24-$U24), $N24*($T24-$U24)),"")),"") ->  | AE24: 0
V25: 0 | W25: 0 | Y25: =IF(ISNUMBER(B25), IF(COUNTIF($B$10:$B25, B25)=COUNTIF($B:$B, B25), "1", "0"), "") ->  | Z25: =IF(OR($C25=List!$C$5,$C25=List!$C$6,$C25=List!$C$11,$C25=List!$C$13), 1, 0) -> 0 | AA25: =_xlfn.IFS(T25="","未応札",T25>0,"応札") -> 未応札 | AB25: =_xlfn.IFS(U25=0,"未約定",U25=T25,"約定",U25<T25,"一部約定") -> 未約定 | AD25: =IF(AA25="応札",IF($AB25="未約定",IF(OR($G25=List!$F$2:$F$3), $P25*$T25, $N25*$T25),IF($AB25="一部約定",IF(OR($G25=List!$F$2:$F$3), $P25*($T25-$U25), $N25*($T25-$U25)),"")),"") ->  | AE25: 0
V26: 0 | W26: 0 | Y26: =IF(ISNUMBER(B26), IF(COUNTIF($B$10:$B26, B26)=COUNTIF($B:$B, B26), "1", "0"), "") ->  | Z26: =IF(OR($C26=List!$C$5,$C26=List!$C$6,$C26=List!$C$11,$C26=List!$C$13), 1, 0) -> 0 | AA26: =_xlfn.IFS(T26="","未応札",T26>0,"応札") -> 未応札 | AB26: =_xlfn.IFS(U26=0,"未約定",U26=T26,"約定",U26<T26,"一部約定") -> 未約定 | AD26: =IF(AA26="応札",IF($AB26="未約定",IF(OR($G26=List!$F$2:$F$3), $P26*$T26, $N26*$T26),IF($AB26="一部約定",IF(OR($G26=List!$F$2:$F$3), $P26*($T26-$U26), $N26*($T26-$U26)),"")),"") ->  | AE26: 0
V27: 0 | W27: 0 | Y27: =IF(ISNUMBER(B27), IF(COUNTIF($B$10:$B27, B27)=COUNTIF($B:$B, B27), "1", "0"), "") ->  | Z27: =IF(OR($C27=List!$C$5,$C27=List!$C$6,$C27=List!$C$11,$C27=List!$C$13), 1, 0) -> 0 | AA27: =_xlfn.IFS(T27="","未応札",T27>0,"応札") -> 未応札 | AB27: =_xlfn.IFS(U27=0,"未約定",U27=T27,"約定",U27<T27,"一部約定") -> 未約定 | AD27: =IF(AA27="応札",IF($AB27="未約定",IF(OR($G27=List!$F$2:$F$3), $P27*$T27, $N27*$T27),IF($AB27="一部約定",IF(OR($G27=List!$F$2:$F$3), $P27*($T27-$U27), $N27*($T27-$U27)),"")),"") ->  | AE27: 0
V28: 0 | W28: 0 | Y28: =IF(ISNUMBER(B28), IF(COUNTIF($B$10:$B28, B28)=COUNTIF($B:$B, B28), "1", "0"), "") ->  | Z28: =IF(OR($C28=List!$C$5,$C28=List!$C$6,$C28=List!$C$11,$C28=List!$C$13), 1, 0) -> 0 | AA28: =_xlfn.IFS(T28="","未応札",T28>0,"応札") -> 未応札 | AB28: =_xlfn.IFS(U28=0,"未約定",U28=T28,"約定",U28<T28,"一部約定") -> 未約定 | AD28: =IF(AA28="応札",IF($AB28="未約定",IF(OR($G28=List!$F$2:$F$3), $P28*$T28, $N28*$T28),IF($AB28="一部約定",IF(OR($G28=List!$F$2:$F$3), $P28*($T28-$U28), $N28*($T28-$U28)),"")),"") ->  | AE28: 0
V29: 0 | W29: 0 | Y29: =IF(ISNUMBER(B29), IF(COUNTIF($B$10:$B29, B29)=COUNTIF($B:$B, B29), "1", "0"), "") ->  | Z29: =IF(OR($C29=List!$C$5,$C29=List!$C$6,$C29=List!$C$11,$C29=List!$C$13), 1, 0) -> 0 | AA29: =_xlfn.IFS(T29="","未応札",T29>0,"応札") -> 未応札 | AB29: =_xlfn.IFS(U29=0,"未約定",U29=T29,"約定",U29<T29,"一部約定") -> 未約定 | AD29: =IF(AA29="応札",IF($AB29="未約定",IF(OR($G29=List!$F$2:$F$3), $P29*$T29, $N29*$T29),IF($AB29="一部約定",IF(OR($G29=List!$F$2:$F$3), $P29*($T29-$U29), $N29*($T29-$U29)),"")),"") ->  | AE29: 0
V30: 0 | W30: 0 | Y30: =IF(ISNUMBER(B30), IF(COUNTIF($B$10:$B30, B30)=COUNTIF($B:$B, B30), "1", "0"), "") ->  | Z30: =IF(OR($C30=List!$C$5,$C30=List!$C$6,$C30=List!$C$11,$C30=List!$C$13), 1, 0) -> 0 | AA30: =_xlfn.IFS(T30="","未応札",T30>0,"応札") -> 未応札 | AB30: =_xlfn.IFS(U30=0,"未約定",U30=T30,"約定",U30<T30,"一部約定") -> 未約定 | AD30: =IF(AA30="応札",IF($AB30="未約定",IF(OR($G30=List!$F$2:$F$3), $P30*$T30, $N30*$T30),IF($AB30="一部約定",IF(OR($G30=List!$F$2:$F$3), $P30*($T30-$U30), $N30*($T30-$U30)),"")),"") ->  | AE30: 0
V31: 0 | W31: 0 | Y31: =IF(ISNUMBER(B31), IF(COUNTIF($B$10:$B31, B31)=COUNTIF($B:$B, B31), "1", "0"), "") ->  | Z31: =IF(OR($C31=List!$C$5,$C31=List!$C$6,$C31=List!$C$11,$C31=List!$C$13), 1, 0) -> 0 | AA31: =_xlfn.IFS(T31="","未応札",T31>0,"応札") -> 未応札 | AB31: =_xlfn.IFS(U31=0,"未約定",U31=T31,"約定",U31<T31,"一部約定") -> 未約定 | AD31: =IF(AA31="応札",IF($AB31="未約定",IF(OR($G31=List!$F$2:$F$3), $P31*$T31, $N31*$T31),IF($AB31="一部約定",IF(OR($G31=List!$F$2:$F$3), $P31*($T31-$U31), $N31*($T31-$U31)),"")),"") ->  | AE31: 0
V32: 0 | W32: 0 | Y32: =IF(ISNUMBER(B32), IF(COUNTIF($B$10:$B32, B32)=COUNTIF($B:$B, B32), "1", "0"), "") ->  | Z32: =IF(OR($C32=List!$C$5,$C32=List!$C$6,$C32=List!$C$11,$C32=List!$C$13), 1, 0) -> 0 | AA32: =_xlfn.IFS(T32="","未応札",T32>0,"応札") -> 未応札 | AB32: =_xlfn.IFS(U32=0,"未約定",U32=T32,"約定",U32<T32,"一部約定") -> 未約定 | AD32: =IF(AA32="応札",IF($AB32="未約定",IF(OR($G32=List!$F$2:$F$3), $P32*$T32, $N32*$T32),IF($AB32="一部約定",IF(OR($G32=List!$F$2:$F$3), $P32*($T32-$U32), $N32*($T32-$U32)),"")),"") ->  | AE32: 0
V33: 0 | W33: 0 | Y33: =IF(ISNUMBER(B33), IF(COUNTIF($B$10:$B33, B33)=COUNTIF($B:$B, B33), "1", "0"), "") ->  | Z33: =IF(OR($C33=List!$C$5,$C33=List!$C$6,$C33=List!$C$11,$C33=List!$C$13), 1, 0) -> 0 | AA33: =_xlfn.IFS(T33="","未応札",T33>0,"応札") -> 未応札 | AB33: =_xlfn.IFS(U33=0,"未約定",U33=T33,"約定",U33<T33,"一部約定") -> 未約定 | AD33: =IF(AA33="応札",IF($AB33="未約定",IF(OR($G33=List!$F$2:$F$3), $P33*$T33, $N33*$T33),IF($AB33="一部約定",IF(OR($G33=List!$F$2:$F$3), $P33*($T33-$U33), $N33*($T33-$U33)),"")),"") ->  | AE33: 0
V34: 0 | W34: 0 | Y34: =IF(ISNUMBER(B34), IF(COUNTIF($B$10:$B34, B34)=COUNTIF($B:$B, B34), "1", "0"), "") ->  | Z34: =IF(OR($C34=List!$C$5,$C34=List!$C$6,$C34=List!$C$11,$C34=List!$C$13), 1, 0) -> 0 | AA34: =_xlfn.IFS(T34="","未応札",T34>0,"応札") -> 未応札 | AB34: =_xlfn.IFS(U34=0,"未約定",U34=T34,"約定",U34<T34,"一部約定") -> 未約定 | AD34: =IF(AA34="応札",IF($AB34="未約定",IF(OR($G34=List!$F$2:$F$3), $P34*$T34, $N34*$T34),IF($AB34="一部約定",IF(OR($G34=List!$F$2:$F$3), $P34*($T34-$U34), $N34*($T34-$U34)),"")),"") ->  | AE34: 0
V35: 0 | W35: 0 | Y35: =IF(ISNUMBER(B35), IF(COUNTIF($B$10:$B35, B35)=COUNTIF($B:$B, B35), "1", "0"), "") ->  | Z35: =IF(OR($C35=List!$C$5,$C35=List!$C$6,$C35=List!$C$11,$C35=List!$C$13), 1, 0) -> 0 | AA35: =_xlfn.IFS(T35="","未応札",T35>0,"応札") -> 未応札 | AB35: =_xlfn.IFS(U35=0,"未約定",U35=T35,"約定",U35<T35,"一部約定") -> 未約定 | AD35: =IF(AA35="応札",IF($AB35="未約定",IF(OR($G35=List!$F$2:$F$3), $P35*$T35, $N35*$T35),IF($AB35="一部約定",IF(OR($G35=List!$F$2:$F$3), $P35*($T35-$U35), $N35*($T35-$U35)),"")),"") ->  | AE35: 0
V36: 0 | W36: 0 | Y36: =IF(ISNUMBER(B36), IF(COUNTIF($B$10:$B36, B36)=COUNTIF($B:$B, B36), "1", "0"), "") ->  | Z36: =IF(OR($C36=List!$C$5,$C36=List!$C$6,$C36=List!$C$11,$C36=List!$C$13), 1, 0) -> 0 | AA36: =_xlfn.IFS(T36="","未応札",T36>0,"応札") -> 未応札 | AB36: =_xlfn.IFS(U36=0,"未約定",U36=T36,"約定",U36<T36,"一部約定") -> 未約定 | AD36: =IF(AA36="応札",IF($AB36="未約定",IF(OR($G36=List!$F$2:$F$3), $P36*$T36, $N36*$T36),IF($AB36="一部約定",IF(OR($G36=List!$F$2:$F$3), $P36*($T36-$U36), $N36*($T36-$U36)),"")),"") ->  | AE36: 0
V37: 0 | W37: 0 | Y37: =IF(ISNUMBER(B37), IF(COUNTIF($B$10:$B37, B37)=COUNTIF($B:$B, B37), "1", "0"), "") ->  | Z37: =IF(OR($C37=List!$C$5,$C37=List!$C$6,$C37=List!$C$11,$C37=List!$C$13), 1, 0) -> 0 | AA37: =_xlfn.IFS(T37="","未応札",T37>0,"応札") -> 未応札 | AB37: =_xlfn.IFS(U37=0,"未約定",U37=T37,"約定",U37<T37,"一部約定") -> 未約定 | AD37: =IF(AA37="応札",IF($AB37="未約定",IF(OR($G37=List!$F$2:$F$3), $P37*$T37, $N37*$T37),IF($AB37="一部約定",IF(OR($G37=List!$F$2:$F$3), $P37*($T37-$U37), $N37*($T37-$U37)),"")),"") ->  | AE37: 0
V38: 0 | W38: 0 | Y38: =IF(ISNUMBER(B38), IF(COUNTIF($B$10:$B38, B38)=COUNTIF($B:$B, B38), "1", "0"), "") ->  | Z38: =IF(OR($C38=List!$C$5,$C38=List!$C$6,$C38=List!$C$11,$C38=List!$C$13), 1, 0) -> 0 | AA38: =_xlfn.IFS(T38="","未応札",T38>0,"応札") -> 未応札 | AB38: =_xlfn.IFS(U38=0,"未約定",U38=T38,"約定",U38<T38,"一部約定") -> 未約定 | AD38: =IF(AA38="応札",IF($AB38="未約定",IF(OR($G38=List!$F$2:$F$3), $P38*$T38, $N38*$T38),IF($AB38="一部約定",IF(OR($G38=List!$F$2:$F$3), $P38*($T38-$U38), $N38*($T38-$U38)),"")),"") ->  | AE38: 0
V39: 0 | W39: 0 | Y39: =IF(ISNUMBER(B39), IF(COUNTIF($B$10:$B39, B39)=COUNTIF($B:$B, B39), "1", "0"), "") ->  | Z39: =IF(OR($C39=List!$C$5,$C39=List!$C$6,$C39=List!$C$11,$C39=List!$C$13), 1, 0) -> 0 | AA39: =_xlfn.IFS(T39="","未応札",T39>0,"応札") -> 未応札 | AB39: =_xlfn.IFS(U39=0,"未約定",U39=T39,"約定",U39<T39,"一部約定") -> 未約定 | AD39: =IF(AA39="応札",IF($AB39="未約定",IF(OR($G39=List!$F$2:$F$3), $P39*$T39, $N39*$T39),IF($AB39="一部約定",IF(OR($G39=List!$F$2:$F$3), $P39*($T39-$U39), $N39*($T39-$U39)),"")),"") ->  | AE39: 0
V40: 0 | W40: 0 | Y40: =IF(ISNUMBER(B40), IF(COUNTIF($B$10:$B40, B40)=COUNTIF($B:$B, B40), "1", "0"), "") ->  | Z40: =IF(OR($C40=List!$C$5,$C40=List!$C$6,$C40=List!$C$11,$C40=List!$C$13), 1, 0) -> 0 | AA40: =_xlfn.IFS(T40="","未応札",T40>0,"応札") -> 未応札 | AB40: =_xlfn.IFS(U40=0,"未約定",U40=T40,"約定",U40<T40,"一部約定") -> 未約定 | AD40: =IF(AA40="応札",IF($AB40="未約定",IF(OR($G40=List!$F$2:$F$3), $P40*$T40, $N40*$T40),IF($AB40="一部約定",IF(OR($G40=List!$F$2:$F$3), $P40*($T40-$U40), $N40*($T40-$U40)),"")),"") ->  | AE40: 0

Sheet 記載例_精算パターン④約定間全量不落(停止・再起動)
B2: 取引年月 | C2: 202504
B3: MMSコード | C3: A000
B4: 対象エリア | C4: 3：東京
B5: ファイル名称 | C5: =$C$2&"_"&$C$3&"_"&LEFT($C$4,1)&"_不約定単価内訳兼起動費事後精算情報様式" -> 202504_A000_3_不約定単価内訳兼起動費事後精算情報様式
B7: =入力シート!B7 -> 事象NO | C7: =入力シート!C7 -> 精算パターン | D7: =入力シート!D7 -> 余力活用契約対象リソース区分 | E7: =入力シート!E7 -> 取引日 | F7: =入力シート!F7 -> 時刻コード | G7: =入力シート!G7 -> 持ち下げ供出機区分 | H7: =入力シート!H7 -> 系統コード | I7: =入力シート!I7 -> 系統コード(差替後) | J7: =入力シート!J7 -> 商品区分 | K7: =入力シート!K7 -> 売り入札ID | L7: =入力シート!L7 -> 約定番号 | M7: =入力シート!M7 -> 約定識別ID | N7: =入力シート!N7 -> MMS起動費単価 | O7: =入力シート!O7 -> 加重平均前のΔkW単価 | P7: =入力シート!P7 -> 加重平均起動費未回収分相当額 | Q7: =入力シート!Q7 -> 最低出力までの発電電力量の機会費用単価 | R7: =入力シート!R7 -> 発電計画 | S7: =入力シート!S7 -> 最低出力 | T7: =入力シート!T7 -> 約定希望ΔkW | U7: =入力シート!U7 -> ΔkW約定量 | V7: =入力シート!V7 -> 最低出力までの発電電力量の機会費用単価×(約定希望ΔkW-ΔkW約定量) | W7: =入力シート!W7 -> 最低出力維持した場合の費用合計 | X7: =入力シート!X7 -> 停止・再起動にかかる費用 | Y7: =入力シート!Y7 -> 事象毎の最終行 | Z7: =入力シート!Z7 -> 妥当性確認 | AA7: =入力シート!AA7 -> 応札状況 | AB7: =入力シート!AB7 -> 約定状況 | AC7: =入力シート!AC7 -> 並解列状態(実績) | AD7: =入力シート!AD7 -> 起動費未回収分相当額 | AE7: =入力シート!AE7 -> 最低出力までの発電電力量の機会費用 | AF7: =入力シート!AF7 -> 停止・再起動にかかる費用 | AI7: =入力シート!AI7 -> 精算対象 申請小計 | AJ7: =入力シート!AJ7 -> 起動費未回収分相当額 | AK7: =入力シート!AK7 -> 最低出力までの発電電力量の機会費用 | AL7: =入力シート!AL7 -> 停止・再起動にかかる費用 | AM7: =入力シート!AM7 -> 合計
N8: （円/kW） | O8: （円/kW） | P8: （円/kW） | Q8: （円/kW） | R8: （kWh） | S8: （kWh） | T8: （kW） | U8: （kW） | V8: （円） | W8: （円） | X8: （円） | AD8: （円） | AE8: （円） | AF8: （円） | AJ8: （円） | AK8: （円） | AL8: （円） | AM8: （円）
B9: =IF(入力シート!B9<>"",入力シート!B9,"") -> ※起動費未回収が発生した事象NOを付定すること ※複合市場商品および三次調整力②商品へ１回分の起動費等を按分計上して入札し，両市場において起動費等の事後精算を申請する場合は，市場ごとに事象NOを分けずに同一の事象NOとして申請を実施すること | C9: =IF(入力シート!C9<>"",入力シート!C9,"") ->  | D9: =IF(入力シート!D9<>"",入力シート!D9,"") -> ※対象の場合は「１」，非対象の場合は「０」を入力 | E9: =IF(入力シート!E9<>"",入力シート!E9,"") ->  | F9: =IF(入力シート!F9<>"",入力シート!F9,"") ->  | G9: =IF(入力シート!G9<>"",入力シート!G9,"") -> ※持ち下げ供出機を加重平均で入札した場合に選択 | H9: =IF(入力シート!H9<>"",入力シート!H9,"") -> ※電源差替がない場合は精算対象となるリソースの系統コードを記載すること ※電源差替後のリソースにより精算する場合は，差替前のリソースの系統コードを記載すること | I9: =IF(入力シート!I9<>"",入力シート!I9,"") -> ※起動費単価分が登録されている電源に電源差替を実施する場合に記載すること | J9: =IF(入力シート!J9<>"",入力シート!J9,"") ->  | K9: =IF(入力シート!K9<>"",入力シート!K9,"") ->  | L9: =IF(入力シート!L9<>"",入力シート!L9,"") -> ※持ち下げ供出機区分が該当する場合，起動供出機の約定番号を記載すること ※同一時刻コードにおいて，複数の約定番号がある場合は，いずれか1つを記載すること | M9: =IF(入力シート!M9<>"",入力シート!M9,"") -> ※持ち下げ供出機区分に該当する場合，起動供出機の約定識別IDを記載すること ※同一時刻コードにおいて，約定番号に紐づく約定識別IDが複数存在する場合は，いずれか1つを記載すること ※電源差し替えを実施した場合，差替え元の約定識別IDを記載すること(持ち下げ供出機区分に該当する場合,起動供出機の初回約定識別IDを記載すること) | N9: =IF(入力シート!N9<>"",入力シート!N9,"") -> ※MMSに登録された起動費単価分を原則用いること ※ 「全量不落」の精算パターンで「最低出力までの発電電力量の機会費用」の事後精算の対象がある場合，様式都合により，属地TSOと事前に確認の上，「MMSに登録された起動費単価分」に当該単価を加算して記載すること | O9: =IF(入力シート!O9<>"",入力シート!O9,"") -> ※持ち下げ供出機区分が該当する場合に記載すること | P9: =IF(入力シート!P9<>"",入力シート!P9,"") -> ※ 持ち下げ供出機区分が該当する場合に記載すること | Q9: =IF(入力シート!Q9<>"",入力シート!Q9,"") -> ※卸電力市場価格（スポット市場価格：実績）と限界費用との差額を用いること ※加重平均で入札し，一部不落となった場合は，情報を記載するリソースのΔkW単価に含めた起動供出機の最低出力までの発電電力量の加重平均機会費用相当額を精算対象とする ※加重平均で入札し，起動供出機または持ち下げ供出機，またはその双方において一部のリソースが全量不落となったブロックに，起動供出機または持ち下げ供出機の情報を記載する場合は，起動供出機または持ち下げ供出機のΔkW単価に含めた起動供出機の最低出力までの発電電力量の加重平均機会費用相当額を精算対象とする。 （ただし，起動供出機が全量不落となった場合は，起動供出機の起動により機会費用が発生した場合に限る。そのため別途TSOからデータ提出を求める場合がある。なお、起動供出機のΔkW単価に含めた起動供出機の最低出力までの発電電力量の加重平均機会費用相当額については様式都合により，属地TSOと事前に確認の上， 「加重平均起動費未回収分相当額（P列）」に加算して記載すること） | R9: =IF(入力シート!R9<>"",入力シート!R9,"") ->  | S9: =IF(入力シート!S9<>"",入力シート!S9,"") ->  | T9: =IF(入力シート!T9<>"",入力シート!T9,"") ->  | U9: =IF(入力シート!U9<>"",入力シート!U9,"") ->  | V9: =IF(入力シート!V9<>"",入力シート!V9,"") -> ※加重平均で入札した場合は，最低出力までの発電電力量の加重平均機会費用相当額×(約定希望ΔkW-ΔkW約定量) | W9: =IF(入力シート!W9<>"",入力シート!W9,"") -> ※精算パターン「約定間全量不落(約定間停止・再起動)」を選択した場合，事象NOごとの最終行に合計値表示 | X9: =IF(入力シート!X9<>"",入力シート!X9,"") -> ※１停止・再起動費は最後のブロックに記載すること ※２ 余力活用契約を締結している電源でBG計画上停止・再起動としていたが、実績は停止しなかった場合も、BG計画上の「停止・再起動費」を記載すること | Y9: =IF(入力シート!Y9<>"",入力シート!Y9,"") ->  | Z9: =IF(入力シート!Z9<>"",入力シート!Z9,"") ->  | AA9: =IF(入力シート!AA9<>"",入力シート!AA9,"") ->  | AB9: =IF(入力シート!AB9<>"",入力シート!AB9,"") ->  | AC9: =IF(入力シート!AC9<>"",入力シート!AC9,"") ->  | AD9: =IF(入力シート!AD9<>"",入力シート!AD9,"") -> ※加重平均で入札した場合は，加重平均起動費未回収分相当額 | AE9: =IF(入力シート!AE9<>"",入力シート!AE9,"") -> ※加重平均で入札した場合は，最低出力までの発電電力量の加重平均機会費用相当額 | AF9: =IF(入力シート!AF9<>"",入力シート!AF9,"") -> ※約定間全量不落時において，停止・再起動するよりも，最低出力維持した方が経済的だった場合，後者を事後精算対象とする | AJ9: =SUM($AD10:$AD2831) -> 1000000 | AK9: =SUM($AE10:$AE2831) -> 0 | AL9: =SUM($AF10:$AF2831) -> 450000 | AM9: =ROUNDDOWN(SUM(AJ9:AL9),0) -> 1450000
B10: 1 | C10: 4：約定間全量不落（約定間停止・再起動） | D10: 0：非対象 | E10: 20250401 | F10: 4 | H10: ○A○○○ | J10: 2：三次調整力② | K10: ○○○○○○ | N10: 10 | Q10: 20 | R10: 0 | S10: 0 | T10: 50000 | U10: 0 | V10: =Q10*(T10-U10) -> 1000000 | W10: =IF(X10 > 0, SUMIFS(V:V, B:B, B10, Z:Z, 1), 0) -> 0 | Y10: =IF(ISNUMBER(B10), IF(COUNTIF($B$10:$B10, B10)=COUNTIF($B:$B, B10), "1", "0"), "") -> 0 | Z10: =IF(OR($C10=List!$C$5,$C10=List!$C$6,$C10=List!$C$11,$C10=List!$C$13), 1, 0) -> 1 | AA10: =_xlfn.IFS(T10="","未応札",T10>0,"応札") -> 応札 | AB10: =_xlfn.IFS(U10=0,"未約定",U10=T10,"約定",U10<T10,"一部約定") -> 未約定 | AC10: 2：解列 | AD10: =IF(AA10="応札",IF($AB10="未約定",IF(OR($G10=List!$F$2:$F$3), $P10*$T10, $N10*$T10),IF($AB10="一部約定",IF(OR($G10=List!$F$2:$F$3), $P10*($T10-$U10), $N10*($T10-$U10)),"")),"") -> 500000 | AE10: =IF(ISBLANK($R10),IF(OR($AB10="一部約定",$AB10="未約定"),$Q10*($T10-$U10),""),IF($R10=0,"", IF(OR($AB10="一部約定", $AB10="未約定"), $Q10*($T10-$U10), ""))) ->  | AF10: =IF(AND($AA10="応札",$AB10="未約定"), IF($W10<>0, IF($X10<$W10, IF($X10<>0, $X10, ""), IF($W10<>0, $W10, "")), IF($X10<>0, $X10, "")), "") -> 
B11: 1 | C11: 4：約定間全量不落（約定間停止・再起動） | D11: 0：非対象 | E11: 20250401 | F11: 5 | H11: ○A○○○ | J11: 2：三次調整力② | K11: ○○○○○○ | N11: 10 | Q11: 20 | R11: 0 | S11: 0 | T11: 50000 | U11: 0 | V11: =Q11*(T11-U11) -> 1000000 | W11: =IF(X11 > 0, SUMIFS(V:V, B:B, B11, Z:Z, 1), 0) -> 2000000 | X11: 450000 | Y11: =IF(ISNUMBER(B11), IF(COUNTIF($B$10:$B11, B11)=COUNTIF($B:$B, B11), "1", "0"), "") -> 1 | Z11: =IF(OR($C11=List!$C$5,$C11=List!$C$6,$C11=List!$C$11,$C11=List!$C$13), 1, 0) -> 1 | AA11: =_xlfn.IFS(T11="","未応札",T11>0,"応札") -> 応札 | AB11: =_xlfn.IFS(U11=0,"未約定",U11=T11,"約定",U11<T11,"一部約定") -> 未約定 | AC11: 2：解列 | AD11: =IF(AA11="応札",IF($AB11="未約定",IF(OR($G11=List!$F$2:$F$3), $P11*$T11, $N11*$T11),IF($AB11="一部約定",IF(OR($G11=List!$F$2:$F$3), $P11*($T11-$U11), $N11*($T11-$U11)),"")),"") -> 500000 | AE11: =IF(ISBLANK($R11),IF(OR($AB11="一部約定",$AB11="未約定"),$Q11*($T11-$U11),""),IF($R11=0,"", IF(OR($AB11="一部約定", $AB11="未約定"), $Q11*($T11-$U11), ""))) ->  | AF11: =IF(AND($AA11="応札",$AB11="未約定"), IF($W11<>0, IF($X11<$W11, IF($X11<>0, $X11, ""), IF($W11<>0, $W11, "")), IF($X11<>0, $X11, "")), "") -> 450000
V12: 0 | W12: 0 | Y12: =IF(ISNUMBER(B12), IF(COUNTIF($B$10:$B12, B12)=COUNTIF($B:$B, B12), "1", "0"), "") ->  | Z12: =IF(OR($C12=List!$C$5,$C12=List!$C$6,$C12=List!$C$11,$C12=List!$C$13), 1, 0) -> 0 | AA12: =_xlfn.IFS(T12="","未応札",T12>0,"応札") -> 未応札 | AB12: =_xlfn.IFS(U12=0,"未約定",U12=T12,"約定",U12<T12,"一部約定") -> 未約定 | AD12: =IF(AA12="応札",IF($AB12="未約定",IF(OR($G12=List!$F$2:$F$3), $P12*$T12, $N12*$T12),IF($AB12="一部約定",IF(OR($G12=List!$F$2:$F$3), $P12*($T12-$U12), $N12*($T12-$U12)),"")),"") ->  | AE12: 0
V13: 0 | W13: 0 | Y13: =IF(ISNUMBER(B13), IF(COUNTIF($B$10:$B13, B13)=COUNTIF($B:$B, B13), "1", "0"), "") ->  | Z13: =IF(OR($C13=List!$C$5,$C13=List!$C$6,$C13=List!$C$11,$C13=List!$C$13), 1, 0) -> 0 | AA13: =_xlfn.IFS(T13="","未応札",T13>0,"応札") -> 未応札 | AB13: =_xlfn.IFS(U13=0,"未約定",U13=T13,"約定",U13<T13,"一部約定") -> 未約定 | AD13: =IF(AA13="応札",IF($AB13="未約定",IF(OR($G13=List!$F$2:$F$3), $P13*$T13, $N13*$T13),IF($AB13="一部約定",IF(OR($G13=List!$F$2:$F$3), $P13*($T13-$U13), $N13*($T13-$U13)),"")),"") ->  | AE13: 0
V14: 0 | W14: 0 | Y14: =IF(ISNUMBER(B14), IF(COUNTIF($B$10:$B14, B14)=COUNTIF($B:$B, B14), "1", "0"), "") ->  | Z14: =IF(OR($C14=List!$C$5,$C14=List!$C$6,$C14=List!$C$11,$C14=List!$C$13), 1, 0) -> 0 | AA14: =_xlfn.IFS(T14="","未応札",T14>0,"応札") -> 未応札 | AB14: =_xlfn.IFS(U14=0,"未約定",U14=T14,"約定",U14<T14,"一部約定") -> 未約定 | AD14: =IF(AA14="応札",IF($AB14="未約定",IF(OR($G14=List!$F$2:$F$3), $P14*$T14, $N14*$T14),IF($AB14="一部約定",IF(OR($G14=List!$F$2:$F$3), $P14*($T14-$U14), $N14*($T14-$U14)),"")),"") ->  | AE14: 0
V15: 0 | W15: 0 | Y15: =IF(ISNUMBER(B15), IF(COUNTIF($B$10:$B15, B15)=COUNTIF($B:$B, B15), "1", "0"), "") ->  | Z15: =IF(OR($C15=List!$C$5,$C15=List!$C$6,$C15=List!$C$11,$C15=List!$C$13), 1, 0) -> 0 | AA15: =_xlfn.IFS(T15="","未応札",T15>0,"応札") -> 未応札 | AB15: =_xlfn.IFS(U15=0,"未約定",U15=T15,"約定",U15<T15,"一部約定") -> 未約定 | AD15: =IF(AA15="応札",IF($AB15="未約定",IF(OR($G15=List!$F$2:$F$3), $P15*$T15, $N15*$T15),IF($AB15="一部約定",IF(OR($G15=List!$F$2:$F$3), $P15*($T15-$U15), $N15*($T15-$U15)),"")),"") ->  | AE15: 0
V16: 0 | W16: 0 | Y16: =IF(ISNUMBER(B16), IF(COUNTIF($B$10:$B16, B16)=COUNTIF($B:$B, B16), "1", "0"), "") ->  | Z16: =IF(OR($C16=List!$C$5,$C16=List!$C$6,$C16=List!$C$11,$C16=List!$C$13), 1, 0) -> 0 | AA16: =_xlfn.IFS(T16="","未応札",T16>0,"応札") -> 未応札 | AB16: =_xlfn.IFS(U16=0,"未約定",U16=T16,"約定",U16<T16,"一部約定") -> 未約定 | AD16: =IF(AA16="応札",IF($AB16="未約定",IF(OR($G16=List!$F$2:$F$3), $P16*$T16, $N16*$T16),IF($AB16="一部約定",IF(OR($G16=List!$F$2:$F$3), $P16*($T16-$U16), $N16*($T16-$U16)),"")),"") ->  | AE16: 0
V17: 0 | W17: 0 | Y17: =IF(ISNUMBER(B17), IF(COUNTIF($B$10:$B17, B17)=COUNTIF($B:$B, B17), "1", "0"), "") ->  | Z17: =IF(OR($C17=List!$C$5,$C17=List!$C$6,$C17=List!$C$11,$C17=List!$C$13), 1, 0) -> 0 | AA17: =_xlfn.IFS(T17="","未応札",T17>0,"応札") -> 未応札 | AB17: =_xlfn.IFS(U17=0,"未約定",U17=T17,"約定",U17<T17,"一部約定") -> 未約定 | AD17: =IF(AA17="応札",IF($AB17="未約定",IF(OR($G17=List!$F$2:$F$3), $P17*$T17, $N17*$T17),IF($AB17="一部約定",IF(OR($G17=List!$F$2:$F$3), $P17*($T17-$U17), $N17*($T17-$U17)),"")),"") ->  | AE17: 0
V18: 0 | W18: 0 | Y18: =IF(ISNUMBER(B18), IF(COUNTIF($B$10:$B18, B18)=COUNTIF($B:$B, B18), "1", "0"), "") ->  | Z18: =IF(OR($C18=List!$C$5,$C18=List!$C$6,$C18=List!$C$11,$C18=List!$C$13), 1, 0) -> 0 | AA18: =_xlfn.IFS(T18="","未応札",T18>0,"応札") -> 未応札 | AB18: =_xlfn.IFS(U18=0,"未約定",U18=T18,"約定",U18<T18,"一部約定") -> 未約定 | AD18: =IF(AA18="応札",IF($AB18="未約定",IF(OR($G18=List!$F$2:$F$3), $P18*$T18, $N18*$T18),IF($AB18="一部約定",IF(OR($G18=List!$F$2:$F$3), $P18*($T18-$U18), $N18*($T18-$U18)),"")),"") ->  | AE18: 0
V19: 0 | W19: 0 | Y19: =IF(ISNUMBER(B19), IF(COUNTIF($B$10:$B19, B19)=COUNTIF($B:$B, B19), "1", "0"), "") ->  | Z19: =IF(OR($C19=List!$C$5,$C19=List!$C$6,$C19=List!$C$11,$C19=List!$C$13), 1, 0) -> 0 | AA19: =_xlfn.IFS(T19="","未応札",T19>0,"応札") -> 未応札 | AB19: =_xlfn.IFS(U19=0,"未約定",U19=T19,"約定",U19<T19,"一部約定") -> 未約定 | AD19: =IF(AA19="応札",IF($AB19="未約定",IF(OR($G19=List!$F$2:$F$3), $P19*$T19, $N19*$T19),IF($AB19="一部約定",IF(OR($G19=List!$F$2:$F$3), $P19*($T19-$U19), $N19*($T19-$U19)),"")),"") ->  | AE19: 0
V20: 0 | W20: 0 | Y20: =IF(ISNUMBER(B20), IF(COUNTIF($B$10:$B20, B20)=COUNTIF($B:$B, B20), "1", "0"), "") ->  | Z20: =IF(OR($C20=List!$C$5,$C20=List!$C$6,$C20=List!$C$11,$C20=List!$C$13), 1, 0) -> 0 | AA20: =_xlfn.IFS(T20="","未応札",T20>0,"応札") -> 未応札 | AB20: =_xlfn.IFS(U20=0,"未約定",U20=T20,"約定",U20<T20,"一部約定") -> 未約定 | AD20: =IF(AA20="応札",IF($AB20="未約定",IF(OR($G20=List!$F$2:$F$3), $P20*$T20, $N20*$T20),IF($AB20="一部約定",IF(OR($G20=List!$F$2:$F$3), $P20*($T20-$U20), $N20*($T20-$U20)),"")),"") ->  | AE20: 0
V21: 0 | W21: 0 | Y21: =IF(ISNUMBER(B21), IF(COUNTIF($B$10:$B21, B21)=COUNTIF($B:$B, B21), "1", "0"), "") ->  | Z21: =IF(OR($C21=List!$C$5,$C21=List!$C$6,$C21=List!$C$11,$C21=List!$C$13), 1, 0) -> 0 | AA21: =_xlfn.IFS(T21="","未応札",T21>0,"応札") -> 未応札 | AB21: =_xlfn.IFS(U21=0,"未約定",U21=T21,"約定",U21<T21,"一部約定") -> 未約定 | AD21: =IF(AA21="応札",IF($AB21="未約定",IF(OR($G21=List!$F$2:$F$3), $P21*$T21, $N21*$T21),IF($AB21="一部約定",IF(OR($G21=List!$F$2:$F$3), $P21*($T21-$U21), $N21*($T21-$U21)),"")),"") ->  | AE21: 0
V22: 0 | W22: 0 | Y22: =IF(ISNUMBER(B22), IF(COUNTIF($B$10:$B22, B22)=COUNTIF($B:$B, B22), "1", "0"), "") ->  | Z22: =IF(OR($C22=List!$C$5,$C22=List!$C$6,$C22=List!$C$11,$C22=List!$C$13), 1, 0) -> 0 | AA22: =_xlfn.IFS(T22="","未応札",T22>0,"応札") -> 未応札 | AB22: =_xlfn.IFS(U22=0,"未約定",U22=T22,"約定",U22<T22,"一部約定") -> 未約定 | AD22: =IF(AA22="応札",IF($AB22="未約定",IF(OR($G22=List!$F$2:$F$3), $P22*$T22, $N22*$T22),IF($AB22="一部約定",IF(OR($G22=List!$F$2:$F$3), $P22*($T22-$U22), $N22*($T22-$U22)),"")),"") ->  | AE22: 0
V23: 0 | W23: 0 | Y23: =IF(ISNUMBER(B23), IF(COUNTIF($B$10:$B23, B23)=COUNTIF($B:$B, B23), "1", "0"), "") ->  | Z23: =IF(OR($C23=List!$C$5,$C23=List!$C$6,$C23=List!$C$11,$C23=List!$C$13), 1, 0) -> 0 | AA23: =_xlfn.IFS(T23="","未応札",T23>0,"応札") -> 未応札 | AB23: =_xlfn.IFS(U23=0,"未約定",U23=T23,"約定",U23<T23,"一部約定") -> 未約定 | AD23: =IF(AA23="応札",IF($AB23="未約定",IF(OR($G23=List!$F$2:$F$3), $P23*$T23, $N23*$T23),IF($AB23="一部約定",IF(OR($G23=List!$F$2:$F$3), $P23*($T23-$U23), $N23*($T23-$U23)),"")),"") ->  | AE23: 0
V24: 0 | W24: 0 | Y24: =IF(ISNUMBER(B24), IF(COUNTIF($B$10:$B24, B24)=COUNTIF($B:$B, B24), "1", "0"), "") ->  | Z24: =IF(OR($C24=List!$C$5,$C24=List!$C$6,$C24=List!$C$11,$C24=List!$C$13), 1, 0) -> 0 | AA24: =_xlfn.IFS(T24="","未応札",T24>0,"応札") -> 未応札 | AB24: =_xlfn.IFS(U24=0,"未約定",U24=T24,"約定",U24<T24,"一部約定") -> 未約定 | AD24: =IF(AA24="応札",IF($AB24="未約定",IF(OR($G24=List!$F$2:$F$3), $P24*$T24, $N24*$T24),IF($AB24="一部約定",IF(OR($G24=List!$F$2:$F$3), $P24*($T24-$U24), $N24*($T24-$U24)),"")),"") ->  | AE24: 0
V25: 0 | W25: 0 | Y25: =IF(ISNUMBER(B25), IF(COUNTIF($B$10:$B25, B25)=COUNTIF($B:$B, B25), "1", "0"), "") ->  | Z25: =IF(OR($C25=List!$C$5,$C25=List!$C$6,$C25=List!$C$11,$C25=List!$C$13), 1, 0) -> 0 | AA25: =_xlfn.IFS(T25="","未応札",T25>0,"応札") -> 未応札 | AB25: =_xlfn.IFS(U25=0,"未約定",U25=T25,"約定",U25<T25,"一部約定") -> 未約定 | AD25: =IF(AA25="応札",IF($AB25="未約定",IF(OR($G25=List!$F$2:$F$3), $P25*$T25, $N25*$T25),IF($AB25="一部約定",IF(OR($G25=List!$F$2:$F$3), $P25*($T25-$U25), $N25*($T25-$U25)),"")),"") ->  | AE25: 0
V26: 0 | W26: 0 | Y26: =IF(ISNUMBER(B26), IF(COUNTIF($B$10:$B26, B26)=COUNTIF($B:$B, B26), "1", "0"), "") ->  | Z26: =IF(OR($C26=List!$C$5,$C26=List!$C$6,$C26=List!$C$11,$C26=List!$C$13), 1, 0) -> 0 | AA26: =_xlfn.IFS(T26="","未応札",T26>0,"応札") -> 未応札 | AB26: =_xlfn.IFS(U26=0,"未約定",U26=T26,"約定",U26<T26,"一部約定") -> 未約定 | AD26: =IF(AA26="応札",IF($AB26="未約定",IF(OR($G26=List!$F$2:$F$3), $P26*$T26, $N26*$T26),IF($AB26="一部約定",IF(OR($G26=List!$F$2:$F$3), $P26*($T26-$U26), $N26*($T26-$U26)),"")),"") ->  | AE26: 0
V27: 0 | W27: 0 | Y27: =IF(ISNUMBER(B27), IF(COUNTIF($B$10:$B27, B27)=COUNTIF($B:$B, B27), "1", "0"), "") ->  | Z27: =IF(OR($C27=List!$C$5,$C27=List!$C$6,$C27=List!$C$11,$C27=List!$C$13), 1, 0) -> 0 | AA27: =_xlfn.IFS(T27="","未応札",T27>0,"応札") -> 未応札 | AB27: =_xlfn.IFS(U27=0,"未約定",U27=T27,"約定",U27<T27,"一部約定") -> 未約定 | AD27: =IF(AA27="応札",IF($AB27="未約定",IF(OR($G27=List!$F$2:$F$3), $P27*$T27, $N27*$T27),IF($AB27="一部約定",IF(OR($G27=List!$F$2:$F$3), $P27*($T27-$U27), $N27*($T27-$U27)),"")),"") ->  | AE27: 0
V28: 0 | W28: 0 | Y28: =IF(ISNUMBER(B28), IF(COUNTIF($B$10:$B28, B28)=COUNTIF($B:$B, B28), "1", "0"), "") ->  | Z28: =IF(OR($C28=List!$C$5,$C28=List!$C$6,$C28=List!$C$11,$C28=List!$C$13), 1, 0) -> 0 | AA28: =_xlfn.IFS(T28="","未応札",T28>0,"応札") -> 未応札 | AB28: =_xlfn.IFS(U28=0,"未約定",U28=T28,"約定",U28<T28,"一部約定") -> 未約定 | AD28: =IF(AA28="応札",IF($AB28="未約定",IF(OR($G28=List!$F$2:$F$3), $P28*$T28, $N28*$T28),IF($AB28="一部約定",IF(OR($G28=List!$F$2:$F$3), $P28*($T28-$U28), $N28*($T28-$U28)),"")),"") ->  | AE28: 0
V29: 0 | W29: 0 | Y29: =IF(ISNUMBER(B29), IF(COUNTIF($B$10:$B29, B29)=COUNTIF($B:$B, B29), "1", "0"), "") ->  | Z29: =IF(OR($C29=List!$C$5,$C29=List!$C$6,$C29=List!$C$11,$C29=List!$C$13), 1, 0) -> 0 | AA29: =_xlfn.IFS(T29="","未応札",T29>0,"応札") -> 未応札 | AB29: =_xlfn.IFS(U29=0,"未約定",U29=T29,"約定",U29<T29,"一部約定") -> 未約定 | AD29: =IF(AA29="応札",IF($AB29="未約定",IF(OR($G29=List!$F$2:$F$3), $P29*$T29, $N29*$T29),IF($AB29="一部約定",IF(OR($G29=List!$F$2:$F$3), $P29*($T29-$U29), $N29*($T29-$U29)),"")),"") ->  | AE29: 0
V30: 0 | W30: 0 | Y30: =IF(ISNUMBER(B30), IF(COUNTIF($B$10:$B30, B30)=COUNTIF($B:$B, B30), "1", "0"), "") ->  | Z30: =IF(OR($C30=List!$C$5,$C30=List!$C$6,$C30=List!$C$11,$C30=List!$C$13), 1, 0) -> 0 | AA30: =_xlfn.IFS(T30="","未応札",T30>0,"応札") -> 未応札 | AB30: =_xlfn.IFS(U30=0,"未約定",U30=T30,"約定",U30<T30,"一部約定") -> 未約定 | AD30: =IF(AA30="応札",IF($AB30="未約定",IF(OR($G30=List!$F$2:$F$3), $P30*$T30, $N30*$T30),IF($AB30="一部約定",IF(OR($G30=List!$F$2:$F$3), $P30*($T30-$U30), $N30*($T30-$U30)),"")),"") ->  | AE30: 0
V31: 0 | W31: 0 | Y31: =IF(ISNUMBER(B31), IF(COUNTIF($B$10:$B31, B31)=COUNTIF($B:$B, B31), "1", "0"), "") ->  | Z31: =IF(OR($C31=List!$C$5,$C31=List!$C$6,$C31=List!$C$11,$C31=List!$C$13), 1, 0) -> 0 | AA31: =_xlfn.IFS(T31="","未応札",T31>0,"応札") -> 未応札 | AB31: =_xlfn.IFS(U31=0,"未約定",U31=T31,"約定",U31<T31,"一部約定") -> 未約定 | AD31: =IF(AA31="応札",IF($AB31="未約定",IF(OR($G31=List!$F$2:$F$3), $P31*$T31, $N31*$T31),IF($AB31="一部約定",IF(OR($G31=List!$F$2:$F$3), $P31*($T31-$U31), $N31*($T31-$U31)),"")),"") ->  | AE31: 0
V32: 0 | W32: 0 | Y32: =IF(ISNUMBER(B32), IF(COUNTIF($B$10:$B32, B32)=COUNTIF($B:$B, B32), "1", "0"), "") ->  | Z32: =IF(OR($C32=List!$C$5,$C32=List!$C$6,$C32=List!$C$11,$C32=List!$C$13), 1, 0) -> 0 | AA32: =_xlfn.IFS(T32="","未応札",T32>0,"応札") -> 未応札 | AB32: =_xlfn.IFS(U32=0,"未約定",U32=T32,"約定",U32<T32,"一部約定") -> 未約定 | AD32: =IF(AA32="応札",IF($AB32="未約定",IF(OR($G32=List!$F$2:$F$3), $P32*$T32, $N32*$T32),IF($AB32="一部約定",IF(OR($G32=List!$F$2:$F$3), $P32*($T32-$U32), $N32*($T32-$U32)),"")),"") ->  | AE32: 0
V33: 0 | W33: 0 | Y33: =IF(ISNUMBER(B33), IF(COUNTIF($B$10:$B33, B33)=COUNTIF($B:$B, B33), "1", "0"), "") ->  | Z33: =IF(OR($C33=List!$C$5,$C33=List!$C$6,$C33=List!$C$11,$C33=List!$C$13), 1, 0) -> 0 | AA33: =_xlfn.IFS(T33="","未応札",T33>0,"応札") -> 未応札 | AB33: =_xlfn.IFS(U33=0,"未約定",U33=T33,"約定",U33<T33,"一部約定") -> 未約定 | AD33: =IF(AA33="応札",IF($AB33="未約定",IF(OR($G33=List!$F$2:$F$3), $P33*$T33, $N33*$T33),IF($AB33="一部約定",IF(OR($G33=List!$F$2:$F$3), $P33*($T33-$U33), $N33*($T33-$U33)),"")),"") ->  | AE33: 0
V34: 0 | W34: 0 | Y34: =IF(ISNUMBER(B34), IF(COUNTIF($B$10:$B34, B34)=COUNTIF($B:$B, B34), "1", "0"), "") ->  | Z34: =IF(OR($C34=List!$C$5,$C34=List!$C$6,$C34=List!$C$11,$C34=List!$C$13), 1, 0) -> 0 | AA34: =_xlfn.IFS(T34="","未応札",T34>0,"応札") -> 未応札 | AB34: =_xlfn.IFS(U34=0,"未約定",U34=T34,"約定",U34<T34,"一部約定") -> 未約定 | AD34: =IF(AA34="応札",IF($AB34="未約定",IF(OR($G34=List!$F$2:$F$3), $P34*$T34, $N34*$T34),IF($AB34="一部約定",IF(OR($G34=List!$F$2:$F$3), $P34*($T34-$U34), $N34*($T34-$U34)),"")),"") ->  | AE34: 0
V35: 0 | W35: 0 | Y35: =IF(ISNUMBER(B35), IF(COUNTIF($B$10:$B35, B35)=COUNTIF($B:$B, B35), "1", "0"), "") ->  | Z35: =IF(OR($C35=List!$C$5,$C35=List!$C$6,$C35=List!$C$11,$C35=List!$C$13), 1, 0) -> 0 | AA35: =_xlfn.IFS(T35="","未応札",T35>0,"応札") -> 未応札 | AB35: =_xlfn.IFS(U35=0,"未約定",U35=T35,"約定",U35<T35,"一部約定") -> 未約定 | AD35: =IF(AA35="応札",IF($AB35="未約定",IF(OR($G35=List!$F$2:$F$3), $P35*$T35, $N35*$T35),IF($AB35="一部約定",IF(OR($G35=List!$F$2:$F$3), $P35*($T35-$U35), $N35*($T35-$U35)),"")),"") ->  | AE35: 0
V36: 0 | W36: 0 | Y36: =IF(ISNUMBER(B36), IF(COUNTIF($B$10:$B36, B36)=COUNTIF($B:$B, B36), "1", "0"), "") ->  | Z36: =IF(OR($C36=List!$C$5,$C36=List!$C$6,$C36=List!$C$11,$C36=List!$C$13), 1, 0) -> 0 | AA36: =_xlfn.IFS(T36="","未応札",T36>0,"応札") -> 未応札 | AB36: =_xlfn.IFS(U36=0,"未約定",U36=T36,"約定",U36<T36,"一部約定") -> 未約定 | AD36: =IF(AA36="応札",IF($AB36="未約定",IF(OR($G36=List!$F$2:$F$3), $P36*$T36, $N36*$T36),IF($AB36="一部約定",IF(OR($G36=List!$F$2:$F$3), $P36*($T36-$U36), $N36*($T36-$U36)),"")),"") ->  | AE36: 0
V37: 0 | W37: 0 | Y37: =IF(ISNUMBER(B37), IF(COUNTIF($B$10:$B37, B37)=COUNTIF($B:$B, B37), "1", "0"), "") ->  | Z37: =IF(OR($C37=List!$C$5,$C37=List!$C$6,$C37=List!$C$11,$C37=List!$C$13), 1, 0) -> 0 | AA37: =_xlfn.IFS(T37="","未応札",T37>0,"応札") -> 未応札 | AB37: =_xlfn.IFS(U37=0,"未約定",U37=T37,"約定",U37<T37,"一部約定") -> 未約定 | AD37: =IF(AA37="応札",IF($AB37="未約定",IF(OR($G37=List!$F$2:$F$3), $P37*$T37, $N37*$T37),IF($AB37="一部約定",IF(OR($G37=List!$F$2:$F$3), $P37*($T37-$U37), $N37*($T37-$U37)),"")),"") ->  | AE37: 0
V38: 0 | W38: 0 | Y38: =IF(ISNUMBER(B38), IF(COUNTIF($B$10:$B38, B38)=COUNTIF($B:$B, B38), "1", "0"), "") ->  | Z38: =IF(OR($C38=List!$C$5,$C38=List!$C$6,$C38=List!$C$11,$C38=List!$C$13), 1, 0) -> 0 | AA38: =_xlfn.IFS(T38="","未応札",T38>0,"応札") -> 未応札 | AB38: =_xlfn.IFS(U38=0,"未約定",U38=T38,"約定",U38<T38,"一部約定") -> 未約定 | AD38: =IF(AA38="応札",IF($AB38="未約定",IF(OR($G38=List!$F$2:$F$3), $P38*$T38, $N38*$T38),IF($AB38="一部約定",IF(OR($G38=List!$F$2:$F$3), $P38*($T38-$U38), $N38*($T38-$U38)),"")),"") ->  | AE38: 0
V39: 0 | W39: 0 | Y39: =IF(ISNUMBER(B39), IF(COUNTIF($B$10:$B39, B39)=COUNTIF($B:$B, B39), "1", "0"), "") ->  | Z39: =IF(OR($C39=List!$C$5,$C39=List!$C$6,$C39=List!$C$11,$C39=List!$C$13), 1, 0) -> 0 | AA39: =_xlfn.IFS(T39="","未応札",T39>0,"応札") -> 未応札 | AB39: =_xlfn.IFS(U39=0,"未約定",U39=T39,"約定",U39<T39,"一部約定") -> 未約定 | AD39: =IF(AA39="応札",IF($AB39="未約定",IF(OR($G39=List!$F$2:$F$3), $P39*$T39, $N39*$T39),IF($AB39="一部約定",IF(OR($G39=List!$F$2:$F$3), $P39*($T39-$U39), $N39*($T39-$U39)),"")),"") ->  | AE39: 0
V40: 0 | W40: 0 | Y40: =IF(ISNUMBER(B40), IF(COUNTIF($B$10:$B40, B40)=COUNTIF($B:$B, B40), "1", "0"), "") ->  | Z40: =IF(OR($C40=List!$C$5,$C40=List!$C$6,$C40=List!$C$11,$C40=List!$C$13), 1, 0) -> 0 | AA40: =_xlfn.IFS(T40="","未応札",T40>0,"応札") -> 未応札 | AB40: =_xlfn.IFS(U40=0,"未約定",U40=T40,"約定",U40<T40,"一部約定") -> 未約定 | AD40: =IF(AA40="応札",IF($AB40="未約定",IF(OR($G40=List!$F$2:$F$3), $P40*$T40, $N40*$T40),IF($AB40="一部約定",IF(OR($G40=List!$F$2:$F$3), $P40*($T40-$U40), $N40*($T40-$U40)),"")),"") ->  | AE40: 0

Sheet 記載例_⑤約定間全量不落(余力活用契約で最低出力維持）
B2: 取引年月 | C2: 202504
B3: MMSコード | C3: A000
B4: 対象エリア | C4: 3：東京
B5: ファイル名称 | C5: =$C$2&"_"&$C$3&"_"&LEFT($C$4,1)&"_不約定単価内訳兼起動費事後精算情報様式" -> 202504_A000_3_不約定単価内訳兼起動費事後精算情報様式
B7: =入力シート!B7 -> 事象NO | C7: =入力シート!C7 -> 精算パターン | D7: =入力シート!D7 -> 余力活用契約対象リソース区分 | E7: =入力シート!E7 -> 取引日 | F7: =入力シート!F7 -> 時刻コード | G7: =入力シート!G7 -> 持ち下げ供出機区分 | H7: =入力シート!H7 -> 系統コード | I7: =入力シート!I7 -> 系統コード(差替後) | J7: =入力シート!J7 -> 商品区分 | K7: =入力シート!K7 -> 売り入札ID | L7: =入力シート!L7 -> 約定番号 | M7: =入力シート!M7 -> 約定識別ID | N7: =入力シート!N7 -> MMS起動費単価 | O7: =入力シート!O7 -> 加重平均前のΔkW単価 | P7: =入力シート!P7 -> 加重平均起動費未回収分相当額 | Q7: =入力シート!Q7 -> 最低出力までの発電電力量の機会費用単価 | R7: =入力シート!R7 -> 発電計画 | S7: =入力シート!S7 -> 最低出力 | T7: =入力シート!T7 -> 約定希望ΔkW | U7: =入力シート!U7 -> ΔkW約定量 | V7: =入力シート!V7 -> 最低出力までの発電電力量の機会費用単価×(約定希望ΔkW-ΔkW約定量) | W7: =入力シート!W7 -> 最低出力維持した場合の費用合計 | X7: =入力シート!X7 -> 停止・再起動にかかる費用 | Y7: =入力シート!Y7 -> 事象毎の最終行 | Z7: =入力シート!Z7 -> 妥当性確認 | AA7: =入力シート!AA7 -> 応札状況 | AB7: =入力シート!AB7 -> 約定状況 | AC7: =入力シート!AC7 -> 並解列状態(実績) | AD7: =入力シート!AD7 -> 起動費未回収分相当額 | AE7: =入力シート!AE7 -> 最低出力までの発電電力量の機会費用 | AF7: =入力シート!AF7 -> 停止・再起動にかかる費用 | AI7: =入力シート!AI7 -> 精算対象 申請小計 | AJ7: =入力シート!AJ7 -> 起動費未回収分相当額 | AK7: =入力シート!AK7 -> 最低出力までの発電電力量の機会費用 | AL7: =入力シート!AL7 -> 停止・再起動にかかる費用 | AM7: =入力シート!AM7 -> 合計
N8: （円/kW） | O8: （円/kW） | P8: （円/kW） | Q8: （円/kW） | R8: （kWh） | S8: （kWh） | T8: （kW） | U8: （kW） | V8: （円） | W8: （円） | X8: （円） | AD8: （円） | AE8: （円） | AF8: （円） | AJ8: （円） | AK8: （円） | AL8: （円） | AM8: （円）
B9: =IF(入力シート!B9<>"",入力シート!B9,"") -> ※起動費未回収が発生した事象NOを付定すること ※複合市場商品および三次調整力②商品へ１回分の起動費等を按分計上して入札し，両市場において起動費等の事後精算を申請する場合は，市場ごとに事象NOを分けずに同一の事象NOとして申請を実施すること | C9: =IF(入力シート!C9<>"",入力シート!C9,"") ->  | D9: =IF(入力シート!D9<>"",入力シート!D9,"") -> ※対象の場合は「１」，非対象の場合は「０」を入力 | E9: =IF(入力シート!E9<>"",入力シート!E9,"") ->  | F9: =IF(入力シート!F9<>"",入力シート!F9,"") ->  | G9: =IF(入力シート!G9<>"",入力シート!G9,"") -> ※持ち下げ供出機を加重平均で入札した場合に選択 | H9: =IF(入力シート!H9<>"",入力シート!H9,"") -> ※電源差替がない場合は精算対象となるリソースの系統コードを記載すること ※電源差替後のリソースにより精算する場合は，差替前のリソースの系統コードを記載すること | I9: =IF(入力シート!I9<>"",入力シート!I9,"") -> ※起動費単価分が登録されている電源に電源差替を実施する場合に記載すること | J9: =IF(入力シート!J9<>"",入力シート!J9,"") ->  | K9: =IF(入力シート!K9<>"",入力シート!K9,"") ->  | L9: =IF(入力シート!L9<>"",入力シート!L9,"") -> ※持ち下げ供出機区分が該当する場合，起動供出機の約定番号を記載すること ※同一時刻コードにおいて，複数の約定番号がある場合は，いずれか1つを記載すること | M9: =IF(入力シート!M9<>"",入力シート!M9,"") -> ※持ち下げ供出機区分に該当する場合，起動供出機の約定識別IDを記載すること ※同一時刻コードにおいて，約定番号に紐づく約定識別IDが複数存在する場合は，いずれか1つを記載すること ※電源差し替えを実施した場合，差替え元の約定識別IDを記載すること(持ち下げ供出機区分に該当する場合,起動供出機の初回約定識別IDを記載すること) | N9: =IF(入力シート!N9<>"",入力シート!N9,"") -> ※MMSに登録された起動費単価分を原則用いること ※ 「全量不落」の精算パターンで「最低出力までの発電電力量の機会費用」の事後精算の対象がある場合，様式都合により，属地TSOと事前に確認の上，「MMSに登録された起動費単価分」に当該単価を加算して記載すること | O9: =IF(入力シート!O9<>"",入力シート!O9,"") -> ※持ち下げ供出機区分が該当する場合に記載すること | P9: =IF(入力シート!P9<>"",入力シート!P9,"") -> ※ 持ち下げ供出機区分が該当する場合に記載すること | Q9: =IF(入力シート!Q9<>"",入力シート!Q9,"") -> ※卸電力市場価格（スポット市場価格：実績）と限界費用との差額を用いること ※加重平均で入札し，一部不落となった場合は，情報を記載するリソースのΔkW単価に含めた起動供出機の最低出力までの発電電力量の加重平均機会費用相当額を精算対象とする ※加重平均で入札し，起動供出機または持ち下げ供出機，またはその双方において一部のリソースが全量不落となったブロックに，起動供出機または持ち下げ供出機の情報を記載する場合は，起動供出機または持ち下げ供出機のΔkW単価に含めた起動供出機の最低出力までの発電電力量の加重平均機会費用相当額を精算対象とする。 （ただし，起動供出機が全量不落となった場合は，起動供出機の起動により機会費用が発生した場合に限る。そのため別途TSOからデータ提出を求める場合がある。なお、起動供出機のΔkW単価に含めた起動供出機の最低出力までの発電電力量の加重平均機会費用相当額については様式都合により，属地TSOと事前に確認の上， 「加重平均起動費未回収分相当額（P列）」に加算して記載すること） | R9: =IF(入力シート!R9<>"",入力シート!R9,"") ->  | S9: =IF(入力シート!S9<>"",入力シート!S9,"") ->  | T9: =IF(入力シート!T9<>"",入力シート!T9,"") ->  | U9: =IF(入力シート!U9<>"",入力シート!U9,"") ->  | V9: =IF(入力シート!V9<>"",入力シート!V9,"") -> ※加重平均で入札した場合は，最低出力までの発電電力量の加重平均機会費用相当額×(約定希望ΔkW-ΔkW約定量) | W9: =IF(入力シート!W9<>"",入力シート!W9,"") -> ※精算パターン「約定間全量不落(約定間停止・再起動)」を選択した場合，事象NOごとの最終行に合計値表示 | X9: =IF(入力シート!X9<>"",入力シート!X9,"") -> ※１停止・再起動費は最後のブロックに記載すること ※２ 余力活用契約を締結している電源でBG計画上停止・再起動としていたが、実績は停止しなかった場合も、BG計画上の「停止・再起動費」を記載すること | Y9: =IF(入力シート!Y9<>"",入力シート!Y9,"") ->  | Z9: =IF(入力シート!Z9<>"",入力シート!Z9,"") ->  | AA9: =IF(入力シート!AA9<>"",入力シート!AA9,"") ->  | AB9: =IF(入力シート!AB9<>"",入力シート!AB9,"") ->  | AC9: =IF(入力シート!AC9<>"",入力シート!AC9,"") ->  | AD9: =IF(入力シート!AD9<>"",入力シート!AD9,"") -> ※加重平均で入札した場合は，加重平均起動費未回収分相当額 | AE9: =IF(入力シート!AE9<>"",入力シート!AE9,"") -> ※加重平均で入札した場合は，最低出力までの発電電力量の加重平均機会費用相当額 | AF9: =IF(入力シート!AF9<>"",入力シート!AF9,"") -> ※約定間全量不落時において，停止・再起動するよりも，最低出力維持した方が経済的だった場合，後者を事後精算対象とする | AJ9: =SUM($AD10:$AD2831) -> 640000 | AK9: =SUM($AE10:$AE2831) -> 0 | AL9: =SUM($AF10:$AF2831) -> 400000 | AM9: =ROUNDDOWN(SUM(AJ9:AL9),0) -> 1040000
B10: 1 | C10: 5：約定間全量不落（余力活用契約で最低出力維持） | D10: 1：対象 | E10: 20250401 | F10: 4 | H10: ○C○○○ | J10: 2：三次調整力② | K10: ○○○○○○ | N10: 8 | Q10: 25 | R10: 0 | S10: 0 | T10: 40000 | U10: 0 | V10: =Q10*(T10-U10) -> 1000000 | W10: =IF(X10 > 0, SUMIFS(V:V, B:B, B10, Z:Z, 1), 0) -> 0 | Y10: =IF(ISNUMBER(B10), IF(COUNTIF($B$10:$B10, B10)=COUNTIF($B:$B, B10), "1", "0"), "") -> 0 | Z10: =IF(OR($C10=List!$C$5,$C10=List!$C$6,$C10=List!$C$11,$C10=List!$C$13), 1, 0) -> 1 | AA10: =_xlfn.IFS(T10="","未応札",T10>0,"応札") -> 応札 | AB10: =_xlfn.IFS(U10=0,"未約定",U10=T10,"約定",U10<T10,"一部約定") -> 未約定 | AC10: 1：並列 | AD10: =IF(AA10="応札",IF($AB10="未約定",IF(OR($G10=List!$F$2:$F$3), $P10*$T10, $N10*$T10),IF($AB10="一部約定",IF(OR($G10=List!$F$2:$F$3), $P10*($T10-$U10), $N10*($T10-$U10)),"")),"") -> 320000 | AE10: =IF(ISBLANK($R10),IF(OR($AB10="一部約定",$AB10="未約定"),$Q10*($T10-$U10),""),IF($R10=0,"", IF(OR($AB10="一部約定", $AB10="未約定"), $Q10*($T10-$U10), ""))) ->  | AF10: =IF(AND($AA10="応札",$AB10="未約定"), IF($W10<>0, IF($X10<$W10, IF($X10<>0, $X10, ""), IF($W10<>0, $W10, "")), IF($X10<>0, $X10, "")), "") -> 
B11: 1 | C11: 5：約定間全量不落（余力活用契約で最低出力維持） | D11: 1：対象 | E11: 20250401 | F11: 5 | H11: ○C○○○ | J11: 2：三次調整力② | K11: ○○○○○○ | N11: 8 | Q11: 25 | R11: 0 | S11: 0 | T11: 40000 | U11: 0 | V11: =Q11*(T11-U11) -> 1000000 | W11: =IF(X11 > 0, SUMIFS(V:V, B:B, B11, Z:Z, 1), 0) -> 2000000 | X11: 400000 | Y11: =IF(ISNUMBER(B11), IF(COUNTIF($B$10:$B11, B11)=COUNTIF($B:$B, B11), "1", "0"), "") -> 1 | Z11: =IF(OR($C11=List!$C$5,$C11=List!$C$6,$C11=List!$C$11,$C11=List!$C$13), 1, 0) -> 1 | AA11: =_xlfn.IFS(T11="","未応札",T11>0,"応札") -> 応札 | AB11: =_xlfn.IFS(U11=0,"未約定",U11=T11,"約定",U11<T11,"一部約定") -> 未約定 | AC11: 1：並列 | AD11: =IF(AA11="応札",IF($AB11="未約定",IF(OR($G11=List!$F$2:$F$3), $P11*$T11, $N11*$T11),IF($AB11="一部約定",IF(OR($G11=List!$F$2:$F$3), $P11*($T11-$U11), $N11*($T11-$U11)),"")),"") -> 320000 | AE11: =IF(ISBLANK($R11),IF(OR($AB11="一部約定",$AB11="未約定"),$Q11*($T11-$U11),""),IF($R11=0,"", IF(OR($AB11="一部約定", $AB11="未約定"), $Q11*($T11-$U11), ""))) ->  | AF11: =IF(AND($AA11="応札",$AB11="未約定"), IF($W11<>0, IF($X11<$W11, IF($X11<>0, $X11, ""), IF($W11<>0, $W11, "")), IF($X11<>0, $X11, "")), "") -> 400000
V12: 0 | W12: 0 | Y12: =IF(ISNUMBER(B12), IF(COUNTIF($B$10:$B12, B12)=COUNTIF($B:$B, B12), "1", "0"), "") ->  | Z12: =IF(OR($C12=List!$C$5,$C12=List!$C$6,$C12=List!$C$11,$C12=List!$C$13), 1, 0) -> 0 | AA12: =_xlfn.IFS(T12="","未応札",T12>0,"応札") -> 未応札 | AB12: =_xlfn.IFS(U12=0,"未約定",U12=T12,"約定",U12<T12,"一部約定") -> 未約定 | AD12: =IF(AA12="応札",IF($AB12="未約定",IF(OR($G12=List!$F$2:$F$3), $P12*$T12, $N12*$T12),IF($AB12="一部約定",IF(OR($G12=List!$F$2:$F$3), $P12*($T12-$U12), $N12*($T12-$U12)),"")),"") ->  | AE12: 0
V13: 0 | W13: 0 | Y13: =IF(ISNUMBER(B13), IF(COUNTIF($B$10:$B13, B13)=COUNTIF($B:$B, B13), "1", "0"), "") ->  | Z13: =IF(OR($C13=List!$C$5,$C13=List!$C$6,$C13=List!$C$11,$C13=List!$C$13), 1, 0) -> 0 | AA13: =_xlfn.IFS(T13="","未応札",T13>0,"応札") -> 未応札 | AB13: =_xlfn.IFS(U13=0,"未約定",U13=T13,"約定",U13<T13,"一部約定") -> 未約定 | AD13: =IF(AA13="応札",IF($AB13="未約定",IF(OR($G13=List!$F$2:$F$3), $P13*$T13, $N13*$T13),IF($AB13="一部約定",IF(OR($G13=List!$F$2:$F$3), $P13*($T13-$U13), $N13*($T13-$U13)),"")),"") ->  | AE13: 0
V14: 0 | W14: 0 | Y14: =IF(ISNUMBER(B14), IF(COUNTIF($B$10:$B14, B14)=COUNTIF($B:$B, B14), "1", "0"), "") ->  | Z14: =IF(OR($C14=List!$C$5,$C14=List!$C$6,$C14=List!$C$11,$C14=List!$C$13), 1, 0) -> 0 | AA14: =_xlfn.IFS(T14="","未応札",T14>0,"応札") -> 未応札 | AB14: =_xlfn.IFS(U14=0,"未約定",U14=T14,"約定",U14<T14,"一部約定") -> 未約定 | AD14: =IF(AA14="応札",IF($AB14="未約定",IF(OR($G14=List!$F$2:$F$3), $P14*$T14, $N14*$T14),IF($AB14="一部約定",IF(OR($G14=List!$F$2:$F$3), $P14*($T14-$U14), $N14*($T14-$U14)),"")),"") ->  | AE14: 0
V15: 0 | W15: 0 | Y15: =IF(ISNUMBER(B15), IF(COUNTIF($B$10:$B15, B15)=COUNTIF($B:$B, B15), "1", "0"), "") ->  | Z15: =IF(OR($C15=List!$C$5,$C15=List!$C$6,$C15=List!$C$11,$C15=List!$C$13), 1, 0) -> 0 | AA15: =_xlfn.IFS(T15="","未応札",T15>0,"応札") -> 未応札 | AB15: =_xlfn.IFS(U15=0,"未約定",U15=T15,"約定",U15<T15,"一部約定") -> 未約定 | AD15: =IF(AA15="応札",IF($AB15="未約定",IF(OR($G15=List!$F$2:$F$3), $P15*$T15, $N15*$T15),IF($AB15="一部約定",IF(OR($G15=List!$F$2:$F$3), $P15*($T15-$U15), $N15*($T15-$U15)),"")),"") ->  | AE15: 0
V16: 0 | W16: 0 | Y16: =IF(ISNUMBER(B16), IF(COUNTIF($B$10:$B16, B16)=COUNTIF($B:$B, B16), "1", "0"), "") ->  | Z16: =IF(OR($C16=List!$C$5,$C16=List!$C$6,$C16=List!$C$11,$C16=List!$C$13), 1, 0) -> 0 | AA16: =_xlfn.IFS(T16="","未応札",T16>0,"応札") -> 未応札 | AB16: =_xlfn.IFS(U16=0,"未約定",U16=T16,"約定",U16<T16,"一部約定") -> 未約定 | AD16: =IF(AA16="応札",IF($AB16="未約定",IF(OR($G16=List!$F$2:$F$3), $P16*$T16, $N16*$T16),IF($AB16="一部約定",IF(OR($G16=List!$F$2:$F$3), $P16*($T16-$U16), $N16*($T16-$U16)),"")),"") ->  | AE16: 0
V17: 0 | W17: 0 | Y17: =IF(ISNUMBER(B17), IF(COUNTIF($B$10:$B17, B17)=COUNTIF($B:$B, B17), "1", "0"), "") ->  | Z17: =IF(OR($C17=List!$C$5,$C17=List!$C$6,$C17=List!$C$11,$C17=List!$C$13), 1, 0) -> 0 | AA17: =_xlfn.IFS(T17="","未応札",T17>0,"応札") -> 未応札 | AB17: =_xlfn.IFS(U17=0,"未約定",U17=T17,"約定",U17<T17,"一部約定") -> 未約定 | AD17: =IF(AA17="応札",IF($AB17="未約定",IF(OR($G17=List!$F$2:$F$3), $P17*$T17, $N17*$T17),IF($AB17="一部約定",IF(OR($G17=List!$F$2:$F$3), $P17*($T17-$U17), $N17*($T17-$U17)),"")),"") ->  | AE17: 0
V18: 0 | W18: 0 | Y18: =IF(ISNUMBER(B18), IF(COUNTIF($B$10:$B18, B18)=COUNTIF($B:$B, B18), "1", "0"), "") ->  | Z18: =IF(OR($C18=List!$C$5,$C18=List!$C$6,$C18=List!$C$11,$C18=List!$C$13), 1, 0) -> 0 | AA18: =_xlfn.IFS(T18="","未応札",T18>0,"応札") -> 未応札 | AB18: =_xlfn.IFS(U18=0,"未約定",U18=T18,"約定",U18<T18,"一部約定") -> 未約定 | AD18: =IF(AA18="応札",IF($AB18="未約定",IF(OR($G18=List!$F$2:$F$3), $P18*$T18, $N18*$T18),IF($AB18="一部約定",IF(OR($G18=List!$F$2:$F$3), $P18*($T18-$U18), $N18*($T18-$U18)),"")),"") ->  | AE18: 0
V19: 0 | W19: 0 | Y19: =IF(ISNUMBER(B19), IF(COUNTIF($B$10:$B19, B19)=COUNTIF($B:$B, B19), "1", "0"), "") ->  | Z19: =IF(OR($C19=List!$C$5,$C19=List!$C$6,$C19=List!$C$11,$C19=List!$C$13), 1, 0) -> 0 | AA19: =_xlfn.IFS(T19="","未応札",T19>0,"応札") -> 未応札 | AB19: =_xlfn.IFS(U19=0,"未約定",U19=T19,"約定",U19<T19,"一部約定") -> 未約定 | AD19: =IF(AA19="応札",IF($AB19="未約定",IF(OR($G19=List!$F$2:$F$3), $P19*$T19, $N19*$T19),IF($AB19="一部約定",IF(OR($G19=List!$F$2:$F$3), $P19*($T19-$U19), $N19*($T19-$U19)),"")),"") ->  | AE19: 0
V20: 0 | W20: 0 | Y20: =IF(ISNUMBER(B20), IF(COUNTIF($B$10:$B20, B20)=COUNTIF($B:$B, B20), "1", "0"), "") ->  | Z20: =IF(OR($C20=List!$C$5,$C20=List!$C$6,$C20=List!$C$11,$C20=List!$C$13), 1, 0) -> 0 | AA20: =_xlfn.IFS(T20="","未応札",T20>0,"応札") -> 未応札 | AB20: =_xlfn.IFS(U20=0,"未約定",U20=T20,"約定",U20<T20,"一部約定") -> 未約定 | AD20: =IF(AA20="応札",IF($AB20="未約定",IF(OR($G20=List!$F$2:$F$3), $P20*$T20, $N20*$T20),IF($AB20="一部約定",IF(OR($G20=List!$F$2:$F$3), $P20*($T20-$U20), $N20*($T20-$U20)),"")),"") ->  | AE20: 0
V21: 0 | W21: 0 | Y21: =IF(ISNUMBER(B21), IF(COUNTIF($B$10:$B21, B21)=COUNTIF($B:$B, B21), "1", "0"), "") ->  | Z21: =IF(OR($C21=List!$C$5,$C21=List!$C$6,$C21=List!$C$11,$C21=List!$C$13), 1, 0) -> 0 | AA21: =_xlfn.IFS(T21="","未応札",T21>0,"応札") -> 未応札 | AB21: =_xlfn.IFS(U21=0,"未約定",U21=T21,"約定",U21<T21,"一部約定") -> 未約定 | AD21: =IF(AA21="応札",IF($AB21="未約定",IF(OR($G21=List!$F$2:$F$3), $P21*$T21, $N21*$T21),IF($AB21="一部約定",IF(OR($G21=List!$F$2:$F$3), $P21*($T21-$U21), $N21*($T21-$U21)),"")),"") ->  | AE21: 0
V22: 0 | W22: 0 | Y22: =IF(ISNUMBER(B22), IF(COUNTIF($B$10:$B22, B22)=COUNTIF($B:$B, B22), "1", "0"), "") ->  | Z22: =IF(OR($C22=List!$C$5,$C22=List!$C$6,$C22=List!$C$11,$C22=List!$C$13), 1, 0) -> 0 | AA22: =_xlfn.IFS(T22="","未応札",T22>0,"応札") -> 未応札 | AB22: =_xlfn.IFS(U22=0,"未約定",U22=T22,"約定",U22<T22,"一部約定") -> 未約定 | AD22: =IF(AA22="応札",IF($AB22="未約定",IF(OR($G22=List!$F$2:$F$3), $P22*$T22, $N22*$T22),IF($AB22="一部約定",IF(OR($G22=List!$F$2:$F$3), $P22*($T22-$U22), $N22*($T22-$U22)),"")),"") ->  | AE22: 0
V23: 0 | W23: 0 | Y23: =IF(ISNUMBER(B23), IF(COUNTIF($B$10:$B23, B23)=COUNTIF($B:$B, B23), "1", "0"), "") ->  | Z23: =IF(OR($C23=List!$C$5,$C23=List!$C$6,$C23=List!$C$11,$C23=List!$C$13), 1, 0) -> 0 | AA23: =_xlfn.IFS(T23="","未応札",T23>0,"応札") -> 未応札 | AB23: =_xlfn.IFS(U23=0,"未約定",U23=T23,"約定",U23<T23,"一部約定") -> 未約定 | AD23: =IF(AA23="応札",IF($AB23="未約定",IF(OR($G23=List!$F$2:$F$3), $P23*$T23, $N23*$T23),IF($AB23="一部約定",IF(OR($G23=List!$F$2:$F$3), $P23*($T23-$U23), $N23*($T23-$U23)),"")),"") ->  | AE23: 0
V24: 0 | W24: 0 | Y24: =IF(ISNUMBER(B24), IF(COUNTIF($B$10:$B24, B24)=COUNTIF($B:$B, B24), "1", "0"), "") ->  | Z24: =IF(OR($C24=List!$C$5,$C24=List!$C$6,$C24=List!$C$11,$C24=List!$C$13), 1, 0) -> 0 | AA24: =_xlfn.IFS(T24="","未応札",T24>0,"応札") -> 未応札 | AB24: =_xlfn.IFS(U24=0,"未約定",U24=T24,"約定",U24<T24,"一部約定") -> 未約定 | AD24: =IF(AA24="応札",IF($AB24="未約定",IF(OR($G24=List!$F$2:$F$3), $P24*$T24, $N24*$T24),IF($AB24="一部約定",IF(OR($G24=List!$F$2:$F$3), $P24*($T24-$U24), $N24*($T24-$U24)),"")),"") ->  | AE24: 0
V25: 0 | W25: 0 | Y25: =IF(ISNUMBER(B25), IF(COUNTIF($B$10:$B25, B25)=COUNTIF($B:$B, B25), "1", "0"), "") ->  | Z25: =IF(OR($C25=List!$C$5,$C25=List!$C$6,$C25=List!$C$11,$C25=List!$C$13), 1, 0) -> 0 | AA25: =_xlfn.IFS(T25="","未応札",T25>0,"応札") -> 未応札 | AB25: =_xlfn.IFS(U25=0,"未約定",U25=T25,"約定",U25<T25,"一部約定") -> 未約定 | AD25: =IF(AA25="応札",IF($AB25="未約定",IF(OR($G25=List!$F$2:$F$3), $P25*$T25, $N25*$T25),IF($AB25="一部約定",IF(OR($G25=List!$F$2:$F$3), $P25*($T25-$U25), $N25*($T25-$U25)),"")),"") ->  | AE25: 0
V26: 0 | W26: 0 | Y26: =IF(ISNUMBER(B26), IF(COUNTIF($B$10:$B26, B26)=COUNTIF($B:$B, B26), "1", "0"), "") ->  | Z26: =IF(OR($C26=List!$C$5,$C26=List!$C$6,$C26=List!$C$11,$C26=List!$C$13), 1, 0) -> 0 | AA26: =_xlfn.IFS(T26="","未応札",T26>0,"応札") -> 未応札 | AB26: =_xlfn.IFS(U26=0,"未約定",U26=T26,"約定",U26<T26,"一部約定") -> 未約定 | AD26: =IF(AA26="応札",IF($AB26="未約定",IF(OR($G26=List!$F$2:$F$3), $P26*$T26, $N26*$T26),IF($AB26="一部約定",IF(OR($G26=List!$F$2:$F$3), $P26*($T26-$U26), $N26*($T26-$U26)),"")),"") ->  | AE26: 0
V27: 0 | W27: 0 | Y27: =IF(ISNUMBER(B27), IF(COUNTIF($B$10:$B27, B27)=COUNTIF($B:$B, B27), "1", "0"), "") ->  | Z27: =IF(OR($C27=List!$C$5,$C27=List!$C$6,$C27=List!$C$11,$C27=List!$C$13), 1, 0) -> 0 | AA27: =_xlfn.IFS(T27="","未応札",T27>0,"応札") -> 未応札 | AB27: =_xlfn.IFS(U27=0,"未約定",U27=T27,"約定",U27<T27,"一部約定") -> 未約定 | AD27: =IF(AA27="応札",IF($AB27="未約定",IF(OR($G27=List!$F$2:$F$3), $P27*$T27, $N27*$T27),IF($AB27="一部約定",IF(OR($G27=List!$F$2:$F$3), $P27*($T27-$U27), $N27*($T27-$U27)),"")),"") ->  | AE27: 0
V28: 0 | W28: 0 | Y28: =IF(ISNUMBER(B28), IF(COUNTIF($B$10:$B28, B28)=COUNTIF($B:$B, B28), "1", "0"), "") ->  | Z28: =IF(OR($C28=List!$C$5,$C28=List!$C$6,$C28=List!$C$11,$C28=List!$C$13), 1, 0) -> 0 | AA28: =_xlfn.IFS(T28="","未応札",T28>0,"応札") -> 未応札 | AB28: =_xlfn.IFS(U28=0,"未約定",U28=T28,"約定",U28<T28,"一部約定") -> 未約定 | AD28: =IF(AA28="応札",IF($AB28="未約定",IF(OR($G28=List!$F$2:$F$3), $P28*$T28, $N28*$T28),IF($AB28="一部約定",IF(OR($G28=List!$F$2:$F$3), $P28*($T28-$U28), $N28*($T28-$U28)),"")),"") ->  | AE28: 0
V29: 0 | W29: 0 | Y29: =IF(ISNUMBER(B29), IF(COUNTIF($B$10:$B29, B29)=COUNTIF($B:$B, B29), "1", "0"), "") ->  | Z29: =IF(OR($C29=List!$C$5,$C29=List!$C$6,$C29=List!$C$11,$C29=List!$C$13), 1, 0) -> 0 | AA29: =_xlfn.IFS(T29="","未応札",T29>0,"応札") -> 未応札 | AB29: =_xlfn.IFS(U29=0,"未約定",U29=T29,"約定",U29<T29,"一部約定") -> 未約定 | AD29: =IF(AA29="応札",IF($AB29="未約定",IF(OR($G29=List!$F$2:$F$3), $P29*$T29, $N29*$T29),IF($AB29="一部約定",IF(OR($G29=List!$F$2:$F$3), $P29*($T29-$U29), $N29*($T29-$U29)),"")),"") ->  | AE29: 0
V30: 0 | W30: 0 | Y30: =IF(ISNUMBER(B30), IF(COUNTIF($B$10:$B30, B30)=COUNTIF($B:$B, B30), "1", "0"), "") ->  | Z30: =IF(OR($C30=List!$C$5,$C30=List!$C$6,$C30=List!$C$11,$C30=List!$C$13), 1, 0) -> 0 | AA30: =_xlfn.IFS(T30="","未応札",T30>0,"応札") -> 未応札 | AB30: =_xlfn.IFS(U30=0,"未約定",U30=T30,"約定",U30<T30,"一部約定") -> 未約定 | AD30: =IF(AA30="応札",IF($AB30="未約定",IF(OR($G30=List!$F$2:$F$3), $P30*$T30, $N30*$T30),IF($AB30="一部約定",IF(OR($G30=List!$F$2:$F$3), $P30*($T30-$U30), $N30*($T30-$U30)),"")),"") ->  | AE30: 0
V31: 0 | W31: 0 | Y31: =IF(ISNUMBER(B31), IF(COUNTIF($B$10:$B31, B31)=COUNTIF($B:$B, B31), "1", "0"), "") ->  | Z31: =IF(OR($C31=List!$C$5,$C31=List!$C$6,$C31=List!$C$11,$C31=List!$C$13), 1, 0) -> 0 | AA31: =_xlfn.IFS(T31="","未応札",T31>0,"応札") -> 未応札 | AB31: =_xlfn.IFS(U31=0,"未約定",U31=T31,"約定",U31<T31,"一部約定") -> 未約定 | AD31: =IF(AA31="応札",IF($AB31="未約定",IF(OR($G31=List!$F$2:$F$3), $P31*$T31, $N31*$T31),IF($AB31="一部約定",IF(OR($G31=List!$F$2:$F$3), $P31*($T31-$U31), $N31*($T31-$U31)),"")),"") ->  | AE31: 0
V32: 0 | W32: 0 | Y32: =IF(ISNUMBER(B32), IF(COUNTIF($B$10:$B32, B32)=COUNTIF($B:$B, B32), "1", "0"), "") ->  | Z32: =IF(OR($C32=List!$C$5,$C32=List!$C$6,$C32=List!$C$11,$C32=List!$C$13), 1, 0) -> 0 | AA32: =_xlfn.IFS(T32="","未応札",T32>0,"応札") -> 未応札 | AB32: =_xlfn.IFS(U32=0,"未約定",U32=T32,"約定",U32<T32,"一部約定") -> 未約定 | AD32: =IF(AA32="応札",IF($AB32="未約定",IF(OR($G32=List!$F$2:$F$3), $P32*$T32, $N32*$T32),IF($AB32="一部約定",IF(OR($G32=List!$F$2:$F$3), $P32*($T32-$U32), $N32*($T32-$U32)),"")),"") ->  | AE32: 0
V33: 0 | W33: 0 | Y33: =IF(ISNUMBER(B33), IF(COUNTIF($B$10:$B33, B33)=COUNTIF($B:$B, B33), "1", "0"), "") ->  | Z33: =IF(OR($C33=List!$C$5,$C33=List!$C$6,$C33=List!$C$11,$C33=List!$C$13), 1, 0) -> 0 | AA33: =_xlfn.IFS(T33="","未応札",T33>0,"応札") -> 未応札 | AB33: =_xlfn.IFS(U33=0,"未約定",U33=T33,"約定",U33<T33,"一部約定") -> 未約定 | AD33: =IF(AA33="応札",IF($AB33="未約定",IF(OR($G33=List!$F$2:$F$3), $P33*$T33, $N33*$T33),IF($AB33="一部約定",IF(OR($G33=List!$F$2:$F$3), $P33*($T33-$U33), $N33*($T33-$U33)),"")),"") ->  | AE33: 0
V34: 0 | W34: 0 | Y34: =IF(ISNUMBER(B34), IF(COUNTIF($B$10:$B34, B34)=COUNTIF($B:$B, B34), "1", "0"), "") ->  | Z34: =IF(OR($C34=List!$C$5,$C34=List!$C$6,$C34=List!$C$11,$C34=List!$C$13), 1, 0) -> 0 | AA34: =_xlfn.IFS(T34="","未応札",T34>0,"応札") -> 未応札 | AB34: =_xlfn.IFS(U34=0,"未約定",U34=T34,"約定",U34<T34,"一部約定") -> 未約定 | AD34: =IF(AA34="応札",IF($AB34="未約定",IF(OR($G34=List!$F$2:$F$3), $P34*$T34, $N34*$T34),IF($AB34="一部約定",IF(OR($G34=List!$F$2:$F$3), $P34*($T34-$U34), $N34*($T34-$U34)),"")),"") ->  | AE34: 0
V35: 0 | W35: 0 | Y35: =IF(ISNUMBER(B35), IF(COUNTIF($B$10:$B35, B35)=COUNTIF($B:$B, B35), "1", "0"), "") ->  | Z35: =IF(OR($C35=List!$C$5,$C35=List!$C$6,$C35=List!$C$11,$C35=List!$C$13), 1, 0) -> 0 | AA35: =_xlfn.IFS(T35="","未応札",T35>0,"応札") -> 未応札 | AB35: =_xlfn.IFS(U35=0,"未約定",U35=T35,"約定",U35<T35,"一部約定") -> 未約定 | AD35: =IF(AA35="応札",IF($AB35="未約定",IF(OR($G35=List!$F$2:$F$3), $P35*$T35, $N35*$T35),IF($AB35="一部約定",IF(OR($G35=List!$F$2:$F$3), $P35*($T35-$U35), $N35*($T35-$U35)),"")),"") ->  | AE35: 0
V36: 0 | W36: 0 | Y36: =IF(ISNUMBER(B36), IF(COUNTIF($B$10:$B36, B36)=COUNTIF($B:$B, B36), "1", "0"), "") ->  | Z36: =IF(OR($C36=List!$C$5,$C36=List!$C$6,$C36=List!$C$11,$C36=List!$C$13), 1, 0) -> 0 | AA36: =_xlfn.IFS(T36="","未応札",T36>0,"応札") -> 未応札 | AB36: =_xlfn.IFS(U36=0,"未約定",U36=T36,"約定",U36<T36,"一部約定") -> 未約定 | AD36: =IF(AA36="応札",IF($AB36="未約定",IF(OR($G36=List!$F$2:$F$3), $P36*$T36, $N36*$T36),IF($AB36="一部約定",IF(OR($G36=List!$F$2:$F$3), $P36*($T36-$U36), $N36*($T36-$U36)),"")),"") ->  | AE36: 0
V37: 0 | W37: 0 | Y37: =IF(ISNUMBER(B37), IF(COUNTIF($B$10:$B37, B37)=COUNTIF($B:$B, B37), "1", "0"), "") ->  | Z37: =IF(OR($C37=List!$C$5,$C37=List!$C$6,$C37=List!$C$11,$C37=List!$C$13), 1, 0) -> 0 | AA37: =_xlfn.IFS(T37="","未応札",T37>0,"応札") -> 未応札 | AB37: =_xlfn.IFS(U37=0,"未約定",U37=T37,"約定",U37<T37,"一部約定") -> 未約定 | AD37: =IF(AA37="応札",IF($AB37="未約定",IF(OR($G37=List!$F$2:$F$3), $P37*$T37, $N37*$T37),IF($AB37="一部約定",IF(OR($G37=List!$F$2:$F$3), $P37*($T37-$U37), $N37*($T37-$U37)),"")),"") ->  | AE37: 0
V38: 0 | W38: 0 | Y38: =IF(ISNUMBER(B38), IF(COUNTIF($B$10:$B38, B38)=COUNTIF($B:$B, B38), "1", "0"), "") ->  | Z38: =IF(OR($C38=List!$C$5,$C38=List!$C$6,$C38=List!$C$11,$C38=List!$C$13), 1, 0) -> 0 | AA38: =_xlfn.IFS(T38="","未応札",T38>0,"応札") -> 未応札 | AB38: =_xlfn.IFS(U38=0,"未約定",U38=T38,"約定",U38<T38,"一部約定") -> 未約定 | AD38: =IF(AA38="応札",IF($AB38="未約定",IF(OR($G38=List!$F$2:$F$3), $P38*$T38, $N38*$T38),IF($AB38="一部約定",IF(OR($G38=List!$F$2:$F$3), $P38*($T38-$U38), $N38*($T38-$U38)),"")),"") ->  | AE38: 0
V39: 0 | W39: 0 | Y39: =IF(ISNUMBER(B39), IF(COUNTIF($B$10:$B39, B39)=COUNTIF($B:$B, B39), "1", "0"), "") ->  | Z39: =IF(OR($C39=List!$C$5,$C39=List!$C$6,$C39=List!$C$11,$C39=List!$C$13), 1, 0) -> 0 | AA39: =_xlfn.IFS(T39="","未応札",T39>0,"応札") -> 未応札 | AB39: =_xlfn.IFS(U39=0,"未約定",U39=T39,"約定",U39<T39,"一部約定") -> 未約定 | AD39: =IF(AA39="応札",IF($AB39="未約定",IF(OR($G39=List!$F$2:$F$3), $P39*$T39, $N39*$T39),IF($AB39="一部約定",IF(OR($G39=List!$F$2:$F$3), $P39*($T39-$U39), $N39*($T39-$U39)),"")),"") ->  | AE39: 0
V40: 0 | W40: 0 | Y40: =IF(ISNUMBER(B40), IF(COUNTIF($B$10:$B40, B40)=COUNTIF($B:$B, B40), "1", "0"), "") ->  | Z40: =IF(OR($C40=List!$C$5,$C40=List!$C$6,$C40=List!$C$11,$C40=List!$C$13), 1, 0) -> 0 | AA40: =_xlfn.IFS(T40="","未応札",T40>0,"応札") -> 未応札 | AB40: =_xlfn.IFS(U40=0,"未約定",U40=T40,"約定",U40<T40,"一部約定") -> 未約定 | AD40: =IF(AA40="応札",IF($AB40="未約定",IF(OR($G40=List!$F$2:$F$3), $P40*$T40, $N40*$T40),IF($AB40="一部約定",IF(OR($G40=List!$F$2:$F$3), $P40*($T40-$U40), $N40*($T40-$U40)),"")),"") ->  | AE40: 0
V41: 0 | W41: 0 | Y41: =IF(ISNUMBER(B41), IF(COUNTIF($B$10:$B41, B41)=COUNTIF($B:$B, B41), "1", "0"), "") ->  | Z41: =IF(OR($C41=List!$C$5,$C41=List!$C$6,$C41=List!$C$11,$C41=List!$C$13), 1, 0) -> 0 | AA41: =_xlfn.IFS(T41="","未応札",T41>0,"応札") -> 未応札 | AB41: =_xlfn.IFS(U41=0,"未約定",U41=T41,"約定",U41<T41,"一部約定") -> 未約定 | AD41: =IF(AA41="応札",IF($AB41="未約定",IF(OR($G41=List!$F$2:$F$3), $P41*$T41, $N41*$T41),IF($AB41="一部約定",IF(OR($G41=List!$F$2:$F$3), $P41*($T41-$U41), $N41*($T41-$U41)),"")),"") ->  | AE41: 0
V42: 0 | W42: 0 | Y42: =IF(ISNUMBER(B42), IF(COUNTIF($B$10:$B42, B42)=COUNTIF($B:$B, B42), "1", "0"), "") ->  | Z42: =IF(OR($C42=List!$C$5,$C42=List!$C$6,$C42=List!$C$11,$C42=List!$C$13), 1, 0) -> 0 | AA42: =_xlfn.IFS(T42="","未応札",T42>0,"応札") -> 未応札 | AB42: =_xlfn.IFS(U42=0,"未約定",U42=T42,"約定",U42<T42,"一部約定") -> 未約定 | AD42: =IF(AA42="応札",IF($AB42="未約定",IF(OR($G42=List!$F$2:$F$3), $P42*$T42, $N42*$T42),IF($AB42="一部約定",IF(OR($G42=List!$F$2:$F$3), $P42*($T42-$U42), $N42*($T42-$U42)),"")),"") ->  | AE42: 0
V43: 0 | W43: 0 | Y43: =IF(ISNUMBER(B43), IF(COUNTIF($B$10:$B43, B43)=COUNTIF($B:$B, B43), "1", "0"), "") ->  | Z43: =IF(OR($C43=List!$C$5,$C43=List!$C$6,$C43=List!$C$11,$C43=List!$C$13), 1, 0) -> 0 | AA43: =_xlfn.IFS(T43="","未応札",T43>0,"応札") -> 未応札 | AB43: =_xlfn.IFS(U43=0,"未約定",U43=T43,"約定",U43<T43,"一部約定") -> 未約定 | AD43: =IF(AA43="応札",IF($AB43="未約定",IF(OR($G43=List!$F$2:$F$3), $P43*$T43, $N43*$T43),IF($AB43="一部約定",IF(OR($G43=List!$F$2:$F$3), $P43*($T43-$U43), $N43*($T43-$U43)),"")),"") ->  | AE43: =IF(ISBLANK($R43),IF(OR($AB43="一部約定",$AB43="未約定"),$Q43*($T43-$U43),""),IF($R43=0,"", IF(OR($AB43="一部約定", $AB43="未約定"), $Q43*($T43-$U43), ""))) -> 0
V44: 0 | W44: 0 | Y44: =IF(ISNUMBER(B44), IF(COUNTIF($B$10:$B44, B44)=COUNTIF($B:$B, B44), "1", "0"), "") ->  | Z44: =IF(OR($C44=List!$C$5,$C44=List!$C$6,$C44=List!$C$11,$C44=List!$C$13), 1, 0) -> 0 | AA44: =_xlfn.IFS(T44="","未応札",T44>0,"応札") -> 未応札 | AB44: =_xlfn.IFS(U44=0,"未約定",U44=T44,"約定",U44<T44,"一部約定") -> 未約定 | AD44: =IF(AA44="応札",IF($AB44="未約定",IF(OR($G44=List!$F$2:$F$3), $P44*$T44, $N44*$T44),IF($AB44="一部約定",IF(OR($G44=List!$F$2:$F$3), $P44*($T44-$U44), $N44*($T44-$U44)),"")),"") ->  | AE44: =IF(ISBLANK($R44),IF(OR($AB44="一部約定",$AB44="未約定"),$Q44*($T44-$U44),""),IF($R44=0,"", IF(OR($AB44="一部約定", $AB44="未約定"), $Q44*($T44-$U44), ""))) -> 0
V45: 0 | W45: 0 | Y45: =IF(ISNUMBER(B45), IF(COUNTIF($B$10:$B45, B45)=COUNTIF($B:$B, B45), "1", "0"), "") ->  | Z45: =IF(OR($C45=List!$C$5,$C45=List!$C$6,$C45=List!$C$11,$C45=List!$C$13), 1, 0) -> 0 | AA45: =_xlfn.IFS(T45="","未応札",T45>0,"応札") -> 未応札 | AB45: =_xlfn.IFS(U45=0,"未約定",U45=T45,"約定",U45<T45,"一部約定") -> 未約定 | AD45: =IF(AA45="応札",IF($AB45="未約定",IF(OR($G45=List!$F$2:$F$3), $P45*$T45, $N45*$T45),IF($AB45="一部約定",IF(OR($G45=List!$F$2:$F$3), $P45*($T45-$U45), $N45*($T45-$U45)),"")),"") ->  | AE45: 0

Sheet 記載例_パターン⑥約定間全量不落(余力活用契約で停止・再起動）
B2: 取引年月 | C2: 202504
B3: MMSコード | C3: A000
B4: 対象エリア | C4: 3：東京
B5: ファイル名称 | C5: =$C$2&"_"&$C$3&"_"&LEFT($C$4,1)&"_不約定単価内訳兼起動費事後精算情報様式" -> 202504_A000_3_不約定単価内訳兼起動費事後精算情報様式
B7: =入力シート!B7 -> 事象NO | C7: =入力シート!C7 -> 精算パターン | D7: =入力シート!D7 -> 余力活用契約対象リソース区分 | E7: =入力シート!E7 -> 取引日 | F7: =入力シート!F7 -> 時刻コード | G7: =入力シート!G7 -> 持ち下げ供出機区分 | H7: =入力シート!H7 -> 系統コード | I7: =入力シート!I7 -> 系統コード(差替後) | J7: =入力シート!J7 -> 商品区分 | K7: =入力シート!K7 -> 売り入札ID | L7: =入力シート!L7 -> 約定番号 | M7: =入力シート!M7 -> 約定識別ID | N7: =入力シート!N7 -> MMS起動費単価 | O7: =入力シート!O7 -> 加重平均前のΔkW単価 | P7: =入力シート!P7 -> 加重平均起動費未回収分相当額 | Q7: =入力シート!Q7 -> 最低出力までの発電電力量の機会費用単価 | R7: =入力シート!R7 -> 発電計画 | S7: =入力シート!S7 -> 最低出力 | T7: =入力シート!T7 -> 約定希望ΔkW | U7: =入力シート!U7 -> ΔkW約定量 | V7: =入力シート!V7 -> 最低出力までの発電電力量の機会費用単価×(約定希望ΔkW-ΔkW約定量) | W7: =入力シート!W7 -> 最低出力維持した場合の費用合計 | X7: =入力シート!X7 -> 停止・再起動にかかる費用 | Y7: =入力シート!Y7 -> 事象毎の最終行 | Z7: =入力シート!Z7 -> 妥当性確認 | AA7: =入力シート!AA7 -> 応札状況 | AB7: =入力シート!AB7 -> 約定状況 | AC7: =入力シート!AC7 -> 並解列状態(実績) | AD7: =入力シート!AD7 -> 起動費未回収分相当額 | AE7: =入力シート!AE7 -> 最低出力までの発電電力量の機会費用 | AF7: =入力シート!AF7 -> 停止・再起動にかかる費用 | AI7: =入力シート!AI7 -> 精算対象 申請小計 | AJ7: =入力シート!AJ7 -> 起動費未回収分相当額 | AK7: =入力シート!AK7 -> 最低出力までの発電電力量の機会費用 | AL7: =入力シート!AL7 -> 停止・再起動にかかる費用 | AM7: =入力シート!AM7 -> 合計
N8: （円/kW） | O8: （円/kW） | P8: （円/kW） | Q8: （円/kW） | R8: （kWh） | S8: （kWh） | T8: （kW） | U8: （kW） | V8: （円） | W8: （円） | X8: （円） | AD8: （円） | AE8: （円） | AF8: （円） | AJ8: （円） | AK8: （円） | AL8: （円） | AM8: （円）
B9: =IF(入力シート!B9<>"",入力シート!B9,"") -> ※起動費未回収が発生した事象NOを付定すること ※複合市場商品および三次調整力②商品へ１回分の起動費等を按分計上して入札し，両市場において起動費等の事後精算を申請する場合は，市場ごとに事象NOを分けずに同一の事象NOとして申請を実施すること | C9: =IF(入力シート!C9<>"",入力シート!C9,"") ->  | D9: =IF(入力シート!D9<>"",入力シート!D9,"") -> ※対象の場合は「１」，非対象の場合は「０」を入力 | E9: =IF(入力シート!E9<>"",入力シート!E9,"") ->  | F9: =IF(入力シート!F9<>"",入力シート!F9,"") ->  | G9: =IF(入力シート!G9<>"",入力シート!G9,"") -> ※持ち下げ供出機を加重平均で入札した場合に選択 | H9: =IF(入力シート!H9<>"",入力シート!H9,"") -> ※電源差替がない場合は精算対象となるリソースの系統コードを記載すること ※電源差替後のリソースにより精算する場合は，差替前のリソースの系統コードを記載すること | I9: =IF(入力シート!I9<>"",入力シート!I9,"") -> ※起動費単価分が登録されている電源に電源差替を実施する場合に記載すること | J9: =IF(入力シート!J9<>"",入力シート!J9,"") ->  | K9: =IF(入力シート!K9<>"",入力シート!K9,"") ->  | L9: =IF(入力シート!L9<>"",入力シート!L9,"") -> ※持ち下げ供出機区分が該当する場合，起動供出機の約定番号を記載すること ※同一時刻コードにおいて，複数の約定番号がある場合は，いずれか1つを記載すること | M9: =IF(入力シート!M9<>"",入力シート!M9,"") -> ※持ち下げ供出機区分に該当する場合，起動供出機の約定識別IDを記載すること ※同一時刻コードにおいて，約定番号に紐づく約定識別IDが複数存在する場合は，いずれか1つを記載すること ※電源差し替えを実施した場合，差替え元の約定識別IDを記載すること(持ち下げ供出機区分に該当する場合,起動供出機の初回約定識別IDを記載すること) | N9: =IF(入力シート!N9<>"",入力シート!N9,"") -> ※MMSに登録された起動費単価分を原則用いること ※ 「全量不落」の精算パターンで「最低出力までの発電電力量の機会費用」の事後精算の対象がある場合，様式都合により，属地TSOと事前に確認の上，「MMSに登録された起動費単価分」に当該単価を加算して記載すること | O9: =IF(入力シート!O9<>"",入力シート!O9,"") -> ※持ち下げ供出機区分が該当する場合に記載すること | P9: =IF(入力シート!P9<>"",入力シート!P9,"") -> ※ 持ち下げ供出機区分が該当する場合に記載すること | Q9: =IF(入力シート!Q9<>"",入力シート!Q9,"") -> ※卸電力市場価格（スポット市場価格：実績）と限界費用との差額を用いること ※加重平均で入札し，一部不落となった場合は，情報を記載するリソースのΔkW単価に含めた起動供出機の最低出力までの発電電力量の加重平均機会費用相当額を精算対象とする ※加重平均で入札し，起動供出機または持ち下げ供出機，またはその双方において一部のリソースが全量不落となったブロックに，起動供出機または持ち下げ供出機の情報を記載する場合は，起動供出機または持ち下げ供出機のΔkW単価に含めた起動供出機の最低出力までの発電電力量の加重平均機会費用相当額を精算対象とする。 （ただし，起動供出機が全量不落となった場合は，起動供出機の起動により機会費用が発生した場合に限る。そのため別途TSOからデータ提出を求める場合がある。なお、起動供出機のΔkW単価に含めた起動供出機の最低出力までの発電電力量の加重平均機会費用相当額については様式都合により，属地TSOと事前に確認の上， 「加重平均起動費未回収分相当額（P列）」に加算して記載すること） | R9: =IF(入力シート!R9<>"",入力シート!R9,"") ->  | S9: =IF(入力シート!S9<>"",入力シート!S9,"") ->  | T9: =IF(入力シート!T9<>"",入力シート!T9,"") ->  | U9: =IF(入力シート!U9<>"",入力シート!U9,"") ->  | V9: =IF(入力シート!V9<>"",入力シート!V9,"") -> ※加重平均で入札した場合は，最低出力までの発電電力量の加重平均機会費用相当額×(約定希望ΔkW-ΔkW約定量) | W9: =IF(入力シート!W9<>"",入力シート!W9,"") -> ※精算パターン「約定間全量不落(約定間停止・再起動)」を選択した場合，事象NOごとの最終行に合計値表示 | X9: =IF(入力シート!X9<>"",入力シート!X9,"") -> ※１停止・再起動費は最後のブロックに記載すること ※２ 余力活用契約を締結している電源でBG計画上停止・再起動としていたが、実績は停止しなかった場合も、BG計画上の「停止・再起動費」を記載すること | Y9: =IF(入力シート!Y9<>"",入力シート!Y9,"") ->  | Z9: =IF(入力シート!Z9<>"",入力シート!Z9,"") ->  | AA9: =IF(入力シート!AA9<>"",入力シート!AA9,"") ->  | AB9: =IF(入力シート!AB9<>"",入力シート!AB9,"") ->  | AC9: =IF(入力シート!AC9<>"",入力シート!AC9,"") ->  | AD9: =IF(入力シート!AD9<>"",入力シート!AD9,"") -> ※加重平均で入札した場合は，加重平均起動費未回収分相当額 | AE9: =IF(入力シート!AE9<>"",入力シート!AE9,"") -> ※加重平均で入札した場合は，最低出力までの発電電力量の加重平均機会費用相当額 | AF9: =IF(入力シート!AF9<>"",入力シート!AF9,"") -> ※約定間全量不落時において，停止・再起動するよりも，最低出力維持した方が経済的だった場合，後者を事後精算対象とする | AJ9: =SUM($AD10:$AD2831) -> 640000 | AK9: =SUM($AE10:$AE2831) -> 2000000 | AL9: =SUM($AF10:$AF2831) -> 0 | AM9: =ROUNDDOWN(SUM(AJ9:AL9),0) -> 2640000
B10: 1 | C10: 6：約定間全量不落（余力活用契約で停止・再起動） | D10: 1：対象 | E10: 20250401 | F10: 4 | H10: ○C○○○ | J10: 2：三次調整力② | K10: ○○○○○○ | N10: 8 | Q10: 25 | R10: 20000 | S10: 20000 | T10: 40000 | U10: 0 | V10: =Q10*(T10-U10) -> 1000000 | W10: =IF(X10 > 0, SUMIFS(V:V, B:B, B10, Z:Z, 1), 0) -> 0 | Y10: =IF(ISNUMBER(B10), IF(COUNTIF($B$10:$B10, B10)=COUNTIF($B:$B, B10), "1", "0"), "") -> 0 | Z10: =IF(OR($C10=List!$C$5,$C10=List!$C$6,$C10=List!$C$11,$C10=List!$C$13), 1, 0) -> 0 | AA10: =_xlfn.IFS(T10="","未応札",T10>0,"応札") -> 応札 | AB10: =_xlfn.IFS(U10=0,"未約定",U10=T10,"約定",U10<T10,"一部約定") -> 未約定 | AC10: 2：解列 | AD10: =IF(AA10="応札",IF($AB10="未約定",IF(OR($G10=List!$F$2:$F$3), $P10*$T10, $N10*$T10),IF($AB10="一部約定",IF(OR($G10=List!$F$2:$F$3), $P10*($T10-$U10), $N10*($T10-$U10)),"")),"") -> 320000 | AE10: =IF(ISBLANK($R10),IF(OR($AB10="一部約定",$AB10="未約定"),$Q10*($T10-$U10),""),IF($R10=0,"", IF(OR($AB10="一部約定", $AB10="未約定"), $Q10*($T10-$U10), ""))) -> 1000000 | AF10: =IF(AND($AA10="応札",$AB10="未約定"), IF($W10<>0, IF($X10<$W10, IF($X10<>0, $X10, ""), IF($W10<>0, $W10, "")), IF($X10<>0, $X10, "")), "") -> 
B11: 1 | C11: 6：約定間全量不落（余力活用契約で停止・再起動） | D11: 1：対象 | E11: 20250401 | F11: 5 | H11: ○C○○○ | J11: 2：三次調整力② | K11: ○○○○○○ | N11: 8 | Q11: 25 | R11: 20000 | S11: 20000 | T11: 40000 | U11: 0 | V11: =Q11*(T11-U11) -> 1000000 | W11: 0 | Y11: =IF(ISNUMBER(B11), IF(COUNTIF($B$10:$B11, B11)=COUNTIF($B:$B, B11), "1", "0"), "") -> 1 | Z11: =IF(OR($C11=List!$C$5,$C11=List!$C$6,$C11=List!$C$11,$C11=List!$C$13), 1, 0) -> 0 | AA11: =_xlfn.IFS(T11="","未応札",T11>0,"応札") -> 応札 | AB11: =_xlfn.IFS(U11=0,"未約定",U11=T11,"約定",U11<T11,"一部約定") -> 未約定 | AC11: 2：解列 | AD11: =IF(AA11="応札",IF($AB11="未約定",IF(OR($G11=List!$F$2:$F$3), $P11*$T11, $N11*$T11),IF($AB11="一部約定",IF(OR($G11=List!$F$2:$F$3), $P11*($T11-$U11), $N11*($T11-$U11)),"")),"") -> 320000 | AE11: =IF(ISBLANK($R11),IF(OR($AB11="一部約定",$AB11="未約定"),$Q11*($T11-$U11),""),IF($R11=0,"", IF(OR($AB11="一部約定", $AB11="未約定"), $Q11*($T11-$U11), ""))) -> 1000000 | AF11: =IF(AND($AA11="応札",$AB11="未約定"), IF($W11<>0, IF($X11<$W11, IF($X11<>0, $X11, ""), IF($W11<>0, $W11, "")), IF($X11<>0, $X11, "")), "") -> 
V12: 0 | W12: 0 | Y12: =IF(ISNUMBER(B12), IF(COUNTIF($B$10:$B12, B12)=COUNTIF($B:$B, B12), "1", "0"), "") ->  | Z12: =IF(OR($C12=List!$C$5,$C12=List!$C$6,$C12=List!$C$11,$C12=List!$C$13), 1, 0) -> 0 | AA12: =_xlfn.IFS(T12="","未応札",T12>0,"応札") -> 未応札 | AB12: =_xlfn.IFS(U12=0,"未約定",U12=T12,"約定",U12<T12,"一部約定") -> 未約定 | AD12: =IF(AA12="応札",IF($AB12="未約定",IF(OR($G12=List!$F$2:$F$3), $P12*$T12, $N12*$T12),IF($AB12="一部約定",IF(OR($G12=List!$F$2:$F$3), $P12*($T12-$U12), $N12*($T12-$U12)),"")),"") ->  | AE12: 0
V13: 0 | W13: 0 | Y13: =IF(ISNUMBER(B13), IF(COUNTIF($B$10:$B13, B13)=COUNTIF($B:$B, B13), "1", "0"), "") ->  | Z13: =IF(OR($C13=List!$C$5,$C13=List!$C$6,$C13=List!$C$11,$C13=List!$C$13), 1, 0) -> 0 | AA13: =_xlfn.IFS(T13="","未応札",T13>0,"応札") -> 未応札 | AB13: =_xlfn.IFS(U13=0,"未約定",U13=T13,"約定",U13<T13,"一部約定") -> 未約定 | AD13: =IF(AA13="応札",IF($AB13="未約定",IF(OR($G13=List!$F$2:$F$3), $P13*$T13, $N13*$T13),IF($AB13="一部約定",IF(OR($G13=List!$F$2:$F$3), $P13*($T13-$U13), $N13*($T13-$U13)),"")),"") ->  | AE13: 0
V14: 0 | W14: 0 | Y14: =IF(ISNUMBER(B14), IF(COUNTIF($B$10:$B14, B14)=COUNTIF($B:$B, B14), "1", "0"), "") ->  | Z14: =IF(OR($C14=List!$C$5,$C14=List!$C$6,$C14=List!$C$11,$C14=List!$C$13), 1, 0) -> 0 | AA14: =_xlfn.IFS(T14="","未応札",T14>0,"応札") -> 未応札 | AB14: =_xlfn.IFS(U14=0,"未約定",U14=T14,"約定",U14<T14,"一部約定") -> 未約定 | AD14: =IF(AA14="応札",IF($AB14="未約定",IF(OR($G14=List!$F$2:$F$3), $P14*$T14, $N14*$T14),IF($AB14="一部約定",IF(OR($G14=List!$F$2:$F$3), $P14*($T14-$U14), $N14*($T14-$U14)),"")),"") ->  | AE14: 0
V15: 0 | W15: 0 | Y15: =IF(ISNUMBER(B15), IF(COUNTIF($B$10:$B15, B15)=COUNTIF($B:$B, B15), "1", "0"), "") ->  | Z15: =IF(OR($C15=List!$C$5,$C15=List!$C$6,$C15=List!$C$11,$C15=List!$C$13), 1, 0) -> 0 | AA15: =_xlfn.IFS(T15="","未応札",T15>0,"応札") -> 未応札 | AB15: =_xlfn.IFS(U15=0,"未約定",U15=T15,"約定",U15<T15,"一部約定") -> 未約定 | AD15: =IF(AA15="応札",IF($AB15="未約定",IF(OR($G15=List!$F$2:$F$3), $P15*$T15, $N15*$T15),IF($AB15="一部約定",IF(OR($G15=List!$F$2:$F$3), $P15*($T15-$U15), $N15*($T15-$U15)),"")),"") ->  | AE15: 0
V16: 0 | W16: 0 | Y16: =IF(ISNUMBER(B16), IF(COUNTIF($B$10:$B16, B16)=COUNTIF($B:$B, B16), "1", "0"), "") ->  | Z16: =IF(OR($C16=List!$C$5,$C16=List!$C$6,$C16=List!$C$11,$C16=List!$C$13), 1, 0) -> 0 | AA16: =_xlfn.IFS(T16="","未応札",T16>0,"応札") -> 未応札 | AB16: =_xlfn.IFS(U16=0,"未約定",U16=T16,"約定",U16<T16,"一部約定") -> 未約定 | AD16: =IF(AA16="応札",IF($AB16="未約定",IF(OR($G16=List!$F$2:$F$3), $P16*$T16, $N16*$T16),IF($AB16="一部約定",IF(OR($G16=List!$F$2:$F$3), $P16*($T16-$U16), $N16*($T16-$U16)),"")),"") ->  | AE16: 0
V17: 0 | W17: 0 | Y17: =IF(ISNUMBER(B17), IF(COUNTIF($B$10:$B17, B17)=COUNTIF($B:$B, B17), "1", "0"), "") ->  | Z17: =IF(OR($C17=List!$C$5,$C17=List!$C$6,$C17=List!$C$11,$C17=List!$C$13), 1, 0) -> 0 | AA17: =_xlfn.IFS(T17="","未応札",T17>0,"応札") -> 未応札 | AB17: =_xlfn.IFS(U17=0,"未約定",U17=T17,"約定",U17<T17,"一部約定") -> 未約定 | AD17: =IF(AA17="応札",IF($AB17="未約定",IF(OR($G17=List!$F$2:$F$3), $P17*$T17, $N17*$T17),IF($AB17="一部約定",IF(OR($G17=List!$F$2:$F$3), $P17*($T17-$U17), $N17*($T17-$U17)),"")),"") ->  | AE17: 0
V18: 0 | W18: 0 | Y18: =IF(ISNUMBER(B18), IF(COUNTIF($B$10:$B18, B18)=COUNTIF($B:$B, B18), "1", "0"), "") ->  | Z18: =IF(OR($C18=List!$C$5,$C18=List!$C$6,$C18=List!$C$11,$C18=List!$C$13), 1, 0) -> 0 | AA18: =_xlfn.IFS(T18="","未応札",T18>0,"応札") -> 未応札 | AB18: =_xlfn.IFS(U18=0,"未約定",U18=T18,"約定",U18<T18,"一部約定") -> 未約定 | AD18: =IF(AA18="応札",IF($AB18="未約定",IF(OR($G18=List!$F$2:$F$3), $P18*$T18, $N18*$T18),IF($AB18="一部約定",IF(OR($G18=List!$F$2:$F$3), $P18*($T18-$U18), $N18*($T18-$U18)),"")),"") ->  | AE18: 0
V19: 0 | W19: 0 | Y19: =IF(ISNUMBER(B19), IF(COUNTIF($B$10:$B19, B19)=COUNTIF($B:$B, B19), "1", "0"), "") ->  | Z19: =IF(OR($C19=List!$C$5,$C19=List!$C$6,$C19=List!$C$11,$C19=List!$C$13), 1, 0) -> 0 | AA19: =_xlfn.IFS(T19="","未応札",T19>0,"応札") -> 未応札 | AB19: =_xlfn.IFS(U19=0,"未約定",U19=T19,"約定",U19<T19,"一部約定") -> 未約定 | AD19: =IF(AA19="応札",IF($AB19="未約定",IF(OR($G19=List!$F$2:$F$3), $P19*$T19, $N19*$T19),IF($AB19="一部約定",IF(OR($G19=List!$F$2:$F$3), $P19*($T19-$U19), $N19*($T19-$U19)),"")),"") ->  | AE19: 0
V20: 0 | W20: 0 | Y20: =IF(ISNUMBER(B20), IF(COUNTIF($B$10:$B20, B20)=COUNTIF($B:$B, B20), "1", "0"), "") ->  | Z20: =IF(OR($C20=List!$C$5,$C20=List!$C$6,$C20=List!$C$11,$C20=List!$C$13), 1, 0) -> 0 | AA20: =_xlfn.IFS(T20="","未応札",T20>0,"応札") -> 未応札 | AB20: =_xlfn.IFS(U20=0,"未約定",U20=T20,"約定",U20<T20,"一部約定") -> 未約定 | AD20: =IF(AA20="応札",IF($AB20="未約定",IF(OR($G20=List!$F$2:$F$3), $P20*$T20, $N20*$T20),IF($AB20="一部約定",IF(OR($G20=List!$F$2:$F$3), $P20*($T20-$U20), $N20*($T20-$U20)),"")),"") ->  | AE20: 0
V21: 0 | W21: 0 | Y21: =IF(ISNUMBER(B21), IF(COUNTIF($B$10:$B21, B21)=COUNTIF($B:$B, B21), "1", "0"), "") ->  | Z21: =IF(OR($C21=List!$C$5,$C21=List!$C$6,$C21=List!$C$11,$C21=List!$C$13), 1, 0) -> 0 | AA21: =_xlfn.IFS(T21="","未応札",T21>0,"応札") -> 未応札 | AB21: =_xlfn.IFS(U21=0,"未約定",U21=T21,"約定",U21<T21,"一部約定") -> 未約定 | AD21: =IF(AA21="応札",IF($AB21="未約定",IF(OR($G21=List!$F$2:$F$3), $P21*$T21, $N21*$T21),IF($AB21="一部約定",IF(OR($G21=List!$F$2:$F$3), $P21*($T21-$U21), $N21*($T21-$U21)),"")),"") ->  | AE21: 0
V22: 0 | W22: 0 | Y22: =IF(ISNUMBER(B22), IF(COUNTIF($B$10:$B22, B22)=COUNTIF($B:$B, B22), "1", "0"), "") ->  | Z22: =IF(OR($C22=List!$C$5,$C22=List!$C$6,$C22=List!$C$11,$C22=List!$C$13), 1, 0) -> 0 | AA22: =_xlfn.IFS(T22="","未応札",T22>0,"応札") -> 未応札 | AB22: =_xlfn.IFS(U22=0,"未約定",U22=T22,"約定",U22<T22,"一部約定") -> 未約定 | AD22: =IF(AA22="応札",IF($AB22="未約定",IF(OR($G22=List!$F$2:$F$3), $P22*$T22, $N22*$T22),IF($AB22="一部約定",IF(OR($G22=List!$F$2:$F$3), $P22*($T22-$U22), $N22*($T22-$U22)),"")),"") ->  | AE22: 0
V23: 0 | W23: 0 | Y23: =IF(ISNUMBER(B23), IF(COUNTIF($B$10:$B23, B23)=COUNTIF($B:$B, B23), "1", "0"), "") ->  | Z23: =IF(OR($C23=List!$C$5,$C23=List!$C$6,$C23=List!$C$11,$C23=List!$C$13), 1, 0) -> 0 | AA23: =_xlfn.IFS(T23="","未応札",T23>0,"応札") -> 未応札 | AB23: =_xlfn.IFS(U23=0,"未約定",U23=T23,"約定",U23<T23,"一部約定") -> 未約定 | AD23: =IF(AA23="応札",IF($AB23="未約定",IF(OR($G23=List!$F$2:$F$3), $P23*$T23, $N23*$T23),IF($AB23="一部約定",IF(OR($G23=List!$F$2:$F$3), $P23*($T23-$U23), $N23*($T23-$U23)),"")),"") ->  | AE23: 0
V24: 0 | W24: 0 | Y24: =IF(ISNUMBER(B24), IF(COUNTIF($B$10:$B24, B24)=COUNTIF($B:$B, B24), "1", "0"), "") ->  | Z24: =IF(OR($C24=List!$C$5,$C24=List!$C$6,$C24=List!$C$11,$C24=List!$C$13), 1, 0) -> 0 | AA24: =_xlfn.IFS(T24="","未応札",T24>0,"応札") -> 未応札 | AB24: =_xlfn.IFS(U24=0,"未約定",U24=T24,"約定",U24<T24,"一部約定") -> 未約定 | AD24: =IF(AA24="応札",IF($AB24="未約定",IF(OR($G24=List!$F$2:$F$3), $P24*$T24, $N24*$T24),IF($AB24="一部約定",IF(OR($G24=List!$F$2:$F$3), $P24*($T24-$U24), $N24*($T24-$U24)),"")),"") ->  | AE24: 0
V25: 0 | W25: 0 | Y25: =IF(ISNUMBER(B25), IF(COUNTIF($B$10:$B25, B25)=COUNTIF($B:$B, B25), "1", "0"), "") ->  | Z25: =IF(OR($C25=List!$C$5,$C25=List!$C$6,$C25=List!$C$11,$C25=List!$C$13), 1, 0) -> 0 | AA25: =_xlfn.IFS(T25="","未応札",T25>0,"応札") -> 未応札 | AB25: =_xlfn.IFS(U25=0,"未約定",U25=T25,"約定",U25<T25,"一部約定") -> 未約定 | AD25: =IF(AA25="応札",IF($AB25="未約定",IF(OR($G25=List!$F$2:$F$3), $P25*$T25, $N25*$T25),IF($AB25="一部約定",IF(OR($G25=List!$F$2:$F$3), $P25*($T25-$U25), $N25*($T25-$U25)),"")),"") ->  | AE25: 0
V26: 0 | W26: 0 | Y26: =IF(ISNUMBER(B26), IF(COUNTIF($B$10:$B26, B26)=COUNTIF($B:$B, B26), "1", "0"), "") ->  | Z26: =IF(OR($C26=List!$C$5,$C26=List!$C$6,$C26=List!$C$11,$C26=List!$C$13), 1, 0) -> 0 | AA26: =_xlfn.IFS(T26="","未応札",T26>0,"応札") -> 未応札 | AB26: =_xlfn.IFS(U26=0,"未約定",U26=T26,"約定",U26<T26,"一部約定") -> 未約定 | AD26: =IF(AA26="応札",IF($AB26="未約定",IF(OR($G26=List!$F$2:$F$3), $P26*$T26, $N26*$T26),IF($AB26="一部約定",IF(OR($G26=List!$F$2:$F$3), $P26*($T26-$U26), $N26*($T26-$U26)),"")),"") ->  | AE26: 0
V27: 0 | W27: 0 | Y27: =IF(ISNUMBER(B27), IF(COUNTIF($B$10:$B27, B27)=COUNTIF($B:$B, B27), "1", "0"), "") ->  | Z27: =IF(OR($C27=List!$C$5,$C27=List!$C$6,$C27=List!$C$11,$C27=List!$C$13), 1, 0) -> 0 | AA27: =_xlfn.IFS(T27="","未応札",T27>0,"応札") -> 未応札 | AB27: =_xlfn.IFS(U27=0,"未約定",U27=T27,"約定",U27<T27,"一部約定") -> 未約定 | AD27: =IF(AA27="応札",IF($AB27="未約定",IF(OR($G27=List!$F$2:$F$3), $P27*$T27, $N27*$T27),IF($AB27="一部約定",IF(OR($G27=List!$F$2:$F$3), $P27*($T27-$U27), $N27*($T27-$U27)),"")),"") ->  | AE27: 0
V28: 0 | W28: 0 | Y28: =IF(ISNUMBER(B28), IF(COUNTIF($B$10:$B28, B28)=COUNTIF($B:$B, B28), "1", "0"), "") ->  | Z28: =IF(OR($C28=List!$C$5,$C28=List!$C$6,$C28=List!$C$11,$C28=List!$C$13), 1, 0) -> 0 | AA28: =_xlfn.IFS(T28="","未応札",T28>0,"応札") -> 未応札 | AB28: =_xlfn.IFS(U28=0,"未約定",U28=T28,"約定",U28<T28,"一部約定") -> 未約定 | AD28: =IF(AA28="応札",IF($AB28="未約定",IF(OR($G28=List!$F$2:$F$3), $P28*$T28, $N28*$T28),IF($AB28="一部約定",IF(OR($G28=List!$F$2:$F$3), $P28*($T28-$U28), $N28*($T28-$U28)),"")),"") ->  | AE28: 0
V29: 0 | W29: 0 | Y29: =IF(ISNUMBER(B29), IF(COUNTIF($B$10:$B29, B29)=COUNTIF($B:$B, B29), "1", "0"), "") ->  | Z29: =IF(OR($C29=List!$C$5,$C29=List!$C$6,$C29=List!$C$11,$C29=List!$C$13), 1, 0) -> 0 | AA29: =_xlfn.IFS(T29="","未応札",T29>0,"応札") -> 未応札 | AB29: =_xlfn.IFS(U29=0,"未約定",U29=T29,"約定",U29<T29,"一部約定") -> 未約定 | AD29: =IF(AA29="応札",IF($AB29="未約定",IF(OR($G29=List!$F$2:$F$3), $P29*$T29, $N29*$T29),IF($AB29="一部約定",IF(OR($G29=List!$F$2:$F$3), $P29*($T29-$U29), $N29*($T29-$U29)),"")),"") ->  | AE29: 0
V30: 0 | W30: 0 | Y30: =IF(ISNUMBER(B30), IF(COUNTIF($B$10:$B30, B30)=COUNTIF($B:$B, B30), "1", "0"), "") ->  | Z30: =IF(OR($C30=List!$C$5,$C30=List!$C$6,$C30=List!$C$11,$C30=List!$C$13), 1, 0) -> 0 | AA30: =_xlfn.IFS(T30="","未応札",T30>0,"応札") -> 未応札 | AB30: =_xlfn.IFS(U30=0,"未約定",U30=T30,"約定",U30<T30,"一部約定") -> 未約定 | AD30: =IF(AA30="応札",IF($AB30="未約定",IF(OR($G30=List!$F$2:$F$3), $P30*$T30, $N30*$T30),IF($AB30="一部約定",IF(OR($G30=List!$F$2:$F$3), $P30*($T30-$U30), $N30*($T30-$U30)),"")),"") ->  | AE30: 0
V31: 0 | W31: 0 | Y31: =IF(ISNUMBER(B31), IF(COUNTIF($B$10:$B31, B31)=COUNTIF($B:$B, B31), "1", "0"), "") ->  | Z31: =IF(OR($C31=List!$C$5,$C31=List!$C$6,$C31=List!$C$11,$C31=List!$C$13), 1, 0) -> 0 | AA31: =_xlfn.IFS(T31="","未応札",T31>0,"応札") -> 未応札 | AB31: =_xlfn.IFS(U31=0,"未約定",U31=T31,"約定",U31<T31,"一部約定") -> 未約定 | AD31: =IF(AA31="応札",IF($AB31="未約定",IF(OR($G31=List!$F$2:$F$3), $P31*$T31, $N31*$T31),IF($AB31="一部約定",IF(OR($G31=List!$F$2:$F$3), $P31*($T31-$U31), $N31*($T31-$U31)),"")),"") ->  | AE31: 0
V32: 0 | W32: 0 | Y32: =IF(ISNUMBER(B32), IF(COUNTIF($B$10:$B32, B32)=COUNTIF($B:$B, B32), "1", "0"), "") ->  | Z32: =IF(OR($C32=List!$C$5,$C32=List!$C$6,$C32=List!$C$11,$C32=List!$C$13), 1, 0) -> 0 | AA32: =_xlfn.IFS(T32="","未応札",T32>0,"応札") -> 未応札 | AB32: =_xlfn.IFS(U32=0,"未約定",U32=T32,"約定",U32<T32,"一部約定") -> 未約定 | AD32: =IF(AA32="応札",IF($AB32="未約定",IF(OR($G32=List!$F$2:$F$3), $P32*$T32, $N32*$T32),IF($AB32="一部約定",IF(OR($G32=List!$F$2:$F$3), $P32*($T32-$U32), $N32*($T32-$U32)),"")),"") ->  | AE32: 0
V33: 0 | W33: 0 | Y33: =IF(ISNUMBER(B33), IF(COUNTIF($B$10:$B33, B33)=COUNTIF($B:$B, B33), "1", "0"), "") ->  | Z33: =IF(OR($C33=List!$C$5,$C33=List!$C$6,$C33=List!$C$11,$C33=List!$C$13), 1, 0) -> 0 | AA33: =_xlfn.IFS(T33="","未応札",T33>0,"応札") -> 未応札 | AB33: =_xlfn.IFS(U33=0,"未約定",U33=T33,"約定",U33<T33,"一部約定") -> 未約定 | AD33: =IF(AA33="応札",IF($AB33="未約定",IF(OR($G33=List!$F$2:$F$3), $P33*$T33, $N33*$T33),IF($AB33="一部約定",IF(OR($G33=List!$F$2:$F$3), $P33*($T33-$U33), $N33*($T33-$U33)),"")),"") ->  | AE33: 0
V34: 0 | W34: 0 | Y34: =IF(ISNUMBER(B34), IF(COUNTIF($B$10:$B34, B34)=COUNTIF($B:$B, B34), "1", "0"), "") ->  | Z34: =IF(OR($C34=List!$C$5,$C34=List!$C$6,$C34=List!$C$11,$C34=List!$C$13), 1, 0) -> 0 | AA34: =_xlfn.IFS(T34="","未応札",T34>0,"応札") -> 未応札 | AB34: =_xlfn.IFS(U34=0,"未約定",U34=T34,"約定",U34<T34,"一部約定") -> 未約定 | AD34: =IF(AA34="応札",IF($AB34="未約定",IF(OR($G34=List!$F$2:$F$3), $P34*$T34, $N34*$T34),IF($AB34="一部約定",IF(OR($G34=List!$F$2:$F$3), $P34*($T34-$U34), $N34*($T34-$U34)),"")),"") ->  | AE34: 0
V35: 0 | W35: 0 | Y35: =IF(ISNUMBER(B35), IF(COUNTIF($B$10:$B35, B35)=COUNTIF($B:$B, B35), "1", "0"), "") ->  | Z35: =IF(OR($C35=List!$C$5,$C35=List!$C$6,$C35=List!$C$11,$C35=List!$C$13), 1, 0) -> 0 | AA35: =_xlfn.IFS(T35="","未応札",T35>0,"応札") -> 未応札 | AB35: =_xlfn.IFS(U35=0,"未約定",U35=T35,"約定",U35<T35,"一部約定") -> 未約定 | AD35: =IF(AA35="応札",IF($AB35="未約定",IF(OR($G35=List!$F$2:$F$3), $P35*$T35, $N35*$T35),IF($AB35="一部約定",IF(OR($G35=List!$F$2:$F$3), $P35*($T35-$U35), $N35*($T35-$U35)),"")),"") ->  | AE35: 0
V36: 0 | W36: 0 | Y36: =IF(ISNUMBER(B36), IF(COUNTIF($B$10:$B36, B36)=COUNTIF($B:$B, B36), "1", "0"), "") ->  | Z36: =IF(OR($C36=List!$C$5,$C36=List!$C$6,$C36=List!$C$11,$C36=List!$C$13), 1, 0) -> 0 | AA36: =_xlfn.IFS(T36="","未応札",T36>0,"応札") -> 未応札 | AB36: =_xlfn.IFS(U36=0,"未約定",U36=T36,"約定",U36<T36,"一部約定") -> 未約定 | AD36: =IF(AA36="応札",IF($AB36="未約定",IF(OR($G36=List!$F$2:$F$3), $P36*$T36, $N36*$T36),IF($AB36="一部約定",IF(OR($G36=List!$F$2:$F$3), $P36*($T36-$U36), $N36*($T36-$U36)),"")),"") ->  | AE36: 0
V37: 0 | W37: 0 | Y37: =IF(ISNUMBER(B37), IF(COUNTIF($B$10:$B37, B37)=COUNTIF($B:$B, B37), "1", "0"), "") ->  | Z37: =IF(OR($C37=List!$C$5,$C37=List!$C$6,$C37=List!$C$11,$C37=List!$C$13), 1, 0) -> 0 | AA37: =_xlfn.IFS(T37="","未応札",T37>0,"応札") -> 未応札 | AB37: =_xlfn.IFS(U37=0,"未約定",U37=T37,"約定",U37<T37,"一部約定") -> 未約定 | AD37: =IF(AA37="応札",IF($AB37="未約定",IF(OR($G37=List!$F$2:$F$3), $P37*$T37, $N37*$T37),IF($AB37="一部約定",IF(OR($G37=List!$F$2:$F$3), $P37*($T37-$U37), $N37*($T37-$U37)),"")),"") ->  | AE37: 0
V38: 0 | W38: 0 | Y38: =IF(ISNUMBER(B38), IF(COUNTIF($B$10:$B38, B38)=COUNTIF($B:$B, B38), "1", "0"), "") ->  | Z38: =IF(OR($C38=List!$C$5,$C38=List!$C$6,$C38=List!$C$11,$C38=List!$C$13), 1, 0) -> 0 | AA38: =_xlfn.IFS(T38="","未応札",T38>0,"応札") -> 未応札 | AB38: =_xlfn.IFS(U38=0,"未約定",U38=T38,"約定",U38<T38,"一部約定") -> 未約定 | AD38: =IF(AA38="応札",IF($AB38="未約定",IF(OR($G38=List!$F$2:$F$3), $P38*$T38, $N38*$T38),IF($AB38="一部約定",IF(OR($G38=List!$F$2:$F$3), $P38*($T38-$U38), $N38*($T38-$U38)),"")),"") ->  | AE38: 0
V39: 0 | W39: 0 | Y39: =IF(ISNUMBER(B39), IF(COUNTIF($B$10:$B39, B39)=COUNTIF($B:$B, B39), "1", "0"), "") ->  | Z39: =IF(OR($C39=List!$C$5,$C39=List!$C$6,$C39=List!$C$11,$C39=List!$C$13), 1, 0) -> 0 | AA39: =_xlfn.IFS(T39="","未応札",T39>0,"応札") -> 未応札 | AB39: =_xlfn.IFS(U39=0,"未約定",U39=T39,"約定",U39<T39,"一部約定") -> 未約定 | AD39: =IF(AA39="応札",IF($AB39="未約定",IF(OR($G39=List!$F$2:$F$3), $P39*$T39, $N39*$T39),IF($AB39="一部約定",IF(OR($G39=List!$F$2:$F$3), $P39*($T39-$U39), $N39*($T39-$U39)),"")),"") ->  | AE39: 0
V40: 0 | W40: 0 | Y40: =IF(ISNUMBER(B40), IF(COUNTIF($B$10:$B40, B40)=COUNTIF($B:$B, B40), "1", "0"), "") ->  | Z40: =IF(OR($C40=List!$C$5,$C40=List!$C$6,$C40=List!$C$11,$C40=List!$C$13), 1, 0) -> 0 | AA40: =_xlfn.IFS(T40="","未応札",T40>0,"応札") -> 未応札 | AB40: =_xlfn.IFS(U40=0,"未約定",U40=T40,"約定",U40<T40,"一部約定") -> 未約定 | AD40: =IF(AA40="応札",IF($AB40="未約定",IF(OR($G40=List!$F$2:$F$3), $P40*$T40, $N40*$T40),IF($AB40="一部約定",IF(OR($G40=List!$F$2:$F$3), $P40*($T40-$U40), $N40*($T40-$U40)),"")),"") ->  | AE40: 0

Sheet 記載例_精算パターン⑦加重平均入札（持ち下げ・起動供出機)
B2: 取引年月 | C2: 202504
B3: MMSコード | C3: A000
B4: 対象エリア | C4: 3：東京
B5: ファイル名称 | C5: =$C$2&"_"&$C$3&"_"&LEFT($C$4,1)&"_不約定単価内訳兼起動費事後精算情報様式" -> 202504_A000_3_不約定単価内訳兼起動費事後精算情報様式
B7: =入力シート!B7 -> 事象NO | C7: =入力シート!C7 -> 精算パターン | D7: =入力シート!D7 -> 余力活用契約対象リソース区分 | E7: =入力シート!E7 -> 取引日 | F7: =入力シート!F7 -> 時刻コード | G7: =入力シート!G7 -> 持ち下げ供出機区分 | H7: =入力シート!H7 -> 系統コード | I7: =入力シート!I7 -> 系統コード(差替後) | J7: =入力シート!J7 -> 商品区分 | K7: =入力シート!K7 -> 売り入札ID | L7: =入力シート!L7 -> 約定番号 | M7: =入力シート!M7 -> 約定識別ID | N7: =入力シート!N7 -> MMS起動費単価 | O7: =入力シート!O7 -> 加重平均前のΔkW単価 | P7: =入力シート!P7 -> 加重平均起動費未回収分相当額 | Q7: =入力シート!Q7 -> 最低出力までの発電電力量の機会費用単価 | R7: =入力シート!R7 -> 発電計画 | S7: =入力シート!S7 -> 最低出力 | T7: =入力シート!T7 -> 約定希望ΔkW | U7: =入力シート!U7 -> ΔkW約定量 | V7: =入力シート!V7 -> 最低出力までの発電電力量の機会費用単価×(約定希望ΔkW-ΔkW約定量) | W7: =入力シート!W7 -> 最低出力維持した場合の費用合計 | X7: =入力シート!X7 -> 停止・再起動にかかる費用 | Y7: =入力シート!Y7 -> 事象毎の最終行 | Z7: =入力シート!Z7 -> 妥当性確認 | AA7: =入力シート!AA7 -> 応札状況 | AB7: =入力シート!AB7 -> 約定状況 | AC7: =入力シート!AC7 -> 並解列状態(実績) | AD7: =入力シート!AD7 -> 起動費未回収分相当額 | AE7: =入力シート!AE7 -> 最低出力までの発電電力量の機会費用 | AF7: =入力シート!AF7 -> 停止・再起動にかかる費用 | AI7: =入力シート!AI7 -> 精算対象 申請小計 | AJ7: =入力シート!AJ7 -> 起動費未回収分相当額 | AK7: =入力シート!AK7 -> 最低出力までの発電電力量の機会費用 | AL7: =入力シート!AL7 -> 停止・再起動にかかる費用 | AM7: =入力シート!AM7 -> 合計
N8: （円/kW） | O8: （円/kW） | P8: （円/kW） | Q8: （円/kW） | R8: （kWh） | S8: （kWh） | T8: （kW） | U8: （kW） | V8: （円） | W8: （円） | X8: （円） | AD8: （円） | AE8: （円） | AF8: （円） | AJ8: （円） | AK8: （円） | AL8: （円） | AM8: （円）
B9: =IF(入力シート!B9<>"",入力シート!B9,"") -> ※起動費未回収が発生した事象NOを付定すること ※複合市場商品および三次調整力②商品へ１回分の起動費等を按分計上して入札し，両市場において起動費等の事後精算を申請する場合は，市場ごとに事象NOを分けずに同一の事象NOとして申請を実施すること | C9: =IF(入力シート!C9<>"",入力シート!C9,"") ->  | D9: =IF(入力シート!D9<>"",入力シート!D9,"") -> ※対象の場合は「１」，非対象の場合は「０」を入力 | E9: =IF(入力シート!E9<>"",入力シート!E9,"") ->  | F9: =IF(入力シート!F9<>"",入力シート!F9,"") ->  | G9: =IF(入力シート!G9<>"",入力シート!G9,"") -> ※持ち下げ供出機を加重平均で入札した場合に選択 | H9: =IF(入力シート!H9<>"",入力シート!H9,"") -> ※電源差替がない場合は精算対象となるリソースの系統コードを記載すること ※電源差替後のリソースにより精算する場合は，差替前のリソースの系統コードを記載すること | I9: =IF(入力シート!I9<>"",入力シート!I9,"") -> ※起動費単価分が登録されている電源に電源差替を実施する場合に記載すること | J9: =IF(入力シート!J9<>"",入力シート!J9,"") ->  | K9: =IF(入力シート!K9<>"",入力シート!K9,"") ->  | L9: =IF(入力シート!L9<>"",入力シート!L9,"") -> ※持ち下げ供出機区分が該当する場合，起動供出機の約定番号を記載すること ※同一時刻コードにおいて，複数の約定番号がある場合は，いずれか1つを記載すること | M9: =IF(入力シート!M9<>"",入力シート!M9,"") -> ※持ち下げ供出機区分に該当する場合，起動供出機の約定識別IDを記載すること ※同一時刻コードにおいて，約定番号に紐づく約定識別IDが複数存在する場合は，いずれか1つを記載すること ※電源差し替えを実施した場合，差替え元の約定識別IDを記載すること(持ち下げ供出機区分に該当する場合,起動供出機の初回約定識別IDを記載すること) | N9: =IF(入力シート!N9<>"",入力シート!N9,"") -> ※MMSに登録された起動費単価分を原則用いること ※ 「全量不落」の精算パターンで「最低出力までの発電電力量の機会費用」の事後精算の対象がある場合，様式都合により，属地TSOと事前に確認の上，「MMSに登録された起動費単価分」に当該単価を加算して記載すること | O9: =IF(入力シート!O9<>"",入力シート!O9,"") -> ※持ち下げ供出機区分が該当する場合に記載すること | P9: =IF(入力シート!P9<>"",入力シート!P9,"") -> ※ 持ち下げ供出機区分が該当する場合に記載すること | Q9: =IF(入力シート!Q9<>"",入力シート!Q9,"") -> ※卸電力市場価格（スポット市場価格：実績）と限界費用との差額を用いること ※加重平均で入札し，一部不落となった場合は，情報を記載するリソースのΔkW単価に含めた起動供出機の最低出力までの発電電力量の加重平均機会費用相当額を精算対象とする ※加重平均で入札し，起動供出機または持ち下げ供出機，またはその双方において一部のリソースが全量不落となったブロックに，起動供出機または持ち下げ供出機の情報を記載する場合は，起動供出機または持ち下げ供出機のΔkW単価に含めた起動供出機の最低出力までの発電電力量の加重平均機会費用相当額を精算対象とする。 （ただし，起動供出機が全量不落となった場合は，起動供出機の起動により機会費用が発生した場合に限る。そのため別途TSOからデータ提出を求める場合がある。なお、起動供出機のΔkW単価に含めた起動供出機の最低出力までの発電電力量の加重平均機会費用相当額については様式都合により，属地TSOと事前に確認の上， 「加重平均起動費未回収分相当額（P列）」に加算して記載すること） | R9: =IF(入力シート!R9<>"",入力シート!R9,"") ->  | S9: =IF(入力シート!S9<>"",入力シート!S9,"") ->  | T9: =IF(入力シート!T9<>"",入力シート!T9,"") ->  | U9: =IF(入力シート!U9<>"",入力シート!U9,"") ->  | V9: =IF(入力シート!V9<>"",入力シート!V9,"") -> ※加重平均で入札した場合は，最低出力までの発電電力量の加重平均機会費用相当額×(約定希望ΔkW-ΔkW約定量) | W9: =IF(入力シート!W9<>"",入力シート!W9,"") -> ※精算パターン「約定間全量不落(約定間停止・再起動)」を選択した場合，事象NOごとの最終行に合計値表示 | X9: =IF(入力シート!X9<>"",入力シート!X9,"") -> ※１停止・再起動費は最後のブロックに記載すること ※２ 余力活用契約を締結している電源でBG計画上停止・再起動としていたが、実績は停止しなかった場合も、BG計画上の「停止・再起動費」を記載すること | Y9: =IF(入力シート!Y9<>"",入力シート!Y9,"") ->  | Z9: =IF(入力シート!Z9<>"",入力シート!Z9,"") ->  | AA9: =IF(入力シート!AA9<>"",入力シート!AA9,"") ->  | AB9: =IF(入力シート!AB9<>"",入力シート!AB9,"") ->  | AC9: =IF(入力シート!AC9<>"",入力シート!AC9,"") ->  | AD9: =IF(入力シート!AD9<>"",入力シート!AD9,"") -> ※加重平均で入札した場合は，加重平均起動費未回収分相当額 | AE9: =IF(入力シート!AE9<>"",入力シート!AE9,"") -> ※加重平均で入札した場合は，最低出力までの発電電力量の加重平均機会費用相当額 | AF9: =IF(入力シート!AF9<>"",入力シート!AF9,"") -> ※約定間全量不落時において，停止・再起動するよりも，最低出力維持した方が経済的だった場合，後者を事後精算対象とする | AJ9: =SUM($AD10:$AD2837) -> 10342500 | AK9: =SUM($AE10:$AE2837) -> 90000 | AL9: =SUM($AF10:$AF2837) -> 0 | AM9: =ROUNDDOWN(SUM(AJ9:AL9),0) -> 10432500
V10: =Q10*(T10-U10) -> 0 | W10: =IF(X10 > 0, SUMIFS(V:V, B:B, B10, Z:Z, 1), 0) -> 0 | Y10: =IF(ISNUMBER(B10), IF(COUNTIF($B10:$B$45, B10)=COUNTIF($B:$B, B10), "1", "0"), "") ->  | Z10: =IF(OR($C10=List!$C$5,$C10=List!$C$6,$C10=List!$C$11,$C10=List!$C$13), 1, 0) -> 0 | AA10: =_xlfn.IFS(T10="","未応札",T10>0,"応札") -> 未応札 | AB10: =_xlfn.IFS(U10=0,"未約定",U10=T10,"約定",U10<T10,"一部約定") -> 未約定 | AD10: =IF(AA10="応札",IF($AB10="未約定",IF(OR($G10=List!$F$2:$F$3), $P10*$T10, $N10*$T10),IF($AB10="一部約定",IF(OR($G10=List!$F$2:$F$3), $P10*($T10-$U10), $N10*($T10-$U10)),"")),"") ->  | AE10: =IF(ISBLANK($R10),IF(OR($AB10="一部約定",$AB10="未約定"),$Q10*($T10-$U10),""),IF($R10=0,"", IF(OR($AB10="一部約定", $AB10="未約定"), $Q10*($T10-$U10), ""))) -> 0 | AF10: =IF(AND($AA10="応札",$AB10="未約定"), IF($W10<>0, IF($X10<$W10, IF($X10<>0, $X10, ""), IF($W10<>0, $W10, "")), IF($X10<>0, $X10, "")), "") -> 
V11: 0 | W11: 0 | Y11: =IF(ISNUMBER(B11), IF(COUNTIF($B11:$B$45, B11)=COUNTIF($B:$B, B11), "1", "0"), "") ->  | Z11: =IF(OR($C11=List!$C$5,$C11=List!$C$6,$C11=List!$C$11,$C11=List!$C$13), 1, 0) -> 0 | AA11: =_xlfn.IFS(T11="","未応札",T11>0,"応札") -> 未応札 | AB11: =_xlfn.IFS(U11=0,"未約定",U11=T11,"約定",U11<T11,"一部約定") -> 未約定 | AD11: =IF(AA11="応札",IF($AB11="未約定",IF(OR($G11=List!$F$2:$F$3), $P11*$T11, $N11*$T11),IF($AB11="一部約定",IF(OR($G11=List!$F$2:$F$3), $P11*($T11-$U11), $N11*($T11-$U11)),"")),"") ->  | AE11: 0 | AF11: =IF(AND($AA11="応札",$AB11="未約定"), IF($W11<>0, IF($X11<$W11, IF($X11<>0, $X11, ""), IF($W11<>0, $W11, "")), IF($X11<>0, $X11, "")), "") -> 
V12: 0 | W12: 0 | Y12: =IF(ISNUMBER(B12), IF(COUNTIF($B12:$B$45, B12)=COUNTIF($B:$B, B12), "1", "0"), "") ->  | Z12: =IF(OR($C12=List!$C$5,$C12=List!$C$6,$C12=List!$C$11,$C12=List!$C$13), 1, 0) -> 0 | AA12: =_xlfn.IFS(T12="","未応札",T12>0,"応札") -> 未応札 | AB12: =_xlfn.IFS(U12=0,"未約定",U12=T12,"約定",U12<T12,"一部約定") -> 未約定 | AD12: =IF(AA12="応札",IF($AB12="未約定",IF(OR($G12=List!$F$2:$F$3), $P12*$T12, $N12*$T12),IF($AB12="一部約定",IF(OR($G12=List!$F$2:$F$3), $P12*($T12-$U12), $N12*($T12-$U12)),"")),"") ->  | AE12: 0
V13: 0 | W13: 0 | Y13: =IF(ISNUMBER(B13), IF(COUNTIF($B13:$B$45, B13)=COUNTIF($B:$B, B13), "1", "0"), "") ->  | Z13: =IF(OR($C13=List!$C$5,$C13=List!$C$6,$C13=List!$C$11,$C13=List!$C$13), 1, 0) -> 0 | AA13: =_xlfn.IFS(T13="","未応札",T13>0,"応札") -> 未応札 | AB13: =_xlfn.IFS(U13=0,"未約定",U13=T13,"約定",U13<T13,"一部約定") -> 未約定 | AD13: =IF(AA13="応札",IF($AB13="未約定",IF(OR($G13=List!$F$2:$F$3), $P13*$T13, $N13*$T13),IF($AB13="一部約定",IF(OR($G13=List!$F$2:$F$3), $P13*($T13-$U13), $N13*($T13-$U13)),"")),"") ->  | AE13: 0
V14: 0 | W14: 0 | Y14: =IF(ISNUMBER(B14), IF(COUNTIF($B14:$B$45, B14)=COUNTIF($B:$B, B14), "1", "0"), "") ->  | Z14: =IF(OR($C14=List!$C$5,$C14=List!$C$6,$C14=List!$C$11,$C14=List!$C$13), 1, 0) -> 0 | AA14: =_xlfn.IFS(T14="","未応札",T14>0,"応札") -> 未応札 | AB14: =_xlfn.IFS(U14=0,"未約定",U14=T14,"約定",U14<T14,"一部約定") -> 未約定 | AD14: =IF(AA14="応札",IF($AB14="未約定",IF(OR($G14=List!$F$2:$F$3), $P14*$T14, $N14*$T14),IF($AB14="一部約定",IF(OR($G14=List!$F$2:$F$3), $P14*($T14-$U14), $N14*($T14-$U14)),"")),"") ->  | AE14: 0
V15: 0 | W15: 0 | Y15: =IF(ISNUMBER(B15), IF(COUNTIF($B15:$B$45, B15)=COUNTIF($B:$B, B15), "1", "0"), "") ->  | Z15: =IF(OR($C15=List!$C$5,$C15=List!$C$6,$C15=List!$C$11,$C15=List!$C$13), 1, 0) -> 0 | AA15: =_xlfn.IFS(T15="","未応札",T15>0,"応札") -> 未応札 | AB15: =_xlfn.IFS(U15=0,"未約定",U15=T15,"約定",U15<T15,"一部約定") -> 未約定 | AD15: =IF(AA15="応札",IF($AB15="未約定",IF(OR($G15=List!$F$2:$F$3), $P15*$T15, $N15*$T15),IF($AB15="一部約定",IF(OR($G15=List!$F$2:$F$3), $P15*($T15-$U15), $N15*($T15-$U15)),"")),"") ->  | AE15: 0
V16: 0 | W16: 0 | Y16: =IF(ISNUMBER(B16), IF(COUNTIF($B16:$B$45, B16)=COUNTIF($B:$B, B16), "1", "0"), "") ->  | Z16: =IF(OR($C16=List!$C$5,$C16=List!$C$6,$C16=List!$C$11,$C16=List!$C$13), 1, 0) -> 0 | AA16: =_xlfn.IFS(T16="","未応札",T16>0,"応札") -> 未応札 | AB16: =_xlfn.IFS(U16=0,"未約定",U16=T16,"約定",U16<T16,"一部約定") -> 未約定 | AD16: =IF(AA16="応札",IF($AB16="未約定",IF(OR($G16=List!$F$2:$F$3), $P16*$T16, $N16*$T16),IF($AB16="一部約定",IF(OR($G16=List!$F$2:$F$3), $P16*($T16-$U16), $N16*($T16-$U16)),"")),"") ->  | AE16: 0
V17: 0 | W17: 0 | Y17: =IF(ISNUMBER(B17), IF(COUNTIF($B17:$B$45, B17)=COUNTIF($B:$B, B17), "1", "0"), "") ->  | Z17: =IF(OR($C17=List!$C$5,$C17=List!$C$6,$C17=List!$C$11,$C17=List!$C$13), 1, 0) -> 0 | AA17: =_xlfn.IFS(T17="","未応札",T17>0,"応札") -> 未応札 | AB17: =_xlfn.IFS(U17=0,"未約定",U17=T17,"約定",U17<T17,"一部約定") -> 未約定 | AD17: =IF(AA17="応札",IF($AB17="未約定",IF(OR($G17=List!$F$2:$F$3), $P17*$T17, $N17*$T17),IF($AB17="一部約定",IF(OR($G17=List!$F$2:$F$3), $P17*($T17-$U17), $N17*($T17-$U17)),"")),"") ->  | AE17: 0
V18: 0 | W18: 0 | Y18: =IF(ISNUMBER(B18), IF(COUNTIF($B18:$B$45, B18)=COUNTIF($B:$B, B18), "1", "0"), "") ->  | Z18: =IF(OR($C18=List!$C$5,$C18=List!$C$6,$C18=List!$C$11,$C18=List!$C$13), 1, 0) -> 0 | AA18: =_xlfn.IFS(T18="","未応札",T18>0,"応札") -> 未応札 | AB18: =_xlfn.IFS(U18=0,"未約定",U18=T18,"約定",U18<T18,"一部約定") -> 未約定 | AD18: =IF(AA18="応札",IF($AB18="未約定",IF(OR($G18=List!$F$2:$F$3), $P18*$T18, $N18*$T18),IF($AB18="一部約定",IF(OR($G18=List!$F$2:$F$3), $P18*($T18-$U18), $N18*($T18-$U18)),"")),"") ->  | AE18: 0
V19: 0 | W19: 0 | Y19: =IF(ISNUMBER(B19), IF(COUNTIF($B19:$B$45, B19)=COUNTIF($B:$B, B19), "1", "0"), "") ->  | Z19: =IF(OR($C19=List!$C$5,$C19=List!$C$6,$C19=List!$C$11,$C19=List!$C$13), 1, 0) -> 0 | AA19: =_xlfn.IFS(T19="","未応札",T19>0,"応札") -> 未応札 | AB19: =_xlfn.IFS(U19=0,"未約定",U19=T19,"約定",U19<T19,"一部約定") -> 未約定 | AD19: =IF(AA19="応札",IF($AB19="未約定",IF(OR($G19=List!$F$2:$F$3), $P19*$T19, $N19*$T19),IF($AB19="一部約定",IF(OR($G19=List!$F$2:$F$3), $P19*($T19-$U19), $N19*($T19-$U19)),"")),"") ->  | AE19: 0
V20: 0 | W20: 0 | Y20: =IF(ISNUMBER(B20), IF(COUNTIF($B20:$B$45, B20)=COUNTIF($B:$B, B20), "1", "0"), "") ->  | Z20: =IF(OR($C20=List!$C$5,$C20=List!$C$6,$C20=List!$C$11,$C20=List!$C$13), 1, 0) -> 0 | AA20: =_xlfn.IFS(T20="","未応札",T20>0,"応札") -> 未応札 | AB20: =_xlfn.IFS(U20=0,"未約定",U20=T20,"約定",U20<T20,"一部約定") -> 未約定 | AD20: =IF(AA20="応札",IF($AB20="未約定",IF(OR($G20=List!$F$2:$F$3), $P20*$T20, $N20*$T20),IF($AB20="一部約定",IF(OR($G20=List!$F$2:$F$3), $P20*($T20-$U20), $N20*($T20-$U20)),"")),"") ->  | AE20: 0
V21: 0 | W21: 0 | Y21: =IF(ISNUMBER(B21), IF(COUNTIF($B21:$B$45, B21)=COUNTIF($B:$B, B21), "1", "0"), "") ->  | Z21: =IF(OR($C21=List!$C$5,$C21=List!$C$6,$C21=List!$C$11,$C21=List!$C$13), 1, 0) -> 0 | AA21: =_xlfn.IFS(T21="","未応札",T21>0,"応札") -> 未応札 | AB21: =_xlfn.IFS(U21=0,"未約定",U21=T21,"約定",U21<T21,"一部約定") -> 未約定 | AD21: =IF(AA21="応札",IF($AB21="未約定",IF(OR($G21=List!$F$2:$F$3), $P21*$T21, $N21*$T21),IF($AB21="一部約定",IF(OR($G21=List!$F$2:$F$3), $P21*($T21-$U21), $N21*($T21-$U21)),"")),"") ->  | AE21: 0
V22: 0 | W22: 0 | Y22: =IF(ISNUMBER(B22), IF(COUNTIF($B22:$B$45, B22)=COUNTIF($B:$B, B22), "1", "0"), "") ->  | Z22: =IF(OR($C22=List!$C$5,$C22=List!$C$6,$C22=List!$C$11,$C22=List!$C$13), 1, 0) -> 0 | AA22: =_xlfn.IFS(T22="","未応札",T22>0,"応札") -> 未応札 | AB22: =_xlfn.IFS(U22=0,"未約定",U22=T22,"約定",U22<T22,"一部約定") -> 未約定 | AD22: =IF(AA22="応札",IF($AB22="未約定",IF(OR($G22=List!$F$2:$F$3), $P22*$T22, $N22*$T22),IF($AB22="一部約定",IF(OR($G22=List!$F$2:$F$3), $P22*($T22-$U22), $N22*($T22-$U22)),"")),"") ->  | AE22: 0
V23: 0 | W23: 0 | Y23: =IF(ISNUMBER(B23), IF(COUNTIF($B23:$B$45, B23)=COUNTIF($B:$B, B23), "1", "0"), "") ->  | Z23: =IF(OR($C23=List!$C$5,$C23=List!$C$6,$C23=List!$C$11,$C23=List!$C$13), 1, 0) -> 0 | AA23: =_xlfn.IFS(T23="","未応札",T23>0,"応札") -> 未応札 | AB23: =_xlfn.IFS(U23=0,"未約定",U23=T23,"約定",U23<T23,"一部約定") -> 未約定 | AD23: =IF(AA23="応札",IF($AB23="未約定",IF(OR($G23=List!$F$2:$F$3), $P23*$T23, $N23*$T23),IF($AB23="一部約定",IF(OR($G23=List!$F$2:$F$3), $P23*($T23-$U23), $N23*($T23-$U23)),"")),"") ->  | AE23: 0
V24: 0 | W24: 0 | Y24: =IF(ISNUMBER(B24), IF(COUNTIF($B24:$B$45, B24)=COUNTIF($B:$B, B24), "1", "0"), "") ->  | Z24: =IF(OR($C24=List!$C$5,$C24=List!$C$6,$C24=List!$C$11,$C24=List!$C$13), 1, 0) -> 0 | AA24: =_xlfn.IFS(T24="","未応札",T24>0,"応札") -> 未応札 | AB24: =_xlfn.IFS(U24=0,"未約定",U24=T24,"約定",U24<T24,"一部約定") -> 未約定 | AD24: =IF(AA24="応札",IF($AB24="未約定",IF(OR($G24=List!$F$2:$F$3), $P24*$T24, $N24*$T24),IF($AB24="一部約定",IF(OR($G24=List!$F$2:$F$3), $P24*($T24-$U24), $N24*($T24-$U24)),"")),"") ->  | AE24: 0
V25: 0 | W25: 0 | Y25: =IF(ISNUMBER(B25), IF(COUNTIF($B25:$B$45, B25)=COUNTIF($B:$B, B25), "1", "0"), "") ->  | Z25: =IF(OR($C25=List!$C$5,$C25=List!$C$6,$C25=List!$C$11,$C25=List!$C$13), 1, 0) -> 0 | AA25: =_xlfn.IFS(T25="","未応札",T25>0,"応札") -> 未応札 | AB25: =_xlfn.IFS(U25=0,"未約定",U25=T25,"約定",U25<T25,"一部約定") -> 未約定 | AD25: =IF(AA25="応札",IF($AB25="未約定",IF(OR($G25=List!$F$2:$F$3), $P25*$T25, $N25*$T25),IF($AB25="一部約定",IF(OR($G25=List!$F$2:$F$3), $P25*($T25-$U25), $N25*($T25-$U25)),"")),"") ->  | AE25: 0
V26: 0 | W26: 0 | Y26: =IF(ISNUMBER(B26), IF(COUNTIF($B26:$B$45, B26)=COUNTIF($B:$B, B26), "1", "0"), "") ->  | Z26: =IF(OR($C26=List!$C$5,$C26=List!$C$6,$C26=List!$C$11,$C26=List!$C$13), 1, 0) -> 0 | AA26: =_xlfn.IFS(T26="","未応札",T26>0,"応札") -> 未応札 | AB26: =_xlfn.IFS(U26=0,"未約定",U26=T26,"約定",U26<T26,"一部約定") -> 未約定 | AD26: =IF(AA26="応札",IF($AB26="未約定",IF(OR($G26=List!$F$2:$F$3), $P26*$T26, $N26*$T26),IF($AB26="一部約定",IF(OR($G26=List!$F$2:$F$3), $P26*($T26-$U26), $N26*($T26-$U26)),"")),"") ->  | AE26: 0
V27: 0 | W27: 0 | Y27: =IF(ISNUMBER(B27), IF(COUNTIF($B27:$B$45, B27)=COUNTIF($B:$B, B27), "1", "0"), "") ->  | Z27: =IF(OR($C27=List!$C$5,$C27=List!$C$6,$C27=List!$C$11,$C27=List!$C$13), 1, 0) -> 0 | AA27: =_xlfn.IFS(T27="","未応札",T27>0,"応札") -> 未応札 | AB27: =_xlfn.IFS(U27=0,"未約定",U27=T27,"約定",U27<T27,"一部約定") -> 未約定 | AD27: =IF(AA27="応札",IF($AB27="未約定",IF(OR($G27=List!$F$2:$F$3), $P27*$T27, $N27*$T27),IF($AB27="一部約定",IF(OR($G27=List!$F$2:$F$3), $P27*($T27-$U27), $N27*($T27-$U27)),"")),"") ->  | AE27: 0
V28: 0 | W28: 0 | Y28: =IF(ISNUMBER(B28), IF(COUNTIF($B28:$B$45, B28)=COUNTIF($B:$B, B28), "1", "0"), "") ->  | Z28: =IF(OR($C28=List!$C$5,$C28=List!$C$6,$C28=List!$C$11,$C28=List!$C$13), 1, 0) -> 0 | AA28: =_xlfn.IFS(T28="","未応札",T28>0,"応札") -> 未応札 | AB28: =_xlfn.IFS(U28=0,"未約定",U28=T28,"約定",U28<T28,"一部約定") -> 未約定 | AD28: =IF(AA28="応札",IF($AB28="未約定",IF(OR($G28=List!$F$2:$F$3), $P28*$T28, $N28*$T28),IF($AB28="一部約定",IF(OR($G28=List!$F$2:$F$3), $P28*($T28-$U28), $N28*($T28-$U28)),"")),"") ->  | AE28: 0
V29: 0 | W29: 0 | Y29: =IF(ISNUMBER(B29), IF(COUNTIF($B29:$B$45, B29)=COUNTIF($B:$B, B29), "1", "0"), "") ->  | Z29: =IF(OR($C29=List!$C$5,$C29=List!$C$6,$C29=List!$C$11,$C29=List!$C$13), 1, 0) -> 0 | AA29: =_xlfn.IFS(T29="","未応札",T29>0,"応札") -> 未応札 | AB29: =_xlfn.IFS(U29=0,"未約定",U29=T29,"約定",U29<T29,"一部約定") -> 未約定 | AD29: =IF(AA29="応札",IF($AB29="未約定",IF(OR($G29=List!$F$2:$F$3), $P29*$T29, $N29*$T29),IF($AB29="一部約定",IF(OR($G29=List!$F$2:$F$3), $P29*($T29-$U29), $N29*($T29-$U29)),"")),"") ->  | AE29: 0
V30: 0 | W30: 0 | Y30: =IF(ISNUMBER(B30), IF(COUNTIF($B30:$B$45, B30)=COUNTIF($B:$B, B30), "1", "0"), "") ->  | Z30: =IF(OR($C30=List!$C$5,$C30=List!$C$6,$C30=List!$C$11,$C30=List!$C$13), 1, 0) -> 0 | AA30: =_xlfn.IFS(T30="","未応札",T30>0,"応札") -> 未応札 | AB30: =_xlfn.IFS(U30=0,"未約定",U30=T30,"約定",U30<T30,"一部約定") -> 未約定 | AD30: =IF(AA30="応札",IF($AB30="未約定",IF(OR($G30=List!$F$2:$F$3), $P30*$T30, $N30*$T30),IF($AB30="一部約定",IF(OR($G30=List!$F$2:$F$3), $P30*($T30-$U30), $N30*($T30-$U30)),"")),"") ->  | AE30: 0
V31: 0 | W31: 0 | Y31: =IF(ISNUMBER(B31), IF(COUNTIF($B31:$B$45, B31)=COUNTIF($B:$B, B31), "1", "0"), "") ->  | Z31: =IF(OR($C31=List!$C$5,$C31=List!$C$6,$C31=List!$C$11,$C31=List!$C$13), 1, 0) -> 0 | AA31: =_xlfn.IFS(T31="","未応札",T31>0,"応札") -> 未応札 | AB31: =_xlfn.IFS(U31=0,"未約定",U31=T31,"約定",U31<T31,"一部約定") -> 未約定 | AD31: =IF(AA31="応札",IF($AB31="未約定",IF(OR($G31=List!$F$2:$F$3), $P31*$T31, $N31*$T31),IF($AB31="一部約定",IF(OR($G31=List!$F$2:$F$3), $P31*($T31-$U31), $N31*($T31-$U31)),"")),"") ->  | AE31: 0
V32: 0 | W32: 0 | Y32: =IF(ISNUMBER(B32), IF(COUNTIF($B32:$B$45, B32)=COUNTIF($B:$B, B32), "1", "0"), "") ->  | Z32: =IF(OR($C32=List!$C$5,$C32=List!$C$6,$C32=List!$C$11,$C32=List!$C$13), 1, 0) -> 0 | AA32: =_xlfn.IFS(T32="","未応札",T32>0,"応札") -> 未応札 | AB32: =_xlfn.IFS(U32=0,"未約定",U32=T32,"約定",U32<T32,"一部約定") -> 未約定 | AD32: =IF(AA32="応札",IF($AB32="未約定",IF(OR($G32=List!$F$2:$F$3), $P32*$T32, $N32*$T32),IF($AB32="一部約定",IF(OR($G32=List!$F$2:$F$3), $P32*($T32-$U32), $N32*($T32-$U32)),"")),"") ->  | AE32: 0
V33: 0 | W33: 0 | Y33: =IF(ISNUMBER(B33), IF(COUNTIF($B33:$B$45, B33)=COUNTIF($B:$B, B33), "1", "0"), "") ->  | Z33: =IF(OR($C33=List!$C$5,$C33=List!$C$6,$C33=List!$C$11,$C33=List!$C$13), 1, 0) -> 0 | AA33: =_xlfn.IFS(T33="","未応札",T33>0,"応札") -> 未応札 | AB33: =_xlfn.IFS(U33=0,"未約定",U33=T33,"約定",U33<T33,"一部約定") -> 未約定 | AD33: =IF(AA33="応札",IF($AB33="未約定",IF(OR($G33=List!$F$2:$F$3), $P33*$T33, $N33*$T33),IF($AB33="一部約定",IF(OR($G33=List!$F$2:$F$3), $P33*($T33-$U33), $N33*($T33-$U33)),"")),"") ->  | AE33: 0
V34: 0 | W34: 0 | Y34: =IF(ISNUMBER(B34), IF(COUNTIF($B34:$B$45, B34)=COUNTIF($B:$B, B34), "1", "0"), "") ->  | Z34: =IF(OR($C34=List!$C$5,$C34=List!$C$6,$C34=List!$C$11,$C34=List!$C$13), 1, 0) -> 0 | AA34: =_xlfn.IFS(T34="","未応札",T34>0,"応札") -> 未応札 | AB34: =_xlfn.IFS(U34=0,"未約定",U34=T34,"約定",U34<T34,"一部約定") -> 未約定 | AD34: =IF(AA34="応札",IF($AB34="未約定",IF(OR($G34=List!$F$2:$F$3), $P34*$T34, $N34*$T34),IF($AB34="一部約定",IF(OR($G34=List!$F$2:$F$3), $P34*($T34-$U34), $N34*($T34-$U34)),"")),"") ->  | AE34: 0
V35: 0 | W35: 0 | Y35: =IF(ISNUMBER(B35), IF(COUNTIF($B35:$B$45, B35)=COUNTIF($B:$B, B35), "1", "0"), "") ->  | Z35: =IF(OR($C35=List!$C$5,$C35=List!$C$6,$C35=List!$C$11,$C35=List!$C$13), 1, 0) -> 0 | AA35: =_xlfn.IFS(T35="","未応札",T35>0,"応札") -> 未応札 | AB35: =_xlfn.IFS(U35=0,"未約定",U35=T35,"約定",U35<T35,"一部約定") -> 未約定 | AD35: =IF(AA35="応札",IF($AB35="未約定",IF(OR($G35=List!$F$2:$F$3), $P35*$T35, $N35*$T35),IF($AB35="一部約定",IF(OR($G35=List!$F$2:$F$3), $P35*($T35-$U35), $N35*($T35-$U35)),"")),"") ->  | AE35: 0
V36: 0 | W36: 0 | Y36: =IF(ISNUMBER(B36), IF(COUNTIF($B36:$B$45, B36)=COUNTIF($B:$B, B36), "1", "0"), "") ->  | Z36: =IF(OR($C36=List!$C$5,$C36=List!$C$6,$C36=List!$C$11,$C36=List!$C$13), 1, 0) -> 0 | AA36: =_xlfn.IFS(T36="","未応札",T36>0,"応札") -> 未応札 | AB36: =_xlfn.IFS(U36=0,"未約定",U36=T36,"約定",U36<T36,"一部約定") -> 未約定 | AD36: =IF(AA36="応札",IF($AB36="未約定",IF(OR($G36=List!$F$2:$F$3), $P36*$T36, $N36*$T36),IF($AB36="一部約定",IF(OR($G36=List!$F$2:$F$3), $P36*($T36-$U36), $N36*($T36-$U36)),"")),"") ->  | AE36: 0
V37: 0 | W37: 0 | Y37: =IF(ISNUMBER(B37), IF(COUNTIF($B37:$B$45, B37)=COUNTIF($B:$B, B37), "1", "0"), "") ->  | Z37: =IF(OR($C37=List!$C$5,$C37=List!$C$6,$C37=List!$C$11,$C37=List!$C$13), 1, 0) -> 0 | AA37: =_xlfn.IFS(T37="","未応札",T37>0,"応札") -> 未応札 | AB37: =_xlfn.IFS(U37=0,"未約定",U37=T37,"約定",U37<T37,"一部約定") -> 未約定 | AD37: =IF(AA37="応札",IF($AB37="未約定",IF(OR($G37=List!$F$2:$F$3), $P37*$T37, $N37*$T37),IF($AB37="一部約定",IF(OR($G37=List!$F$2:$F$3), $P37*($T37-$U37), $N37*($T37-$U37)),"")),"") ->  | AE37: 0
V38: 0 | W38: 0 | Y38: =IF(ISNUMBER(B38), IF(COUNTIF($B38:$B$45, B38)=COUNTIF($B:$B, B38), "1", "0"), "") ->  | Z38: =IF(OR($C38=List!$C$5,$C38=List!$C$6,$C38=List!$C$11,$C38=List!$C$13), 1, 0) -> 0 | AA38: =_xlfn.IFS(T38="","未応札",T38>0,"応札") -> 未応札 | AB38: =_xlfn.IFS(U38=0,"未約定",U38=T38,"約定",U38<T38,"一部約定") -> 未約定 | AD38: =IF(AA38="応札",IF($AB38="未約定",IF(OR($G38=List!$F$2:$F$3), $P38*$T38, $N38*$T38),IF($AB38="一部約定",IF(OR($G38=List!$F$2:$F$3), $P38*($T38-$U38), $N38*($T38-$U38)),"")),"") ->  | AE38: 0
V39: 0 | W39: 0 | Y39: =IF(ISNUMBER(B39), IF(COUNTIF($B39:$B$45, B39)=COUNTIF($B:$B, B39), "1", "0"), "") ->  | Z39: =IF(OR($C39=List!$C$5,$C39=List!$C$6,$C39=List!$C$11,$C39=List!$C$13), 1, 0) -> 0 | AA39: =_xlfn.IFS(T39="","未応札",T39>0,"応札") -> 未応札 | AB39: =_xlfn.IFS(U39=0,"未約定",U39=T39,"約定",U39<T39,"一部約定") -> 未約定 | AD39: =IF(AA39="応札",IF($AB39="未約定",IF(OR($G39=List!$F$2:$F$3), $P39*$T39, $N39*$T39),IF($AB39="一部約定",IF(OR($G39=List!$F$2:$F$3), $P39*($T39-$U39), $N39*($T39-$U39)),"")),"") ->  | AE39: 0
V40: 0 | W40: 0 | Y40: =IF(ISNUMBER(B40), IF(COUNTIF($B40:$B$45, B40)=COUNTIF($B:$B, B40), "1", "0"), "") ->  | Z40: =IF(OR($C40=List!$C$5,$C40=List!$C$6,$C40=List!$C$11,$C40=List!$C$13), 1, 0) -> 0 | AA40: =_xlfn.IFS(T40="","未応札",T40>0,"応札") -> 未応札 | AB40: =_xlfn.IFS(U40=0,"未約定",U40=T40,"約定",U40<T40,"一部約定") -> 未約定 | AD40: =IF(AA40="応札",IF($AB40="未約定",IF(OR($G40=List!$F$2:$F$3), $P40*$T40, $N40*$T40),IF($AB40="一部約定",IF(OR($G40=List!$F$2:$F$3), $P40*($T40-$U40), $N40*($T40-$U40)),"")),"") ->  | AE40: 0
V41: 0 | W41: 0 | Y41: =IF(ISNUMBER(B41), IF(COUNTIF($B41:$B$45, B41)=COUNTIF($B:$B, B41), "1", "0"), "") ->  | Z41: =IF(OR($C41=List!$C$5,$C41=List!$C$6,$C41=List!$C$11,$C41=List!$C$13), 1, 0) -> 0 | AA41: =_xlfn.IFS(T41="","未応札",T41>0,"応札") -> 未応札 | AB41: =_xlfn.IFS(U41=0,"未約定",U41=T41,"約定",U41<T41,"一部約定") -> 未約定 | AD41: =IF(AA41="応札",IF($AB41="未約定",IF(OR($G41=List!$F$2:$F$3), $P41*$T41, $N41*$T41),IF($AB41="一部約定",IF(OR($G41=List!$F$2:$F$3), $P41*($T41-$U41), $N41*($T41-$U41)),"")),"") ->  | AE41: 0
V42: 0 | W42: 0 | Y42: =IF(ISNUMBER(B42), IF(COUNTIF($B42:$B$45, B42)=COUNTIF($B:$B, B42), "1", "0"), "") ->  | Z42: =IF(OR($C42=List!$C$5,$C42=List!$C$6,$C42=List!$C$11,$C42=List!$C$13), 1, 0) -> 0 | AA42: =_xlfn.IFS(T42="","未応札",T42>0,"応札") -> 未応札 | AB42: =_xlfn.IFS(U42=0,"未約定",U42=T42,"約定",U42<T42,"一部約定") -> 未約定 | AD42: =IF(AA42="応札",IF($AB42="未約定",IF(OR($G42=List!$F$2:$F$3), $P42*$T42, $N42*$T42),IF($AB42="一部約定",IF(OR($G42=List!$F$2:$F$3), $P42*($T42-$U42), $N42*($T42-$U42)),"")),"") ->  | AE42: 0
V43: 0 | W43: 0 | Y43: =IF(ISNUMBER(B43), IF(COUNTIF($B43:$B$45, B43)=COUNTIF($B:$B, B43), "1", "0"), "") ->  | Z43: =IF(OR($C43=List!$C$5,$C43=List!$C$6,$C43=List!$C$11,$C43=List!$C$13), 1, 0) -> 0 | AA43: =_xlfn.IFS(T43="","未応札",T43>0,"応札") -> 未応札 | AB43: =_xlfn.IFS(U43=0,"未約定",U43=T43,"約定",U43<T43,"一部約定") -> 未約定 | AD43: =IF(AA43="応札",IF($AB43="未約定",IF(OR($G43=List!$F$2:$F$3), $P43*$T43, $N43*$T43),IF($AB43="一部約定",IF(OR($G43=List!$F$2:$F$3), $P43*($T43-$U43), $N43*($T43-$U43)),"")),"") ->  | AE43: 0
V44: 0 | W44: 0 | Y44: =IF(ISNUMBER(B44), IF(COUNTIF($B44:$B$45, B44)=COUNTIF($B:$B, B44), "1", "0"), "") ->  | Z44: =IF(OR($C44=List!$C$5,$C44=List!$C$6,$C44=List!$C$11,$C44=List!$C$13), 1, 0) -> 0 | AA44: =_xlfn.IFS(T44="","未応札",T44>0,"応札") -> 未応札 | AB44: =_xlfn.IFS(U44=0,"未約定",U44=T44,"約定",U44<T44,"一部約定") -> 未約定 | AD44: =IF(AA44="応札",IF($AB44="未約定",IF(OR($G44=List!$F$2:$F$3), $P44*$T44, $N44*$T44),IF($AB44="一部約定",IF(OR($G44=List!$F$2:$F$3), $P44*($T44-$U44), $N44*($T44-$U44)),"")),"") ->  | AE44: 0
B45: 1 | C45: 9：持ち下げ・起動供出機：一部不落 | D45: 0：非対象 | E45: 20250401 | F45: 2 | G45: 2：該当（持ち下げ供出機） | H45: ○X○○○ | J45: 2：三次調整力② | K45: ○○○○○○ | L45: 2025040131CCC○○○○○○ | M45: ○○○○○○ | O45: 10 | P45: 70 | Q45: 2.25 | T45: 50000 | U45: 30000 | V45: =Q45*(T45-U45) -> 45000 | W45: 0 | Y45: =IF(ISNUMBER(B45), IF(COUNTIF($B$45:$B45, B45)=COUNTIF($B:$B, B45), "1", "0"), "") -> 1 | Z45: =IF(OR($C45=List!$C$5,$C45=List!$C$6,$C45=List!$C$11,$C45=List!$C$13), 1, 0) -> 0 | AA45: =_xlfn.IFS(T45="","未応札",T45>0,"応札") -> 応札 | AB45: =_xlfn.IFS(U45=0,"未約定",U45=T45,"約定",U45<T45,"一部約定") -> 一部約定 | AC45: 1：並列 | AD45: =IF(AA45="応札",IF($AB45="未約定",IF(OR($G45=List!$F$2:$F$3), $P45*$T45, $N45*$T45),IF($AB45="一部約定",IF(OR($G45=List!$F$2:$F$3), $P45*($T45-$U45), $N45*($T45-$U45)),"")),"") -> 1400000 | AE45: 45000
B46: 2 | C46: 9：持ち下げ・起動供出機：一部不落 | D46: 0：非対象 | E46: 20250401 | F46: 2 | G46: 1：該当（起動供出機） | H46: ○Y○○○ | J46: 2：三次調整力② | K46: ○○○○○○ | L46: 2025040131BBB○○○○○○ | M46: ○○○○○○ | O46: 150 | P46: 77.75 | Q46: 2.25 | R46: 20000 | S46: 20000 | T46: 50000 | U46: 30000 | V46: =Q46*(T46-U46) -> 45000 | W46: 0 | Y46: =IF(ISNUMBER(B46), IF(COUNTIF($B$45:$B46, B46)=COUNTIF($B:$B, B46), "1", "0"), "") -> 1 | Z46: =IF(OR($C46=List!$C$5,$C46=List!$C$6,$C46=List!$C$11,$C46=List!$C$13), 1, 0) -> 0 | AA46: =_xlfn.IFS(T46="","未応札",T46>0,"応札") -> 応札 | AB46: =_xlfn.IFS(U46=0,"未約定",U46=T46,"約定",U46<T46,"一部約定") -> 一部約定 | AC46: 1：並列 | AD46: =IF(AA46="応札",IF($AB46="未約定",IF(OR($G46=List!$F$2:$F$3), $P46*$T46, $N46*$T46),IF($AB46="一部約定",IF(OR($G46=List!$F$2:$F$3), $P46*($T46-$U46), $N46*($T46-$U46)),"")),"") -> 1555000 | AE46: 45000
B47: 3 | C47: 8：持ち下げ・起動供出機：全量不落 | D47: 0：非対象 | E47: 20250402 | F47: 2 | G47: 2：該当（持ち下げ供出機） | H47: ○X○○○ | J47: 2：三次調整力② | K47: ○○○○○○ | L47: 2025040131AAA○○○○○○ | M47: ○○○○○○ | O47: 10 | P47: 70 | T47: 50000 | U47: 0 | V47: =Q47*(T47-U47) -> 0 | W47: 0 | Y47: =IF(ISNUMBER(B47), IF(COUNTIF($B$45:$B47, B47)=COUNTIF($B:$B, B47), "1", "0"), "") -> 1 | Z47: =IF(OR($C47=List!$C$5,$C47=List!$C$6,$C47=List!$C$11,$C47=List!$C$13), 1, 0) -> 0 | AA47: =_xlfn.IFS(T47="","未応札",T47>0,"応札") -> 応札 | AB47: =_xlfn.IFS(U47=0,"未約定",U47=T47,"約定",U47<T47,"一部約定") -> 未約定 | AC47: 1：並列 | AD47: =IF(AA47="応札",IF($AB47="未約定",IF(OR($G47=List!$F$2:$F$3), $P47*$T47, $N47*$T47),IF($AB47="一部約定",IF(OR($G47=List!$F$2:$F$3), $P47*($T47-$U47), $N47*($T47-$U47)),"")),"") -> 3500000 | AE47: 0
B48: 4 | C48: 8：持ち下げ・起動供出機：全量不落 | D48: 0：非対象 | E48: 20250402 | F48: 2 | G48: 1：該当（起動供出機） | H48: ○Y○○○ | J48: 2：三次調整力② | K48: ○○○○○○ | O48: 150 | P48: 77.75 | R48: 0 | S48: 0 | T48: 50000 | U48: 0 | V48: 0 | W48: 0 | Y48: =IF(ISNUMBER(B48), IF(COUNTIF($B$45:$B48, B48)=COUNTIF($B:$B, B48), "1", "0"), "") -> 1 | Z48: =IF(OR($C48=List!$C$5,$C48=List!$C$6,$C48=List!$C$11,$C48=List!$C$13), 1, 0) -> 0 | AA48: =_xlfn.IFS(T48="","未応札",T48>0,"応札") -> 応札 | AB48: =_xlfn.IFS(U48=0,"未約定",U48=T48,"約定",U48<T48,"一部約定") -> 未約定 | AC48: 1：並列 | AD48: =IF(AA48="応札",IF($AB48="未約定",IF(OR($G48=List!$F$2:$F$3), $P48*$T48, $N48*$T48),IF($AB48="一部約定",IF(OR($G48=List!$F$2:$F$3), $P48*($T48-$U48), $N48*($T48-$U48)),"")),"") -> 3887500
V49: 0 | W49: 0 | Y49: =IF(ISNUMBER(B49), IF(COUNTIF($B$45:$B49, B49)=COUNTIF($B:$B, B49), "1", "0"), "") ->  | Z49: =IF(OR($C49=List!$C$5,$C49=List!$C$6,$C49=List!$C$11,$C49=List!$C$13), 1, 0) -> 0 | AA49: =_xlfn.IFS(T49="","未応札",T49>0,"応札") -> 未応札 | AB49: =_xlfn.IFS(U49=0,"未約定",U49=T49,"約定",U49<T49,"一部約定") -> 未約定 | AD49: =IF(AA49="応札",IF($AB49="未約定",IF(OR($G49=List!$F$2:$F$3), $P49*$T49, $N49*$T49),IF($AB49="一部約定",IF(OR($G49=List!$F$2:$F$3), $P49*($T49-$U49), $N49*($T49-$U49)),"")),"") ->  | AE49: 0
V50: 0 | W50: 0 | Y50: =IF(ISNUMBER(B50), IF(COUNTIF($B$45:$B50, B50)=COUNTIF($B:$B, B50), "1", "0"), "") ->  | Z50: =IF(OR($C50=List!$C$5,$C50=List!$C$6,$C50=List!$C$11,$C50=List!$C$13), 1, 0) -> 0 | AA50: =_xlfn.IFS(T50="","未応札",T50>0,"応札") -> 未応札 | AB50: =_xlfn.IFS(U50=0,"未約定",U50=T50,"約定",U50<T50,"一部約定") -> 未約定 | AD50: =IF(AA50="応札",IF($AB50="未約定",IF(OR($G50=List!$F$2:$F$3), $P50*$T50, $N50*$T50),IF($AB50="一部約定",IF(OR($G50=List!$F$2:$F$3), $P50*($T50-$U50), $N50*($T50-$U50)),"")),"") ->  | AE50: 0
V51: 0 | W51: 0 | Y51: =IF(ISNUMBER(B51), IF(COUNTIF($B$45:$B51, B51)=COUNTIF($B:$B, B51), "1", "0"), "") ->  | Z51: =IF(OR($C51=List!$C$5,$C51=List!$C$6,$C51=List!$C$11,$C51=List!$C$13), 1, 0) -> 0 | AA51: =_xlfn.IFS(T51="","未応札",T51>0,"応札") -> 未応札 | AB51: =_xlfn.IFS(U51=0,"未約定",U51=T51,"約定",U51<T51,"一部約定") -> 未約定 | AD51: =IF(AA51="応札",IF($AB51="未約定",IF(OR($G51=List!$F$2:$F$3), $P51*$T51, $N51*$T51),IF($AB51="一部約定",IF(OR($G51=List!$F$2:$F$3), $P51*($T51-$U51), $N51*($T51-$U51)),"")),"") ->  | AE51: 0
V52: 0 | W52: 0 | Y52: =IF(ISNUMBER(B52), IF(COUNTIF($B$45:$B52, B52)=COUNTIF($B:$B, B52), "1", "0"), "") ->  | Z52: =IF(OR($C52=List!$C$5,$C52=List!$C$6,$C52=List!$C$11,$C52=List!$C$13), 1, 0) -> 0 | AA52: =_xlfn.IFS(T52="","未応札",T52>0,"応札") -> 未応札 | AB52: =_xlfn.IFS(U52=0,"未約定",U52=T52,"約定",U52<T52,"一部約定") -> 未約定 | AD52: =IF(AA52="応札",IF($AB52="未約定",IF(OR($G52=List!$F$2:$F$3), $P52*$T52, $N52*$T52),IF($AB52="一部約定",IF(OR($G52=List!$F$2:$F$3), $P52*($T52-$U52), $N52*($T52-$U52)),"")),"") ->  | AE52: 0
V53: 0 | W53: 0 | Y53: =IF(ISNUMBER(B53), IF(COUNTIF($B$45:$B53, B53)=COUNTIF($B:$B, B53), "1", "0"), "") ->  | Z53: =IF(OR($C53=List!$C$5,$C53=List!$C$6,$C53=List!$C$11,$C53=List!$C$13), 1, 0) -> 0 | AA53: =_xlfn.IFS(T53="","未応札",T53>0,"応札") -> 未応札 | AB53: =_xlfn.IFS(U53=0,"未約定",U53=T53,"約定",U53<T53,"一部約定") -> 未約定 | AD53: =IF(AA53="応札",IF($AB53="未約定",IF(OR($G53=List!$F$2:$F$3), $P53*$T53, $N53*$T53),IF($AB53="一部約定",IF(OR($G53=List!$F$2:$F$3), $P53*($T53-$U53), $N53*($T53-$U53)),"")),"") ->  | AE53: 0
V54: 0 | W54: 0 | Y54: =IF(ISNUMBER(B54), IF(COUNTIF($B$45:$B54, B54)=COUNTIF($B:$B, B54), "1", "0"), "") ->  | Z54: =IF(OR($C54=List!$C$5,$C54=List!$C$6,$C54=List!$C$11,$C54=List!$C$13), 1, 0) -> 0 | AA54: =_xlfn.IFS(T54="","未応札",T54>0,"応札") -> 未応札 | AB54: =_xlfn.IFS(U54=0,"未約定",U54=T54,"約定",U54<T54,"一部約定") -> 未約定 | AD54: =IF(AA54="応札",IF($AB54="未約定",IF(OR($G54=List!$F$2:$F$3), $P54*$T54, $N54*$T54),IF($AB54="一部約定",IF(OR($G54=List!$F$2:$F$3), $P54*($T54-$U54), $N54*($T54-$U54)),"")),"") ->  | AE54: 0
V55: 0 | W55: 0 | Y55: =IF(ISNUMBER(B55), IF(COUNTIF($B$45:$B55, B55)=COUNTIF($B:$B, B55), "1", "0"), "") ->  | Z55: =IF(OR($C55=List!$C$5,$C55=List!$C$6,$C55=List!$C$11,$C55=List!$C$13), 1, 0) -> 0 | AA55: =_xlfn.IFS(T55="","未応札",T55>0,"応札") -> 未応札 | AB55: =_xlfn.IFS(U55=0,"未約定",U55=T55,"約定",U55<T55,"一部約定") -> 未約定 | AD55: =IF(AA55="応札",IF($AB55="未約定",IF(OR($G55=List!$F$2:$F$3), $P55*$T55, $N55*$T55),IF($AB55="一部約定",IF(OR($G55=List!$F$2:$F$3), $P55*($T55-$U55), $N55*($T55-$U55)),"")),"") ->  | AE55: 0
V56: 0 | W56: 0 | Y56: =IF(ISNUMBER(B56), IF(COUNTIF($B$45:$B56, B56)=COUNTIF($B:$B, B56), "1", "0"), "") ->  | Z56: =IF(OR($C56=List!$C$5,$C56=List!$C$6,$C56=List!$C$11,$C56=List!$C$13), 1, 0) -> 0 | AA56: =_xlfn.IFS(T56="","未応札",T56>0,"応札") -> 未応札 | AB56: =_xlfn.IFS(U56=0,"未約定",U56=T56,"約定",U56<T56,"一部約定") -> 未約定 | AD56: =IF(AA56="応札",IF($AB56="未約定",IF(OR($G56=List!$F$2:$F$3), $P56*$T56, $N56*$T56),IF($AB56="一部約定",IF(OR($G56=List!$F$2:$F$3), $P56*($T56-$U56), $N56*($T56-$U56)),"")),"") ->  | AE56: 0
V57: 0 | W57: 0 | Y57: =IF(ISNUMBER(B57), IF(COUNTIF($B$45:$B57, B57)=COUNTIF($B:$B, B57), "1", "0"), "") ->  | Z57: =IF(OR($C57=List!$C$5,$C57=List!$C$6,$C57=List!$C$11,$C57=List!$C$13), 1, 0) -> 0 | AA57: =_xlfn.IFS(T57="","未応札",T57>0,"応札") -> 未応札 | AB57: =_xlfn.IFS(U57=0,"未約定",U57=T57,"約定",U57<T57,"一部約定") -> 未約定 | AD57: =IF(AA57="応札",IF($AB57="未約定",IF(OR($G57=List!$F$2:$F$3), $P57*$T57, $N57*$T57),IF($AB57="一部約定",IF(OR($G57=List!$F$2:$F$3), $P57*($T57-$U57), $N57*($T57-$U57)),"")),"") ->  | AE57: 0
V58: 0 | W58: 0 | Y58: =IF(ISNUMBER(B58), IF(COUNTIF($B$45:$B58, B58)=COUNTIF($B:$B, B58), "1", "0"), "") ->  | Z58: =IF(OR($C58=List!$C$5,$C58=List!$C$6,$C58=List!$C$11,$C58=List!$C$13), 1, 0) -> 0 | AA58: =_xlfn.IFS(T58="","未応札",T58>0,"応札") -> 未応札 | AB58: =_xlfn.IFS(U58=0,"未約定",U58=T58,"約定",U58<T58,"一部約定") -> 未約定 | AD58: =IF(AA58="応札",IF($AB58="未約定",IF(OR($G58=List!$F$2:$F$3), $P58*$T58, $N58*$T58),IF($AB58="一部約定",IF(OR($G58=List!$F$2:$F$3), $P58*($T58-$U58), $N58*($T58-$U58)),"")),"") ->  | AE58: 0
V59: 0 | W59: 0 | Y59: =IF(ISNUMBER(B59), IF(COUNTIF($B$45:$B59, B59)=COUNTIF($B:$B, B59), "1", "0"), "") ->  | Z59: =IF(OR($C59=List!$C$5,$C59=List!$C$6,$C59=List!$C$11,$C59=List!$C$13), 1, 0) -> 0 | AA59: =_xlfn.IFS(T59="","未応札",T59>0,"応札") -> 未応札 | AB59: =_xlfn.IFS(U59=0,"未約定",U59=T59,"約定",U59<T59,"一部約定") -> 未約定 | AD59: =IF(AA59="応札",IF($AB59="未約定",IF(OR($G59=List!$F$2:$F$3), $P59*$T59, $N59*$T59),IF($AB59="一部約定",IF(OR($G59=List!$F$2:$F$3), $P59*($T59-$U59), $N59*($T59-$U59)),"")),"") ->  | AE59: 0
V60: 0 | W60: 0 | Y60: =IF(ISNUMBER(B60), IF(COUNTIF($B$45:$B60, B60)=COUNTIF($B:$B, B60), "1", "0"), "") ->  | Z60: =IF(OR($C60=List!$C$5,$C60=List!$C$6,$C60=List!$C$11,$C60=List!$C$13), 1, 0) -> 0 | AA60: =_xlfn.IFS(T60="","未応札",T60>0,"応札") -> 未応札 | AB60: =_xlfn.IFS(U60=0,"未約定",U60=T60,"約定",U60<T60,"一部約定") -> 未約定 | AD60: =IF(AA60="応札",IF($AB60="未約定",IF(OR($G60=List!$F$2:$F$3), $P60*$T60, $N60*$T60),IF($AB60="一部約定",IF(OR($G60=List!$F$2:$F$3), $P60*($T60-$U60), $N60*($T60-$U60)),"")),"") ->  | AE60: 0
V61: 0 | W61: 0 | Y61: =IF(ISNUMBER(B61), IF(COUNTIF($B$45:$B61, B61)=COUNTIF($B:$B, B61), "1", "0"), "") ->  | Z61: =IF(OR($C61=List!$C$5,$C61=List!$C$6,$C61=List!$C$11,$C61=List!$C$13), 1, 0) -> 0 | AA61: =_xlfn.IFS(T61="","未応札",T61>0,"応札") -> 未応札 | AB61: =_xlfn.IFS(U61=0,"未約定",U61=T61,"約定",U61<T61,"一部約定") -> 未約定 | AD61: =IF(AA61="応札",IF($AB61="未約定",IF(OR($G61=List!$F$2:$F$3), $P61*$T61, $N61*$T61),IF($AB61="一部約定",IF(OR($G61=List!$F$2:$F$3), $P61*($T61-$U61), $N61*($T61-$U61)),"")),"") ->  | AE61: 0
V62: 0 | W62: 0 | Y62: =IF(ISNUMBER(B62), IF(COUNTIF($B$45:$B62, B62)=COUNTIF($B:$B, B62), "1", "0"), "") ->  | Z62: =IF(OR($C62=List!$C$5,$C62=List!$C$6,$C62=List!$C$11,$C62=List!$C$13), 1, 0) -> 0 | AA62: =_xlfn.IFS(T62="","未応札",T62>0,"応札") -> 未応札 | AB62: =_xlfn.IFS(U62=0,"未約定",U62=T62,"約定",U62<T62,"一部約定") -> 未約定 | AD62: =IF(AA62="応札",IF($AB62="未約定",IF(OR($G62=List!$F$2:$F$3), $P62*$T62, $N62*$T62),IF($AB62="一部約定",IF(OR($G62=List!$F$2:$F$3), $P62*($T62-$U62), $N62*($T62-$U62)),"")),"") ->  | AE62: 0
V63: 0 | W63: 0 | Y63: =IF(ISNUMBER(B63), IF(COUNTIF($B$45:$B63, B63)=COUNTIF($B:$B, B63), "1", "0"), "") ->  | Z63: =IF(OR($C63=List!$C$5,$C63=List!$C$6,$C63=List!$C$11,$C63=List!$C$13), 1, 0) -> 0 | AA63: =_xlfn.IFS(T63="","未応札",T63>0,"応札") -> 未応札 | AB63: =_xlfn.IFS(U63=0,"未約定",U63=T63,"約定",U63<T63,"一部約定") -> 未約定 | AD63: =IF(AA63="応札",IF($AB63="未約定",IF(OR($G63=List!$F$2:$F$3), $P63*$T63, $N63*$T63),IF($AB63="一部約定",IF(OR($G63=List!$F$2:$F$3), $P63*($T63-$U63), $N63*($T63-$U63)),"")),"") ->  | AE63: 0
V64: 0 | W64: 0 | Y64: =IF(ISNUMBER(B64), IF(COUNTIF($B$45:$B64, B64)=COUNTIF($B:$B, B64), "1", "0"), "") ->  | Z64: =IF(OR($C64=List!$C$5,$C64=List!$C$6,$C64=List!$C$11,$C64=List!$C$13), 1, 0) -> 0 | AA64: =_xlfn.IFS(T64="","未応札",T64>0,"応札") -> 未応札 | AB64: =_xlfn.IFS(U64=0,"未約定",U64=T64,"約定",U64<T64,"一部約定") -> 未約定 | AD64: =IF(AA64="応札",IF($AB64="未約定",IF(OR($G64=List!$F$2:$F$3), $P64*$T64, $N64*$T64),IF($AB64="一部約定",IF(OR($G64=List!$F$2:$F$3), $P64*($T64-$U64), $N64*($T64-$U64)),"")),"") ->  | AE64: 0
V65: 0 | W65: 0 | Y65: =IF(ISNUMBER(B65), IF(COUNTIF($B$45:$B65, B65)=COUNTIF($B:$B, B65), "1", "0"), "") ->  | Z65: =IF(OR($C65=List!$C$5,$C65=List!$C$6,$C65=List!$C$11,$C65=List!$C$13), 1, 0) -> 0 | AA65: =_xlfn.IFS(T65="","未応札",T65>0,"応札") -> 未応札 | AB65: =_xlfn.IFS(U65=0,"未約定",U65=T65,"約定",U65<T65,"一部約定") -> 未約定 | AD65: =IF(AA65="応札",IF($AB65="未約定",IF(OR($G65=List!$F$2:$F$3), $P65*$T65, $N65*$T65),IF($AB65="一部約定",IF(OR($G65=List!$F$2:$F$3), $P65*($T65-$U65), $N65*($T65-$U65)),"")),"") ->  | AE65: 0
V66: 0 | W66: 0 | Y66: =IF(ISNUMBER(B66), IF(COUNTIF($B$45:$B66, B66)=COUNTIF($B:$B, B66), "1", "0"), "") ->  | Z66: =IF(OR($C66=List!$C$5,$C66=List!$C$6,$C66=List!$C$11,$C66=List!$C$13), 1, 0) -> 0 | AA66: =_xlfn.IFS(T66="","未応札",T66>0,"応札") -> 未応札 | AB66: =_xlfn.IFS(U66=0,"未約定",U66=T66,"約定",U66<T66,"一部約定") -> 未約定 | AD66: =IF(AA66="応札",IF($AB66="未約定",IF(OR($G66=List!$F$2:$F$3), $P66*$T66, $N66*$T66),IF($AB66="一部約定",IF(OR($G66=List!$F$2:$F$3), $P66*($T66-$U66), $N66*($T66-$U66)),"")),"") ->  | AE66: 0
V67: 0 | W67: 0 | Y67: =IF(ISNUMBER(B67), IF(COUNTIF($B$45:$B67, B67)=COUNTIF($B:$B, B67), "1", "0"), "") ->  | Z67: =IF(OR($C67=List!$C$5,$C67=List!$C$6,$C67=List!$C$11,$C67=List!$C$13), 1, 0) -> 0 | AA67: =_xlfn.IFS(T67="","未応札",T67>0,"応札") -> 未応札 | AB67: =_xlfn.IFS(U67=0,"未約定",U67=T67,"約定",U67<T67,"一部約定") -> 未約定 | AD67: =IF(AA67="応札",IF($AB67="未約定",IF(OR($G67=List!$F$2:$F$3), $P67*$T67, $N67*$T67),IF($AB67="一部約定",IF(OR($G67=List!$F$2:$F$3), $P67*($T67-$U67), $N67*($T67-$U67)),"")),"") ->  | AE67: 0
V68: 0 | W68: 0 | Y68: =IF(ISNUMBER(B68), IF(COUNTIF($B$45:$B68, B68)=COUNTIF($B:$B, B68), "1", "0"), "") ->  | Z68: =IF(OR($C68=List!$C$5,$C68=List!$C$6,$C68=List!$C$11,$C68=List!$C$13), 1, 0) -> 0 | AA68: =_xlfn.IFS(T68="","未応札",T68>0,"応札") -> 未応札 | AB68: =_xlfn.IFS(U68=0,"未約定",U68=T68,"約定",U68<T68,"一部約定") -> 未約定 | AD68: =IF(AA68="応札",IF($AB68="未約定",IF(OR($G68=List!$F$2:$F$3), $P68*$T68, $N68*$T68),IF($AB68="一部約定",IF(OR($G68=List!$F$2:$F$3), $P68*($T68-$U68), $N68*($T68-$U68)),"")),"") ->  | AE68: 0
V69: 0 | W69: 0 | Y69: =IF(ISNUMBER(B69), IF(COUNTIF($B$45:$B69, B69)=COUNTIF($B:$B, B69), "1", "0"), "") ->  | Z69: =IF(OR($C69=List!$C$5,$C69=List!$C$6,$C69=List!$C$11,$C69=List!$C$13), 1, 0) -> 0 | AA69: =_xlfn.IFS(T69="","未応札",T69>0,"応札") -> 未応札 | AB69: =_xlfn.IFS(U69=0,"未約定",U69=T69,"約定",U69<T69,"一部約定") -> 未約定 | AD69: =IF(AA69="応札",IF($AB69="未約定",IF(OR($G69=List!$F$2:$F$3), $P69*$T69, $N69*$T69),IF($AB69="一部約定",IF(OR($G69=List!$F$2:$F$3), $P69*($T69-$U69), $N69*($T69-$U69)),"")),"") ->  | AE69: 0
V70: 0 | W70: 0 | Y70: =IF(ISNUMBER(B70), IF(COUNTIF($B$45:$B70, B70)=COUNTIF($B:$B, B70), "1", "0"), "") ->  | Z70: =IF(OR($C70=List!$C$5,$C70=List!$C$6,$C70=List!$C$11,$C70=List!$C$13), 1, 0) -> 0 | AA70: =_xlfn.IFS(T70="","未応札",T70>0,"応札") -> 未応札 | AB70: =_xlfn.IFS(U70=0,"未約定",U70=T70,"約定",U70<T70,"一部約定") -> 未約定 | AD70: =IF(AA70="応札",IF($AB70="未約定",IF(OR($G70=List!$F$2:$F$3), $P70*$T70, $N70*$T70),IF($AB70="一部約定",IF(OR($G70=List!$F$2:$F$3), $P70*($T70-$U70), $N70*($T70-$U70)),"")),"") ->  | AE70: 0
V71: 0 | W71: 0 | Y71: =IF(ISNUMBER(B71), IF(COUNTIF($B$45:$B71, B71)=COUNTIF($B:$B, B71), "1", "0"), "") ->  | Z71: =IF(OR($C71=List!$C$5,$C71=List!$C$6,$C71=List!$C$11,$C71=List!$C$13), 1, 0) -> 0 | AA71: =_xlfn.IFS(T71="","未応札",T71>0,"応札") -> 未応札 | AB71: =_xlfn.IFS(U71=0,"未約定",U71=T71,"約定",U71<T71,"一部約定") -> 未約定 | AD71: =IF(AA71="応札",IF($AB71="未約定",IF(OR($G71=List!$F$2:$F$3), $P71*$T71, $N71*$T71),IF($AB71="一部約定",IF(OR($G71=List!$F$2:$F$3), $P71*($T71-$U71), $N71*($T71-$U71)),"")),"") ->  | AE71: 0
V72: 0 | W72: 0 | Y72: =IF(ISNUMBER(B72), IF(COUNTIF($B$45:$B72, B72)=COUNTIF($B:$B, B72), "1", "0"), "") ->  | Z72: =IF(OR($C72=List!$C$5,$C72=List!$C$6,$C72=List!$C$11,$C72=List!$C$13), 1, 0) -> 0 | AA72: =_xlfn.IFS(T72="","未応札",T72>0,"応札") -> 未応札 | AB72: =_xlfn.IFS(U72=0,"未約定",U72=T72,"約定",U72<T72,"一部約定") -> 未約定 | AD72: =IF(AA72="応札",IF($AB72="未約定",IF(OR($G72=List!$F$2:$F$3), $P72*$T72, $N72*$T72),IF($AB72="一部約定",IF(OR($G72=List!$F$2:$F$3), $P72*($T72-$U72), $N72*($T72-$U72)),"")),"") ->  | AE72: 0
V73: 0 | W73: 0 | Y73: =IF(ISNUMBER(B73), IF(COUNTIF($B$45:$B73, B73)=COUNTIF($B:$B, B73), "1", "0"), "") ->  | Z73: =IF(OR($C73=List!$C$5,$C73=List!$C$6,$C73=List!$C$11,$C73=List!$C$13), 1, 0) -> 0 | AA73: =_xlfn.IFS(T73="","未応札",T73>0,"応札") -> 未応札 | AB73: =_xlfn.IFS(U73=0,"未約定",U73=T73,"約定",U73<T73,"一部約定") -> 未約定 | AD73: =IF(AA73="応札",IF($AB73="未約定",IF(OR($G73=List!$F$2:$F$3), $P73*$T73, $N73*$T73),IF($AB73="一部約定",IF(OR($G73=List!$F$2:$F$3), $P73*($T73-$U73), $N73*($T73-$U73)),"")),"") ->  | AE73: 0
V74: 0 | W74: =IF(X74 > 0, SUMIFS(V:V, B:B, B74, Z:Z, 1), 0) -> 0 | Y74: =IF(ISNUMBER(B74), IF(COUNTIF($B$45:$B74, B74)=COUNTIF($B:$B, B74), "1", "0"), "") ->  | Z74: =IF(OR($C74=List!$C$5,$C74=List!$C$6,$C74=List!$C$11,$C74=List!$C$13), 1, 0) -> 0 | AA74: =_xlfn.IFS(T74="","未応札",T74>0,"応札") -> 未応札 | AB74: =_xlfn.IFS(U74=0,"未約定",U74=T74,"約定",U74<T74,"一部約定") -> 未約定 | AD74: =IF(AA74="応札",IF($AB74="未約定",IF(OR($G74=List!$F$2:$F$3), $P74*$T74, $N74*$T74),IF($AB74="一部約定",IF(OR($G74=List!$F$2:$F$3), $P74*($T74-$U74), $N74*($T74-$U74)),"")),"") ->  | AE74: 0
V75: 0 | W75: 0 | Y75: =IF(ISNUMBER(B75), IF(COUNTIF($B$45:$B75, B75)=COUNTIF($B:$B, B75), "1", "0"), "") ->  | Z75: =IF(OR($C75=List!$C$5,$C75=List!$C$6,$C75=List!$C$11,$C75=List!$C$13), 1, 0) -> 0 | AA75: =_xlfn.IFS(T75="","未応札",T75>0,"応札") -> 未応札 | AB75: =_xlfn.IFS(U75=0,"未約定",U75=T75,"約定",U75<T75,"一部約定") -> 未約定 | AD75: =IF(AA75="応札",IF($AB75="未約定",IF(OR($G75=List!$F$2:$F$3), $P75*$T75, $N75*$T75),IF($AB75="一部約定",IF(OR($G75=List!$F$2:$F$3), $P75*($T75-$U75), $N75*($T75-$U75)),"")),"") ->  | AE75: 0 | AF75: =IF(AND($AA75="応札",$AB75="未約定"), IF($W75<>0, IF($X75<$W75, IF($X75<>0, $X75, ""), IF($W75<>0, $W75, "")), IF($X75<>0, $X75, "")), "") -> 
V76: 0 | W76: 0 | Y76: =IF(ISNUMBER(B76), IF(COUNTIF($B$45:$B76, B76)=COUNTIF($B:$B, B76), "1", "0"), "") ->  | Z76: =IF(OR($C76=List!$C$5,$C76=List!$C$6,$C76=List!$C$11,$C76=List!$C$13), 1, 0) -> 0 | AA76: =_xlfn.IFS(T76="","未応札",T76>0,"応札") -> 未応札 | AB76: =_xlfn.IFS(U76=0,"未約定",U76=T76,"約定",U76<T76,"一部約定") -> 未約定 | AD76: =IF(AA76="応札",IF($AB76="未約定",IF(OR($G76=List!$F$2:$F$3), $P76*$T76, $N76*$T76),IF($AB76="一部約定",IF(OR($G76=List!$F$2:$F$3), $P76*($T76-$U76), $N76*($T76-$U76)),"")),"") ->  | AE76: 0
V77: 0 | W77: 0 | Y77: =IF(ISNUMBER(B77), IF(COUNTIF($B$45:$B77, B77)=COUNTIF($B:$B, B77), "1", "0"), "") ->  | Z77: =IF(OR($C77=List!$C$5,$C77=List!$C$6,$C77=List!$C$11,$C77=List!$C$13), 1, 0) -> 0 | AA77: =_xlfn.IFS(T77="","未応札",T77>0,"応札") -> 未応札 | AB77: =_xlfn.IFS(U77=0,"未約定",U77=T77,"約定",U77<T77,"一部約定") -> 未約定 | AD77: =IF(AA77="応札",IF($AB77="未約定",IF(OR($G77=List!$F$2:$F$3), $P77*$T77, $N77*$T77),IF($AB77="一部約定",IF(OR($G77=List!$F$2:$F$3), $P77*($T77-$U77), $N77*($T77-$U77)),"")),"") ->  | AE77: 0
V78: 0 | W78: 0 | Y78: =IF(ISNUMBER(B78), IF(COUNTIF($B$45:$B78, B78)=COUNTIF($B:$B, B78), "1", "0"), "") ->  | Z78: =IF(OR($C78=List!$C$5,$C78=List!$C$6,$C78=List!$C$11,$C78=List!$C$13), 1, 0) -> 0 | AA78: =_xlfn.IFS(T78="","未応札",T78>0,"応札") -> 未応札 | AB78: =_xlfn.IFS(U78=0,"未約定",U78=T78,"約定",U78<T78,"一部約定") -> 未約定 | AD78: =IF(AA78="応札",IF($AB78="未約定",IF(OR($G78=List!$F$2:$F$3), $P78*$T78, $N78*$T78),IF($AB78="一部約定",IF(OR($G78=List!$F$2:$F$3), $P78*($T78-$U78), $N78*($T78-$U78)),"")),"") ->  | AE78: 0
V79: 0 | W79: 0 | Y79: =IF(ISNUMBER(B79), IF(COUNTIF($B$45:$B79, B79)=COUNTIF($B:$B, B79), "1", "0"), "") ->  | Z79: =IF(OR($C79=List!$C$5,$C79=List!$C$6,$C79=List!$C$11,$C79=List!$C$13), 1, 0) -> 0 | AA79: =_xlfn.IFS(T79="","未応札",T79>0,"応札") -> 未応札 | AB79: =_xlfn.IFS(U79=0,"未約定",U79=T79,"約定",U79<T79,"一部約定") -> 未約定 | AD79: =IF(AA79="応札",IF($AB79="未約定",IF(OR($G79=List!$F$2:$F$3), $P79*$T79, $N79*$T79),IF($AB79="一部約定",IF(OR($G79=List!$F$2:$F$3), $P79*($T79-$U79), $N79*($T79-$U79)),"")),"") ->  | AE79: 0
V80: 0 | W80: 0 | Y80: =IF(ISNUMBER(B80), IF(COUNTIF($B$45:$B80, B80)=COUNTIF($B:$B, B80), "1", "0"), "") ->  | Z80: =IF(OR($C80=List!$C$5,$C80=List!$C$6,$C80=List!$C$11,$C80=List!$C$13), 1, 0) -> 0 | AA80: =_xlfn.IFS(T80="","未応札",T80>0,"応札") -> 未応札 | AB80: =_xlfn.IFS(U80=0,"未約定",U80=T80,"約定",U80<T80,"一部約定") -> 未約定 | AD80: =IF(AA80="応札",IF($AB80="未約定",IF(OR($G80=List!$F$2:$F$3), $P80*$T80, $N80*$T80),IF($AB80="一部約定",IF(OR($G80=List!$F$2:$F$3), $P80*($T80-$U80), $N80*($T80-$U80)),"")),"") ->  | AE80: 0
V81: 0 | W81: 0 | Y81: =IF(ISNUMBER(B81), IF(COUNTIF($B$45:$B81, B81)=COUNTIF($B:$B, B81), "1", "0"), "") ->  | Z81: =IF(OR($C81=List!$C$5,$C81=List!$C$6,$C81=List!$C$11,$C81=List!$C$13), 1, 0) -> 0 | AA81: =_xlfn.IFS(T81="","未応札",T81>0,"応札") -> 未応札 | AB81: =_xlfn.IFS(U81=0,"未約定",U81=T81,"約定",U81<T81,"一部約定") -> 未約定 | AD81: =IF(AA81="応札",IF($AB81="未約定",IF(OR($G81=List!$F$2:$F$3), $P81*$T81, $N81*$T81),IF($AB81="一部約定",IF(OR($G81=List!$F$2:$F$3), $P81*($T81-$U81), $N81*($T81-$U81)),"")),"") ->  | AE81: =IF(ISBLANK($R81),IF(OR($AB81="一部約定",$AB81="未約定"),$Q81*($T81-$U81),""),IF($R81=0,"", IF(OR($AB81="一部約定", $AB81="未約定"), $Q81*($T81-$U81), ""))) -> 0
V82: 0 | W82: 0 | Y82: =IF(ISNUMBER(B82), IF(COUNTIF($B$45:$B82, B82)=COUNTIF($B:$B, B82), "1", "0"), "") ->  | Z82: =IF(OR($C82=List!$C$5,$C82=List!$C$6,$C82=List!$C$11,$C82=List!$C$13), 1, 0) -> 0 | AA82: =_xlfn.IFS(T82="","未応札",T82>0,"応札") -> 未応札 | AB82: =_xlfn.IFS(U82=0,"未約定",U82=T82,"約定",U82<T82,"一部約定") -> 未約定 | AD82: =IF(AA82="応札",IF($AB82="未約定",IF(OR($G82=List!$F$2:$F$3), $P82*$T82, $N82*$T82),IF($AB82="一部約定",IF(OR($G82=List!$F$2:$F$3), $P82*($T82-$U82), $N82*($T82-$U82)),"")),"") ->  | AE82: 0

Sheet 記載例_精算パターン⑧加重平均入札（余力活用契約で停止・再起動
B2: 取引年月 | C2: 202504
B3: MMSコード | C3: A000
B4: 対象エリア | C4: 3：東京
B5: ファイル名称 | C5: =$C$2&"_"&$C$3&"_"&LEFT($C$4,1)&"_不約定単価内訳兼起動費事後精算情報様式" -> 202504_A000_3_不約定単価内訳兼起動費事後精算情報様式
B7: =入力シート!B7 -> 事象NO | C7: =入力シート!C7 -> 精算パターン | D7: =入力シート!D7 -> 余力活用契約対象リソース区分 | E7: =入力シート!E7 -> 取引日 | F7: =入力シート!F7 -> 時刻コード | G7: =入力シート!G7 -> 持ち下げ供出機区分 | H7: =入力シート!H7 -> 系統コード | I7: =入力シート!I7 -> 系統コード(差替後) | J7: =入力シート!J7 -> 商品区分 | K7: =入力シート!K7 -> 売り入札ID | L7: =入力シート!L7 -> 約定番号 | M7: =入力シート!M7 -> 約定識別ID | N7: =入力シート!N7 -> MMS起動費単価 | O7: =入力シート!O7 -> 加重平均前のΔkW単価 | P7: =入力シート!P7 -> 加重平均起動費未回収分相当額 | Q7: =入力シート!Q7 -> 最低出力までの発電電力量の機会費用単価 | R7: =入力シート!R7 -> 発電計画 | S7: =入力シート!S7 -> 最低出力 | T7: =入力シート!T7 -> 約定希望ΔkW | U7: =入力シート!U7 -> ΔkW約定量 | V7: =入力シート!V7 -> 最低出力までの発電電力量の機会費用単価×(約定希望ΔkW-ΔkW約定量) | W7: =入力シート!W7 -> 最低出力維持した場合の費用合計 | X7: =入力シート!X7 -> 停止・再起動にかかる費用 | Y7: =入力シート!Y7 -> 事象毎の最終行 | Z7: =入力シート!Z7 -> 妥当性確認 | AA7: =入力シート!AA7 -> 応札状況 | AB7: =入力シート!AB7 -> 約定状況 | AC7: =入力シート!AC7 -> 並解列状態(実績) | AD7: =入力シート!AD7 -> 起動費未回収分相当額 | AE7: =入力シート!AE7 -> 最低出力までの発電電力量の機会費用 | AF7: =入力シート!AF7 -> 停止・再起動にかかる費用 | AI7: =入力シート!AI7 -> 精算対象 申請小計 | AJ7: =入力シート!AJ7 -> 起動費未回収分相当額 | AK7: =入力シート!AK7 -> 最低出力までの発電電力量の機会費用 | AL7: =入力シート!AL7 -> 停止・再起動にかかる費用 | AM7: =入力シート!AM7 -> 合計
N8: （円/kW） | O8: （円/kW） | P8: （円/kW） | Q8: （円/kW） | R8: （kWh） | S8: （kWh） | T8: （kW） | U8: （kW） | V8: （円） | W8: （円） | X8: （円） | AD8: （円） | AE8: （円） | AF8: （円） | AJ8: （円） | AK8: （円） | AL8: （円） | AM8: （円）
B9: =IF(入力シート!B9<>"",入力シート!B9,"") -> ※起動費未回収が発生した事象NOを付定すること ※複合市場商品および三次調整力②商品へ１回分の起動費等を按分計上して入札し，両市場において起動費等の事後精算を申請する場合は，市場ごとに事象NOを分けずに同一の事象NOとして申請を実施すること | C9: =IF(入力シート!C9<>"",入力シート!C9,"") ->  | D9: =IF(入力シート!D9<>"",入力シート!D9,"") -> ※対象の場合は「１」，非対象の場合は「０」を入力 | E9: =IF(入力シート!E9<>"",入力シート!E9,"") ->  | F9: =IF(入力シート!F9<>"",入力シート!F9,"") ->  | G9: =IF(入力シート!G9<>"",入力シート!G9,"") -> ※持ち下げ供出機を加重平均で入札した場合に選択 | H9: =IF(入力シート!H9<>"",入力シート!H9,"") -> ※電源差替がない場合は精算対象となるリソースの系統コードを記載すること ※電源差替後のリソースにより精算する場合は，差替前のリソースの系統コードを記載すること | I9: =IF(入力シート!I9<>"",入力シート!I9,"") -> ※起動費単価分が登録されている電源に電源差替を実施する場合に記載すること | J9: =IF(入力シート!J9<>"",入力シート!J9,"") ->  | K9: =IF(入力シート!K9<>"",入力シート!K9,"") ->  | L9: =IF(入力シート!L9<>"",入力シート!L9,"") -> ※持ち下げ供出機区分が該当する場合，起動供出機の約定番号を記載すること ※同一時刻コードにおいて，複数の約定番号がある場合は，いずれか1つを記載すること | M9: =IF(入力シート!M9<>"",入力シート!M9,"") -> ※持ち下げ供出機区分に該当する場合，起動供出機の約定識別IDを記載すること ※同一時刻コードにおいて，約定番号に紐づく約定識別IDが複数存在する場合は，いずれか1つを記載すること ※電源差し替えを実施した場合，差替え元の約定識別IDを記載すること(持ち下げ供出機区分に該当する場合,起動供出機の初回約定識別IDを記載すること) | N9: =IF(入力シート!N9<>"",入力シート!N9,"") -> ※MMSに登録された起動費単価分を原則用いること ※ 「全量不落」の精算パターンで「最低出力までの発電電力量の機会費用」の事後精算の対象がある場合，様式都合により，属地TSOと事前に確認の上，「MMSに登録された起動費単価分」に当該単価を加算して記載すること | O9: =IF(入力シート!O9<>"",入力シート!O9,"") -> ※持ち下げ供出機区分が該当する場合に記載すること | P9: =IF(入力シート!P9<>"",入力シート!P9,"") -> ※ 持ち下げ供出機区分が該当する場合に記載すること | Q9: =IF(入力シート!Q9<>"",入力シート!Q9,"") -> ※卸電力市場価格（スポット市場価格：実績）と限界費用との差額を用いること ※加重平均で入札し，一部不落となった場合は，情報を記載するリソースのΔkW単価に含めた起動供出機の最低出力までの発電電力量の加重平均機会費用相当額を精算対象とする ※加重平均で入札し，起動供出機または持ち下げ供出機，またはその双方において一部のリソースが全量不落となったブロックに，起動供出機または持ち下げ供出機の情報を記載する場合は，起動供出機または持ち下げ供出機のΔkW単価に含めた起動供出機の最低出力までの発電電力量の加重平均機会費用相当額を精算対象とする。 （ただし，起動供出機が全量不落となった場合は，起動供出機の起動により機会費用が発生した場合に限る。そのため別途TSOからデータ提出を求める場合がある。なお、起動供出機のΔkW単価に含めた起動供出機の最低出力までの発電電力量の加重平均機会費用相当額については様式都合により，属地TSOと事前に確認の上， 「加重平均起動費未回収分相当額（P列）」に加算して記載すること） | R9: =IF(入力シート!R9<>"",入力シート!R9,"") ->  | S9: =IF(入力シート!S9<>"",入力シート!S9,"") ->  | T9: =IF(入力シート!T9<>"",入力シート!T9,"") ->  | U9: =IF(入力シート!U9<>"",入力シート!U9,"") ->  | V9: =IF(入力シート!V9<>"",入力シート!V9,"") -> ※加重平均で入札した場合は，最低出力までの発電電力量の加重平均機会費用相当額×(約定希望ΔkW-ΔkW約定量) | W9: =IF(入力シート!W9<>"",入力シート!W9,"") -> ※精算パターン「約定間全量不落(約定間停止・再起動)」を選択した場合，事象NOごとの最終行に合計値表示 | X9: =IF(入力シート!X9<>"",入力シート!X9,"") -> ※１停止・再起動費は最後のブロックに記載すること ※２ 余力活用契約を締結している電源でBG計画上停止・再起動としていたが、実績は停止しなかった場合も、BG計画上の「停止・再起動費」を記載すること | Y9: =IF(入力シート!Y9<>"",入力シート!Y9,"") ->  | Z9: =IF(入力シート!Z9<>"",入力シート!Z9,"") ->  | AA9: =IF(入力シート!AA9<>"",入力シート!AA9,"") ->  | AB9: =IF(入力シート!AB9<>"",入力シート!AB9,"") ->  | AC9: =IF(入力シート!AC9<>"",入力シート!AC9,"") ->  | AD9: =IF(入力シート!AD9<>"",入力シート!AD9,"") -> ※加重平均で入札した場合は，加重平均起動費未回収分相当額 | AE9: =IF(入力シート!AE9<>"",入力シート!AE9,"") -> ※加重平均で入札した場合は，最低出力までの発電電力量の加重平均機会費用相当額 | AF9: =IF(入力シート!AF9<>"",入力シート!AF9,"") -> ※約定間全量不落時において，停止・再起動するよりも，最低出力維持した方が経済的だった場合，後者を事後精算対象とする | AJ9: =SUM($AD10:$AD2831) -> 7387500 | AK9: =SUM($AE10:$AE2831) -> 225000 | AL9: =SUM($AF10:$AF2831) -> 0 | AM9: =ROUNDDOWN(SUM(AJ9:AL9),0) -> 7612500
B10: 1 | C10: 11：持ち下げ・起動供出機：約定間全量不落（余力活用契約で停止・再起動） | D10: 1：対象 | E10: 20250401 | F10: 3 | G10: 1：該当（起動供出機） | H10: ○Y○○○ | J10: 2：三次調整力② | K10: ○○○○○○ | O10: 150 | P10: 77.75 | Q10: 2.25 | R10: 20000 | S10: 20000 | T10: 50000 | U10: 0 | V10: =Q10*(T10-U10) -> 112500 | W10: =IF(X10 > 0, SUMIFS(V:V, B:B, B10, Z:Z, 1), 0) -> 0 | Y10: =IF(ISNUMBER(B10), IF(COUNTIF($B$10:$B10, B10)=COUNTIF($B:$B, B10), "1", "0"), "") -> 1 | Z10: =IF(OR($C10=List!$C$5,$C10=List!$C$6,$C10=List!$C$11,$C10=List!$C$13), 1, 0) -> 0 | AA10: =_xlfn.IFS(T10="","未応札",T10>0,"応札") -> 応札 | AB10: =_xlfn.IFS(U10=0,"未約定",U10=T10,"約定",U10<T10,"一部約定") -> 未約定 | AC10: 2：解列 | AD10: =IF(AA10="応札",IF($AB10="未約定",IF(OR($G10=List!$F$2:$F$3), $P10*$T10, $N10*$T10),IF($AB10="一部約定",IF(OR($G10=List!$F$2:$F$3), $P10*($T10-$U10), $N10*($T10-$U10)),"")),"") -> 3887500 | AE10: =IF(ISBLANK($R10),IF(OR($AB10="一部約定",$AB10="未約定"),$Q10*($T10-$U10),""),IF($R10=0,"", IF(OR($AB10="一部約定", $AB10="未約定"), $Q10*($T10-$U10), ""))) -> 112500 | AF10: =IF(AND($AA10="応札",$AB10="未約定"), IF($W10<>0, IF($X10<$W10, IF($X10<>0, $X10, ""), IF($W10<>0, $W10, "")), IF($X10<>0, $X10, "")), "") -> 
B11: 2 | C11: 11：持ち下げ・起動供出機：約定間全量不落（余力活用契約で停止・再起動） | D11: 1：対象 | E11: 20250401 | F11: 3 | G11: 2：該当（持ち下げ供出機） | H11: ○X○○○ | J11: 2：三次調整力② | K11: ○○○○○○ | L11: 2025040131CCC○○○○○○ | M11: ○○○○○○ | O11: 10 | P11: 70 | Q11: 2.25 | T11: 50000 | U11: 0 | V11: =Q11*(T11-U11) -> 112500 | W11: 0 | Y11: =IF(ISNUMBER(B11), IF(COUNTIF($B$10:$B11, B11)=COUNTIF($B:$B, B11), "1", "0"), "") -> 1 | Z11: =IF(OR($C11=List!$C$5,$C11=List!$C$6,$C11=List!$C$11,$C11=List!$C$13), 1, 0) -> 0 | AA11: =_xlfn.IFS(T11="","未応札",T11>0,"応札") -> 応札 | AB11: =_xlfn.IFS(U11=0,"未約定",U11=T11,"約定",U11<T11,"一部約定") -> 未約定 | AC11: 1：並列 | AD11: =IF(AA11="応札",IF($AB11="未約定",IF(OR($G11=List!$F$2:$F$3), $P11*$T11, $N11*$T11),IF($AB11="一部約定",IF(OR($G11=List!$F$2:$F$3), $P11*($T11-$U11), $N11*($T11-$U11)),"")),"") -> 3500000 | AE11: 112500
V12: 0 | W12: 0 | Y12: =IF(ISNUMBER(B12), IF(COUNTIF($B$10:$B12, B12)=COUNTIF($B:$B, B12), "1", "0"), "") ->  | Z12: =IF(OR($C12=List!$C$5,$C12=List!$C$6,$C12=List!$C$11,$C12=List!$C$13), 1, 0) -> 0 | AA12: =_xlfn.IFS(T12="","未応札",T12>0,"応札") -> 未応札 | AB12: =_xlfn.IFS(U12=0,"未約定",U12=T12,"約定",U12<T12,"一部約定") -> 未約定 | AD12: =IF(AA12="応札",IF($AB12="未約定",IF(OR($G12=List!$F$2:$F$3), $P12*$T12, $N12*$T12),IF($AB12="一部約定",IF(OR($G12=List!$F$2:$F$3), $P12*($T12-$U12), $N12*($T12-$U12)),"")),"") ->  | AE12: 0
V13: 0 | W13: 0 | Y13: =IF(ISNUMBER(B13), IF(COUNTIF($B$10:$B13, B13)=COUNTIF($B:$B, B13), "1", "0"), "") ->  | Z13: =IF(OR($C13=List!$C$5,$C13=List!$C$6,$C13=List!$C$11,$C13=List!$C$13), 1, 0) -> 0 | AA13: =_xlfn.IFS(T13="","未応札",T13>0,"応札") -> 未応札 | AB13: =_xlfn.IFS(U13=0,"未約定",U13=T13,"約定",U13<T13,"一部約定") -> 未約定 | AD13: =IF(AA13="応札",IF($AB13="未約定",IF(OR($G13=List!$F$2:$F$3), $P13*$T13, $N13*$T13),IF($AB13="一部約定",IF(OR($G13=List!$F$2:$F$3), $P13*($T13-$U13), $N13*($T13-$U13)),"")),"") ->  | AE13: 0
V14: 0 | W14: 0 | Y14: =IF(ISNUMBER(B14), IF(COUNTIF($B$10:$B14, B14)=COUNTIF($B:$B, B14), "1", "0"), "") ->  | Z14: =IF(OR($C14=List!$C$5,$C14=List!$C$6,$C14=List!$C$11,$C14=List!$C$13), 1, 0) -> 0 | AA14: =_xlfn.IFS(T14="","未応札",T14>0,"応札") -> 未応札 | AB14: =_xlfn.IFS(U14=0,"未約定",U14=T14,"約定",U14<T14,"一部約定") -> 未約定 | AD14: =IF(AA14="応札",IF($AB14="未約定",IF(OR($G14=List!$F$2:$F$3), $P14*$T14, $N14*$T14),IF($AB14="一部約定",IF(OR($G14=List!$F$2:$F$3), $P14*($T14-$U14), $N14*($T14-$U14)),"")),"") ->  | AE14: 0
V15: 0 | W15: 0 | Y15: =IF(ISNUMBER(B15), IF(COUNTIF($B$10:$B15, B15)=COUNTIF($B:$B, B15), "1", "0"), "") ->  | Z15: =IF(OR($C15=List!$C$5,$C15=List!$C$6,$C15=List!$C$11,$C15=List!$C$13), 1, 0) -> 0 | AA15: =_xlfn.IFS(T15="","未応札",T15>0,"応札") -> 未応札 | AB15: =_xlfn.IFS(U15=0,"未約定",U15=T15,"約定",U15<T15,"一部約定") -> 未約定 | AD15: =IF(AA15="応札",IF($AB15="未約定",IF(OR($G15=List!$F$2:$F$3), $P15*$T15, $N15*$T15),IF($AB15="一部約定",IF(OR($G15=List!$F$2:$F$3), $P15*($T15-$U15), $N15*($T15-$U15)),"")),"") ->  | AE15: 0
V16: 0 | W16: 0 | Y16: =IF(ISNUMBER(B16), IF(COUNTIF($B$10:$B16, B16)=COUNTIF($B:$B, B16), "1", "0"), "") ->  | Z16: =IF(OR($C16=List!$C$5,$C16=List!$C$6,$C16=List!$C$11,$C16=List!$C$13), 1, 0) -> 0 | AA16: =_xlfn.IFS(T16="","未応札",T16>0,"応札") -> 未応札 | AB16: =_xlfn.IFS(U16=0,"未約定",U16=T16,"約定",U16<T16,"一部約定") -> 未約定 | AD16: =IF(AA16="応札",IF($AB16="未約定",IF(OR($G16=List!$F$2:$F$3), $P16*$T16, $N16*$T16),IF($AB16="一部約定",IF(OR($G16=List!$F$2:$F$3), $P16*($T16-$U16), $N16*($T16-$U16)),"")),"") ->  | AE16: 0
V17: 0 | W17: 0 | Y17: =IF(ISNUMBER(B17), IF(COUNTIF($B$10:$B17, B17)=COUNTIF($B:$B, B17), "1", "0"), "") ->  | Z17: =IF(OR($C17=List!$C$5,$C17=List!$C$6,$C17=List!$C$11,$C17=List!$C$13), 1, 0) -> 0 | AA17: =_xlfn.IFS(T17="","未応札",T17>0,"応札") -> 未応札 | AB17: =_xlfn.IFS(U17=0,"未約定",U17=T17,"約定",U17<T17,"一部約定") -> 未約定 | AD17: =IF(AA17="応札",IF($AB17="未約定",IF(OR($G17=List!$F$2:$F$3), $P17*$T17, $N17*$T17),IF($AB17="一部約定",IF(OR($G17=List!$F$2:$F$3), $P17*($T17-$U17), $N17*($T17-$U17)),"")),"") ->  | AE17: 0
V18: 0 | W18: 0 | Y18: =IF(ISNUMBER(B18), IF(COUNTIF($B$10:$B18, B18)=COUNTIF($B:$B, B18), "1", "0"), "") ->  | Z18: =IF(OR($C18=List!$C$5,$C18=List!$C$6,$C18=List!$C$11,$C18=List!$C$13), 1, 0) -> 0 | AA18: =_xlfn.IFS(T18="","未応札",T18>0,"応札") -> 未応札 | AB18: =_xlfn.IFS(U18=0,"未約定",U18=T18,"約定",U18<T18,"一部約定") -> 未約定 | AD18: =IF(AA18="応札",IF($AB18="未約定",IF(OR($G18=List!$F$2:$F$3), $P18*$T18, $N18*$T18),IF($AB18="一部約定",IF(OR($G18=List!$F$2:$F$3), $P18*($T18-$U18), $N18*($T18-$U18)),"")),"") ->  | AE18: 0
V19: 0 | W19: 0 | Y19: =IF(ISNUMBER(B19), IF(COUNTIF($B$10:$B19, B19)=COUNTIF($B:$B, B19), "1", "0"), "") ->  | Z19: =IF(OR($C19=List!$C$5,$C19=List!$C$6,$C19=List!$C$11,$C19=List!$C$13), 1, 0) -> 0 | AA19: =_xlfn.IFS(T19="","未応札",T19>0,"応札") -> 未応札 | AB19: =_xlfn.IFS(U19=0,"未約定",U19=T19,"約定",U19<T19,"一部約定") -> 未約定 | AD19: =IF(AA19="応札",IF($AB19="未約定",IF(OR($G19=List!$F$2:$F$3), $P19*$T19, $N19*$T19),IF($AB19="一部約定",IF(OR($G19=List!$F$2:$F$3), $P19*($T19-$U19), $N19*($T19-$U19)),"")),"") ->  | AE19: 0
V20: 0 | W20: 0 | Y20: =IF(ISNUMBER(B20), IF(COUNTIF($B$10:$B20, B20)=COUNTIF($B:$B, B20), "1", "0"), "") ->  | Z20: =IF(OR($C20=List!$C$5,$C20=List!$C$6,$C20=List!$C$11,$C20=List!$C$13), 1, 0) -> 0 | AA20: =_xlfn.IFS(T20="","未応札",T20>0,"応札") -> 未応札 | AB20: =_xlfn.IFS(U20=0,"未約定",U20=T20,"約定",U20<T20,"一部約定") -> 未約定 | AD20: =IF(AA20="応札",IF($AB20="未約定",IF(OR($G20=List!$F$2:$F$3), $P20*$T20, $N20*$T20),IF($AB20="一部約定",IF(OR($G20=List!$F$2:$F$3), $P20*($T20-$U20), $N20*($T20-$U20)),"")),"") ->  | AE20: 0
V21: 0 | W21: 0 | Y21: =IF(ISNUMBER(B21), IF(COUNTIF($B$10:$B21, B21)=COUNTIF($B:$B, B21), "1", "0"), "") ->  | Z21: =IF(OR($C21=List!$C$5,$C21=List!$C$6,$C21=List!$C$11,$C21=List!$C$13), 1, 0) -> 0 | AA21: =_xlfn.IFS(T21="","未応札",T21>0,"応札") -> 未応札 | AB21: =_xlfn.IFS(U21=0,"未約定",U21=T21,"約定",U21<T21,"一部約定") -> 未約定 | AD21: =IF(AA21="応札",IF($AB21="未約定",IF(OR($G21=List!$F$2:$F$3), $P21*$T21, $N21*$T21),IF($AB21="一部約定",IF(OR($G21=List!$F$2:$F$3), $P21*($T21-$U21), $N21*($T21-$U21)),"")),"") ->  | AE21: 0
V22: 0 | W22: 0 | Y22: =IF(ISNUMBER(B22), IF(COUNTIF($B$10:$B22, B22)=COUNTIF($B:$B, B22), "1", "0"), "") ->  | Z22: =IF(OR($C22=List!$C$5,$C22=List!$C$6,$C22=List!$C$11,$C22=List!$C$13), 1, 0) -> 0 | AA22: =_xlfn.IFS(T22="","未応札",T22>0,"応札") -> 未応札 | AB22: =_xlfn.IFS(U22=0,"未約定",U22=T22,"約定",U22<T22,"一部約定") -> 未約定 | AD22: =IF(AA22="応札",IF($AB22="未約定",IF(OR($G22=List!$F$2:$F$3), $P22*$T22, $N22*$T22),IF($AB22="一部約定",IF(OR($G22=List!$F$2:$F$3), $P22*($T22-$U22), $N22*($T22-$U22)),"")),"") ->  | AE22: 0
V23: 0 | W23: 0 | Y23: =IF(ISNUMBER(B23), IF(COUNTIF($B$10:$B23, B23)=COUNTIF($B:$B, B23), "1", "0"), "") ->  | Z23: =IF(OR($C23=List!$C$5,$C23=List!$C$6,$C23=List!$C$11,$C23=List!$C$13), 1, 0) -> 0 | AA23: =_xlfn.IFS(T23="","未応札",T23>0,"応札") -> 未応札 | AB23: =_xlfn.IFS(U23=0,"未約定",U23=T23,"約定",U23<T23,"一部約定") -> 未約定 | AD23: =IF(AA23="応札",IF($AB23="未約定",IF(OR($G23=List!$F$2:$F$3), $P23*$T23, $N23*$T23),IF($AB23="一部約定",IF(OR($G23=List!$F$2:$F$3), $P23*($T23-$U23), $N23*($T23-$U23)),"")),"") ->  | AE23: 0
V24: 0 | W24: 0 | Y24: =IF(ISNUMBER(B24), IF(COUNTIF($B$10:$B24, B24)=COUNTIF($B:$B, B24), "1", "0"), "") ->  | Z24: =IF(OR($C24=List!$C$5,$C24=List!$C$6,$C24=List!$C$11,$C24=List!$C$13), 1, 0) -> 0 | AA24: =_xlfn.IFS(T24="","未応札",T24>0,"応札") -> 未応札 | AB24: =_xlfn.IFS(U24=0,"未約定",U24=T24,"約定",U24<T24,"一部約定") -> 未約定 | AD24: =IF(AA24="応札",IF($AB24="未約定",IF(OR($G24=List!$F$2:$F$3), $P24*$T24, $N24*$T24),IF($AB24="一部約定",IF(OR($G24=List!$F$2:$F$3), $P24*($T24-$U24), $N24*($T24-$U24)),"")),"") ->  | AE24: 0
V25: 0 | W25: 0 | Y25: =IF(ISNUMBER(B25), IF(COUNTIF($B$10:$B25, B25)=COUNTIF($B:$B, B25), "1", "0"), "") ->  | Z25: =IF(OR($C25=List!$C$5,$C25=List!$C$6,$C25=List!$C$11,$C25=List!$C$13), 1, 0) -> 0 | AA25: =_xlfn.IFS(T25="","未応札",T25>0,"応札") -> 未応札 | AB25: =_xlfn.IFS(U25=0,"未約定",U25=T25,"約定",U25<T25,"一部約定") -> 未約定 | AD25: =IF(AA25="応札",IF($AB25="未約定",IF(OR($G25=List!$F$2:$F$3), $P25*$T25, $N25*$T25),IF($AB25="一部約定",IF(OR($G25=List!$F$2:$F$3), $P25*($T25-$U25), $N25*($T25-$U25)),"")),"") ->  | AE25: 0
V26: 0 | W26: 0 | Y26: =IF(ISNUMBER(B26), IF(COUNTIF($B$10:$B26, B26)=COUNTIF($B:$B, B26), "1", "0"), "") ->  | Z26: =IF(OR($C26=List!$C$5,$C26=List!$C$6,$C26=List!$C$11,$C26=List!$C$13), 1, 0) -> 0 | AA26: =_xlfn.IFS(T26="","未応札",T26>0,"応札") -> 未応札 | AB26: =_xlfn.IFS(U26=0,"未約定",U26=T26,"約定",U26<T26,"一部約定") -> 未約定 | AD26: =IF(AA26="応札",IF($AB26="未約定",IF(OR($G26=List!$F$2:$F$3), $P26*$T26, $N26*$T26),IF($AB26="一部約定",IF(OR($G26=List!$F$2:$F$3), $P26*($T26-$U26), $N26*($T26-$U26)),"")),"") ->  | AE26: 0
V27: 0 | W27: 0 | Y27: =IF(ISNUMBER(B27), IF(COUNTIF($B$10:$B27, B27)=COUNTIF($B:$B, B27), "1", "0"), "") ->  | Z27: =IF(OR($C27=List!$C$5,$C27=List!$C$6,$C27=List!$C$11,$C27=List!$C$13), 1, 0) -> 0 | AA27: =_xlfn.IFS(T27="","未応札",T27>0,"応札") -> 未応札 | AB27: =_xlfn.IFS(U27=0,"未約定",U27=T27,"約定",U27<T27,"一部約定") -> 未約定 | AD27: =IF(AA27="応札",IF($AB27="未約定",IF(OR($G27=List!$F$2:$F$3), $P27*$T27, $N27*$T27),IF($AB27="一部約定",IF(OR($G27=List!$F$2:$F$3), $P27*($T27-$U27), $N27*($T27-$U27)),"")),"") ->  | AE27: 0
V28: 0 | W28: 0 | Y28: =IF(ISNUMBER(B28), IF(COUNTIF($B$10:$B28, B28)=COUNTIF($B:$B, B28), "1", "0"), "") ->  | Z28: =IF(OR($C28=List!$C$5,$C28=List!$C$6,$C28=List!$C$11,$C28=List!$C$13), 1, 0) -> 0 | AA28: =_xlfn.IFS(T28="","未応札",T28>0,"応札") -> 未応札 | AB28: =_xlfn.IFS(U28=0,"未約定",U28=T28,"約定",U28<T28,"一部約定") -> 未約定 | AD28: =IF(AA28="応札",IF($AB28="未約定",IF(OR($G28=List!$F$2:$F$3), $P28*$T28, $N28*$T28),IF($AB28="一部約定",IF(OR($G28=List!$F$2:$F$3), $P28*($T28-$U28), $N28*($T28-$U28)),"")),"") ->  | AE28: 0
V29: 0 | W29: 0 | Y29: =IF(ISNUMBER(B29), IF(COUNTIF($B$10:$B29, B29)=COUNTIF($B:$B, B29), "1", "0"), "") ->  | Z29: =IF(OR($C29=List!$C$5,$C29=List!$C$6,$C29=List!$C$11,$C29=List!$C$13), 1, 0) -> 0 | AA29: =_xlfn.IFS(T29="","未応札",T29>0,"応札") -> 未応札 | AB29: =_xlfn.IFS(U29=0,"未約定",U29=T29,"約定",U29<T29,"一部約定") -> 未約定 | AD29: =IF(AA29="応札",IF($AB29="未約定",IF(OR($G29=List!$F$2:$F$3), $P29*$T29, $N29*$T29),IF($AB29="一部約定",IF(OR($G29=List!$F$2:$F$3), $P29*($T29-$U29), $N29*($T29-$U29)),"")),"") ->  | AE29: 0
V30: 0 | W30: 0 | Y30: =IF(ISNUMBER(B30), IF(COUNTIF($B$10:$B30, B30)=COUNTIF($B:$B, B30), "1", "0"), "") ->  | Z30: =IF(OR($C30=List!$C$5,$C30=List!$C$6,$C30=List!$C$11,$C30=List!$C$13), 1, 0) -> 0 | AA30: =_xlfn.IFS(T30="","未応札",T30>0,"応札") -> 未応札 | AB30: =_xlfn.IFS(U30=0,"未約定",U30=T30,"約定",U30<T30,"一部約定") -> 未約定 | AD30: =IF(AA30="応札",IF($AB30="未約定",IF(OR($G30=List!$F$2:$F$3), $P30*$T30, $N30*$T30),IF($AB30="一部約定",IF(OR($G30=List!$F$2:$F$3), $P30*($T30-$U30), $N30*($T30-$U30)),"")),"") ->  | AE30: 0
V31: 0 | W31: 0 | Y31: =IF(ISNUMBER(B31), IF(COUNTIF($B$10:$B31, B31)=COUNTIF($B:$B, B31), "1", "0"), "") ->  | Z31: =IF(OR($C31=List!$C$5,$C31=List!$C$6,$C31=List!$C$11,$C31=List!$C$13), 1, 0) -> 0 | AA31: =_xlfn.IFS(T31="","未応札",T31>0,"応札") -> 未応札 | AB31: =_xlfn.IFS(U31=0,"未約定",U31=T31,"約定",U31<T31,"一部約定") -> 未約定 | AD31: =IF(AA31="応札",IF($AB31="未約定",IF(OR($G31=List!$F$2:$F$3), $P31*$T31, $N31*$T31),IF($AB31="一部約定",IF(OR($G31=List!$F$2:$F$3), $P31*($T31-$U31), $N31*($T31-$U31)),"")),"") ->  | AE31: 0
V32: 0 | W32: 0 | Y32: =IF(ISNUMBER(B32), IF(COUNTIF($B$10:$B32, B32)=COUNTIF($B:$B, B32), "1", "0"), "") ->  | Z32: =IF(OR($C32=List!$C$5,$C32=List!$C$6,$C32=List!$C$11,$C32=List!$C$13), 1, 0) -> 0 | AA32: =_xlfn.IFS(T32="","未応札",T32>0,"応札") -> 未応札 | AB32: =_xlfn.IFS(U32=0,"未約定",U32=T32,"約定",U32<T32,"一部約定") -> 未約定 | AD32: =IF(AA32="応札",IF($AB32="未約定",IF(OR($G32=List!$F$2:$F$3), $P32*$T32, $N32*$T32),IF($AB32="一部約定",IF(OR($G32=List!$F$2:$F$3), $P32*($T32-$U32), $N32*($T32-$U32)),"")),"") ->  | AE32: 0
V33: 0 | W33: 0 | Y33: =IF(ISNUMBER(B33), IF(COUNTIF($B$10:$B33, B33)=COUNTIF($B:$B, B33), "1", "0"), "") ->  | Z33: =IF(OR($C33=List!$C$5,$C33=List!$C$6,$C33=List!$C$11,$C33=List!$C$13), 1, 0) -> 0 | AA33: =_xlfn.IFS(T33="","未応札",T33>0,"応札") -> 未応札 | AB33: =_xlfn.IFS(U33=0,"未約定",U33=T33,"約定",U33<T33,"一部約定") -> 未約定 | AD33: =IF(AA33="応札",IF($AB33="未約定",IF(OR($G33=List!$F$2:$F$3), $P33*$T33, $N33*$T33),IF($AB33="一部約定",IF(OR($G33=List!$F$2:$F$3), $P33*($T33-$U33), $N33*($T33-$U33)),"")),"") ->  | AE33: 0
V34: 0 | W34: 0 | Y34: =IF(ISNUMBER(B34), IF(COUNTIF($B$10:$B34, B34)=COUNTIF($B:$B, B34), "1", "0"), "") ->  | Z34: =IF(OR($C34=List!$C$5,$C34=List!$C$6,$C34=List!$C$11,$C34=List!$C$13), 1, 0) -> 0 | AA34: =_xlfn.IFS(T34="","未応札",T34>0,"応札") -> 未応札 | AB34: =_xlfn.IFS(U34=0,"未約定",U34=T34,"約定",U34<T34,"一部約定") -> 未約定 | AD34: =IF(AA34="応札",IF($AB34="未約定",IF(OR($G34=List!$F$2:$F$3), $P34*$T34, $N34*$T34),IF($AB34="一部約定",IF(OR($G34=List!$F$2:$F$3), $P34*($T34-$U34), $N34*($T34-$U34)),"")),"") ->  | AE34: 0
V35: 0 | W35: 0 | Y35: =IF(ISNUMBER(B35), IF(COUNTIF($B$10:$B35, B35)=COUNTIF($B:$B, B35), "1", "0"), "") ->  | Z35: =IF(OR($C35=List!$C$5,$C35=List!$C$6,$C35=List!$C$11,$C35=List!$C$13), 1, 0) -> 0 | AA35: =_xlfn.IFS(T35="","未応札",T35>0,"応札") -> 未応札 | AB35: =_xlfn.IFS(U35=0,"未約定",U35=T35,"約定",U35<T35,"一部約定") -> 未約定 | AD35: =IF(AA35="応札",IF($AB35="未約定",IF(OR($G35=List!$F$2:$F$3), $P35*$T35, $N35*$T35),IF($AB35="一部約定",IF(OR($G35=List!$F$2:$F$3), $P35*($T35-$U35), $N35*($T35-$U35)),"")),"") ->  | AE35: 0
V36: 0 | W36: 0 | Y36: =IF(ISNUMBER(B36), IF(COUNTIF($B$10:$B36, B36)=COUNTIF($B:$B, B36), "1", "0"), "") ->  | Z36: =IF(OR($C36=List!$C$5,$C36=List!$C$6,$C36=List!$C$11,$C36=List!$C$13), 1, 0) -> 0 | AA36: =_xlfn.IFS(T36="","未応札",T36>0,"応札") -> 未応札 | AB36: =_xlfn.IFS(U36=0,"未約定",U36=T36,"約定",U36<T36,"一部約定") -> 未約定 | AD36: =IF(AA36="応札",IF($AB36="未約定",IF(OR($G36=List!$F$2:$F$3), $P36*$T36, $N36*$T36),IF($AB36="一部約定",IF(OR($G36=List!$F$2:$F$3), $P36*($T36-$U36), $N36*($T36-$U36)),"")),"") ->  | AE36: 0
V37: 0 | W37: 0 | Y37: =IF(ISNUMBER(B37), IF(COUNTIF($B$10:$B37, B37)=COUNTIF($B:$B, B37), "1", "0"), "") ->  | Z37: =IF(OR($C37=List!$C$5,$C37=List!$C$6,$C37=List!$C$11,$C37=List!$C$13), 1, 0) -> 0 | AA37: =_xlfn.IFS(T37="","未応札",T37>0,"応札") -> 未応札 | AB37: =_xlfn.IFS(U37=0,"未約定",U37=T37,"約定",U37<T37,"一部約定") -> 未約定 | AD37: =IF(AA37="応札",IF($AB37="未約定",IF(OR($G37=List!$F$2:$F$3), $P37*$T37, $N37*$T37),IF($AB37="一部約定",IF(OR($G37=List!$F$2:$F$3), $P37*($T37-$U37), $N37*($T37-$U37)),"")),"") ->  | AE37: 0
V38: 0 | W38: 0 | Y38: =IF(ISNUMBER(B38), IF(COUNTIF($B$10:$B38, B38)=COUNTIF($B:$B, B38), "1", "0"), "") ->  | Z38: =IF(OR($C38=List!$C$5,$C38=List!$C$6,$C38=List!$C$11,$C38=List!$C$13), 1, 0) -> 0 | AA38: =_xlfn.IFS(T38="","未応札",T38>0,"応札") -> 未応札 | AB38: =_xlfn.IFS(U38=0,"未約定",U38=T38,"約定",U38<T38,"一部約定") -> 未約定 | AD38: =IF(AA38="応札",IF($AB38="未約定",IF(OR($G38=List!$F$2:$F$3), $P38*$T38, $N38*$T38),IF($AB38="一部約定",IF(OR($G38=List!$F$2:$F$3), $P38*($T38-$U38), $N38*($T38-$U38)),"")),"") ->  | AE38: 0
V39: 0 | W39: 0 | Y39: =IF(ISNUMBER(B39), IF(COUNTIF($B$10:$B39, B39)=COUNTIF($B:$B, B39), "1", "0"), "") ->  | Z39: =IF(OR($C39=List!$C$5,$C39=List!$C$6,$C39=List!$C$11,$C39=List!$C$13), 1, 0) -> 0 | AA39: =_xlfn.IFS(T39="","未応札",T39>0,"応札") -> 未応札 | AB39: =_xlfn.IFS(U39=0,"未約定",U39=T39,"約定",U39<T39,"一部約定") -> 未約定 | AD39: =IF(AA39="応札",IF($AB39="未約定",IF(OR($G39=List!$F$2:$F$3), $P39*$T39, $N39*$T39),IF($AB39="一部約定",IF(OR($G39=List!$F$2:$F$3), $P39*($T39-$U39), $N39*($T39-$U39)),"")),"") ->  | AE39: 0
V40: 0 | W40: 0 | Y40: =IF(ISNUMBER(B40), IF(COUNTIF($B$10:$B40, B40)=COUNTIF($B:$B, B40), "1", "0"), "") ->  | Z40: =IF(OR($C40=List!$C$5,$C40=List!$C$6,$C40=List!$C$11,$C40=List!$C$13), 1, 0) -> 0 | AA40: =_xlfn.IFS(T40="","未応札",T40>0,"応札") -> 未応札 | AB40: =_xlfn.IFS(U40=0,"未約定",U40=T40,"約定",U40<T40,"一部約定") -> 未約定 | AD40: =IF(AA40="応札",IF($AB40="未約定",IF(OR($G40=List!$F$2:$F$3), $P40*$T40, $N40*$T40),IF($AB40="一部約定",IF(OR($G40=List!$F$2:$F$3), $P40*($T40-$U40), $N40*($T40-$U40)),"")),"") ->  | AE40: 0
V41: 0 | W41: 0 | Y41: =IF(ISNUMBER(B41), IF(COUNTIF($B$10:$B41, B41)=COUNTIF($B:$B, B41), "1", "0"), "") ->  | Z41: =IF(OR($C41=List!$C$5,$C41=List!$C$6,$C41=List!$C$11,$C41=List!$C$13), 1, 0) -> 0 | AA41: =_xlfn.IFS(T41="","未応札",T41>0,"応札") -> 未応札 | AB41: =_xlfn.IFS(U41=0,"未約定",U41=T41,"約定",U41<T41,"一部約定") -> 未約定 | AD41: =IF(AA41="応札",IF($AB41="未約定",IF(OR($G41=List!$F$2:$F$3), $P41*$T41, $N41*$T41),IF($AB41="一部約定",IF(OR($G41=List!$F$2:$F$3), $P41*($T41-$U41), $N41*($T41-$U41)),"")),"") ->  | AE41: 0
V42: 0 | W42: 0 | Y42: =IF(ISNUMBER(B42), IF(COUNTIF($B$10:$B42, B42)=COUNTIF($B:$B, B42), "1", "0"), "") ->  | Z42: =IF(OR($C42=List!$C$5,$C42=List!$C$6,$C42=List!$C$11,$C42=List!$C$13), 1, 0) -> 0 | AA42: =_xlfn.IFS(T42="","未応札",T42>0,"応札") -> 未応札 | AB42: =_xlfn.IFS(U42=0,"未約定",U42=T42,"約定",U42<T42,"一部約定") -> 未約定 | AD42: =IF(AA42="応札",IF($AB42="未約定",IF(OR($G42=List!$F$2:$F$3), $P42*$T42, $N42*$T42),IF($AB42="一部約定",IF(OR($G42=List!$F$2:$F$3), $P42*($T42-$U42), $N42*($T42-$U42)),"")),"") ->  | AE42: 0
V43: 0 | W43: 0 | Y43: =IF(ISNUMBER(B43), IF(COUNTIF($B$10:$B43, B43)=COUNTIF($B:$B, B43), "1", "0"), "") ->  | Z43: =IF(OR($C43=List!$C$5,$C43=List!$C$6,$C43=List!$C$11,$C43=List!$C$13), 1, 0) -> 0 | AA43: =_xlfn.IFS(T43="","未応札",T43>0,"応札") -> 未応札 | AB43: =_xlfn.IFS(U43=0,"未約定",U43=T43,"約定",U43<T43,"一部約定") -> 未約定 | AD43: =IF(AA43="応札",IF($AB43="未約定",IF(OR($G43=List!$F$2:$F$3), $P43*$T43, $N43*$T43),IF($AB43="一部約定",IF(OR($G43=List!$F$2:$F$3), $P43*($T43-$U43), $N43*($T43-$U43)),"")),"") ->  | AE43: 0
V44: 0 | W44: 0 | Y44: =IF(ISNUMBER(B44), IF(COUNTIF($B$10:$B44, B44)=COUNTIF($B:$B, B44), "1", "0"), "") ->  | Z44: =IF(OR($C44=List!$C$5,$C44=List!$C$6,$C44=List!$C$11,$C44=List!$C$13), 1, 0) -> 0 | AA44: =_xlfn.IFS(T44="","未応札",T44>0,"応札") -> 未応札 | AB44: =_xlfn.IFS(U44=0,"未約定",U44=T44,"約定",U44<T44,"一部約定") -> 未約定 | AD44: =IF(AA44="応札",IF($AB44="未約定",IF(OR($G44=List!$F$2:$F$3), $P44*$T44, $N44*$T44),IF($AB44="一部約定",IF(OR($G44=List!$F$2:$F$3), $P44*($T44-$U44), $N44*($T44-$U44)),"")),"") ->  | AE44: 0

Sheet 記載例_精算パターン⑨両市場へ按分し入札（片方全不落）
B2: 取引年月 | C2: 202604
B3: MMSコード | C3: A000
B4: 対象エリア | C4: 3：東京
B5: ファイル名称 | C5: =$C$2&"_"&$C$3&"_"&LEFT($C$4,1)&"_不約定単価内訳兼起動費事後精算情報様式" -> 202604_A000_3_不約定単価内訳兼起動費事後精算情報様式
B7: =入力シート!B7 -> 事象NO | C7: =入力シート!C7 -> 精算パターン | D7: =入力シート!D7 -> 余力活用契約対象リソース区分 | E7: =入力シート!E7 -> 取引日 | F7: =入力シート!F7 -> 時刻コード | G7: =入力シート!G7 -> 持ち下げ供出機区分 | H7: =入力シート!H7 -> 系統コード | I7: =入力シート!I7 -> 系統コード(差替後) | J7: =入力シート!J7 -> 商品区分 | K7: =入力シート!K7 -> 売り入札ID | L7: =入力シート!L7 -> 約定番号 | M7: =入力シート!M7 -> 約定識別ID | N7: =入力シート!N7 -> MMS起動費単価 | O7: =入力シート!O7 -> 加重平均前のΔkW単価 | P7: =入力シート!P7 -> 加重平均起動費未回収分相当額 | Q7: =入力シート!Q7 -> 最低出力までの発電電力量の機会費用単価 | R7: =入力シート!R7 -> 発電計画 | S7: =入力シート!S7 -> 最低出力 | T7: =入力シート!T7 -> 約定希望ΔkW | U7: =入力シート!U7 -> ΔkW約定量 | V7: =入力シート!V7 -> 最低出力までの発電電力量の機会費用単価×(約定希望ΔkW-ΔkW約定量) | W7: =入力シート!W7 -> 最低出力維持した場合の費用合計 | X7: =入力シート!X7 -> 停止・再起動にかかる費用 | Y7: =入力シート!Y7 -> 事象毎の最終行 | Z7: =入力シート!Z7 -> 妥当性確認 | AA7: =入力シート!AA7 -> 応札状況 | AB7: =入力シート!AB7 -> 約定状況 | AC7: =入力シート!AC7 -> 並解列状態(実績) | AD7: =入力シート!AD7 -> 起動費未回収分相当額 | AE7: =入力シート!AE7 -> 最低出力までの発電電力量の機会費用 | AF7: =入力シート!AF7 -> 停止・再起動にかかる費用 | AI7: =入力シート!AI7 -> 精算対象 申請小計 | AJ7: =入力シート!AJ7 -> 起動費未回収分相当額 | AK7: =入力シート!AK7 -> 最低出力までの発電電力量の機会費用 | AL7: =入力シート!AL7 -> 停止・再起動にかかる費用 | AM7: =入力シート!AM7 -> 合計
N8: （円/kW） | O8: （円/kW） | P8: （円/kW） | Q8: （円/kW） | R8: （kWh） | S8: （kWh） | T8: （kW） | U8: （kW） | V8: （円） | W8: （円） | X8: （円） | AD8: （円） | AE8: （円） | AF8: （円） | AJ8: （円） | AK8: （円） | AL8: （円） | AM8: （円）
B9: =IF(入力シート!B9<>"",入力シート!B9,"") -> ※起動費未回収が発生した事象NOを付定すること ※複合市場商品および三次調整力②商品へ１回分の起動費等を按分計上して入札し，両市場において起動費等の事後精算を申請する場合は，市場ごとに事象NOを分けずに同一の事象NOとして申請を実施すること | C9: =IF(入力シート!C9<>"",入力シート!C9,"") ->  | D9: =IF(入力シート!D9<>"",入力シート!D9,"") -> ※対象の場合は「１」，非対象の場合は「０」を入力 | E9: =IF(入力シート!E9<>"",入力シート!E9,"") ->  | F9: =IF(入力シート!F9<>"",入力シート!F9,"") ->  | G9: =IF(入力シート!G9<>"",入力シート!G9,"") -> ※持ち下げ供出機を加重平均で入札した場合に選択 | H9: =IF(入力シート!H9<>"",入力シート!H9,"") -> ※電源差替がない場合は精算対象となるリソースの系統コードを記載すること ※電源差替後のリソースにより精算する場合は，差替前のリソースの系統コードを記載すること | I9: =IF(入力シート!I9<>"",入力シート!I9,"") -> ※起動費単価分が登録されている電源に電源差替を実施する場合に記載すること | J9: =IF(入力シート!J9<>"",入力シート!J9,"") ->  | K9: =IF(入力シート!K9<>"",入力シート!K9,"") ->  | L9: =IF(入力シート!L9<>"",入力シート!L9,"") -> ※持ち下げ供出機区分が該当する場合，起動供出機の約定番号を記載すること ※同一時刻コードにおいて，複数の約定番号がある場合は，いずれか1つを記載すること | M9: =IF(入力シート!M9<>"",入力シート!M9,"") -> ※持ち下げ供出機区分に該当する場合，起動供出機の約定識別IDを記載すること ※同一時刻コードにおいて，約定番号に紐づく約定識別IDが複数存在する場合は，いずれか1つを記載すること ※電源差し替えを実施した場合，差替え元の約定識別IDを記載すること(持ち下げ供出機区分に該当する場合,起動供出機の初回約定識別IDを記載すること) | N9: =IF(入力シート!N9<>"",入力シート!N9,"") -> ※MMSに登録された起動費単価分を原則用いること ※ 「全量不落」の精算パターンで「最低出力までの発電電力量の機会費用」の事後精算の対象がある場合，様式都合により，属地TSOと事前に確認の上，「MMSに登録された起動費単価分」に当該単価を加算して記載すること | O9: =IF(入力シート!O9<>"",入力シート!O9,"") -> ※持ち下げ供出機区分が該当する場合に記載すること | P9: =IF(入力シート!P9<>"",入力シート!P9,"") -> ※ 持ち下げ供出機区分が該当する場合に記載すること | Q9: =IF(入力シート!Q9<>"",入力シート!Q9,"") -> ※卸電力市場価格（スポット市場価格：実績）と限界費用との差額を用いること ※加重平均で入札し，一部不落となった場合は，情報を記載するリソースのΔkW単価に含めた起動供出機の最低出力までの発電電力量の加重平均機会費用相当額を精算対象とする ※加重平均で入札し，起動供出機または持ち下げ供出機，またはその双方において一部のリソースが全量不落となったブロックに，起動供出機または持ち下げ供出機の情報を記載する場合は，起動供出機または持ち下げ供出機のΔkW単価に含めた起動供出機の最低出力までの発電電力量の加重平均機会費用相当額を精算対象とする。 （ただし，起動供出機が全量不落となった場合は，起動供出機の起動により機会費用が発生した場合に限る。そのため別途TSOからデータ提出を求める場合がある。なお、起動供出機のΔkW単価に含めた起動供出機の最低出力までの発電電力量の加重平均機会費用相当額については様式都合により，属地TSOと事前に確認の上， 「加重平均起動費未回収分相当額（P列）」に加算して記載すること） | R9: =IF(入力シート!R9<>"",入力シート!R9,"") ->  | S9: =IF(入力シート!S9<>"",入力シート!S9,"") ->  | T9: =IF(入力シート!T9<>"",入力シート!T9,"") ->  | U9: =IF(入力シート!U9<>"",入力シート!U9,"") ->  | V9: =IF(入力シート!V9<>"",入力シート!V9,"") -> ※加重平均で入札した場合は，最低出力までの発電電力量の加重平均機会費用相当額×(約定希望ΔkW-ΔkW約定量) | W9: =IF(入力シート!W9<>"",入力シート!W9,"") -> ※精算パターン「約定間全量不落(約定間停止・再起動)」を選択した場合，事象NOごとの最終行に合計値表示 | X9: =IF(入力シート!X9<>"",入力シート!X9,"") -> ※１停止・再起動費は最後のブロックに記載すること ※２ 余力活用契約を締結している電源でBG計画上停止・再起動としていたが、実績は停止しなかった場合も、BG計画上の「停止・再起動費」を記載すること | Y9: =IF(入力シート!Y9<>"",入力シート!Y9,"") ->  | Z9: =IF(入力シート!Z9<>"",入力シート!Z9,"") ->  | AA9: =IF(入力シート!AA9<>"",入力シート!AA9,"") ->  | AB9: =IF(入力シート!AB9<>"",入力シート!AB9,"") ->  | AC9: =IF(入力シート!AC9<>"",入力シート!AC9,"") ->  | AD9: =IF(入力シート!AD9<>"",入力シート!AD9,"") -> ※加重平均で入札した場合は，加重平均起動費未回収分相当額 | AE9: =IF(入力シート!AE9<>"",入力シート!AE9,"") -> ※加重平均で入札した場合は，最低出力までの発電電力量の加重平均機会費用相当額 | AF9: =IF(入力シート!AF9<>"",入力シート!AF9,"") -> ※約定間全量不落時において，停止・再起動するよりも，最低出力維持した方が経済的だった場合，後者を事後精算対象とする | AJ9: =SUM($AD10:$AD2833) -> 1750000 | AK9: =SUM($AE10:$AE2833) -> 3500000 | AL9: =SUM($AF10:$AF2833) -> 0 | AM9: =ROUNDDOWN(SUM(AJ9:AL9),0) -> 5250000
B10: 1 | C10: 1：約定間全量不落（最低出力維持） | D10: 0：非対象 | E10: 20260401 | F10: 2 | H10: ○A○○○ | J10: 1：複合市場商品 | K10: ○○○○○○ | N10: 5 | Q10: 10 | R10: 20000 | S10: 20000 | T10: 50000 | U10: 0 | V10: =Q10*(T10-U10) -> 500000 | W10: =IF(X10 > 0, SUMIFS(V:V, B:B, B10, Z:Z, 1), 0) -> 0 | Y10: =IF(ISNUMBER(B10), IF(COUNTIF($B$10:$B10, B10)=COUNTIF($B:$B, B10), "1", "0"), "") -> 0 | Z10: =IF(OR($C10=List!$C$5,$C10=List!$C$6,$C10=List!$C$11,$C10=List!$C$13), 1, 0) -> 0 | AA10: =_xlfn.IFS(T10="","未応札",T10>0,"応札") -> 応札 | AB10: =_xlfn.IFS(U10=0,"未約定",U10=T10,"約定",U10<T10,"一部約定") -> 未約定 | AC10: 1：並列 | AD10: =IF(AA10="応札",IF($AB10="未約定",IF(OR($G10=List!$F$2:$F$3), $P10*$T10, $N10*$T10),IF($AB10="一部約定",IF(OR($G10=List!$F$2:$F$3), $P10*($T10-$U10), $N10*($T10-$U10)),"")),"") -> 250000 | AE10: =IF(ISBLANK($R10),IF(OR($AB10="一部約定",$AB10="未約定"),$Q10*($T10-$U10),""),IF($R10=0,"", IF(OR($AB10="一部約定", $AB10="未約定"), $Q10*($T10-$U10), ""))) -> 500000 | AF10: =IF(AND($AA10="応札",$AB10="未約定"), IF($W10<>0, IF($X10<$W10, IF($X10<>0, $X10, ""), IF($W10<>0, $W10, "")), IF($X10<>0, $X10, "")), "") -> 
B11: 1 | C11: 1：約定間全量不落（最低出力維持） | D11: 0：非対象 | E11: 20260401 | F11: 3 | H11: ○A○○○ | J11: 1：複合市場商品 | K11: ○○○○○○ | N11: 5 | Q11: 10 | R11: 20000 | S11: 20000 | T11: 50000 | U11: 0 | V11: =Q11*(T11-U11) -> 500000 | W11: 0 | Y11: =IF(ISNUMBER(B11), IF(COUNTIF($B$10:$B11, B11)=COUNTIF($B:$B, B11), "1", "0"), "") -> 0 | Z11: =IF(OR($C11=List!$C$5,$C11=List!$C$6,$C11=List!$C$11,$C11=List!$C$13), 1, 0) -> 0 | AA11: =_xlfn.IFS(T11="","未応札",T11>0,"応札") -> 応札 | AB11: =_xlfn.IFS(U11=0,"未約定",U11=T11,"約定",U11<T11,"一部約定") -> 未約定 | AC11: 1：並列 | AD11: =IF(AA11="応札",IF($AB11="未約定",IF(OR($G11=List!$F$2:$F$3), $P11*$T11, $N11*$T11),IF($AB11="一部約定",IF(OR($G11=List!$F$2:$F$3), $P11*($T11-$U11), $N11*($T11-$U11)),"")),"") -> 250000 | AE11: =IF(ISBLANK($R11),IF(OR($AB11="一部約定",$AB11="未約定"),$Q11*($T11-$U11),""),IF($R11=0,"", IF(OR($AB11="一部約定", $AB11="未約定"), $Q11*($T11-$U11), ""))) -> 500000 | AF11: =IF(AND($AA11="応札",$AB11="未約定"), IF($W11<>0, IF($X11<$W11, IF($X11<>0, $X11, ""), IF($W11<>0, $W11, "")), IF($X11<>0, $X11, "")), "") -> 
B12: 1 | C12: 1：約定間全量不落（最低出力維持） | D12: 0：非対象 | E12: 20260401 | F12: 4 | H12: ○A○○○ | J12: 1：複合市場商品 | K12: ○○○○○○ | N12: 5 | Q12: 10 | R12: 20000 | S12: 20000 | T12: 50000 | U12: 0 | V12: 500000 | W12: 0 | Y12: =IF(ISNUMBER(B12), IF(COUNTIF($B$10:$B12, B12)=COUNTIF($B:$B, B12), "1", "0"), "") -> 0 | Z12: =IF(OR($C12=List!$C$5,$C12=List!$C$6,$C12=List!$C$11,$C12=List!$C$13), 1, 0) -> 0 | AA12: =_xlfn.IFS(T12="","未応札",T12>0,"応札") -> 応札 | AB12: =_xlfn.IFS(U12=0,"未約定",U12=T12,"約定",U12<T12,"一部約定") -> 未約定 | AC12: 1：並列 | AD12: =IF(AA12="応札",IF($AB12="未約定",IF(OR($G12=List!$F$2:$F$3), $P12*$T12, $N12*$T12),IF($AB12="一部約定",IF(OR($G12=List!$F$2:$F$3), $P12*($T12-$U12), $N12*($T12-$U12)),"")),"") -> 250000 | AE12: 500000
V13: 0 | W13: 0 | Y13: =IF(ISNUMBER(B13), IF(COUNTIF($B$10:$B13, B13)=COUNTIF($B:$B, B13), "1", "0"), "") ->  | Z13: =IF(OR($C13=List!$C$5,$C13=List!$C$6,$C13=List!$C$11,$C13=List!$C$13), 1, 0) -> 0 | AA13: =_xlfn.IFS(T13="","未応札",T13>0,"応札") -> 未応札 | AB13: =_xlfn.IFS(U13=0,"未約定",U13=T13,"約定",U13<T13,"一部約定") -> 未約定 | AD13: =IF(AA13="応札",IF($AB13="未約定",IF(OR($G13=List!$F$2:$F$3), $P13*$T13, $N13*$T13),IF($AB13="一部約定",IF(OR($G13=List!$F$2:$F$3), $P13*($T13-$U13), $N13*($T13-$U13)),"")),"") ->  | AE13: 0
V14: 0 | W14: 0 | Y14: =IF(ISNUMBER(B14), IF(COUNTIF($B$10:$B14, B14)=COUNTIF($B:$B, B14), "1", "0"), "") ->  | Z14: =IF(OR($C14=List!$C$5,$C14=List!$C$6,$C14=List!$C$11,$C14=List!$C$13), 1, 0) -> 0 | AA14: =_xlfn.IFS(T14="","未応札",T14>0,"応札") -> 未応札 | AB14: =_xlfn.IFS(U14=0,"未約定",U14=T14,"約定",U14<T14,"一部約定") -> 未約定 | AD14: =IF(AA14="応札",IF($AB14="未約定",IF(OR($G14=List!$F$2:$F$3), $P14*$T14, $N14*$T14),IF($AB14="一部約定",IF(OR($G14=List!$F$2:$F$3), $P14*($T14-$U14), $N14*($T14-$U14)),"")),"") ->  | AE14: 0
V15: 0 | W15: 0 | Y15: =IF(ISNUMBER(B15), IF(COUNTIF($B$10:$B15, B15)=COUNTIF($B:$B, B15), "1", "0"), "") ->  | Z15: =IF(OR($C15=List!$C$5,$C15=List!$C$6,$C15=List!$C$11,$C15=List!$C$13), 1, 0) -> 0 | AA15: =_xlfn.IFS(T15="","未応札",T15>0,"応札") -> 未応札 | AB15: =_xlfn.IFS(U15=0,"未約定",U15=T15,"約定",U15<T15,"一部約定") -> 未約定 | AD15: =IF(AA15="応札",IF($AB15="未約定",IF(OR($G15=List!$F$2:$F$3), $P15*$T15, $N15*$T15),IF($AB15="一部約定",IF(OR($G15=List!$F$2:$F$3), $P15*($T15-$U15), $N15*($T15-$U15)),"")),"") ->  | AE15: 0
V16: 0 | W16: 0 | Y16: =IF(ISNUMBER(B16), IF(COUNTIF($B$10:$B16, B16)=COUNTIF($B:$B, B16), "1", "0"), "") ->  | Z16: =IF(OR($C16=List!$C$5,$C16=List!$C$6,$C16=List!$C$11,$C16=List!$C$13), 1, 0) -> 0 | AA16: =_xlfn.IFS(T16="","未応札",T16>0,"応札") -> 未応札 | AB16: =_xlfn.IFS(U16=0,"未約定",U16=T16,"約定",U16<T16,"一部約定") -> 未約定 | AD16: =IF(AA16="応札",IF($AB16="未約定",IF(OR($G16=List!$F$2:$F$3), $P16*$T16, $N16*$T16),IF($AB16="一部約定",IF(OR($G16=List!$F$2:$F$3), $P16*($T16-$U16), $N16*($T16-$U16)),"")),"") ->  | AE16: 0
V17: 0 | W17: 0 | Y17: =IF(ISNUMBER(B17), IF(COUNTIF($B$10:$B17, B17)=COUNTIF($B:$B, B17), "1", "0"), "") ->  | Z17: =IF(OR($C17=List!$C$5,$C17=List!$C$6,$C17=List!$C$11,$C17=List!$C$13), 1, 0) -> 0 | AA17: =_xlfn.IFS(T17="","未応札",T17>0,"応札") -> 未応札 | AB17: =_xlfn.IFS(U17=0,"未約定",U17=T17,"約定",U17<T17,"一部約定") -> 未約定 | AD17: =IF(AA17="応札",IF($AB17="未約定",IF(OR($G17=List!$F$2:$F$3), $P17*$T17, $N17*$T17),IF($AB17="一部約定",IF(OR($G17=List!$F$2:$F$3), $P17*($T17-$U17), $N17*($T17-$U17)),"")),"") ->  | AE17: 0
V18: 0 | W18: 0 | Y18: =IF(ISNUMBER(B18), IF(COUNTIF($B$10:$B18, B18)=COUNTIF($B:$B, B18), "1", "0"), "") ->  | Z18: =IF(OR($C18=List!$C$5,$C18=List!$C$6,$C18=List!$C$11,$C18=List!$C$13), 1, 0) -> 0 | AA18: =_xlfn.IFS(T18="","未応札",T18>0,"応札") -> 未応札 | AB18: =_xlfn.IFS(U18=0,"未約定",U18=T18,"約定",U18<T18,"一部約定") -> 未約定 | AD18: =IF(AA18="応札",IF($AB18="未約定",IF(OR($G18=List!$F$2:$F$3), $P18*$T18, $N18*$T18),IF($AB18="一部約定",IF(OR($G18=List!$F$2:$F$3), $P18*($T18-$U18), $N18*($T18-$U18)),"")),"") ->  | AE18: 0
V19: 0 | W19: 0 | Y19: =IF(ISNUMBER(B19), IF(COUNTIF($B$10:$B19, B19)=COUNTIF($B:$B, B19), "1", "0"), "") ->  | Z19: =IF(OR($C19=List!$C$5,$C19=List!$C$6,$C19=List!$C$11,$C19=List!$C$13), 1, 0) -> 0 | AA19: =_xlfn.IFS(T19="","未応札",T19>0,"応札") -> 未応札 | AB19: =_xlfn.IFS(U19=0,"未約定",U19=T19,"約定",U19<T19,"一部約定") -> 未約定 | AD19: =IF(AA19="応札",IF($AB19="未約定",IF(OR($G19=List!$F$2:$F$3), $P19*$T19, $N19*$T19),IF($AB19="一部約定",IF(OR($G19=List!$F$2:$F$3), $P19*($T19-$U19), $N19*($T19-$U19)),"")),"") ->  | AE19: 0
V20: 0 | W20: 0 | Y20: =IF(ISNUMBER(B20), IF(COUNTIF($B$10:$B20, B20)=COUNTIF($B:$B, B20), "1", "0"), "") ->  | Z20: =IF(OR($C20=List!$C$5,$C20=List!$C$6,$C20=List!$C$11,$C20=List!$C$13), 1, 0) -> 0 | AA20: =_xlfn.IFS(T20="","未応札",T20>0,"応札") -> 未応札 | AB20: =_xlfn.IFS(U20=0,"未約定",U20=T20,"約定",U20<T20,"一部約定") -> 未約定 | AD20: =IF(AA20="応札",IF($AB20="未約定",IF(OR($G20=List!$F$2:$F$3), $P20*$T20, $N20*$T20),IF($AB20="一部約定",IF(OR($G20=List!$F$2:$F$3), $P20*($T20-$U20), $N20*($T20-$U20)),"")),"") ->  | AE20: 0
V21: 0 | W21: 0 | Y21: =IF(ISNUMBER(B21), IF(COUNTIF($B$10:$B21, B21)=COUNTIF($B:$B, B21), "1", "0"), "") ->  | Z21: =IF(OR($C21=List!$C$5,$C21=List!$C$6,$C21=List!$C$11,$C21=List!$C$13), 1, 0) -> 0 | AA21: =_xlfn.IFS(T21="","未応札",T21>0,"応札") -> 未応札 | AB21: =_xlfn.IFS(U21=0,"未約定",U21=T21,"約定",U21<T21,"一部約定") -> 未約定 | AD21: =IF(AA21="応札",IF($AB21="未約定",IF(OR($G21=List!$F$2:$F$3), $P21*$T21, $N21*$T21),IF($AB21="一部約定",IF(OR($G21=List!$F$2:$F$3), $P21*($T21-$U21), $N21*($T21-$U21)),"")),"") ->  | AE21: 0
V22: 0 | W22: 0 | Y22: =IF(ISNUMBER(B22), IF(COUNTIF($B$10:$B22, B22)=COUNTIF($B:$B, B22), "1", "0"), "") ->  | Z22: =IF(OR($C22=List!$C$5,$C22=List!$C$6,$C22=List!$C$11,$C22=List!$C$13), 1, 0) -> 0 | AA22: =_xlfn.IFS(T22="","未応札",T22>0,"応札") -> 未応札 | AB22: =_xlfn.IFS(U22=0,"未約定",U22=T22,"約定",U22<T22,"一部約定") -> 未約定 | AD22: =IF(AA22="応札",IF($AB22="未約定",IF(OR($G22=List!$F$2:$F$3), $P22*$T22, $N22*$T22),IF($AB22="一部約定",IF(OR($G22=List!$F$2:$F$3), $P22*($T22-$U22), $N22*($T22-$U22)),"")),"") ->  | AE22: 0
V23: 0 | W23: 0 | Y23: =IF(ISNUMBER(B23), IF(COUNTIF($B$10:$B23, B23)=COUNTIF($B:$B, B23), "1", "0"), "") ->  | Z23: =IF(OR($C23=List!$C$5,$C23=List!$C$6,$C23=List!$C$11,$C23=List!$C$13), 1, 0) -> 0 | AA23: =_xlfn.IFS(T23="","未応札",T23>0,"応札") -> 未応札 | AB23: =_xlfn.IFS(U23=0,"未約定",U23=T23,"約定",U23<T23,"一部約定") -> 未約定 | AD23: =IF(AA23="応札",IF($AB23="未約定",IF(OR($G23=List!$F$2:$F$3), $P23*$T23, $N23*$T23),IF($AB23="一部約定",IF(OR($G23=List!$F$2:$F$3), $P23*($T23-$U23), $N23*($T23-$U23)),"")),"") ->  | AE23: 0
V24: 0 | W24: 0 | Y24: =IF(ISNUMBER(B24), IF(COUNTIF($B$10:$B24, B24)=COUNTIF($B:$B, B24), "1", "0"), "") ->  | Z24: =IF(OR($C24=List!$C$5,$C24=List!$C$6,$C24=List!$C$11,$C24=List!$C$13), 1, 0) -> 0 | AA24: =_xlfn.IFS(T24="","未応札",T24>0,"応札") -> 未応札 | AB24: =_xlfn.IFS(U24=0,"未約定",U24=T24,"約定",U24<T24,"一部約定") -> 未約定 | AD24: =IF(AA24="応札",IF($AB24="未約定",IF(OR($G24=List!$F$2:$F$3), $P24*$T24, $N24*$T24),IF($AB24="一部約定",IF(OR($G24=List!$F$2:$F$3), $P24*($T24-$U24), $N24*($T24-$U24)),"")),"") ->  | AE24: 0
V25: 0 | W25: 0 | Y25: =IF(ISNUMBER(B25), IF(COUNTIF($B$10:$B25, B25)=COUNTIF($B:$B, B25), "1", "0"), "") ->  | Z25: =IF(OR($C25=List!$C$5,$C25=List!$C$6,$C25=List!$C$11,$C25=List!$C$13), 1, 0) -> 0 | AA25: =_xlfn.IFS(T25="","未応札",T25>0,"応札") -> 未応札 | AB25: =_xlfn.IFS(U25=0,"未約定",U25=T25,"約定",U25<T25,"一部約定") -> 未約定 | AD25: =IF(AA25="応札",IF($AB25="未約定",IF(OR($G25=List!$F$2:$F$3), $P25*$T25, $N25*$T25),IF($AB25="一部約定",IF(OR($G25=List!$F$2:$F$3), $P25*($T25-$U25), $N25*($T25-$U25)),"")),"") ->  | AE25: 0
V26: 0 | W26: 0 | Y26: =IF(ISNUMBER(B26), IF(COUNTIF($B$10:$B26, B26)=COUNTIF($B:$B, B26), "1", "0"), "") ->  | Z26: =IF(OR($C26=List!$C$5,$C26=List!$C$6,$C26=List!$C$11,$C26=List!$C$13), 1, 0) -> 0 | AA26: =_xlfn.IFS(T26="","未応札",T26>0,"応札") -> 未応札 | AB26: =_xlfn.IFS(U26=0,"未約定",U26=T26,"約定",U26<T26,"一部約定") -> 未約定 | AD26: =IF(AA26="応札",IF($AB26="未約定",IF(OR($G26=List!$F$2:$F$3), $P26*$T26, $N26*$T26),IF($AB26="一部約定",IF(OR($G26=List!$F$2:$F$3), $P26*($T26-$U26), $N26*($T26-$U26)),"")),"") ->  | AE26: 0
V27: 0 | W27: 0 | Y27: =IF(ISNUMBER(B27), IF(COUNTIF($B$10:$B27, B27)=COUNTIF($B:$B, B27), "1", "0"), "") ->  | Z27: =IF(OR($C27=List!$C$5,$C27=List!$C$6,$C27=List!$C$11,$C27=List!$C$13), 1, 0) -> 0 | AA27: =_xlfn.IFS(T27="","未応札",T27>0,"応札") -> 未応札 | AB27: =_xlfn.IFS(U27=0,"未約定",U27=T27,"約定",U27<T27,"一部約定") -> 未約定 | AD27: =IF(AA27="応札",IF($AB27="未約定",IF(OR($G27=List!$F$2:$F$3), $P27*$T27, $N27*$T27),IF($AB27="一部約定",IF(OR($G27=List!$F$2:$F$3), $P27*($T27-$U27), $N27*($T27-$U27)),"")),"") ->  | AE27: 0
V28: 0 | W28: 0 | Y28: =IF(ISNUMBER(B28), IF(COUNTIF($B$10:$B28, B28)=COUNTIF($B:$B, B28), "1", "0"), "") ->  | Z28: =IF(OR($C28=List!$C$5,$C28=List!$C$6,$C28=List!$C$11,$C28=List!$C$13), 1, 0) -> 0 | AA28: =_xlfn.IFS(T28="","未応札",T28>0,"応札") -> 未応札 | AB28: =_xlfn.IFS(U28=0,"未約定",U28=T28,"約定",U28<T28,"一部約定") -> 未約定 | AD28: =IF(AA28="応札",IF($AB28="未約定",IF(OR($G28=List!$F$2:$F$3), $P28*$T28, $N28*$T28),IF($AB28="一部約定",IF(OR($G28=List!$F$2:$F$3), $P28*($T28-$U28), $N28*($T28-$U28)),"")),"") ->  | AE28: 0
V29: 0 | W29: 0 | Y29: =IF(ISNUMBER(B29), IF(COUNTIF($B$10:$B29, B29)=COUNTIF($B:$B, B29), "1", "0"), "") ->  | Z29: =IF(OR($C29=List!$C$5,$C29=List!$C$6,$C29=List!$C$11,$C29=List!$C$13), 1, 0) -> 0 | AA29: =_xlfn.IFS(T29="","未応札",T29>0,"応札") -> 未応札 | AB29: =_xlfn.IFS(U29=0,"未約定",U29=T29,"約定",U29<T29,"一部約定") -> 未約定 | AD29: =IF(AA29="応札",IF($AB29="未約定",IF(OR($G29=List!$F$2:$F$3), $P29*$T29, $N29*$T29),IF($AB29="一部約定",IF(OR($G29=List!$F$2:$F$3), $P29*($T29-$U29), $N29*($T29-$U29)),"")),"") ->  | AE29: 0
V30: 0 | W30: 0 | Y30: =IF(ISNUMBER(B30), IF(COUNTIF($B$10:$B30, B30)=COUNTIF($B:$B, B30), "1", "0"), "") ->  | Z30: =IF(OR($C30=List!$C$5,$C30=List!$C$6,$C30=List!$C$11,$C30=List!$C$13), 1, 0) -> 0 | AA30: =_xlfn.IFS(T30="","未応札",T30>0,"応札") -> 未応札 | AB30: =_xlfn.IFS(U30=0,"未約定",U30=T30,"約定",U30<T30,"一部約定") -> 未約定 | AD30: =IF(AA30="応札",IF($AB30="未約定",IF(OR($G30=List!$F$2:$F$3), $P30*$T30, $N30*$T30),IF($AB30="一部約定",IF(OR($G30=List!$F$2:$F$3), $P30*($T30-$U30), $N30*($T30-$U30)),"")),"") ->  | AE30: 0
V31: 0 | W31: 0 | Y31: =IF(ISNUMBER(B31), IF(COUNTIF($B$10:$B31, B31)=COUNTIF($B:$B, B31), "1", "0"), "") ->  | Z31: =IF(OR($C31=List!$C$5,$C31=List!$C$6,$C31=List!$C$11,$C31=List!$C$13), 1, 0) -> 0 | AA31: =_xlfn.IFS(T31="","未応札",T31>0,"応札") -> 未応札 | AB31: =_xlfn.IFS(U31=0,"未約定",U31=T31,"約定",U31<T31,"一部約定") -> 未約定 | AD31: =IF(AA31="応札",IF($AB31="未約定",IF(OR($G31=List!$F$2:$F$3), $P31*$T31, $N31*$T31),IF($AB31="一部約定",IF(OR($G31=List!$F$2:$F$3), $P31*($T31-$U31), $N31*($T31-$U31)),"")),"") ->  | AE31: 0
V32: 0 | W32: 0 | Y32: =IF(ISNUMBER(B32), IF(COUNTIF($B$10:$B32, B32)=COUNTIF($B:$B, B32), "1", "0"), "") ->  | Z32: =IF(OR($C32=List!$C$5,$C32=List!$C$6,$C32=List!$C$11,$C32=List!$C$13), 1, 0) -> 0 | AA32: =_xlfn.IFS(T32="","未応札",T32>0,"応札") -> 未応札 | AB32: =_xlfn.IFS(U32=0,"未約定",U32=T32,"約定",U32<T32,"一部約定") -> 未約定 | AD32: =IF(AA32="応札",IF($AB32="未約定",IF(OR($G32=List!$F$2:$F$3), $P32*$T32, $N32*$T32),IF($AB32="一部約定",IF(OR($G32=List!$F$2:$F$3), $P32*($T32-$U32), $N32*($T32-$U32)),"")),"") ->  | AE32: 0
V33: 0 | W33: 0 | Y33: =IF(ISNUMBER(B33), IF(COUNTIF($B$10:$B33, B33)=COUNTIF($B:$B, B33), "1", "0"), "") ->  | Z33: =IF(OR($C33=List!$C$5,$C33=List!$C$6,$C33=List!$C$11,$C33=List!$C$13), 1, 0) -> 0 | AA33: =_xlfn.IFS(T33="","未応札",T33>0,"応札") -> 未応札 | AB33: =_xlfn.IFS(U33=0,"未約定",U33=T33,"約定",U33<T33,"一部約定") -> 未約定 | AD33: =IF(AA33="応札",IF($AB33="未約定",IF(OR($G33=List!$F$2:$F$3), $P33*$T33, $N33*$T33),IF($AB33="一部約定",IF(OR($G33=List!$F$2:$F$3), $P33*($T33-$U33), $N33*($T33-$U33)),"")),"") ->  | AE33: 0
V34: 0 | W34: 0 | Y34: =IF(ISNUMBER(B34), IF(COUNTIF($B$10:$B34, B34)=COUNTIF($B:$B, B34), "1", "0"), "") ->  | Z34: =IF(OR($C34=List!$C$5,$C34=List!$C$6,$C34=List!$C$11,$C34=List!$C$13), 1, 0) -> 0 | AA34: =_xlfn.IFS(T34="","未応札",T34>0,"応札") -> 未応札 | AB34: =_xlfn.IFS(U34=0,"未約定",U34=T34,"約定",U34<T34,"一部約定") -> 未約定 | AD34: =IF(AA34="応札",IF($AB34="未約定",IF(OR($G34=List!$F$2:$F$3), $P34*$T34, $N34*$T34),IF($AB34="一部約定",IF(OR($G34=List!$F$2:$F$3), $P34*($T34-$U34), $N34*($T34-$U34)),"")),"") ->  | AE34: 0
V35: 0 | W35: 0 | Y35: =IF(ISNUMBER(B35), IF(COUNTIF($B$10:$B35, B35)=COUNTIF($B:$B, B35), "1", "0"), "") ->  | Z35: =IF(OR($C35=List!$C$5,$C35=List!$C$6,$C35=List!$C$11,$C35=List!$C$13), 1, 0) -> 0 | AA35: =_xlfn.IFS(T35="","未応札",T35>0,"応札") -> 未応札 | AB35: =_xlfn.IFS(U35=0,"未約定",U35=T35,"約定",U35<T35,"一部約定") -> 未約定 | AD35: =IF(AA35="応札",IF($AB35="未約定",IF(OR($G35=List!$F$2:$F$3), $P35*$T35, $N35*$T35),IF($AB35="一部約定",IF(OR($G35=List!$F$2:$F$3), $P35*($T35-$U35), $N35*($T35-$U35)),"")),"") ->  | AE35: 0
V36: 0 | W36: 0 | Y36: =IF(ISNUMBER(B36), IF(COUNTIF($B$10:$B36, B36)=COUNTIF($B:$B, B36), "1", "0"), "") ->  | Z36: =IF(OR($C36=List!$C$5,$C36=List!$C$6,$C36=List!$C$11,$C36=List!$C$13), 1, 0) -> 0 | AA36: =_xlfn.IFS(T36="","未応札",T36>0,"応札") -> 未応札 | AB36: =_xlfn.IFS(U36=0,"未約定",U36=T36,"約定",U36<T36,"一部約定") -> 未約定 | AD36: =IF(AA36="応札",IF($AB36="未約定",IF(OR($G36=List!$F$2:$F$3), $P36*$T36, $N36*$T36),IF($AB36="一部約定",IF(OR($G36=List!$F$2:$F$3), $P36*($T36-$U36), $N36*($T36-$U36)),"")),"") ->  | AE36: 0
V37: 0 | W37: 0 | Y37: =IF(ISNUMBER(B37), IF(COUNTIF($B$10:$B37, B37)=COUNTIF($B:$B, B37), "1", "0"), "") ->  | Z37: =IF(OR($C37=List!$C$5,$C37=List!$C$6,$C37=List!$C$11,$C37=List!$C$13), 1, 0) -> 0 | AA37: =_xlfn.IFS(T37="","未応札",T37>0,"応札") -> 未応札 | AB37: =_xlfn.IFS(U37=0,"未約定",U37=T37,"約定",U37<T37,"一部約定") -> 未約定 | AD37: =IF(AA37="応札",IF($AB37="未約定",IF(OR($G37=List!$F$2:$F$3), $P37*$T37, $N37*$T37),IF($AB37="一部約定",IF(OR($G37=List!$F$2:$F$3), $P37*($T37-$U37), $N37*($T37-$U37)),"")),"") ->  | AE37: 0
V38: 0 | W38: 0 | Y38: =IF(ISNUMBER(B38), IF(COUNTIF($B$10:$B38, B38)=COUNTIF($B:$B, B38), "1", "0"), "") ->  | Z38: =IF(OR($C38=List!$C$5,$C38=List!$C$6,$C38=List!$C$11,$C38=List!$C$13), 1, 0) -> 0 | AA38: =_xlfn.IFS(T38="","未応札",T38>0,"応札") -> 未応札 | AB38: =_xlfn.IFS(U38=0,"未約定",U38=T38,"約定",U38<T38,"一部約定") -> 未約定 | AD38: =IF(AA38="応札",IF($AB38="未約定",IF(OR($G38=List!$F$2:$F$3), $P38*$T38, $N38*$T38),IF($AB38="一部約定",IF(OR($G38=List!$F$2:$F$3), $P38*($T38-$U38), $N38*($T38-$U38)),"")),"") ->  | AE38: 0
V39: 0 | W39: 0 | Y39: =IF(ISNUMBER(B39), IF(COUNTIF($B$10:$B39, B39)=COUNTIF($B:$B, B39), "1", "0"), "") ->  | Z39: =IF(OR($C39=List!$C$5,$C39=List!$C$6,$C39=List!$C$11,$C39=List!$C$13), 1, 0) -> 0 | AA39: =_xlfn.IFS(T39="","未応札",T39>0,"応札") -> 未応札 | AB39: =_xlfn.IFS(U39=0,"未約定",U39=T39,"約定",U39<T39,"一部約定") -> 未約定 | AD39: =IF(AA39="応札",IF($AB39="未約定",IF(OR($G39=List!$F$2:$F$3), $P39*$T39, $N39*$T39),IF($AB39="一部約定",IF(OR($G39=List!$F$2:$F$3), $P39*($T39-$U39), $N39*($T39-$U39)),"")),"") ->  | AE39: 0
V40: 0 | W40: 0 | Y40: =IF(ISNUMBER(B40), IF(COUNTIF($B$10:$B40, B40)=COUNTIF($B:$B, B40), "1", "0"), "") ->  | Z40: =IF(OR($C40=List!$C$5,$C40=List!$C$6,$C40=List!$C$11,$C40=List!$C$13), 1, 0) -> 0 | AA40: =_xlfn.IFS(T40="","未応札",T40>0,"応札") -> 未応札 | AB40: =_xlfn.IFS(U40=0,"未約定",U40=T40,"約定",U40<T40,"一部約定") -> 未約定 | AD40: =IF(AA40="応札",IF($AB40="未約定",IF(OR($G40=List!$F$2:$F$3), $P40*$T40, $N40*$T40),IF($AB40="一部約定",IF(OR($G40=List!$F$2:$F$3), $P40*($T40-$U40), $N40*($T40-$U40)),"")),"") ->  | AE40: 0
V41: 0 | W41: 0 | Y41: =IF(ISNUMBER(B41), IF(COUNTIF($B$10:$B41, B41)=COUNTIF($B:$B, B41), "1", "0"), "") ->  | Z41: =IF(OR($C41=List!$C$5,$C41=List!$C$6,$C41=List!$C$11,$C41=List!$C$13), 1, 0) -> 0 | AA41: =_xlfn.IFS(T41="","未応札",T41>0,"応札") -> 未応札 | AB41: =_xlfn.IFS(U41=0,"未約定",U41=T41,"約定",U41<T41,"一部約定") -> 未約定 | AD41: =IF(AA41="応札",IF($AB41="未約定",IF(OR($G41=List!$F$2:$F$3), $P41*$T41, $N41*$T41),IF($AB41="一部約定",IF(OR($G41=List!$F$2:$F$3), $P41*($T41-$U41), $N41*($T41-$U41)),"")),"") ->  | AE41: 0
V42: 0 | W42: 0 | Y42: =IF(ISNUMBER(B42), IF(COUNTIF($B$10:$B42, B42)=COUNTIF($B:$B, B42), "1", "0"), "") ->  | Z42: =IF(OR($C42=List!$C$5,$C42=List!$C$6,$C42=List!$C$11,$C42=List!$C$13), 1, 0) -> 0 | AA42: =_xlfn.IFS(T42="","未応札",T42>0,"応札") -> 未応札 | AB42: =_xlfn.IFS(U42=0,"未約定",U42=T42,"約定",U42<T42,"一部約定") -> 未約定 | AD42: =IF(AA42="応札",IF($AB42="未約定",IF(OR($G42=List!$F$2:$F$3), $P42*$T42, $N42*$T42),IF($AB42="一部約定",IF(OR($G42=List!$F$2:$F$3), $P42*($T42-$U42), $N42*($T42-$U42)),"")),"") ->  | AE42: 0
V43: 0 | W43: 0 | Y43: =IF(ISNUMBER(B43), IF(COUNTIF($B$10:$B43, B43)=COUNTIF($B:$B, B43), "1", "0"), "") ->  | Z43: =IF(OR($C43=List!$C$5,$C43=List!$C$6,$C43=List!$C$11,$C43=List!$C$13), 1, 0) -> 0 | AA43: =_xlfn.IFS(T43="","未応札",T43>0,"応札") -> 未応札 | AB43: =_xlfn.IFS(U43=0,"未約定",U43=T43,"約定",U43<T43,"一部約定") -> 未約定 | AD43: =IF(AA43="応札",IF($AB43="未約定",IF(OR($G43=List!$F$2:$F$3), $P43*$T43, $N43*$T43),IF($AB43="一部約定",IF(OR($G43=List!$F$2:$F$3), $P43*($T43-$U43), $N43*($T43-$U43)),"")),"") ->  | AE43: 0
V44: 0 | W44: 0 | Y44: =IF(ISNUMBER(B44), IF(COUNTIF($B$10:$B44, B44)=COUNTIF($B:$B, B44), "1", "0"), "") ->  | Z44: =IF(OR($C44=List!$C$5,$C44=List!$C$6,$C44=List!$C$11,$C44=List!$C$13), 1, 0) -> 0 | AA44: =_xlfn.IFS(T44="","未応札",T44>0,"応札") -> 未応札 | AB44: =_xlfn.IFS(U44=0,"未約定",U44=T44,"約定",U44<T44,"一部約定") -> 未約定 | AD44: =IF(AA44="応札",IF($AB44="未約定",IF(OR($G44=List!$F$2:$F$3), $P44*$T44, $N44*$T44),IF($AB44="一部約定",IF(OR($G44=List!$F$2:$F$3), $P44*($T44-$U44), $N44*($T44-$U44)),"")),"") ->  | AE44: 0
B45: 1 | C45: 1：約定間全量不落（最低出力維持） | D45: 0：非対象 | E45: 20260401 | F45: 2 | H45: ○A○○○ | J45: 1：複合市場商品 | K45: ○○○○○○ | N45: 5 | Q45: 10 | R45: 20000 | S45: 20000 | T45: 50000 | U45: 0 | V45: 500000 | W45: 0 | Y45: =IF(ISNUMBER(B45), IF(COUNTIF($B$10:$B45, B45)=COUNTIF($B:$B, B45), "1", "0"), "") -> 0 | Z45: =IF(OR($C45=List!$C$5,$C45=List!$C$6,$C45=List!$C$11,$C45=List!$C$13), 1, 0) -> 0 | AA45: =_xlfn.IFS(T45="","未応札",T45>0,"応札") -> 応札 | AB45: =_xlfn.IFS(U45=0,"未約定",U45=T45,"約定",U45<T45,"一部約定") -> 未約定 | AC45: 1：並列 | AD45: =IF(AA45="応札",IF($AB45="未約定",IF(OR($G45=List!$F$2:$F$3), $P45*$T45, $N45*$T45),IF($AB45="一部約定",IF(OR($G45=List!$F$2:$F$3), $P45*($T45-$U45), $N45*($T45-$U45)),"")),"") -> 250000 | AE45: 500000
B46: 1 | C46: 1：約定間全量不落（最低出力維持） | D46: 0：非対象 | E46: 20260401 | F46: 3 | H46: ○A○○○ | J46: 1：複合市場商品 | K46: ○○○○○○ | N46: 5 | Q46: 10 | R46: 20000 | S46: 20000 | T46: 50000 | U46: 0 | V46: 500000 | W46: 0 | Y46: =IF(ISNUMBER(B46), IF(COUNTIF($B$10:$B46, B46)=COUNTIF($B:$B, B46), "1", "0"), "") -> 0 | Z46: =IF(OR($C46=List!$C$5,$C46=List!$C$6,$C46=List!$C$11,$C46=List!$C$13), 1, 0) -> 0 | AA46: =_xlfn.IFS(T46="","未応札",T46>0,"応札") -> 応札 | AB46: =_xlfn.IFS(U46=0,"未約定",U46=T46,"約定",U46<T46,"一部約定") -> 未約定 | AC46: 1：並列 | AD46: =IF(AA46="応札",IF($AB46="未約定",IF(OR($G46=List!$F$2:$F$3), $P46*$T46, $N46*$T46),IF($AB46="一部約定",IF(OR($G46=List!$F$2:$F$3), $P46*($T46-$U46), $N46*($T46-$U46)),"")),"") -> 250000 | AE46: 500000
B47: 1 | C47: 1：約定間全量不落（最低出力維持） | D47: 0：非対象 | E47: 20260401 | F47: 4 | H47: ○A○○○ | J47: 1：複合市場商品 | K47: ○○○○○○ | N47: 5 | Q47: 10 | R47: 20000 | S47: 20000 | T47: 50000 | U47: 0 | V47: 500000 | W47: =IF(X47 > 0, SUMIFS(V:V, B:B, B47, Z:Z, 1), 0) -> 0 | Y47: =IF(ISNUMBER(B47), IF(COUNTIF($B$10:$B47, B47)=COUNTIF($B:$B, B47), "1", "0"), "") -> 0 | Z47: =IF(OR($C47=List!$C$5,$C47=List!$C$6,$C47=List!$C$11,$C47=List!$C$13), 1, 0) -> 0 | AA47: =_xlfn.IFS(T47="","未応札",T47>0,"応札") -> 応札 | AB47: =_xlfn.IFS(U47=0,"未約定",U47=T47,"約定",U47<T47,"一部約定") -> 未約定 | AC47: 1：並列 | AD47: =IF(AA47="応札",IF($AB47="未約定",IF(OR($G47=List!$F$2:$F$3), $P47*$T47, $N47*$T47),IF($AB47="一部約定",IF(OR($G47=List!$F$2:$F$3), $P47*($T47-$U47), $N47*($T47-$U47)),"")),"") -> 250000 | AE47: 500000
B48: 1 | C48: 1：約定間全量不落（最低出力維持） | D48: 0：非対象 | E48: 20260401 | F48: 3 | H48: ○A○○○ | J48: 2：三次調整力② | K48: ○○○○○○ | N48: 5 | Q48: 10 | R48: 20000 | S48: 20000 | T48: 50000 | U48: 0 | V48: 500000 | W48: =IF(X48 > 0, SUMIFS(V:V, B:B, B48, Z:Z, 1), 0) -> 0 | Y48: =IF(ISNUMBER(B48), IF(COUNTIF($B$10:$B48, B48)=COUNTIF($B:$B, B48), "1", "0"), "") -> 1 | Z48: =IF(OR($C48=List!$C$5,$C48=List!$C$6,$C48=List!$C$11,$C48=List!$C$13), 1, 0) -> 0 | AA48: =_xlfn.IFS(T48="","未応札",T48>0,"応札") -> 応札 | AB48: =_xlfn.IFS(U48=0,"未約定",U48=T48,"約定",U48<T48,"一部約定") -> 未約定 | AC48: 1：並列 | AD48: =IF(AA48="応札",IF($AB48="未約定",IF(OR($G48=List!$F$2:$F$3), $P48*$T48, $N48*$T48),IF($AB48="一部約定",IF(OR($G48=List!$F$2:$F$3), $P48*($T48-$U48), $N48*($T48-$U48)),"")),"") -> 250000 | AE48: 500000
V49: 0 | W49: 0 | Y49: =IF(ISNUMBER(B49), IF(COUNTIF($B$10:$B49, B49)=COUNTIF($B:$B, B49), "1", "0"), "") ->  | Z49: =IF(OR($C49=List!$C$5,$C49=List!$C$6,$C49=List!$C$11,$C49=List!$C$13), 1, 0) -> 0 | AA49: =_xlfn.IFS(T49="","未応札",T49>0,"応札") -> 未応札 | AB49: =_xlfn.IFS(U49=0,"未約定",U49=T49,"約定",U49<T49,"一部約定") -> 未約定 | AD49: =IF(AA49="応札",IF($AB49="未約定",IF(OR($G49=List!$F$2:$F$3), $P49*$T49, $N49*$T49),IF($AB49="一部約定",IF(OR($G49=List!$F$2:$F$3), $P49*($T49-$U49), $N49*($T49-$U49)),"")),"") ->  | AE49: 0
V50: 0 | W50: 0 | Y50: =IF(ISNUMBER(B50), IF(COUNTIF($B$10:$B50, B50)=COUNTIF($B:$B, B50), "1", "0"), "") ->  | Z50: =IF(OR($C50=List!$C$5,$C50=List!$C$6,$C50=List!$C$11,$C50=List!$C$13), 1, 0) -> 0 | AA50: =_xlfn.IFS(T50="","未応札",T50>0,"応札") -> 未応札 | AB50: =_xlfn.IFS(U50=0,"未約定",U50=T50,"約定",U50<T50,"一部約定") -> 未約定 | AD50: =IF(AA50="応札",IF($AB50="未約定",IF(OR($G50=List!$F$2:$F$3), $P50*$T50, $N50*$T50),IF($AB50="一部約定",IF(OR($G50=List!$F$2:$F$3), $P50*($T50-$U50), $N50*($T50-$U50)),"")),"") ->  | AE50: 0
V51: 0 | W51: 0 | Y51: =IF(ISNUMBER(B51), IF(COUNTIF($B$10:$B51, B51)=COUNTIF($B:$B, B51), "1", "0"), "") ->  | Z51: =IF(OR($C51=List!$C$5,$C51=List!$C$6,$C51=List!$C$11,$C51=List!$C$13), 1, 0) -> 0 | AA51: =_xlfn.IFS(T51="","未応札",T51>0,"応札") -> 未応札 | AB51: =_xlfn.IFS(U51=0,"未約定",U51=T51,"約定",U51<T51,"一部約定") -> 未約定 | AD51: =IF(AA51="応札",IF($AB51="未約定",IF(OR($G51=List!$F$2:$F$3), $P51*$T51, $N51*$T51),IF($AB51="一部約定",IF(OR($G51=List!$F$2:$F$3), $P51*($T51-$U51), $N51*($T51-$U51)),"")),"") ->  | AE51: 0
V52: 0 | W52: 0 | Y52: =IF(ISNUMBER(B52), IF(COUNTIF($B$10:$B52, B52)=COUNTIF($B:$B, B52), "1", "0"), "") ->  | Z52: =IF(OR($C52=List!$C$5,$C52=List!$C$6,$C52=List!$C$11,$C52=List!$C$13), 1, 0) -> 0 | AA52: =_xlfn.IFS(T52="","未応札",T52>0,"応札") -> 未応札 | AB52: =_xlfn.IFS(U52=0,"未約定",U52=T52,"約定",U52<T52,"一部約定") -> 未約定 | AD52: =IF(AA52="応札",IF($AB52="未約定",IF(OR($G52=List!$F$2:$F$3), $P52*$T52, $N52*$T52),IF($AB52="一部約定",IF(OR($G52=List!$F$2:$F$3), $P52*($T52-$U52), $N52*($T52-$U52)),"")),"") ->  | AE52: 0
V53: 0 | W53: 0 | Y53: =IF(ISNUMBER(B53), IF(COUNTIF($B$10:$B53, B53)=COUNTIF($B:$B, B53), "1", "0"), "") ->  | Z53: =IF(OR($C53=List!$C$5,$C53=List!$C$6,$C53=List!$C$11,$C53=List!$C$13), 1, 0) -> 0 | AA53: =_xlfn.IFS(T53="","未応札",T53>0,"応札") -> 未応札 | AB53: =_xlfn.IFS(U53=0,"未約定",U53=T53,"約定",U53<T53,"一部約定") -> 未約定 | AD53: =IF(AA53="応札",IF($AB53="未約定",IF(OR($G53=List!$F$2:$F$3), $P53*$T53, $N53*$T53),IF($AB53="一部約定",IF(OR($G53=List!$F$2:$F$3), $P53*($T53-$U53), $N53*($T53-$U53)),"")),"") ->  | AE53: 0
V54: 0 | W54: 0 | Y54: =IF(ISNUMBER(B54), IF(COUNTIF($B$10:$B54, B54)=COUNTIF($B:$B, B54), "1", "0"), "") ->  | Z54: =IF(OR($C54=List!$C$5,$C54=List!$C$6,$C54=List!$C$11,$C54=List!$C$13), 1, 0) -> 0 | AA54: =_xlfn.IFS(T54="","未応札",T54>0,"応札") -> 未応札 | AB54: =_xlfn.IFS(U54=0,"未約定",U54=T54,"約定",U54<T54,"一部約定") -> 未約定 | AD54: =IF(AA54="応札",IF($AB54="未約定",IF(OR($G54=List!$F$2:$F$3), $P54*$T54, $N54*$T54),IF($AB54="一部約定",IF(OR($G54=List!$F$2:$F$3), $P54*($T54-$U54), $N54*($T54-$U54)),"")),"") ->  | AE54: 0
V55: 0 | W55: 0 | Y55: =IF(ISNUMBER(B55), IF(COUNTIF($B$10:$B55, B55)=COUNTIF($B:$B, B55), "1", "0"), "") ->  | Z55: =IF(OR($C55=List!$C$5,$C55=List!$C$6,$C55=List!$C$11,$C55=List!$C$13), 1, 0) -> 0 | AA55: =_xlfn.IFS(T55="","未応札",T55>0,"応札") -> 未応札 | AB55: =_xlfn.IFS(U55=0,"未約定",U55=T55,"約定",U55<T55,"一部約定") -> 未約定 | AD55: =IF(AA55="応札",IF($AB55="未約定",IF(OR($G55=List!$F$2:$F$3), $P55*$T55, $N55*$T55),IF($AB55="一部約定",IF(OR($G55=List!$F$2:$F$3), $P55*($T55-$U55), $N55*($T55-$U55)),"")),"") ->  | AE55: 0
V56: 0 | W56: 0 | Y56: =IF(ISNUMBER(B56), IF(COUNTIF($B$10:$B56, B56)=COUNTIF($B:$B, B56), "1", "0"), "") ->  | Z56: =IF(OR($C56=List!$C$5,$C56=List!$C$6,$C56=List!$C$11,$C56=List!$C$13), 1, 0) -> 0 | AA56: =_xlfn.IFS(T56="","未応札",T56>0,"応札") -> 未応札 | AB56: =_xlfn.IFS(U56=0,"未約定",U56=T56,"約定",U56<T56,"一部約定") -> 未約定 | AD56: =IF(AA56="応札",IF($AB56="未約定",IF(OR($G56=List!$F$2:$F$3), $P56*$T56, $N56*$T56),IF($AB56="一部約定",IF(OR($G56=List!$F$2:$F$3), $P56*($T56-$U56), $N56*($T56-$U56)),"")),"") ->  | AE56: 0
V57: 0 | W57: 0 | Y57: =IF(ISNUMBER(B57), IF(COUNTIF($B$10:$B57, B57)=COUNTIF($B:$B, B57), "1", "0"), "") ->  | Z57: =IF(OR($C57=List!$C$5,$C57=List!$C$6,$C57=List!$C$11,$C57=List!$C$13), 1, 0) -> 0 | AA57: =_xlfn.IFS(T57="","未応札",T57>0,"応札") -> 未応札 | AB57: =_xlfn.IFS(U57=0,"未約定",U57=T57,"約定",U57<T57,"一部約定") -> 未約定 | AD57: =IF(AA57="応札",IF($AB57="未約定",IF(OR($G57=List!$F$2:$F$3), $P57*$T57, $N57*$T57),IF($AB57="一部約定",IF(OR($G57=List!$F$2:$F$3), $P57*($T57-$U57), $N57*($T57-$U57)),"")),"") ->  | AE57: 0
V58: 0 | W58: 0 | Y58: =IF(ISNUMBER(B58), IF(COUNTIF($B$10:$B58, B58)=COUNTIF($B:$B, B58), "1", "0"), "") ->  | Z58: =IF(OR($C58=List!$C$5,$C58=List!$C$6,$C58=List!$C$11,$C58=List!$C$13), 1, 0) -> 0 | AA58: =_xlfn.IFS(T58="","未応札",T58>0,"応札") -> 未応札 | AB58: =_xlfn.IFS(U58=0,"未約定",U58=T58,"約定",U58<T58,"一部約定") -> 未約定 | AD58: =IF(AA58="応札",IF($AB58="未約定",IF(OR($G58=List!$F$2:$F$3), $P58*$T58, $N58*$T58),IF($AB58="一部約定",IF(OR($G58=List!$F$2:$F$3), $P58*($T58-$U58), $N58*($T58-$U58)),"")),"") ->  | AE58: 0
V59: 0 | W59: 0 | Y59: =IF(ISNUMBER(B59), IF(COUNTIF($B$10:$B59, B59)=COUNTIF($B:$B, B59), "1", "0"), "") ->  | Z59: =IF(OR($C59=List!$C$5,$C59=List!$C$6,$C59=List!$C$11,$C59=List!$C$13), 1, 0) -> 0 | AA59: =_xlfn.IFS(T59="","未応札",T59>0,"応札") -> 未応札 | AB59: =_xlfn.IFS(U59=0,"未約定",U59=T59,"約定",U59<T59,"一部約定") -> 未約定 | AD59: =IF(AA59="応札",IF($AB59="未約定",IF(OR($G59=List!$F$2:$F$3), $P59*$T59, $N59*$T59),IF($AB59="一部約定",IF(OR($G59=List!$F$2:$F$3), $P59*($T59-$U59), $N59*($T59-$U59)),"")),"") ->  | AE59: 0
V60: 0 | W60: 0 | Y60: =IF(ISNUMBER(B60), IF(COUNTIF($B$10:$B60, B60)=COUNTIF($B:$B, B60), "1", "0"), "") ->  | Z60: =IF(OR($C60=List!$C$5,$C60=List!$C$6,$C60=List!$C$11,$C60=List!$C$13), 1, 0) -> 0 | AA60: =_xlfn.IFS(T60="","未応札",T60>0,"応札") -> 未応札 | AB60: =_xlfn.IFS(U60=0,"未約定",U60=T60,"約定",U60<T60,"一部約定") -> 未約定 | AD60: =IF(AA60="応札",IF($AB60="未約定",IF(OR($G60=List!$F$2:$F$3), $P60*$T60, $N60*$T60),IF($AB60="一部約定",IF(OR($G60=List!$F$2:$F$3), $P60*($T60-$U60), $N60*($T60-$U60)),"")),"") ->  | AE60: 0
V61: 0 | W61: 0 | Y61: =IF(ISNUMBER(B61), IF(COUNTIF($B$10:$B61, B61)=COUNTIF($B:$B, B61), "1", "0"), "") ->  | Z61: =IF(OR($C61=List!$C$5,$C61=List!$C$6,$C61=List!$C$11,$C61=List!$C$13), 1, 0) -> 0 | AA61: =_xlfn.IFS(T61="","未応札",T61>0,"応札") -> 未応札 | AB61: =_xlfn.IFS(U61=0,"未約定",U61=T61,"約定",U61<T61,"一部約定") -> 未約定 | AD61: =IF(AA61="応札",IF($AB61="未約定",IF(OR($G61=List!$F$2:$F$3), $P61*$T61, $N61*$T61),IF($AB61="一部約定",IF(OR($G61=List!$F$2:$F$3), $P61*($T61-$U61), $N61*($T61-$U61)),"")),"") ->  | AE61: 0
V62: 0 | W62: 0 | Y62: =IF(ISNUMBER(B62), IF(COUNTIF($B$10:$B62, B62)=COUNTIF($B:$B, B62), "1", "0"), "") ->  | Z62: =IF(OR($C62=List!$C$5,$C62=List!$C$6,$C62=List!$C$11,$C62=List!$C$13), 1, 0) -> 0 | AA62: =_xlfn.IFS(T62="","未応札",T62>0,"応札") -> 未応札 | AB62: =_xlfn.IFS(U62=0,"未約定",U62=T62,"約定",U62<T62,"一部約定") -> 未約定 | AD62: =IF(AA62="応札",IF($AB62="未約定",IF(OR($G62=List!$F$2:$F$3), $P62*$T62, $N62*$T62),IF($AB62="一部約定",IF(OR($G62=List!$F$2:$F$3), $P62*($T62-$U62), $N62*($T62-$U62)),"")),"") ->  | AE62: 0
V63: 0 | W63: 0 | Y63: =IF(ISNUMBER(B63), IF(COUNTIF($B$10:$B63, B63)=COUNTIF($B:$B, B63), "1", "0"), "") ->  | Z63: =IF(OR($C63=List!$C$5,$C63=List!$C$6,$C63=List!$C$11,$C63=List!$C$13), 1, 0) -> 0 | AA63: =_xlfn.IFS(T63="","未応札",T63>0,"応札") -> 未応札 | AB63: =_xlfn.IFS(U63=0,"未約定",U63=T63,"約定",U63<T63,"一部約定") -> 未約定 | AD63: =IF(AA63="応札",IF($AB63="未約定",IF(OR($G63=List!$F$2:$F$3), $P63*$T63, $N63*$T63),IF($AB63="一部約定",IF(OR($G63=List!$F$2:$F$3), $P63*($T63-$U63), $N63*($T63-$U63)),"")),"") ->  | AE63: 0

Sheet 記載例_精算パターン⑩両市場へ按分し入札（停止・再起動）
B2: 取引年月 | C2: 202604
B3: MMSコード | C3: A000
B4: 対象エリア | C4: 3：東京
B5: ファイル名称 | C5: =$C$2&"_"&$C$3&"_"&LEFT($C$4,1)&"_不約定単価内訳兼起動費事後精算情報様式" -> 202604_A000_3_不約定単価内訳兼起動費事後精算情報様式
B7: =入力シート!B7 -> 事象NO | C7: =入力シート!C7 -> 精算パターン | D7: =入力シート!D7 -> 余力活用契約対象リソース区分 | E7: =入力シート!E7 -> 取引日 | F7: =入力シート!F7 -> 時刻コード | G7: =入力シート!G7 -> 持ち下げ供出機区分 | H7: =入力シート!H7 -> 系統コード | I7: =入力シート!I7 -> 系統コード(差替後) | J7: =入力シート!J7 -> 商品区分 | K7: =入力シート!K7 -> 売り入札ID | L7: =入力シート!L7 -> 約定番号 | M7: =入力シート!M7 -> 約定識別ID | N7: =入力シート!N7 -> MMS起動費単価 | O7: =入力シート!O7 -> 加重平均前のΔkW単価 | P7: =入力シート!P7 -> 加重平均起動費未回収分相当額 | Q7: =入力シート!Q7 -> 最低出力までの発電電力量の機会費用単価 | R7: =入力シート!R7 -> 発電計画 | S7: =入力シート!S7 -> 最低出力 | T7: =入力シート!T7 -> 約定希望ΔkW | U7: =入力シート!U7 -> ΔkW約定量 | V7: =入力シート!V7 -> 最低出力までの発電電力量の機会費用単価×(約定希望ΔkW-ΔkW約定量) | W7: =入力シート!W7 -> 最低出力維持した場合の費用合計 | X7: =入力シート!X7 -> 停止・再起動にかかる費用 | Y7: =入力シート!Y7 -> 事象毎の最終行 | Z7: =入力シート!Z7 -> 妥当性確認 | AA7: =入力シート!AA7 -> 応札状況 | AB7: =入力シート!AB7 -> 約定状況 | AC7: =入力シート!AC7 -> 並解列状態(実績) | AD7: =入力シート!AD7 -> 起動費未回収分相当額 | AE7: =入力シート!AE7 -> 最低出力までの発電電力量の機会費用 | AF7: =入力シート!AF7 -> 停止・再起動にかかる費用 | AI7: =入力シート!AI7 -> 精算対象 申請小計 | AJ7: =入力シート!AJ7 -> 起動費未回収分相当額 | AK7: =入力シート!AK7 -> 最低出力までの発電電力量の機会費用 | AL7: =入力シート!AL7 -> 停止・再起動にかかる費用 | AM7: =入力シート!AM7 -> 合計
N8: （円/kW） | O8: （円/kW） | P8: （円/kW） | Q8: （円/kW） | R8: （kWh） | S8: （kWh） | T8: （kW） | U8: （kW） | V8: （円） | W8: （円） | X8: （円） | AD8: （円） | AE8: （円） | AF8: （円） | AJ8: （円） | AK8: （円） | AL8: （円） | AM8: （円）
B9: =IF(入力シート!B9<>"",入力シート!B9,"") -> ※起動費未回収が発生した事象NOを付定すること ※複合市場商品および三次調整力②商品へ１回分の起動費等を按分計上して入札し，両市場において起動費等の事後精算を申請する場合は，市場ごとに事象NOを分けずに同一の事象NOとして申請を実施すること | C9: =IF(入力シート!C9<>"",入力シート!C9,"") ->  | D9: =IF(入力シート!D9<>"",入力シート!D9,"") -> ※対象の場合は「１」，非対象の場合は「０」を入力 | E9: =IF(入力シート!E9<>"",入力シート!E9,"") ->  | F9: =IF(入力シート!F9<>"",入力シート!F9,"") ->  | G9: =IF(入力シート!G9<>"",入力シート!G9,"") -> ※持ち下げ供出機を加重平均で入札した場合に選択 | H9: =IF(入力シート!H9<>"",入力シート!H9,"") -> ※電源差替がない場合は精算対象となるリソースの系統コードを記載すること ※電源差替後のリソースにより精算する場合は，差替前のリソースの系統コードを記載すること | I9: =IF(入力シート!I9<>"",入力シート!I9,"") -> ※起動費単価分が登録されている電源に電源差替を実施する場合に記載すること | J9: =IF(入力シート!J9<>"",入力シート!J9,"") ->  | K9: =IF(入力シート!K9<>"",入力シート!K9,"") ->  | L9: =IF(入力シート!L9<>"",入力シート!L9,"") -> ※持ち下げ供出機区分が該当する場合，起動供出機の約定番号を記載すること ※同一時刻コードにおいて，複数の約定番号がある場合は，いずれか1つを記載すること | M9: =IF(入力シート!M9<>"",入力シート!M9,"") -> ※持ち下げ供出機区分に該当する場合，起動供出機の約定識別IDを記載すること ※同一時刻コードにおいて，約定番号に紐づく約定識別IDが複数存在する場合は，いずれか1つを記載すること ※電源差し替えを実施した場合，差替え元の約定識別IDを記載すること(持ち下げ供出機区分に該当する場合,起動供出機の初回約定識別IDを記載すること) | N9: =IF(入力シート!N9<>"",入力シート!N9,"") -> ※MMSに登録された起動費単価分を原則用いること ※ 「全量不落」の精算パターンで「最低出力までの発電電力量の機会費用」の事後精算の対象がある場合，様式都合により，属地TSOと事前に確認の上，「MMSに登録された起動費単価分」に当該単価を加算して記載すること | O9: =IF(入力シート!O9<>"",入力シート!O9,"") -> ※持ち下げ供出機区分が該当する場合に記載すること | P9: =IF(入力シート!P9<>"",入力シート!P9,"") -> ※ 持ち下げ供出機区分が該当する場合に記載すること | Q9: =IF(入力シート!Q9<>"",入力シート!Q9,"") -> ※卸電力市場価格（スポット市場価格：実績）と限界費用との差額を用いること ※加重平均で入札し，一部不落となった場合は，情報を記載するリソースのΔkW単価に含めた起動供出機の最低出力までの発電電力量の加重平均機会費用相当額を精算対象とする ※加重平均で入札し，起動供出機または持ち下げ供出機，またはその双方において一部のリソースが全量不落となったブロックに，起動供出機または持ち下げ供出機の情報を記載する場合は，起動供出機または持ち下げ供出機のΔkW単価に含めた起動供出機の最低出力までの発電電力量の加重平均機会費用相当額を精算対象とする。 （ただし，起動供出機が全量不落となった場合は，起動供出機の起動により機会費用が発生した場合に限る。そのため別途TSOからデータ提出を求める場合がある。なお、起動供出機のΔkW単価に含めた起動供出機の最低出力までの発電電力量の加重平均機会費用相当額については様式都合により，属地TSOと事前に確認の上， 「加重平均起動費未回収分相当額（P列）」に加算して記載すること） | R9: =IF(入力シート!R9<>"",入力シート!R9,"") ->  | S9: =IF(入力シート!S9<>"",入力シート!S9,"") ->  | T9: =IF(入力シート!T9<>"",入力シート!T9,"") ->  | U9: =IF(入力シート!U9<>"",入力シート!U9,"") ->  | V9: =IF(入力シート!V9<>"",入力シート!V9,"") -> ※加重平均で入札した場合は，最低出力までの発電電力量の加重平均機会費用相当額×(約定希望ΔkW-ΔkW約定量) | W9: =IF(入力シート!W9<>"",入力シート!W9,"") -> ※精算パターン「約定間全量不落(約定間停止・再起動)」を選択した場合，事象NOごとの最終行に合計値表示 | X9: =IF(入力シート!X9<>"",入力シート!X9,"") -> ※１停止・再起動費は最後のブロックに記載すること ※２ 余力活用契約を締結している電源でBG計画上停止・再起動としていたが、実績は停止しなかった場合も、BG計画上の「停止・再起動費」を記載すること | Y9: =IF(入力シート!Y9<>"",入力シート!Y9,"") ->  | Z9: =IF(入力シート!Z9<>"",入力シート!Z9,"") ->  | AA9: =IF(入力シート!AA9<>"",入力シート!AA9,"") ->  | AB9: =IF(入力シート!AB9<>"",入力シート!AB9,"") ->  | AC9: =IF(入力シート!AC9<>"",入力シート!AC9,"") ->  | AD9: =IF(入力シート!AD9<>"",入力シート!AD9,"") -> ※加重平均で入札した場合は，加重平均起動費未回収分相当額 | AE9: =IF(入力シート!AE9<>"",入力シート!AE9,"") -> ※加重平均で入札した場合は，最低出力までの発電電力量の加重平均機会費用相当額 | AF9: =IF(入力シート!AF9<>"",入力シート!AF9,"") -> ※約定間全量不落時において，停止・再起動するよりも，最低出力維持した方が経済的だった場合，後者を事後精算対象とする | AJ9: =SUM($AD10:$AD2831) -> 500000 | AK9: =SUM($AE10:$AE2831) -> 0 | AL9: =SUM($AF10:$AF2831) -> 450000 | AM9: =ROUNDDOWN(SUM(AJ9:AL9),0) -> 950000
B10: 1 | C10: 4：約定間全量不落（約定間停止・再起動） | D10: 0：非対象 | E10: 20260401 | F10: 3 | H10: ○A○○○ | J10: 1：複合市場商品 | K10: ○○○○○○ | N10: 5 | Q10: 10 | R10: 0 | S10: 0 | T10: 50000 | U10: 0 | V10: =Q10*(T10-U10) -> 500000 | W10: =IF(X10 > 0, SUMIFS(V:V, B:B, B10, Z:Z, 1), 0) -> 0 | Y10: =IF(ISNUMBER(B10), IF(COUNTIF($B$10:$B10, B10)=COUNTIF($B:$B, B10), "1", "0"), "") -> 0 | Z10: =IF(OR($C10=List!$C$5,$C10=List!$C$6,$C10=List!$C$11,$C10=List!$C$13), 1, 0) -> 1 | AA10: =_xlfn.IFS(T10="","未応札",T10>0,"応札") -> 応札 | AB10: =_xlfn.IFS(U10=0,"未約定",U10=T10,"約定",U10<T10,"一部約定") -> 未約定 | AC10: 2：解列 | AD10: =IF(AA10="応札",IF($AB10="未約定",IF(OR($G10=List!$F$2:$F$3), $P10*$T10, $N10*$T10),IF($AB10="一部約定",IF(OR($G10=List!$F$2:$F$3), $P10*($T10-$U10), $N10*($T10-$U10)),"")),"") -> 250000 | AE10: =IF(ISBLANK($R10),IF(OR($AB10="一部約定",$AB10="未約定"),$Q10*($T10-$U10),""),IF($R10=0,"", IF(OR($AB10="一部約定", $AB10="未約定"), $Q10*($T10-$U10), ""))) ->  | AF10: =IF(AND($AA10="応札",$AB10="未約定"), IF($W10<>0, IF($X10<$W10, IF($X10<>0, $X10, ""), IF($W10<>0, $W10, "")), IF($X10<>0, $X10, "")), "") -> 
B11: 1 | C11: 4：約定間全量不落（約定間停止・再起動） | D11: 0：非対象 | E11: 20260401 | F11: 3 | H11: ○A○○○ | J11: 2：三次調整力② | K11: ○○○○○○ | N11: 5 | Q11: 10 | R11: 0 | S11: 0 | T11: 50000 | U11: 0 | V11: =Q11*(T11-U11) -> 500000 | W11: =IF(X11 > 0, SUMIFS(V:V, B:B, B11, Z:Z, 1), 0) -> 1000000 | X11: 450000 | Y11: =IF(ISNUMBER(B11), IF(COUNTIF($B$10:$B11, B11)=COUNTIF($B:$B, B11), "1", "0"), "") -> 1 | Z11: =IF(OR($C11=List!$C$5,$C11=List!$C$6,$C11=List!$C$11,$C11=List!$C$13), 1, 0) -> 1 | AA11: =_xlfn.IFS(T11="","未応札",T11>0,"応札") -> 応札 | AB11: =_xlfn.IFS(U11=0,"未約定",U11=T11,"約定",U11<T11,"一部約定") -> 未約定 | AC11: 2：解列 | AD11: =IF(AA11="応札",IF($AB11="未約定",IF(OR($G11=List!$F$2:$F$3), $P11*$T11, $N11*$T11),IF($AB11="一部約定",IF(OR($G11=List!$F$2:$F$3), $P11*($T11-$U11), $N11*($T11-$U11)),"")),"") -> 250000 | AE11: =IF(ISBLANK($R11),IF(OR($AB11="一部約定",$AB11="未約定"),$Q11*($T11-$U11),""),IF($R11=0,"", IF(OR($AB11="一部約定", $AB11="未約定"), $Q11*($T11-$U11), ""))) ->  | AF11: =IF(AND($AA11="応札",$AB11="未約定"), IF($W11<>0, IF($X11<$W11, IF($X11<>0, $X11, ""), IF($W11<>0, $W11, "")), IF($X11<>0, $X11, "")), "") -> 450000
V12: 0 | W12: 0 | Y12: =IF(ISNUMBER(B12), IF(COUNTIF($B$10:$B12, B12)=COUNTIF($B:$B, B12), "1", "0"), "") ->  | Z12: =IF(OR($C12=List!$C$5,$C12=List!$C$6,$C12=List!$C$11,$C12=List!$C$13), 1, 0) -> 0 | AA12: =_xlfn.IFS(T12="","未応札",T12>0,"応札") -> 未応札 | AB12: =_xlfn.IFS(U12=0,"未約定",U12=T12,"約定",U12<T12,"一部約定") -> 未約定 | AD12: =IF(AA12="応札",IF($AB12="未約定",IF(OR($G12=List!$F$2:$F$3), $P12*$T12, $N12*$T12),IF($AB12="一部約定",IF(OR($G12=List!$F$2:$F$3), $P12*($T12-$U12), $N12*($T12-$U12)),"")),"") ->  | AE12: 0
V13: 0 | W13: 0 | Y13: =IF(ISNUMBER(B13), IF(COUNTIF($B$10:$B13, B13)=COUNTIF($B:$B, B13), "1", "0"), "") ->  | Z13: =IF(OR($C13=List!$C$5,$C13=List!$C$6,$C13=List!$C$11,$C13=List!$C$13), 1, 0) -> 0 | AA13: =_xlfn.IFS(T13="","未応札",T13>0,"応札") -> 未応札 | AB13: =_xlfn.IFS(U13=0,"未約定",U13=T13,"約定",U13<T13,"一部約定") -> 未約定 | AD13: =IF(AA13="応札",IF($AB13="未約定",IF(OR($G13=List!$F$2:$F$3), $P13*$T13, $N13*$T13),IF($AB13="一部約定",IF(OR($G13=List!$F$2:$F$3), $P13*($T13-$U13), $N13*($T13-$U13)),"")),"") ->  | AE13: 0
V14: 0 | W14: 0 | Y14: =IF(ISNUMBER(B14), IF(COUNTIF($B$10:$B14, B14)=COUNTIF($B:$B, B14), "1", "0"), "") ->  | Z14: =IF(OR($C14=List!$C$5,$C14=List!$C$6,$C14=List!$C$11,$C14=List!$C$13), 1, 0) -> 0 | AA14: =_xlfn.IFS(T14="","未応札",T14>0,"応札") -> 未応札 | AB14: =_xlfn.IFS(U14=0,"未約定",U14=T14,"約定",U14<T14,"一部約定") -> 未約定 | AD14: =IF(AA14="応札",IF($AB14="未約定",IF(OR($G14=List!$F$2:$F$3), $P14*$T14, $N14*$T14),IF($AB14="一部約定",IF(OR($G14=List!$F$2:$F$3), $P14*($T14-$U14), $N14*($T14-$U14)),"")),"") ->  | AE14: 0
V15: 0 | W15: 0 | Y15: =IF(ISNUMBER(B15), IF(COUNTIF($B$10:$B15, B15)=COUNTIF($B:$B, B15), "1", "0"), "") ->  | Z15: =IF(OR($C15=List!$C$5,$C15=List!$C$6,$C15=List!$C$11,$C15=List!$C$13), 1, 0) -> 0 | AA15: =_xlfn.IFS(T15="","未応札",T15>0,"応札") -> 未応札 | AB15: =_xlfn.IFS(U15=0,"未約定",U15=T15,"約定",U15<T15,"一部約定") -> 未約定 | AD15: =IF(AA15="応札",IF($AB15="未約定",IF(OR($G15=List!$F$2:$F$3), $P15*$T15, $N15*$T15),IF($AB15="一部約定",IF(OR($G15=List!$F$2:$F$3), $P15*($T15-$U15), $N15*($T15-$U15)),"")),"") ->  | AE15: 0
V16: 0 | W16: 0 | Y16: =IF(ISNUMBER(B16), IF(COUNTIF($B$10:$B16, B16)=COUNTIF($B:$B, B16), "1", "0"), "") ->  | Z16: =IF(OR($C16=List!$C$5,$C16=List!$C$6,$C16=List!$C$11,$C16=List!$C$13), 1, 0) -> 0 | AA16: =_xlfn.IFS(T16="","未応札",T16>0,"応札") -> 未応札 | AB16: =_xlfn.IFS(U16=0,"未約定",U16=T16,"約定",U16<T16,"一部約定") -> 未約定 | AD16: =IF(AA16="応札",IF($AB16="未約定",IF(OR($G16=List!$F$2:$F$3), $P16*$T16, $N16*$T16),IF($AB16="一部約定",IF(OR($G16=List!$F$2:$F$3), $P16*($T16-$U16), $N16*($T16-$U16)),"")),"") ->  | AE16: 0
V17: 0 | W17: 0 | Y17: =IF(ISNUMBER(B17), IF(COUNTIF($B$10:$B17, B17)=COUNTIF($B:$B, B17), "1", "0"), "") ->  | Z17: =IF(OR($C17=List!$C$5,$C17=List!$C$6,$C17=List!$C$11,$C17=List!$C$13), 1, 0) -> 0 | AA17: =_xlfn.IFS(T17="","未応札",T17>0,"応札") -> 未応札 | AB17: =_xlfn.IFS(U17=0,"未約定",U17=T17,"約定",U17<T17,"一部約定") -> 未約定 | AD17: =IF(AA17="応札",IF($AB17="未約定",IF(OR($G17=List!$F$2:$F$3), $P17*$T17, $N17*$T17),IF($AB17="一部約定",IF(OR($G17=List!$F$2:$F$3), $P17*($T17-$U17), $N17*($T17-$U17)),"")),"") ->  | AE17: 0
V18: 0 | W18: 0 | Y18: =IF(ISNUMBER(B18), IF(COUNTIF($B$10:$B18, B18)=COUNTIF($B:$B, B18), "1", "0"), "") ->  | Z18: =IF(OR($C18=List!$C$5,$C18=List!$C$6,$C18=List!$C$11,$C18=List!$C$13), 1, 0) -> 0 | AA18: =_xlfn.IFS(T18="","未応札",T18>0,"応札") -> 未応札 | AB18: =_xlfn.IFS(U18=0,"未約定",U18=T18,"約定",U18<T18,"一部約定") -> 未約定 | AD18: =IF(AA18="応札",IF($AB18="未約定",IF(OR($G18=List!$F$2:$F$3), $P18*$T18, $N18*$T18),IF($AB18="一部約定",IF(OR($G18=List!$F$2:$F$3), $P18*($T18-$U18), $N18*($T18-$U18)),"")),"") ->  | AE18: 0
V19: 0 | W19: 0 | Y19: =IF(ISNUMBER(B19), IF(COUNTIF($B$10:$B19, B19)=COUNTIF($B:$B, B19), "1", "0"), "") ->  | Z19: =IF(OR($C19=List!$C$5,$C19=List!$C$6,$C19=List!$C$11,$C19=List!$C$13), 1, 0) -> 0 | AA19: =_xlfn.IFS(T19="","未応札",T19>0,"応札") -> 未応札 | AB19: =_xlfn.IFS(U19=0,"未約定",U19=T19,"約定",U19<T19,"一部約定") -> 未約定 | AD19: =IF(AA19="応札",IF($AB19="未約定",IF(OR($G19=List!$F$2:$F$3), $P19*$T19, $N19*$T19),IF($AB19="一部約定",IF(OR($G19=List!$F$2:$F$3), $P19*($T19-$U19), $N19*($T19-$U19)),"")),"") ->  | AE19: 0
V20: 0 | W20: 0 | Y20: =IF(ISNUMBER(B20), IF(COUNTIF($B$10:$B20, B20)=COUNTIF($B:$B, B20), "1", "0"), "") ->  | Z20: =IF(OR($C20=List!$C$5,$C20=List!$C$6,$C20=List!$C$11,$C20=List!$C$13), 1, 0) -> 0 | AA20: =_xlfn.IFS(T20="","未応札",T20>0,"応札") -> 未応札 | AB20: =_xlfn.IFS(U20=0,"未約定",U20=T20,"約定",U20<T20,"一部約定") -> 未約定 | AD20: =IF(AA20="応札",IF($AB20="未約定",IF(OR($G20=List!$F$2:$F$3), $P20*$T20, $N20*$T20),IF($AB20="一部約定",IF(OR($G20=List!$F$2:$F$3), $P20*($T20-$U20), $N20*($T20-$U20)),"")),"") ->  | AE20: 0
V21: 0 | W21: 0 | Y21: =IF(ISNUMBER(B21), IF(COUNTIF($B$10:$B21, B21)=COUNTIF($B:$B, B21), "1", "0"), "") ->  | Z21: =IF(OR($C21=List!$C$5,$C21=List!$C$6,$C21=List!$C$11,$C21=List!$C$13), 1, 0) -> 0 | AA21: =_xlfn.IFS(T21="","未応札",T21>0,"応札") -> 未応札 | AB21: =_xlfn.IFS(U21=0,"未約定",U21=T21,"約定",U21<T21,"一部約定") -> 未約定 | AD21: =IF(AA21="応札",IF($AB21="未約定",IF(OR($G21=List!$F$2:$F$3), $P21*$T21, $N21*$T21),IF($AB21="一部約定",IF(OR($G21=List!$F$2:$F$3), $P21*($T21-$U21), $N21*($T21-$U21)),"")),"") ->  | AE21: 0
V22: 0 | W22: 0 | Y22: =IF(ISNUMBER(B22), IF(COUNTIF($B$10:$B22, B22)=COUNTIF($B:$B, B22), "1", "0"), "") ->  | Z22: =IF(OR($C22=List!$C$5,$C22=List!$C$6,$C22=List!$C$11,$C22=List!$C$13), 1, 0) -> 0 | AA22: =_xlfn.IFS(T22="","未応札",T22>0,"応札") -> 未応札 | AB22: =_xlfn.IFS(U22=0,"未約定",U22=T22,"約定",U22<T22,"一部約定") -> 未約定 | AD22: =IF(AA22="応札",IF($AB22="未約定",IF(OR($G22=List!$F$2:$F$3), $P22*$T22, $N22*$T22),IF($AB22="一部約定",IF(OR($G22=List!$F$2:$F$3), $P22*($T22-$U22), $N22*($T22-$U22)),"")),"") ->  | AE22: 0
V23: 0 | W23: 0 | Y23: =IF(ISNUMBER(B23), IF(COUNTIF($B$10:$B23, B23)=COUNTIF($B:$B, B23), "1", "0"), "") ->  | Z23: =IF(OR($C23=List!$C$5,$C23=List!$C$6,$C23=List!$C$11,$C23=List!$C$13), 1, 0) -> 0 | AA23: =_xlfn.IFS(T23="","未応札",T23>0,"応札") -> 未応札 | AB23: =_xlfn.IFS(U23=0,"未約定",U23=T23,"約定",U23<T23,"一部約定") -> 未約定 | AD23: =IF(AA23="応札",IF($AB23="未約定",IF(OR($G23=List!$F$2:$F$3), $P23*$T23, $N23*$T23),IF($AB23="一部約定",IF(OR($G23=List!$F$2:$F$3), $P23*($T23-$U23), $N23*($T23-$U23)),"")),"") ->  | AE23: 0
V24: 0 | W24: 0 | Y24: =IF(ISNUMBER(B24), IF(COUNTIF($B$10:$B24, B24)=COUNTIF($B:$B, B24), "1", "0"), "") ->  | Z24: =IF(OR($C24=List!$C$5,$C24=List!$C$6,$C24=List!$C$11,$C24=List!$C$13), 1, 0) -> 0 | AA24: =_xlfn.IFS(T24="","未応札",T24>0,"応札") -> 未応札 | AB24: =_xlfn.IFS(U24=0,"未約定",U24=T24,"約定",U24<T24,"一部約定") -> 未約定 | AD24: =IF(AA24="応札",IF($AB24="未約定",IF(OR($G24=List!$F$2:$F$3), $P24*$T24, $N24*$T24),IF($AB24="一部約定",IF(OR($G24=List!$F$2:$F$3), $P24*($T24-$U24), $N24*($T24-$U24)),"")),"") ->  | AE24: 0
V25: 0 | W25: 0 | Y25: =IF(ISNUMBER(B25), IF(COUNTIF($B$10:$B25, B25)=COUNTIF($B:$B, B25), "1", "0"), "") ->  | Z25: =IF(OR($C25=List!$C$5,$C25=List!$C$6,$C25=List!$C$11,$C25=List!$C$13), 1, 0) -> 0 | AA25: =_xlfn.IFS(T25="","未応札",T25>0,"応札") -> 未応札 | AB25: =_xlfn.IFS(U25=0,"未約定",U25=T25,"約定",U25<T25,"一部約定") -> 未約定 | AD25: =IF(AA25="応札",IF($AB25="未約定",IF(OR($G25=List!$F$2:$F$3), $P25*$T25, $N25*$T25),IF($AB25="一部約定",IF(OR($G25=List!$F$2:$F$3), $P25*($T25-$U25), $N25*($T25-$U25)),"")),"") ->  | AE25: 0
V26: 0 | W26: 0 | Y26: =IF(ISNUMBER(B26), IF(COUNTIF($B$10:$B26, B26)=COUNTIF($B:$B, B26), "1", "0"), "") ->  | Z26: =IF(OR($C26=List!$C$5,$C26=List!$C$6,$C26=List!$C$11,$C26=List!$C$13), 1, 0) -> 0 | AA26: =_xlfn.IFS(T26="","未応札",T26>0,"応札") -> 未応札 | AB26: =_xlfn.IFS(U26=0,"未約定",U26=T26,"約定",U26<T26,"一部約定") -> 未約定 | AD26: =IF(AA26="応札",IF($AB26="未約定",IF(OR($G26=List!$F$2:$F$3), $P26*$T26, $N26*$T26),IF($AB26="一部約定",IF(OR($G26=List!$F$2:$F$3), $P26*($T26-$U26), $N26*($T26-$U26)),"")),"") ->  | AE26: 0
V27: 0 | W27: 0 | Y27: =IF(ISNUMBER(B27), IF(COUNTIF($B$10:$B27, B27)=COUNTIF($B:$B, B27), "1", "0"), "") ->  | Z27: =IF(OR($C27=List!$C$5,$C27=List!$C$6,$C27=List!$C$11,$C27=List!$C$13), 1, 0) -> 0 | AA27: =_xlfn.IFS(T27="","未応札",T27>0,"応札") -> 未応札 | AB27: =_xlfn.IFS(U27=0,"未約定",U27=T27,"約定",U27<T27,"一部約定") -> 未約定 | AD27: =IF(AA27="応札",IF($AB27="未約定",IF(OR($G27=List!$F$2:$F$3), $P27*$T27, $N27*$T27),IF($AB27="一部約定",IF(OR($G27=List!$F$2:$F$3), $P27*($T27-$U27), $N27*($T27-$U27)),"")),"") ->  | AE27: 0
V28: 0 | W28: 0 | Y28: =IF(ISNUMBER(B28), IF(COUNTIF($B$10:$B28, B28)=COUNTIF($B:$B, B28), "1", "0"), "") ->  | Z28: =IF(OR($C28=List!$C$5,$C28=List!$C$6,$C28=List!$C$11,$C28=List!$C$13), 1, 0) -> 0 | AA28: =_xlfn.IFS(T28="","未応札",T28>0,"応札") -> 未応札 | AB28: =_xlfn.IFS(U28=0,"未約定",U28=T28,"約定",U28<T28,"一部約定") -> 未約定 | AD28: =IF(AA28="応札",IF($AB28="未約定",IF(OR($G28=List!$F$2:$F$3), $P28*$T28, $N28*$T28),IF($AB28="一部約定",IF(OR($G28=List!$F$2:$F$3), $P28*($T28-$U28), $N28*($T28-$U28)),"")),"") ->  | AE28: 0
V29: 0 | W29: 0 | Y29: =IF(ISNUMBER(B29), IF(COUNTIF($B$10:$B29, B29)=COUNTIF($B:$B, B29), "1", "0"), "") ->  | Z29: =IF(OR($C29=List!$C$5,$C29=List!$C$6,$C29=List!$C$11,$C29=List!$C$13), 1, 0) -> 0 | AA29: =_xlfn.IFS(T29="","未応札",T29>0,"応札") -> 未応札 | AB29: =_xlfn.IFS(U29=0,"未約定",U29=T29,"約定",U29<T29,"一部約定") -> 未約定 | AD29: =IF(AA29="応札",IF($AB29="未約定",IF(OR($G29=List!$F$2:$F$3), $P29*$T29, $N29*$T29),IF($AB29="一部約定",IF(OR($G29=List!$F$2:$F$3), $P29*($T29-$U29), $N29*($T29-$U29)),"")),"") ->  | AE29: 0
V30: 0 | W30: 0 | Y30: =IF(ISNUMBER(B30), IF(COUNTIF($B$10:$B30, B30)=COUNTIF($B:$B, B30), "1", "0"), "") ->  | Z30: =IF(OR($C30=List!$C$5,$C30=List!$C$6,$C30=List!$C$11,$C30=List!$C$13), 1, 0) -> 0 | AA30: =_xlfn.IFS(T30="","未応札",T30>0,"応札") -> 未応札 | AB30: =_xlfn.IFS(U30=0,"未約定",U30=T30,"約定",U30<T30,"一部約定") -> 未約定 | AD30: =IF(AA30="応札",IF($AB30="未約定",IF(OR($G30=List!$F$2:$F$3), $P30*$T30, $N30*$T30),IF($AB30="一部約定",IF(OR($G30=List!$F$2:$F$3), $P30*($T30-$U30), $N30*($T30-$U30)),"")),"") ->  | AE30: 0
V31: 0 | W31: 0 | Y31: =IF(ISNUMBER(B31), IF(COUNTIF($B$10:$B31, B31)=COUNTIF($B:$B, B31), "1", "0"), "") ->  | Z31: =IF(OR($C31=List!$C$5,$C31=List!$C$6,$C31=List!$C$11,$C31=List!$C$13), 1, 0) -> 0 | AA31: =_xlfn.IFS(T31="","未応札",T31>0,"応札") -> 未応札 | AB31: =_xlfn.IFS(U31=0,"未約定",U31=T31,"約定",U31<T31,"一部約定") -> 未約定 | AD31: =IF(AA31="応札",IF($AB31="未約定",IF(OR($G31=List!$F$2:$F$3), $P31*$T31, $N31*$T31),IF($AB31="一部約定",IF(OR($G31=List!$F$2:$F$3), $P31*($T31-$U31), $N31*($T31-$U31)),"")),"") ->  | AE31: 0
V32: 0 | W32: 0 | Y32: =IF(ISNUMBER(B32), IF(COUNTIF($B$10:$B32, B32)=COUNTIF($B:$B, B32), "1", "0"), "") ->  | Z32: =IF(OR($C32=List!$C$5,$C32=List!$C$6,$C32=List!$C$11,$C32=List!$C$13), 1, 0) -> 0 | AA32: =_xlfn.IFS(T32="","未応札",T32>0,"応札") -> 未応札 | AB32: =_xlfn.IFS(U32=0,"未約定",U32=T32,"約定",U32<T32,"一部約定") -> 未約定 | AD32: =IF(AA32="応札",IF($AB32="未約定",IF(OR($G32=List!$F$2:$F$3), $P32*$T32, $N32*$T32),IF($AB32="一部約定",IF(OR($G32=List!$F$2:$F$3), $P32*($T32-$U32), $N32*($T32-$U32)),"")),"") ->  | AE32: 0
V33: 0 | W33: 0 | Y33: =IF(ISNUMBER(B33), IF(COUNTIF($B$10:$B33, B33)=COUNTIF($B:$B, B33), "1", "0"), "") ->  | Z33: =IF(OR($C33=List!$C$5,$C33=List!$C$6,$C33=List!$C$11,$C33=List!$C$13), 1, 0) -> 0 | AA33: =_xlfn.IFS(T33="","未応札",T33>0,"応札") -> 未応札 | AB33: =_xlfn.IFS(U33=0,"未約定",U33=T33,"約定",U33<T33,"一部約定") -> 未約定 | AD33: =IF(AA33="応札",IF($AB33="未約定",IF(OR($G33=List!$F$2:$F$3), $P33*$T33, $N33*$T33),IF($AB33="一部約定",IF(OR($G33=List!$F$2:$F$3), $P33*($T33-$U33), $N33*($T33-$U33)),"")),"") ->  | AE33: 0
V34: 0 | W34: 0 | Y34: =IF(ISNUMBER(B34), IF(COUNTIF($B$10:$B34, B34)=COUNTIF($B:$B, B34), "1", "0"), "") ->  | Z34: =IF(OR($C34=List!$C$5,$C34=List!$C$6,$C34=List!$C$11,$C34=List!$C$13), 1, 0) -> 0 | AA34: =_xlfn.IFS(T34="","未応札",T34>0,"応札") -> 未応札 | AB34: =_xlfn.IFS(U34=0,"未約定",U34=T34,"約定",U34<T34,"一部約定") -> 未約定 | AD34: =IF(AA34="応札",IF($AB34="未約定",IF(OR($G34=List!$F$2:$F$3), $P34*$T34, $N34*$T34),IF($AB34="一部約定",IF(OR($G34=List!$F$2:$F$3), $P34*($T34-$U34), $N34*($T34-$U34)),"")),"") ->  | AE34: 0
V35: 0 | W35: 0 | Y35: =IF(ISNUMBER(B35), IF(COUNTIF($B$10:$B35, B35)=COUNTIF($B:$B, B35), "1", "0"), "") ->  | Z35: =IF(OR($C35=List!$C$5,$C35=List!$C$6,$C35=List!$C$11,$C35=List!$C$13), 1, 0) -> 0 | AA35: =_xlfn.IFS(T35="","未応札",T35>0,"応札") -> 未応札 | AB35: =_xlfn.IFS(U35=0,"未約定",U35=T35,"約定",U35<T35,"一部約定") -> 未約定 | AD35: =IF(AA35="応札",IF($AB35="未約定",IF(OR($G35=List!$F$2:$F$3), $P35*$T35, $N35*$T35),IF($AB35="一部約定",IF(OR($G35=List!$F$2:$F$3), $P35*($T35-$U35), $N35*($T35-$U35)),"")),"") ->  | AE35: 0
V36: 0 | W36: 0 | Y36: =IF(ISNUMBER(B36), IF(COUNTIF($B$10:$B36, B36)=COUNTIF($B:$B, B36), "1", "0"), "") ->  | Z36: =IF(OR($C36=List!$C$5,$C36=List!$C$6,$C36=List!$C$11,$C36=List!$C$13), 1, 0) -> 0 | AA36: =_xlfn.IFS(T36="","未応札",T36>0,"応札") -> 未応札 | AB36: =_xlfn.IFS(U36=0,"未約定",U36=T36,"約定",U36<T36,"一部約定") -> 未約定 | AD36: =IF(AA36="応札",IF($AB36="未約定",IF(OR($G36=List!$F$2:$F$3), $P36*$T36, $N36*$T36),IF($AB36="一部約定",IF(OR($G36=List!$F$2:$F$3), $P36*($T36-$U36), $N36*($T36-$U36)),"")),"") ->  | AE36: 0
V37: 0 | W37: 0 | Y37: =IF(ISNUMBER(B37), IF(COUNTIF($B$10:$B37, B37)=COUNTIF($B:$B, B37), "1", "0"), "") ->  | Z37: =IF(OR($C37=List!$C$5,$C37=List!$C$6,$C37=List!$C$11,$C37=List!$C$13), 1, 0) -> 0 | AA37: =_xlfn.IFS(T37="","未応札",T37>0,"応札") -> 未応札 | AB37: =_xlfn.IFS(U37=0,"未約定",U37=T37,"約定",U37<T37,"一部約定") -> 未約定 | AD37: =IF(AA37="応札",IF($AB37="未約定",IF(OR($G37=List!$F$2:$F$3), $P37*$T37, $N37*$T37),IF($AB37="一部約定",IF(OR($G37=List!$F$2:$F$3), $P37*($T37-$U37), $N37*($T37-$U37)),"")),"") ->  | AE37: 0
V38: 0 | W38: 0 | Y38: =IF(ISNUMBER(B38), IF(COUNTIF($B$10:$B38, B38)=COUNTIF($B:$B, B38), "1", "0"), "") ->  | Z38: =IF(OR($C38=List!$C$5,$C38=List!$C$6,$C38=List!$C$11,$C38=List!$C$13), 1, 0) -> 0 | AA38: =_xlfn.IFS(T38="","未応札",T38>0,"応札") -> 未応札 | AB38: =_xlfn.IFS(U38=0,"未約定",U38=T38,"約定",U38<T38,"一部約定") -> 未約定 | AD38: =IF(AA38="応札",IF($AB38="未約定",IF(OR($G38=List!$F$2:$F$3), $P38*$T38, $N38*$T38),IF($AB38="一部約定",IF(OR($G38=List!$F$2:$F$3), $P38*($T38-$U38), $N38*($T38-$U38)),"")),"") ->  | AE38: 0
V39: 0 | W39: 0 | Y39: =IF(ISNUMBER(B39), IF(COUNTIF($B$10:$B39, B39)=COUNTIF($B:$B, B39), "1", "0"), "") ->  | Z39: =IF(OR($C39=List!$C$5,$C39=List!$C$6,$C39=List!$C$11,$C39=List!$C$13), 1, 0) -> 0 | AA39: =_xlfn.IFS(T39="","未応札",T39>0,"応札") -> 未応札 | AB39: =_xlfn.IFS(U39=0,"未約定",U39=T39,"約定",U39<T39,"一部約定") -> 未約定 | AD39: =IF(AA39="応札",IF($AB39="未約定",IF(OR($G39=List!$F$2:$F$3), $P39*$T39, $N39*$T39),IF($AB39="一部約定",IF(OR($G39=List!$F$2:$F$3), $P39*($T39-$U39), $N39*($T39-$U39)),"")),"") ->  | AE39: 0
V40: 0 | W40: 0 | Y40: =IF(ISNUMBER(B40), IF(COUNTIF($B$10:$B40, B40)=COUNTIF($B:$B, B40), "1", "0"), "") ->  | Z40: =IF(OR($C40=List!$C$5,$C40=List!$C$6,$C40=List!$C$11,$C40=List!$C$13), 1, 0) -> 0 | AA40: =_xlfn.IFS(T40="","未応札",T40>0,"応札") -> 未応札 | AB40: =_xlfn.IFS(U40=0,"未約定",U40=T40,"約定",U40<T40,"一部約定") -> 未約定 | AD40: =IF(AA40="応札",IF($AB40="未約定",IF(OR($G40=List!$F$2:$F$3), $P40*$T40, $N40*$T40),IF($AB40="一部約定",IF(OR($G40=List!$F$2:$F$3), $P40*($T40-$U40), $N40*($T40-$U40)),"")),"") ->  | AE40: 0

Sheet 記載例_精算パターン⑪加重平均入札（両市場へ按分し入札）
B2: 取引年月 | C2: 202604
B3: MMSコード | C3: A000
B4: 対象エリア | C4: 3：東京
B5: ファイル名称 | C5: =$C$2&"_"&$C$3&"_"&LEFT($C$4,1)&"_不約定単価内訳兼起動費事後精算情報様式" -> 202604_A000_3_不約定単価内訳兼起動費事後精算情報様式
B7: =入力シート!B7 -> 事象NO | C7: =入力シート!C7 -> 精算パターン | D7: =入力シート!D7 -> 余力活用契約対象リソース区分 | E7: =入力シート!E7 -> 取引日 | F7: =入力シート!F7 -> 時刻コード | G7: =入力シート!G7 -> 持ち下げ供出機区分 | H7: =入力シート!H7 -> 系統コード | I7: =入力シート!I7 -> 系統コード(差替後) | J7: =入力シート!J7 -> 商品区分 | K7: =入力シート!K7 -> 売り入札ID | L7: =入力シート!L7 -> 約定番号 | M7: =入力シート!M7 -> 約定識別ID | N7: =入力シート!N7 -> MMS起動費単価 | O7: =入力シート!O7 -> 加重平均前のΔkW単価 | P7: =入力シート!P7 -> 加重平均起動費未回収分相当額 | Q7: =入力シート!Q7 -> 最低出力までの発電電力量の機会費用単価 | R7: =入力シート!R7 -> 発電計画 | S7: =入力シート!S7 -> 最低出力 | T7: =入力シート!T7 -> 約定希望ΔkW | U7: =入力シート!U7 -> ΔkW約定量 | V7: =入力シート!V7 -> 最低出力までの発電電力量の機会費用単価×(約定希望ΔkW-ΔkW約定量) | W7: =入力シート!W7 -> 最低出力維持した場合の費用合計 | X7: =入力シート!X7 -> 停止・再起動にかかる費用 | Y7: =入力シート!Y7 -> 事象毎の最終行 | Z7: =入力シート!Z7 -> 妥当性確認 | AA7: =入力シート!AA7 -> 応札状況 | AB7: =入力シート!AB7 -> 約定状況 | AC7: =入力シート!AC7 -> 並解列状態(実績) | AD7: =入力シート!AD7 -> 起動費未回収分相当額 | AE7: =入力シート!AE7 -> 最低出力までの発電電力量の機会費用 | AF7: =入力シート!AF7 -> 停止・再起動にかかる費用 | AI7: =入力シート!AI7 -> 精算対象 申請小計 | AJ7: =入力シート!AJ7 -> 起動費未回収分相当額 | AK7: =入力シート!AK7 -> 最低出力までの発電電力量の機会費用 | AL7: =入力シート!AL7 -> 停止・再起動にかかる費用 | AM7: =入力シート!AM7 -> 合計
N8: （円/kW） | O8: （円/kW） | P8: （円/kW） | Q8: （円/kW） | R8: （kWh） | S8: （kWh） | T8: （kW） | U8: （kW） | V8: （円） | W8: （円） | X8: （円） | AD8: （円） | AE8: （円） | AF8: （円） | AJ8: （円） | AK8: （円） | AL8: （円） | AM8: （円）
B9: =IF(入力シート!B9<>"",入力シート!B9,"") -> ※起動費未回収が発生した事象NOを付定すること ※複合市場商品および三次調整力②商品へ１回分の起動費等を按分計上して入札し，両市場において起動費等の事後精算を申請する場合は，市場ごとに事象NOを分けずに同一の事象NOとして申請を実施すること | C9: =IF(入力シート!C9<>"",入力シート!C9,"") ->  | D9: =IF(入力シート!D9<>"",入力シート!D9,"") -> ※対象の場合は「１」，非対象の場合は「０」を入力 | E9: =IF(入力シート!E9<>"",入力シート!E9,"") ->  | F9: =IF(入力シート!F9<>"",入力シート!F9,"") ->  | G9: =IF(入力シート!G9<>"",入力シート!G9,"") -> ※持ち下げ供出機を加重平均で入札した場合に選択 | H9: =IF(入力シート!H9<>"",入力シート!H9,"") -> ※電源差替がない場合は精算対象となるリソースの系統コードを記載すること ※電源差替後のリソースにより精算する場合は，差替前のリソースの系統コードを記載すること | I9: =IF(入力シート!I9<>"",入力シート!I9,"") -> ※起動費単価分が登録されている電源に電源差替を実施する場合に記載すること | J9: =IF(入力シート!J9<>"",入力シート!J9,"") ->  | K9: =IF(入力シート!K9<>"",入力シート!K9,"") ->  | L9: =IF(入力シート!L9<>"",入力シート!L9,"") -> ※持ち下げ供出機区分が該当する場合，起動供出機の約定番号を記載すること ※同一時刻コードにおいて，複数の約定番号がある場合は，いずれか1つを記載すること | M9: =IF(入力シート!M9<>"",入力シート!M9,"") -> ※持ち下げ供出機区分に該当する場合，起動供出機の約定識別IDを記載すること ※同一時刻コードにおいて，約定番号に紐づく約定識別IDが複数存在する場合は，いずれか1つを記載すること ※電源差し替えを実施した場合，差替え元の約定識別IDを記載すること(持ち下げ供出機区分に該当する場合,起動供出機の初回約定識別IDを記載すること) | N9: =IF(入力シート!N9<>"",入力シート!N9,"") -> ※MMSに登録された起動費単価分を原則用いること ※ 「全量不落」の精算パターンで「最低出力までの発電電力量の機会費用」の事後精算の対象がある場合，様式都合により，属地TSOと事前に確認の上，「MMSに登録された起動費単価分」に当該単価を加算して記載すること | O9: =IF(入力シート!O9<>"",入力シート!O9,"") -> ※持ち下げ供出機区分が該当する場合に記載すること | P9: =IF(入力シート!P9<>"",入力シート!P9,"") -> ※ 持ち下げ供出機区分が該当する場合に記載すること | Q9: =IF(入力シート!Q9<>"",入力シート!Q9,"") -> ※卸電力市場価格（スポット市場価格：実績）と限界費用との差額を用いること ※加重平均で入札し，一部不落となった場合は，情報を記載するリソースのΔkW単価に含めた起動供出機の最低出力までの発電電力量の加重平均機会費用相当額を精算対象とする ※加重平均で入札し，起動供出機または持ち下げ供出機，またはその双方において一部のリソースが全量不落となったブロックに，起動供出機または持ち下げ供出機の情報を記載する場合は，起動供出機または持ち下げ供出機のΔkW単価に含めた起動供出機の最低出力までの発電電力量の加重平均機会費用相当額を精算対象とする。 （ただし，起動供出機が全量不落となった場合は，起動供出機の起動により機会費用が発生した場合に限る。そのため別途TSOからデータ提出を求める場合がある。なお、起動供出機のΔkW単価に含めた起動供出機の最低出力までの発電電力量の加重平均機会費用相当額については様式都合により，属地TSOと事前に確認の上， 「加重平均起動費未回収分相当額（P列）」に加算して記載すること） | R9: =IF(入力シート!R9<>"",入力シート!R9,"") ->  | S9: =IF(入力シート!S9<>"",入力シート!S9,"") ->  | T9: =IF(入力シート!T9<>"",入力シート!T9,"") ->  | U9: =IF(入力シート!U9<>"",入力シート!U9,"") ->  | V9: =IF(入力シート!V9<>"",入力シート!V9,"") -> ※加重平均で入札した場合は，最低出力までの発電電力量の加重平均機会費用相当額×(約定希望ΔkW-ΔkW約定量) | W9: =IF(入力シート!W9<>"",入力シート!W9,"") -> ※精算パターン「約定間全量不落(約定間停止・再起動)」を選択した場合，事象NOごとの最終行に合計値表示 | X9: =IF(入力シート!X9<>"",入力シート!X9,"") -> ※１停止・再起動費は最後のブロックに記載すること ※２ 余力活用契約を締結している電源でBG計画上停止・再起動としていたが、実績は停止しなかった場合も、BG計画上の「停止・再起動費」を記載すること | Y9: =IF(入力シート!Y9<>"",入力シート!Y9,"") ->  | Z9: =IF(入力シート!Z9<>"",入力シート!Z9,"") ->  | AA9: =IF(入力シート!AA9<>"",入力シート!AA9,"") ->  | AB9: =IF(入力シート!AB9<>"",入力シート!AB9,"") ->  | AC9: =IF(入力シート!AC9<>"",入力シート!AC9,"") ->  | AD9: =IF(入力シート!AD9<>"",入力シート!AD9,"") -> ※加重平均で入札した場合は，加重平均起動費未回収分相当額 | AE9: =IF(入力シート!AE9<>"",入力シート!AE9,"") -> ※加重平均で入札した場合は，最低出力までの発電電力量の加重平均機会費用相当額 | AF9: =IF(入力シート!AF9<>"",入力シート!AF9,"") -> ※約定間全量不落時において，停止・再起動するよりも，最低出力維持した方が経済的だった場合，後者を事後精算対象とする | AJ9: =SUM($AD10:$AD2835) -> 11080500 | AK9: =SUM($AE10:$AE2835) -> 169500 | AL9: =SUM($AF10:$AF2835) -> 0 | AM9: =ROUNDDOWN(SUM(AJ9:AL9),0) -> 11250000
B10: 1 | C10: 7：持ち下げ・起動供出機：約定間全量不落（最低出力維持） | D10: 0：非対象 | E10: 20260401 | F10: 2 | G10: 1：該当（起動供出機） | H10: ○X○○○ | J10: 2：三次調整力② | K10: ○○○○○○ | O10: 75 | P10: 39.4 | Q10: 0.6 | R10: 20000 | S10: 20000 | T10: 50000 | U10: 0 | V10: =Q10*(T10-U10) -> 30000 | W10: =IF(X10 > 0, SUMIFS(V:V, B:B, B10, Z:Z, 1), 0) -> 0 | Y10: =IF(ISNUMBER(B10), IF(COUNTIF($B$10:$B10, B10)=COUNTIF($B:$B, B10), "1", "0"), "") -> 0 | Z10: =IF(OR($C10=List!$C$5,$C10=List!$C$6,$C10=List!$C$11,$C10=List!$C$13), 1, 0) -> 0 | AA10: =_xlfn.IFS(T10="","未応札",T10>0,"応札") -> 応札 | AB10: =_xlfn.IFS(U10=0,"未約定",U10=T10,"約定",U10<T10,"一部約定") -> 未約定 | AC10: 2：解列 | AD10: =IF(AA10="応札",IF($AB10="未約定",IF(OR($G10=List!$F$2:$F$3), $P10*$T10, $N10*$T10),IF($AB10="一部約定",IF(OR($G10=List!$F$2:$F$3), $P10*($T10-$U10), $N10*($T10-$U10)),"")),"") -> 1970000 | AE10: =IF(ISBLANK($R10),IF(OR($AB10="一部約定",$AB10="未約定"),$Q10*($T10-$U10),""),IF($R10=0,"", IF(OR($AB10="一部約定", $AB10="未約定"), $Q10*($T10-$U10), ""))) -> 30000 | AF10: =IF(AND($AA10="応札",$AB10="未約定"), IF($W10<>0, IF($X10<$W10, IF($X10<>0, $X10, ""), IF($W10<>0, $W10, "")), IF($X10<>0, $X10, "")), "") -> 
B11: 1 | C11: 7：持ち下げ・起動供出機：約定間全量不落（最低出力維持） | D11: 0：非対象 | E11: 20260401 | F11: 3 | G11: 1：該当（起動供出機） | H11: ○X○○○ | J11: 2：三次調整力② | K11: ○○○○○○ | O11: 75 | P11: 39.4 | Q11: 0.6 | R11: 20000 | S11: 20000 | T11: 50000 | U11: 0 | V11: =Q11*(T11-U11) -> 30000 | W11: 0 | Y11: =IF(ISNUMBER(B11), IF(COUNTIF($B$10:$B11, B11)=COUNTIF($B:$B, B11), "1", "0"), "") -> 0 | Z11: =IF(OR($C11=List!$C$5,$C11=List!$C$6,$C11=List!$C$11,$C11=List!$C$13), 1, 0) -> 0 | AA11: =_xlfn.IFS(T11="","未応札",T11>0,"応札") -> 応札 | AB11: =_xlfn.IFS(U11=0,"未約定",U11=T11,"約定",U11<T11,"一部約定") -> 未約定 | AC11: 2：解列 | AD11: =IF(AA11="応札",IF($AB11="未約定",IF(OR($G11=List!$F$2:$F$3), $P11*$T11, $N11*$T11),IF($AB11="一部約定",IF(OR($G11=List!$F$2:$F$3), $P11*($T11-$U11), $N11*($T11-$U11)),"")),"") -> 1970000 | AE11: =IF(ISBLANK($R11),IF(OR($AB11="一部約定",$AB11="未約定"),$Q11*($T11-$U11),""),IF($R11=0,"", IF(OR($AB11="一部約定", $AB11="未約定"), $Q11*($T11-$U11), ""))) -> 30000 | AF11: =IF(AND($AA11="応札",$AB11="未約定"), IF($W11<>0, IF($X11<$W11, IF($X11<>0, $X11, ""), IF($W11<>0, $W11, "")), IF($X11<>0, $X11, "")), "") -> 
B12: 1 | C12: 7：持ち下げ・起動供出機：約定間全量不落（最低出力維持） | D12: 0：非対象 | E12: 20260401 | F12: 4 | G12: 1：該当（起動供出機） | H12: ○X○○○ | J12: 2：三次調整力② | K12: ○○○○○○ | O12: 75 | P12: 39.4 | Q12: 0.6 | R12: 20000 | S12: 20000 | T12: 50000 | U12: 0 | V12: 30000 | W12: 0 | Y12: =IF(ISNUMBER(B12), IF(COUNTIF($B$10:$B12, B12)=COUNTIF($B:$B, B12), "1", "0"), "") -> 0 | Z12: =IF(OR($C12=List!$C$5,$C12=List!$C$6,$C12=List!$C$11,$C12=List!$C$13), 1, 0) -> 0 | AA12: =_xlfn.IFS(T12="","未応札",T12>0,"応札") -> 応札 | AB12: =_xlfn.IFS(U12=0,"未約定",U12=T12,"約定",U12<T12,"一部約定") -> 未約定 | AC12: 2：解列 | AD12: =IF(AA12="応札",IF($AB12="未約定",IF(OR($G12=List!$F$2:$F$3), $P12*$T12, $N12*$T12),IF($AB12="一部約定",IF(OR($G12=List!$F$2:$F$3), $P12*($T12-$U12), $N12*($T12-$U12)),"")),"") -> 1970000 | AE12: 30000
B13: 1 | C13: 7：持ち下げ・起動供出機：約定間全量不落（最低出力維持） | D13: 0：非対象 | E13: 20260401 | F13: 2 | G13: 2：該当（持ち下げ供出機） | H13: ○Y○○○ | J13: 2：三次調整力② | K13: ○○○○○○ | L13: 2026040132YAAA○○○○○○ | M13: ○○○○○○ | O13: 5 | P13: 34.47 | Q13: 0.53 | T13: 50000 | U13: 0 | V13: 26500 | W13: 0 | Y13: =IF(ISNUMBER(B13), IF(COUNTIF($B$10:$B13, B13)=COUNTIF($B:$B, B13), "1", "0"), "") -> 0 | Z13: =IF(OR($C13=List!$C$5,$C13=List!$C$6,$C13=List!$C$11,$C13=List!$C$13), 1, 0) -> 0 | AA13: =_xlfn.IFS(T13="","未応札",T13>0,"応札") -> 応札 | AB13: =_xlfn.IFS(U13=0,"未約定",U13=T13,"約定",U13<T13,"一部約定") -> 未約定 | AC13: 2：解列 | AD13: =IF(AA13="応札",IF($AB13="未約定",IF(OR($G13=List!$F$2:$F$3), $P13*$T13, $N13*$T13),IF($AB13="一部約定",IF(OR($G13=List!$F$2:$F$3), $P13*($T13-$U13), $N13*($T13-$U13)),"")),"") -> 1723500 | AE13: 26500
B14: 1 | C14: 7：持ち下げ・起動供出機：約定間全量不落（最低出力維持） | D14: 0：非対象 | E14: 20260401 | F14: 3 | G14: 2：該当（持ち下げ供出機） | H14: ○Y○○○ | J14: 2：三次調整力② | K14: ○○○○○○ | L14: 2026040132YBBB○○○○○○ | M14: ○○○○○○ | O14: 5 | P14: 34.47 | Q14: 0.53 | T14: 50000 | U14: 0 | V14: 26500 | W14: 0 | Y14: =IF(ISNUMBER(B14), IF(COUNTIF($B$10:$B14, B14)=COUNTIF($B:$B, B14), "1", "0"), "") -> 0 | Z14: =IF(OR($C14=List!$C$5,$C14=List!$C$6,$C14=List!$C$11,$C14=List!$C$13), 1, 0) -> 0 | AA14: =_xlfn.IFS(T14="","未応札",T14>0,"応札") -> 応札 | AB14: =_xlfn.IFS(U14=0,"未約定",U14=T14,"約定",U14<T14,"一部約定") -> 未約定 | AC14: 2：解列 | AD14: =IF(AA14="応札",IF($AB14="未約定",IF(OR($G14=List!$F$2:$F$3), $P14*$T14, $N14*$T14),IF($AB14="一部約定",IF(OR($G14=List!$F$2:$F$3), $P14*($T14-$U14), $N14*($T14-$U14)),"")),"") -> 1723500 | AE14: 26500
B15: 1 | C15: 7：持ち下げ・起動供出機：約定間全量不落（最低出力維持） | D15: 0：非対象 | E15: 20260401 | F15: 4 | G15: 2：該当（持ち下げ供出機） | H15: ○Y○○○ | J15: 2：三次調整力② | K15: ○○○○○○ | L15: 2026040132YCCC○○○○○○ | M15: ○○○○○○ | O15: 5 | P15: 34.47 | Q15: 0.53 | T15: 50000 | U15: 0 | V15: 26500 | W15: 0 | Y15: =IF(ISNUMBER(B15), IF(COUNTIF($B$10:$B15, B15)=COUNTIF($B:$B, B15), "1", "0"), "") -> 1 | Z15: =IF(OR($C15=List!$C$5,$C15=List!$C$6,$C15=List!$C$11,$C15=List!$C$13), 1, 0) -> 0 | AA15: =_xlfn.IFS(T15="","未応札",T15>0,"応札") -> 応札 | AB15: =_xlfn.IFS(U15=0,"未約定",U15=T15,"約定",U15<T15,"一部約定") -> 未約定 | AC15: 2：解列 | AD15: =IF(AA15="応札",IF($AB15="未約定",IF(OR($G15=List!$F$2:$F$3), $P15*$T15, $N15*$T15),IF($AB15="一部約定",IF(OR($G15=List!$F$2:$F$3), $P15*($T15-$U15), $N15*($T15-$U15)),"")),"") -> 1723500 | AE15: 26500
V16: 0 | W16: 0 | Y16: =IF(ISNUMBER(B16), IF(COUNTIF($B$10:$B16, B16)=COUNTIF($B:$B, B16), "1", "0"), "") ->  | Z16: =IF(OR($C16=List!$C$5,$C16=List!$C$6,$C16=List!$C$11,$C16=List!$C$13), 1, 0) -> 0 | AA16: =_xlfn.IFS(T16="","未応札",T16>0,"応札") -> 未応札 | AB16: =_xlfn.IFS(U16=0,"未約定",U16=T16,"約定",U16<T16,"一部約定") -> 未約定 | AD16: =IF(AA16="応札",IF($AB16="未約定",IF(OR($G16=List!$F$2:$F$3), $P16*$T16, $N16*$T16),IF($AB16="一部約定",IF(OR($G16=List!$F$2:$F$3), $P16*($T16-$U16), $N16*($T16-$U16)),"")),"") ->  | AE16: 0
V17: 0 | W17: 0 | Y17: =IF(ISNUMBER(B17), IF(COUNTIF($B$10:$B17, B17)=COUNTIF($B:$B, B17), "1", "0"), "") ->  | Z17: =IF(OR($C17=List!$C$5,$C17=List!$C$6,$C17=List!$C$11,$C17=List!$C$13), 1, 0) -> 0 | AA17: =_xlfn.IFS(T17="","未応札",T17>0,"応札") -> 未応札 | AB17: =_xlfn.IFS(U17=0,"未約定",U17=T17,"約定",U17<T17,"一部約定") -> 未約定 | AD17: =IF(AA17="応札",IF($AB17="未約定",IF(OR($G17=List!$F$2:$F$3), $P17*$T17, $N17*$T17),IF($AB17="一部約定",IF(OR($G17=List!$F$2:$F$3), $P17*($T17-$U17), $N17*($T17-$U17)),"")),"") ->  | AE17: 0
V18: 0 | W18: 0 | Y18: =IF(ISNUMBER(B18), IF(COUNTIF($B$10:$B18, B18)=COUNTIF($B:$B, B18), "1", "0"), "") ->  | Z18: =IF(OR($C18=List!$C$5,$C18=List!$C$6,$C18=List!$C$11,$C18=List!$C$13), 1, 0) -> 0 | AA18: =_xlfn.IFS(T18="","未応札",T18>0,"応札") -> 未応札 | AB18: =_xlfn.IFS(U18=0,"未約定",U18=T18,"約定",U18<T18,"一部約定") -> 未約定 | AD18: =IF(AA18="応札",IF($AB18="未約定",IF(OR($G18=List!$F$2:$F$3), $P18*$T18, $N18*$T18),IF($AB18="一部約定",IF(OR($G18=List!$F$2:$F$3), $P18*($T18-$U18), $N18*($T18-$U18)),"")),"") ->  | AE18: 0
V19: 0 | W19: 0 | Y19: =IF(ISNUMBER(B19), IF(COUNTIF($B$10:$B19, B19)=COUNTIF($B:$B, B19), "1", "0"), "") ->  | Z19: =IF(OR($C19=List!$C$5,$C19=List!$C$6,$C19=List!$C$11,$C19=List!$C$13), 1, 0) -> 0 | AA19: =_xlfn.IFS(T19="","未応札",T19>0,"応札") -> 未応札 | AB19: =_xlfn.IFS(U19=0,"未約定",U19=T19,"約定",U19<T19,"一部約定") -> 未約定 | AD19: =IF(AA19="応札",IF($AB19="未約定",IF(OR($G19=List!$F$2:$F$3), $P19*$T19, $N19*$T19),IF($AB19="一部約定",IF(OR($G19=List!$F$2:$F$3), $P19*($T19-$U19), $N19*($T19-$U19)),"")),"") ->  | AE19: 0
V20: 0 | W20: 0 | Y20: =IF(ISNUMBER(B20), IF(COUNTIF($B$10:$B20, B20)=COUNTIF($B:$B, B20), "1", "0"), "") ->  | Z20: =IF(OR($C20=List!$C$5,$C20=List!$C$6,$C20=List!$C$11,$C20=List!$C$13), 1, 0) -> 0 | AA20: =_xlfn.IFS(T20="","未応札",T20>0,"応札") -> 未応札 | AB20: =_xlfn.IFS(U20=0,"未約定",U20=T20,"約定",U20<T20,"一部約定") -> 未約定 | AD20: =IF(AA20="応札",IF($AB20="未約定",IF(OR($G20=List!$F$2:$F$3), $P20*$T20, $N20*$T20),IF($AB20="一部約定",IF(OR($G20=List!$F$2:$F$3), $P20*($T20-$U20), $N20*($T20-$U20)),"")),"") ->  | AE20: 0
V21: 0 | W21: 0 | Y21: =IF(ISNUMBER(B21), IF(COUNTIF($B$10:$B21, B21)=COUNTIF($B:$B, B21), "1", "0"), "") ->  | Z21: =IF(OR($C21=List!$C$5,$C21=List!$C$6,$C21=List!$C$11,$C21=List!$C$13), 1, 0) -> 0 | AA21: =_xlfn.IFS(T21="","未応札",T21>0,"応札") -> 未応札 | AB21: =_xlfn.IFS(U21=0,"未約定",U21=T21,"約定",U21<T21,"一部約定") -> 未約定 | AD21: =IF(AA21="応札",IF($AB21="未約定",IF(OR($G21=List!$F$2:$F$3), $P21*$T21, $N21*$T21),IF($AB21="一部約定",IF(OR($G21=List!$F$2:$F$3), $P21*($T21-$U21), $N21*($T21-$U21)),"")),"") ->  | AE21: 0
V22: 0 | W22: 0 | Y22: =IF(ISNUMBER(B22), IF(COUNTIF($B$10:$B22, B22)=COUNTIF($B:$B, B22), "1", "0"), "") ->  | Z22: =IF(OR($C22=List!$C$5,$C22=List!$C$6,$C22=List!$C$11,$C22=List!$C$13), 1, 0) -> 0 | AA22: =_xlfn.IFS(T22="","未応札",T22>0,"応札") -> 未応札 | AB22: =_xlfn.IFS(U22=0,"未約定",U22=T22,"約定",U22<T22,"一部約定") -> 未約定 | AD22: =IF(AA22="応札",IF($AB22="未約定",IF(OR($G22=List!$F$2:$F$3), $P22*$T22, $N22*$T22),IF($AB22="一部約定",IF(OR($G22=List!$F$2:$F$3), $P22*($T22-$U22), $N22*($T22-$U22)),"")),"") ->  | AE22: 0
V23: 0 | W23: 0 | Y23: =IF(ISNUMBER(B23), IF(COUNTIF($B$10:$B23, B23)=COUNTIF($B:$B, B23), "1", "0"), "") ->  | Z23: =IF(OR($C23=List!$C$5,$C23=List!$C$6,$C23=List!$C$11,$C23=List!$C$13), 1, 0) -> 0 | AA23: =_xlfn.IFS(T23="","未応札",T23>0,"応札") -> 未応札 | AB23: =_xlfn.IFS(U23=0,"未約定",U23=T23,"約定",U23<T23,"一部約定") -> 未約定 | AD23: =IF(AA23="応札",IF($AB23="未約定",IF(OR($G23=List!$F$2:$F$3), $P23*$T23, $N23*$T23),IF($AB23="一部約定",IF(OR($G23=List!$F$2:$F$3), $P23*($T23-$U23), $N23*($T23-$U23)),"")),"") ->  | AE23: 0
V24: 0 | W24: 0 | Y24: =IF(ISNUMBER(B24), IF(COUNTIF($B$10:$B24, B24)=COUNTIF($B:$B, B24), "1", "0"), "") ->  | Z24: =IF(OR($C24=List!$C$5,$C24=List!$C$6,$C24=List!$C$11,$C24=List!$C$13), 1, 0) -> 0 | AA24: =_xlfn.IFS(T24="","未応札",T24>0,"応札") -> 未応札 | AB24: =_xlfn.IFS(U24=0,"未約定",U24=T24,"約定",U24<T24,"一部約定") -> 未約定 | AD24: =IF(AA24="応札",IF($AB24="未約定",IF(OR($G24=List!$F$2:$F$3), $P24*$T24, $N24*$T24),IF($AB24="一部約定",IF(OR($G24=List!$F$2:$F$3), $P24*($T24-$U24), $N24*($T24-$U24)),"")),"") ->  | AE24: 0
V25: 0 | W25: 0 | Y25: =IF(ISNUMBER(B25), IF(COUNTIF($B$10:$B25, B25)=COUNTIF($B:$B, B25), "1", "0"), "") ->  | Z25: =IF(OR($C25=List!$C$5,$C25=List!$C$6,$C25=List!$C$11,$C25=List!$C$13), 1, 0) -> 0 | AA25: =_xlfn.IFS(T25="","未応札",T25>0,"応札") -> 未応札 | AB25: =_xlfn.IFS(U25=0,"未約定",U25=T25,"約定",U25<T25,"一部約定") -> 未約定 | AD25: =IF(AA25="応札",IF($AB25="未約定",IF(OR($G25=List!$F$2:$F$3), $P25*$T25, $N25*$T25),IF($AB25="一部約定",IF(OR($G25=List!$F$2:$F$3), $P25*($T25-$U25), $N25*($T25-$U25)),"")),"") ->  | AE25: 0
V26: 0 | W26: 0 | Y26: =IF(ISNUMBER(B26), IF(COUNTIF($B$10:$B26, B26)=COUNTIF($B:$B, B26), "1", "0"), "") ->  | Z26: =IF(OR($C26=List!$C$5,$C26=List!$C$6,$C26=List!$C$11,$C26=List!$C$13), 1, 0) -> 0 | AA26: =_xlfn.IFS(T26="","未応札",T26>0,"応札") -> 未応札 | AB26: =_xlfn.IFS(U26=0,"未約定",U26=T26,"約定",U26<T26,"一部約定") -> 未約定 | AD26: =IF(AA26="応札",IF($AB26="未約定",IF(OR($G26=List!$F$2:$F$3), $P26*$T26, $N26*$T26),IF($AB26="一部約定",IF(OR($G26=List!$F$2:$F$3), $P26*($T26-$U26), $N26*($T26-$U26)),"")),"") ->  | AE26: 0
V27: 0 | W27: 0 | Y27: =IF(ISNUMBER(B27), IF(COUNTIF($B$10:$B27, B27)=COUNTIF($B:$B, B27), "1", "0"), "") ->  | Z27: =IF(OR($C27=List!$C$5,$C27=List!$C$6,$C27=List!$C$11,$C27=List!$C$13), 1, 0) -> 0 | AA27: =_xlfn.IFS(T27="","未応札",T27>0,"応札") -> 未応札 | AB27: =_xlfn.IFS(U27=0,"未約定",U27=T27,"約定",U27<T27,"一部約定") -> 未約定 | AD27: =IF(AA27="応札",IF($AB27="未約定",IF(OR($G27=List!$F$2:$F$3), $P27*$T27, $N27*$T27),IF($AB27="一部約定",IF(OR($G27=List!$F$2:$F$3), $P27*($T27-$U27), $N27*($T27-$U27)),"")),"") ->  | AE27: 0
V28: 0 | W28: 0 | Y28: =IF(ISNUMBER(B28), IF(COUNTIF($B$10:$B28, B28)=COUNTIF($B:$B, B28), "1", "0"), "") ->  | Z28: =IF(OR($C28=List!$C$5,$C28=List!$C$6,$C28=List!$C$11,$C28=List!$C$13), 1, 0) -> 0 | AA28: =_xlfn.IFS(T28="","未応札",T28>0,"応札") -> 未応札 | AB28: =_xlfn.IFS(U28=0,"未約定",U28=T28,"約定",U28<T28,"一部約定") -> 未約定 | AD28: =IF(AA28="応札",IF($AB28="未約定",IF(OR($G28=List!$F$2:$F$3), $P28*$T28, $N28*$T28),IF($AB28="一部約定",IF(OR($G28=List!$F$2:$F$3), $P28*($T28-$U28), $N28*($T28-$U28)),"")),"") ->  | AE28: 0
V29: 0 | W29: 0 | Y29: =IF(ISNUMBER(B29), IF(COUNTIF($B$10:$B29, B29)=COUNTIF($B:$B, B29), "1", "0"), "") ->  | Z29: =IF(OR($C29=List!$C$5,$C29=List!$C$6,$C29=List!$C$11,$C29=List!$C$13), 1, 0) -> 0 | AA29: =_xlfn.IFS(T29="","未応札",T29>0,"応札") -> 未応札 | AB29: =_xlfn.IFS(U29=0,"未約定",U29=T29,"約定",U29<T29,"一部約定") -> 未約定 | AD29: =IF(AA29="応札",IF($AB29="未約定",IF(OR($G29=List!$F$2:$F$3), $P29*$T29, $N29*$T29),IF($AB29="一部約定",IF(OR($G29=List!$F$2:$F$3), $P29*($T29-$U29), $N29*($T29-$U29)),"")),"") ->  | AE29: 0
V30: 0 | W30: 0 | Y30: =IF(ISNUMBER(B30), IF(COUNTIF($B$10:$B30, B30)=COUNTIF($B:$B, B30), "1", "0"), "") ->  | Z30: =IF(OR($C30=List!$C$5,$C30=List!$C$6,$C30=List!$C$11,$C30=List!$C$13), 1, 0) -> 0 | AA30: =_xlfn.IFS(T30="","未応札",T30>0,"応札") -> 未応札 | AB30: =_xlfn.IFS(U30=0,"未約定",U30=T30,"約定",U30<T30,"一部約定") -> 未約定 | AD30: =IF(AA30="応札",IF($AB30="未約定",IF(OR($G30=List!$F$2:$F$3), $P30*$T30, $N30*$T30),IF($AB30="一部約定",IF(OR($G30=List!$F$2:$F$3), $P30*($T30-$U30), $N30*($T30-$U30)),"")),"") ->  | AE30: 0
V31: 0 | W31: 0 | Y31: =IF(ISNUMBER(B31), IF(COUNTIF($B$10:$B31, B31)=COUNTIF($B:$B, B31), "1", "0"), "") ->  | Z31: =IF(OR($C31=List!$C$5,$C31=List!$C$6,$C31=List!$C$11,$C31=List!$C$13), 1, 0) -> 0 | AA31: =_xlfn.IFS(T31="","未応札",T31>0,"応札") -> 未応札 | AB31: =_xlfn.IFS(U31=0,"未約定",U31=T31,"約定",U31<T31,"一部約定") -> 未約定 | AD31: =IF(AA31="応札",IF($AB31="未約定",IF(OR($G31=List!$F$2:$F$3), $P31*$T31, $N31*$T31),IF($AB31="一部約定",IF(OR($G31=List!$F$2:$F$3), $P31*($T31-$U31), $N31*($T31-$U31)),"")),"") ->  | AE31: 0
V32: 0 | W32: 0 | Y32: =IF(ISNUMBER(B32), IF(COUNTIF($B$10:$B32, B32)=COUNTIF($B:$B, B32), "1", "0"), "") ->  | Z32: =IF(OR($C32=List!$C$5,$C32=List!$C$6,$C32=List!$C$11,$C32=List!$C$13), 1, 0) -> 0 | AA32: =_xlfn.IFS(T32="","未応札",T32>0,"応札") -> 未応札 | AB32: =_xlfn.IFS(U32=0,"未約定",U32=T32,"約定",U32<T32,"一部約定") -> 未約定 | AD32: =IF(AA32="応札",IF($AB32="未約定",IF(OR($G32=List!$F$2:$F$3), $P32*$T32, $N32*$T32),IF($AB32="一部約定",IF(OR($G32=List!$F$2:$F$3), $P32*($T32-$U32), $N32*($T32-$U32)),"")),"") ->  | AE32: 0
V33: 0 | W33: 0 | Y33: =IF(ISNUMBER(B33), IF(COUNTIF($B$10:$B33, B33)=COUNTIF($B:$B, B33), "1", "0"), "") ->  | Z33: =IF(OR($C33=List!$C$5,$C33=List!$C$6,$C33=List!$C$11,$C33=List!$C$13), 1, 0) -> 0 | AA33: =_xlfn.IFS(T33="","未応札",T33>0,"応札") -> 未応札 | AB33: =_xlfn.IFS(U33=0,"未約定",U33=T33,"約定",U33<T33,"一部約定") -> 未約定 | AD33: =IF(AA33="応札",IF($AB33="未約定",IF(OR($G33=List!$F$2:$F$3), $P33*$T33, $N33*$T33),IF($AB33="一部約定",IF(OR($G33=List!$F$2:$F$3), $P33*($T33-$U33), $N33*($T33-$U33)),"")),"") ->  | AE33: 0
V34: 0 | W34: 0 | Y34: =IF(ISNUMBER(B34), IF(COUNTIF($B$10:$B34, B34)=COUNTIF($B:$B, B34), "1", "0"), "") ->  | Z34: =IF(OR($C34=List!$C$5,$C34=List!$C$6,$C34=List!$C$11,$C34=List!$C$13), 1, 0) -> 0 | AA34: =_xlfn.IFS(T34="","未応札",T34>0,"応札") -> 未応札 | AB34: =_xlfn.IFS(U34=0,"未約定",U34=T34,"約定",U34<T34,"一部約定") -> 未約定 | AD34: =IF(AA34="応札",IF($AB34="未約定",IF(OR($G34=List!$F$2:$F$3), $P34*$T34, $N34*$T34),IF($AB34="一部約定",IF(OR($G34=List!$F$2:$F$3), $P34*($T34-$U34), $N34*($T34-$U34)),"")),"") ->  | AE34: 0
V35: 0 | W35: 0 | Y35: =IF(ISNUMBER(B35), IF(COUNTIF($B$10:$B35, B35)=COUNTIF($B:$B, B35), "1", "0"), "") ->  | Z35: =IF(OR($C35=List!$C$5,$C35=List!$C$6,$C35=List!$C$11,$C35=List!$C$13), 1, 0) -> 0 | AA35: =_xlfn.IFS(T35="","未応札",T35>0,"応札") -> 未応札 | AB35: =_xlfn.IFS(U35=0,"未約定",U35=T35,"約定",U35<T35,"一部約定") -> 未約定 | AD35: =IF(AA35="応札",IF($AB35="未約定",IF(OR($G35=List!$F$2:$F$3), $P35*$T35, $N35*$T35),IF($AB35="一部約定",IF(OR($G35=List!$F$2:$F$3), $P35*($T35-$U35), $N35*($T35-$U35)),"")),"") ->  | AE35: 0
V36: 0 | W36: 0 | Y36: =IF(ISNUMBER(B36), IF(COUNTIF($B$10:$B36, B36)=COUNTIF($B:$B, B36), "1", "0"), "") ->  | Z36: =IF(OR($C36=List!$C$5,$C36=List!$C$6,$C36=List!$C$11,$C36=List!$C$13), 1, 0) -> 0 | AA36: =_xlfn.IFS(T36="","未応札",T36>0,"応札") -> 未応札 | AB36: =_xlfn.IFS(U36=0,"未約定",U36=T36,"約定",U36<T36,"一部約定") -> 未約定 | AD36: =IF(AA36="応札",IF($AB36="未約定",IF(OR($G36=List!$F$2:$F$3), $P36*$T36, $N36*$T36),IF($AB36="一部約定",IF(OR($G36=List!$F$2:$F$3), $P36*($T36-$U36), $N36*($T36-$U36)),"")),"") ->  | AE36: 0
V37: 0 | W37: 0 | Y37: =IF(ISNUMBER(B37), IF(COUNTIF($B$10:$B37, B37)=COUNTIF($B:$B, B37), "1", "0"), "") ->  | Z37: =IF(OR($C37=List!$C$5,$C37=List!$C$6,$C37=List!$C$11,$C37=List!$C$13), 1, 0) -> 0 | AA37: =_xlfn.IFS(T37="","未応札",T37>0,"応札") -> 未応札 | AB37: =_xlfn.IFS(U37=0,"未約定",U37=T37,"約定",U37<T37,"一部約定") -> 未約定 | AD37: =IF(AA37="応札",IF($AB37="未約定",IF(OR($G37=List!$F$2:$F$3), $P37*$T37, $N37*$T37),IF($AB37="一部約定",IF(OR($G37=List!$F$2:$F$3), $P37*($T37-$U37), $N37*($T37-$U37)),"")),"") ->  | AE37: 0
V38: 0 | W38: 0 | Y38: =IF(ISNUMBER(B38), IF(COUNTIF($B$10:$B38, B38)=COUNTIF($B:$B, B38), "1", "0"), "") ->  | Z38: =IF(OR($C38=List!$C$5,$C38=List!$C$6,$C38=List!$C$11,$C38=List!$C$13), 1, 0) -> 0 | AA38: =_xlfn.IFS(T38="","未応札",T38>0,"応札") -> 未応札 | AB38: =_xlfn.IFS(U38=0,"未約定",U38=T38,"約定",U38<T38,"一部約定") -> 未約定 | AD38: =IF(AA38="応札",IF($AB38="未約定",IF(OR($G38=List!$F$2:$F$3), $P38*$T38, $N38*$T38),IF($AB38="一部約定",IF(OR($G38=List!$F$2:$F$3), $P38*($T38-$U38), $N38*($T38-$U38)),"")),"") ->  | AE38: 0
V39: 0 | W39: 0 | Y39: =IF(ISNUMBER(B39), IF(COUNTIF($B$10:$B39, B39)=COUNTIF($B:$B, B39), "1", "0"), "") ->  | Z39: =IF(OR($C39=List!$C$5,$C39=List!$C$6,$C39=List!$C$11,$C39=List!$C$13), 1, 0) -> 0 | AA39: =_xlfn.IFS(T39="","未応札",T39>0,"応札") -> 未応札 | AB39: =_xlfn.IFS(U39=0,"未約定",U39=T39,"約定",U39<T39,"一部約定") -> 未約定 | AD39: =IF(AA39="応札",IF($AB39="未約定",IF(OR($G39=List!$F$2:$F$3), $P39*$T39, $N39*$T39),IF($AB39="一部約定",IF(OR($G39=List!$F$2:$F$3), $P39*($T39-$U39), $N39*($T39-$U39)),"")),"") ->  | AE39: 0
V40: 0 | W40: 0 | Y40: =IF(ISNUMBER(B40), IF(COUNTIF($B$10:$B40, B40)=COUNTIF($B:$B, B40), "1", "0"), "") ->  | Z40: =IF(OR($C40=List!$C$5,$C40=List!$C$6,$C40=List!$C$11,$C40=List!$C$13), 1, 0) -> 0 | AA40: =_xlfn.IFS(T40="","未応札",T40>0,"応札") -> 未応札 | AB40: =_xlfn.IFS(U40=0,"未約定",U40=T40,"約定",U40<T40,"一部約定") -> 未約定 | AD40: =IF(AA40="応札",IF($AB40="未約定",IF(OR($G40=List!$F$2:$F$3), $P40*$T40, $N40*$T40),IF($AB40="一部約定",IF(OR($G40=List!$F$2:$F$3), $P40*($T40-$U40), $N40*($T40-$U40)),"")),"") ->  | AE40: 0
V41: 0 | W41: 0 | Y41: =IF(ISNUMBER(B41), IF(COUNTIF($B$10:$B41, B41)=COUNTIF($B:$B, B41), "1", "0"), "") ->  | Z41: =IF(OR($C41=List!$C$5,$C41=List!$C$6,$C41=List!$C$11,$C41=List!$C$13), 1, 0) -> 0 | AA41: =_xlfn.IFS(T41="","未応札",T41>0,"応札") -> 未応札 | AB41: =_xlfn.IFS(U41=0,"未約定",U41=T41,"約定",U41<T41,"一部約定") -> 未約定 | AD41: =IF(AA41="応札",IF($AB41="未約定",IF(OR($G41=List!$F$2:$F$3), $P41*$T41, $N41*$T41),IF($AB41="一部約定",IF(OR($G41=List!$F$2:$F$3), $P41*($T41-$U41), $N41*($T41-$U41)),"")),"") ->  | AE41: 0
V42: 0 | W42: 0 | Y42: =IF(ISNUMBER(B42), IF(COUNTIF($B$10:$B42, B42)=COUNTIF($B:$B, B42), "1", "0"), "") ->  | Z42: =IF(OR($C42=List!$C$5,$C42=List!$C$6,$C42=List!$C$11,$C42=List!$C$13), 1, 0) -> 0 | AA42: =_xlfn.IFS(T42="","未応札",T42>0,"応札") -> 未応札 | AB42: =_xlfn.IFS(U42=0,"未約定",U42=T42,"約定",U42<T42,"一部約定") -> 未約定 | AD42: =IF(AA42="応札",IF($AB42="未約定",IF(OR($G42=List!$F$2:$F$3), $P42*$T42, $N42*$T42),IF($AB42="一部約定",IF(OR($G42=List!$F$2:$F$3), $P42*($T42-$U42), $N42*($T42-$U42)),"")),"") ->  | AE42: 0
V43: 0 | W43: 0 | Y43: =IF(ISNUMBER(B43), IF(COUNTIF($B$10:$B43, B43)=COUNTIF($B:$B, B43), "1", "0"), "") ->  | Z43: =IF(OR($C43=List!$C$5,$C43=List!$C$6,$C43=List!$C$11,$C43=List!$C$13), 1, 0) -> 0 | AA43: =_xlfn.IFS(T43="","未応札",T43>0,"応札") -> 未応札 | AB43: =_xlfn.IFS(U43=0,"未約定",U43=T43,"約定",U43<T43,"一部約定") -> 未約定 | AD43: =IF(AA43="応札",IF($AB43="未約定",IF(OR($G43=List!$F$2:$F$3), $P43*$T43, $N43*$T43),IF($AB43="一部約定",IF(OR($G43=List!$F$2:$F$3), $P43*($T43-$U43), $N43*($T43-$U43)),"")),"") ->  | AE43: 0
V44: 0 | W44: 0 | Y44: =IF(ISNUMBER(B44), IF(COUNTIF($B$10:$B44, B44)=COUNTIF($B:$B, B44), "1", "0"), "") ->  | Z44: =IF(OR($C44=List!$C$5,$C44=List!$C$6,$C44=List!$C$11,$C44=List!$C$13), 1, 0) -> 0 | AA44: =_xlfn.IFS(T44="","未応札",T44>0,"応札") -> 未応札 | AB44: =_xlfn.IFS(U44=0,"未約定",U44=T44,"約定",U44<T44,"一部約定") -> 未約定 | AD44: =IF(AA44="応札",IF($AB44="未約定",IF(OR($G44=List!$F$2:$F$3), $P44*$T44, $N44*$T44),IF($AB44="一部約定",IF(OR($G44=List!$F$2:$F$3), $P44*($T44-$U44), $N44*($T44-$U44)),"")),"") ->  | AE44: 0

Sheet 入力内容規制 (hidden)
A1: 精算パターン | B1: 持ち下げ供出機区分 | C1: 余力活用契約対象リソース区分 | D1: 発電計画 | F1: 最低出力 | H1: ΔkW約定量 | J1: 約定希望ΔkW | M1: 応札状況 | N1: 約定状況 | O1: 並解列状態(実績)
D2: 等号不等号 | E2: 値 | F2: 等号不等号 | G2: 値 | H2: 等号不等号 | I2: 値 | J2: 約定希望ΔkW | K2: 等号不等号 | L2: ΔkW約定量
A3: 1：約定間全量不落（最低出力維持） | B3: NULL | C3: 1：対象または0：非対象 | D3: ≧ | E3: 1 | F3: ≧ | G3: 1 | H3: = | I3: 0 | J3: 約定希望ΔkW | K3: ≧ | L3: ΔkW約定量 | M3: 応札 | N3: 未約定 | O3: 1：並列
A4: 2：全量不落 | B4: NULL | C4: 1：対象または0：非対象 | D4: ≧ | E4: 0 | F4: ≧ | G4: 0 | H4: = | I4: 0 | J4: 約定希望ΔkW | K4: ≧ | L4: ΔkW約定量 | M4: 応札 | N4: 未約定 | O4: 1：並列または2：解列
A5: 3：一部不落 | B5: NULL | C5: 1：対象または0：非対象 | D5: ≧ | E5: 0 | F5: ≧ | G5: 0 | H5: ≧ | I5: 1 | J5: 約定希望ΔkW | K5: ≧ | L5: ΔkW約定量 | M5: 応札 | N5: 一部約定 | O5: 1：並列または2：解列
A6: 4：約定間全量不落（約定間停止・再起動） | B6: NULL | C6: 1：対象または0：非対象 | D6: = | E6: 0 | F6: = | G6: 0 | H6: = | I6: 0 | J6: 約定希望ΔkW | K6: ≧ | L6: ΔkW約定量 | M6: 応札 | N6: 未約定 | O6: 2：解列
A7: 5：約定間全量不落（余力活用契約で最低出力維持） | B7: NULL | C7: 1：対象 | D7: = | E7: 0 | F7: = | G7: 0 | H7: = | I7: 0 | J7: 約定希望ΔkW | K7: ≧ | L7: ΔkW約定量 | M7: 応札 | N7: 未約定 | O7: 1：並列
A8: 6：約定間全量不落（余力活用契約で停止・再起動） | B8: NULL | C8: 1：対象 | D8: ≧ | E8: 1 | F8: ≧ | G8: 1 | H8: = | I8: 0 | J8: 約定希望ΔkW | K8: ≧ | L8: ΔkW約定量 | M8: 応札 | N8: 未約定 | O8: 2：解列
A9: 7：持ち下げ・起動供出機：約定間全量不落（最低出力維持） | B9: 1：該当（起動供出機） | C9: 1：対象または0：非対象 | D9: ≧ | E9: 1 | F9: ≧ | G9: 1 | H9: = | I9: 0 | J9: 約定希望ΔkW | K9: ≧ | L9: ΔkW約定量 | M9: 応札 | N9: 未約定 | O9: 1：並列
A10: 7：持ち下げ・起動供出機：約定間全量不落（最低出力維持） | B10: 2：該当（持ち下げ供出機） | C10: 1：対象または0：非対象 | D10: = | E10: NULL | F10: = | G10: NULL | H10: = | I10: 0 | J10: 約定希望ΔkW | K10: ≧ | L10: ΔkW約定量 | M10: 応札 | N10: 未約定 | O10: 1：並列
A11: 8：持ち下げ・起動供出機：全量不落 | B11: 1：該当（起動供出機） | C11: 1：対象または0：非対象 | D11: ≧ | E11: 0 | F11: ≧ | G11: 0 | H11: = | I11: 0 | J11: 約定希望ΔkW | K11: ≧ | L11: ΔkW約定量 | M11: 応札 | N11: 未約定 | O11: 1：並列または2：解列
A12: 8：持ち下げ・起動供出機：全量不落 | B12: 2：該当（持ち下げ供出機） | C12: 1：対象または0：非対象 | D12: = | E12: NULL | F12: = | G12: NULL | H12: = | I12: 0 | J12: 約定希望ΔkW | K12: ≧ | L12: ΔkW約定量 | M12: 応札 | N12: 未約定 | O12: 1：並列または2：解列
A13: 9：持ち下げ・起動供出機：一部不落 | B13: 1：該当（起動供出機） | C13: 1：対象または0：非対象 | D13: ≧ | E13: 1 | F13: ≧ | G13: 1 | H13: ≧ | I13: 1 | J13: 約定希望ΔkW | K13: ≧ | L13: ΔkW約定量 | M13: 応札 | N13: 一部約定 | O13: 1：並列
A14: 9：持ち下げ・起動供出機：一部不落 | B14: 2：該当（持ち下げ供出機） | C14: 1：対象または0：非対象 | D14: = | E14: NULL | F14: = | G14: NULL | H14: ≧ | I14: 1 | J14: 約定希望ΔkW | K14: ≧ | L14: ΔkW約定量 | M14: 応札 | N14: 一部約定 | O14: 1：並列
A15: 10：持ち下げ・起動供出機：約定間全量不落（約定間停止・再起動） | B15: 1：該当（起動供出機） | C15: 1：対象または0：非対象 | D15: = | E15: 0 | F15: = | G15: 0 | H15: = | I15: 0 | J15: 約定希望ΔkW | K15: ≧ | L15: ΔkW約定量 | M15: 応札 | N15: 未約定 | O15: 2：解列
A16: 10：持ち下げ・起動供出機：約定間全量不落（約定間停止・再起動） | B16: 2：該当（持ち下げ供出機） | C16: 1：対象または0：非対象 | D16: = | E16: NULL | F16: = | G16: NULL | H16: = | I16: 0 | J16: 約定希望ΔkW | K16: ≧ | L16: ΔkW約定量 | M16: 応札 | N16: 未約定 | O16: 1：並列または2：解列
A17: 11：持ち下げ・起動供出機：約定間全量不落（余力活用契約で停止・再起動） | B17: 1：該当（起動供出機） | C17: 1：対象 | D17: ≧ | E17: 1 | F17: ≧ | G17: 1 | H17: = | I17: 0 | J17: 約定希望ΔkW | K17: ≧ | L17: ΔkW約定量 | M17: 応札 | N17: 未約定 | O17: 2：解列
A18: 11：持ち下げ・起動供出機：約定間全量不落（余力活用契約で停止・再起動） | B18: 2：該当（持ち下げ供出機） | C18: 1：対象または0：非対象 | D18: = | E18: NULL | F18: = | G18: NULL | H18: = | I18: 0 | J18: 約定希望ΔkW | K18: ≧ | L18: ΔkW約定量 | M18: 応札 | N18: 未約定 | O18: 1：並列または2：解列
A19: 12：持ち下げ・起動供出機：約定間全量不落（余力活用契約で最低出力維持） | B19: 1：該当（起動供出機） | C19: 1：対象 | D19: = | E19: 0 | F19: = | G19: 0 | H19: = | I19: 0 | J19: 約定希望ΔkW | K19: ≧ | L19: ΔkW約定量 | M19: 応札 | N19: 未約定 | O19: 1：並列
A20: 12：持ち下げ・起動供出機：約定間全量不落（余力活用契約で最低出力維持） | B20: 2：該当（持ち下げ供出機） | C20: 1：対象または0：非対象 | D20: = | E20: NULL | F20: = | G20: NULL | H20: = | I20: 0 | J20: 約定希望ΔkW | K20: ≧ | L20: ΔkW約定量 | M20: 応札 | N20: 未約定 | O20: 1：並列または2：解列
A21: 13：その他 | B21: NULL | C21: 1：対象または0：非対象 | D21: ≧ | E21: 0 | F21: ≧ | G21: 0 | H21: ≧ | I21: 0 | J21: 約定希望ΔkW | K21: ≧ | L21: ΔkW約定量 | M21: 応札 | N21: 未約定または一部約定 | O21: 1：並列または2：解列
A22: 13：その他 | B22: 1：該当（起動供出機） | C22: 1：対象または0：非対象 | D22: ≧ | E22: 0 | F22: ≧ | G22: 0 | H22: ≧ | I22: 0 | J22: 約定希望ΔkW | K22: ≧ | L22: ΔkW約定量 | M22: 応札 | N22: 未約定または一部約定 | O22: 1：並列または2：解列
A23: 13：その他 | B23: 2：該当（持ち下げ供出機） | C23: 1：対象または0：非対象 | D23: ≧ | E23: 0 | F23: ≧ | G23: 0 | H23: ≧ | I23: 0 | J23: 約定希望ΔkW | K23: ≧ | L23: ΔkW約定量 | M23: 応札 | N23: 未約定または一部約定 | O23: 1：並列または2：解列

Sheet Format (hidden)
A3: 1 | B3: 2 | C3: 3 | D3: 4 | E3: 5 | F3: 6 | G3: 7 | H3: 8 | I3: 9 | J3: 10 | K3: 11 | L3: 12 | M3: 13 | N3: 14 | O3: 15 | P3: 16 | Q3: 17 | R3: 18 | S3: 19 | T3: 20 | U3: 21 | V3: 22 | W3: 23 | X3: 24 | Y3: 25 | Z3: 26 | AA3: 27 | AB3: 28 | AC3: 29 | AD3: 30 | AE3: 31 | AF3: 32
B4: 1 | C4: 2 | D4: 3 | E4: 4 | F4: 5 | G4: 6 | H4: 7 | I4: 8 | J4: 9 | K4: 10 | L4: 11 | M4: 12 | N4: 13 | O4: 14 | P4: 15 | Q4: 16 | R4: 17 | S4: 18 | T4: 19 | U4: 20 | V4: 21 | W4: 22 | X4: 23 | Y4: 24 | Z4: 25 | AA4: 26 | AB4: 27 | AC4: 28 | AD4: 29 | AE4: 30 | AF4: 31
B5: 数字のみ | C5: リスト | D5: リスト | E5: 数字8桁 | F5: 数字2桁 | G5: リスト | H5: 英数字5桁 | J5: リスト | K5: 英数字 "_"のみ | L5: 英数字のみ | M5: 英数字のみ | N5: 小数点２桁まで | O5: 小数点２桁まで | P5: 小数点２桁まで | Q5: 小数点２桁まで | R5: 数字のみ | S5: 数字のみ | T5: 数字のみ | U5: 数字のみ | V5: 関数 | W5: 関数 | X5: 小数点２桁まで | Y5: 関数 | Z5: 関数 | AA5: 関数 | AB5: 関数 | AC5: リスト | AD5: 関数 | AE5: 関数 | AF5: 関数
E6: 文字列 | F6: 文字列 | H6: 文字列 | K6: 文字列 | L6: 文字列 | M6: 文字列 | R6: 桁区切り | S6: 桁区切り | T6: 桁区切り | U6: 桁区切り | V6: 桁区切り | W6: 桁区切り | X6: 桁区切り | AD6: 桁区切り | AE6: 桁区切り | AF6: 桁区切り
B7: 事象NO | C7: 精算パターン | D7: 余力活用契約対象リソース区分 | E7: 取引日 | F7: 時刻コード | G7: 持ち下げ供出機区分 | H7: 系統コード | I7: 系統コード(差替後) | J7: 商品区分 | K7: 売り入札ID | L7: 約定番号 | M7: 約定識別ID | N7: MMS起動費単価 | O7: 加重平均前のΔkW単価 | P7: 加重平均起動費未回収分相当額 | Q7: 最低出力までの発電電力量の機会費用単価 | R7: 発電計画 | S7: 最低出力 | T7: 約定希望ΔkW | U7: ΔkW約定量 | V7: 最低出力までの発電電力量の機会費用単価×(約定希望ΔkW-ΔkW約定量) | W7: 最低出力維持した場合の費用合計 | X7: 停止・再起動にかかる費用 | Y7: 事象毎の最終行 | Z7: 妥当性確認 | AA7: 応札状況 | AB7: 約定状況 | AC7: 並解列状態(実績) | AD7: 起動費未回収分相当額 | AE7: 最低出力までの発電電力量の機会費用 | AF7: 停止・再起動にかかる費用2
N8: （円/kW） | O8: （円/kW） | P8: （円/kW） | Q8: （円/kW） | R8: （kWh） | S8: （kWh） | T8: （kW） | U8: （kW） | V8: （円） | W8: （円） | X8: （円） | AD8: （円） | AE8: （円） | AF8: （円）
B9: ※起動費未回収が発生した事象ごとにNOを付定すること。 | D9: ※対象の場合は「１」，非対象の場合は「０」を入力 | G9: ※持ち下げ供出機を加重平均で入札した場合に選択 | L9: ※１持ち下げ供出機区分が該当する場合，起動供出機の約定番号を記載すること ※２同一時刻コードにおいて，複数の約定番号がある場合は，全て記載すること。 | M9: ※持ち下げ供出機区分に該当する場合，起動供出機の約定IDを記載すること | N9: ※MMSに登録された起動費単価分を原則用いること | O9: ※持ち下げ供出機区分が該当する場合に記載すること | P9: ※ 持ち下げ供出機区分が該当する場合に記載すること | Q9: ※１卸電力市場価格（スポット市場価格：実績）と限界費用との差額を用いること ※２加重平均で入札した場合は，最低出力までの発電電力量の加重平均機会費用相当額を記載すること | V9: ※加重平均で入札した場合は，最低出力までの発電電力量の加重平均機会費用相当額×(約定希望ΔkW-ΔkW約定量) | W9: ※精算パターン「約定間全量不落(約定間停止・再起動)」を選択した場合，事象NOごとの最終行に合計値表示 | X9: ※１停止・再起動費は最後のブロックに記載すること ※２ 余力活用契約を締結している電源でBG計画上停止・再起動としていたが、実績は停止しなかった場合も、BG計画上の「停止・再起動費」を記載すること | AD9: ※加重平均で入札した場合は，加重平均起動費未回収分相当額 | AE9: ※加重平均で入札した場合は，最低出力までの発電電力量の加重平均機会費用相当額 | AF9: ※約定間全量不落時において，停止・再起動するよりも，最低出力維持した方が経済的だった場合，後者を事後精算対象とする。
V10: =$Q10*($T10-$U10) -> 0 | W10: =IF($X10>0, SUMIFS($V:$V, $B:$B, $B10, $Z:$Z, 1), 0) -> 0 | Y10: =IF(ISNUMBER($B10), IF(COUNTIF($B$10:$B10, $B10)=COUNTIF($B:$B, $B10), 1, 0), "") ->  | Z10: =IF(OR($C10=List!$C$5,$C10=List!$C$6,$C10=List!$C$11,$C10=List!$C$13), 1, 0) -> 0 | AA10: =_xlfn.IFS($T10="","未応札",$T10>0,"応札") -> 未応札 | AB10: =_xlfn.IFS($U10=0,"未約定",$U10=$T10,"約定",$U10<$T10,"一部約定") -> 未約定 | AD10: =IF(AA10="応札",IF($AB10="未約定",IF(OR($G10=List!$F$2:$F$3), $P10*$T10, $N10*$T10),IF($AB10="一部約定",IF(OR($G10=List!$F$2:$F$3), $P10*($T10-$U10), $N10*($T10-$U10)),"")),"") ->  | AE10: =IF(ISBLANK($R10),IF(OR($AB10="一部約定",$AB10="未約定"),$Q10*($T10-$U10),""),IF($R10=0,"", IF(OR($AB10="一部約定",$AB10="未約定"),$Q10*($T10-$U10), ""))) -> 0 | AF10: =IF(AND($AA10="応札",$AB10="未約定"), IF($W10<>0, IF($X10<$W10, IF($X10<>0, $X10, ""), IF($W10<>0, $W10, "")), IF($X10<>0, $X10, "")), "") -> 
AF11: ※X列（24列）と同じ項目名のため、区別するために項目名末尾に2を追加
AF12: 入力シートの項目名は変更しない

Sheet List (hidden)
A1: 対象エリア | C1: 精算パターン | E1: 精算パターン | F1: 持ち下げ供給機区分 | H1: 精算パターン&持ち下げ供給機区分 | I1: 余力活用契約対象リソース区分 | K1: 精算パターン&持ち下げ供給機区分 | L1: 並解列状態(実績) | N1: 商品区分
A2: 1：北海道 | C2: 1：約定間全量不落（最低出力維持） | F2: 1：該当（起動供出機） | I2: 1：対象 | L2: 1：並列 | N2: 1：複合市場商品
A3: 2：東北 | C3: 2：全量不落 | F3: 2：該当（持ち下げ供出機） | I3: 0：非対象 | L3: 2：解列 | N3: 2：三次調整力②
A4: 3：東京 | C4: 3：一部不落 | E4: 1：約定間全量不落（最低出力維持） | H4: 1：約定間全量不落（最低出力維持） | I4: =I$2 -> 1：対象 | K4: 1：約定間全量不落（最低出力維持） | L4: =L$2 -> 1：並列
A5: 4：中部 | C5: 4：約定間全量不落（約定間停止・再起動） | E5: 2：全量不落 | H5: 1：約定間全量不落（最低出力維持） | I5: =I$3 -> 0：非対象 | K5: 2：全量不落 | L5: =L$2 -> 1：並列
A6: 5：北陸 | C6: 5：約定間全量不落（余力活用契約で最低出力維持） | E6: 3：一部不落 | H6: 2：全量不落 | I6: =I$2 -> 1：対象 | K6: 2：全量不落 | L6: =L$3 -> 2：解列
A7: 6：関西 | C7: 6：約定間全量不落（余力活用契約で停止・再起動） | E7: 4：約定間全量不落（約定間停止・再起動） | H7: 2：全量不落 | I7: =I$3 -> 0：非対象 | K7: 3：一部不落 | L7: =L$2 -> 1：並列
A8: 7：中国 | C8: 7：持ち下げ・起動供出機：約定間全量不落（最低出力維持） | E8: 5：約定間全量不落（余力活用契約で最低出力維持） | H8: 3：一部不落 | I8: =I$2 -> 1：対象 | K8: 3：一部不落 | L8: =L$3 -> 2：解列
A9: 8：四国 | C9: 8：持ち下げ・起動供出機：全量不落 | E9: 6：約定間全量不落（余力活用契約で停止・再起動） | H9: 3：一部不落 | I9: =I$3 -> 0：非対象 | K9: 4：約定間全量不落（約定間停止・再起動） | L9: 2：解列
A10: 9：九州 | C10: 9：持ち下げ・起動供出機：一部不落 | E10: 7：持ち下げ・起動供出機：約定間全量不落（最低出力維持） | F10: =F$2 -> 1：該当（起動供出機） | H10: 4：約定間全量不落（約定間停止・再起動） | I10: =I$2 -> 1：対象 | K10: 5：約定間全量不落（余力活用契約で最低出力維持） | L10: =L$2 -> 1：並列
C11: 10：持ち下げ・起動供出機：約定間全量不落（約定間停止・再起動） | E11: 7：持ち下げ・起動供出機：約定間全量不落（最低出力維持） | F11: =F$3 -> 2：該当（持ち下げ供出機） | H11: 4：約定間全量不落（約定間停止・再起動） | I11: =I$3 -> 0：非対象 | K11: 6：約定間全量不落（余力活用契約で停止・再起動） | L11: =L$3 -> 2：解列
C12: 11：持ち下げ・起動供出機：約定間全量不落（余力活用契約で停止・再起動） | E12: 8：持ち下げ・起動供出機：全量不落 | F12: =F$2 -> 1：該当（起動供出機） | H12: 5：約定間全量不落（余力活用契約で最低出力維持） | I12: =I$2 -> 1：対象 | K12: 7：持ち下げ・起動供出機：約定間全量不落（最低出力維持）1：該当（起動供出機） | L12: =L$2 -> 1：並列
C13: 12：持ち下げ・起動供出機：約定間全量不落（余力活用契約で最低出力維持） | E13: 8：持ち下げ・起動供出機：全量不落 | F13: =F$3 -> 2：該当（持ち下げ供出機） | H13: 6：約定間全量不落（余力活用契約で停止・再起動） | I13: =I$2 -> 1：対象 | K13: 7：持ち下げ・起動供出機：約定間全量不落（最低出力維持）2：該当（持ち下げ供出機） | L13: 1：並列
C14: 13：その他 | E14: 9：持ち下げ・起動供出機：一部不落 | F14: =F$2 -> 1：該当（起動供出機） | H14: 7：持ち下げ・起動供出機：約定間全量不落（最低出力維持）1：該当（起動供出機） | I14: =I$2 -> 1：対象 | K14: 8：持ち下げ・起動供出機：全量不落1：該当（起動供出機） | L14: 1：並列
E15: 9：持ち下げ・起動供出機：一部不落 | F15: =F$3 -> 2：該当（持ち下げ供出機） | H15: 7：持ち下げ・起動供出機：約定間全量不落（最低出力維持）1：該当（起動供出機） | I15: =I$3 -> 0：非対象 | K15: 8：持ち下げ・起動供出機：全量不落1：該当（起動供出機） | L15: =L$3 -> 2：解列
E16: 10：持ち下げ・起動供出機：約定間全量不落（約定間停止・再起動） | F16: =F$2 -> 1：該当（起動供出機） | H16: 7：持ち下げ・起動供出機：約定間全量不落（最低出力維持）2：該当（持ち下げ供出機） | I16: =I$2 -> 1：対象 | K16: 8：持ち下げ・起動供出機：全量不落2：該当（持ち下げ供出機） | L16: =L$2 -> 1：並列
E17: 10：持ち下げ・起動供出機：約定間全量不落（約定間停止・再起動） | F17: =F$3 -> 2：該当（持ち下げ供出機） | H17: 7：持ち下げ・起動供出機：約定間全量不落（最低出力維持）2：該当（持ち下げ供出機） | I17: =I$3 -> 0：非対象 | K17: 8：持ち下げ・起動供出機：全量不落2：該当（持ち下げ供出機） | L17: =L$3 -> 2：解列
E18: 11：持ち下げ・起動供出機：約定間全量不落（余力活用契約で停止・再起動） | F18: =F$2 -> 1：該当（起動供出機） | H18: 8：持ち下げ・起動供出機：全量不落1：該当（起動供出機） | I18: =I$2 -> 1：対象 | K18: 9：持ち下げ・起動供出機：一部不落1：該当（起動供出機） | L18: =L$2 -> 1：並列
E19: 11：持ち下げ・起動供出機：約定間全量不落（余力活用契約で停止・再起動） | F19: =F$3 -> 2：該当（持ち下げ供出機） | H19: 8：持ち下げ・起動供出機：全量不落1：該当（起動供出機） | I19: =I$3 -> 0：非対象 | K19: 9：持ち下げ・起動供出機：一部不落2：該当（持ち下げ供出機） | L19: 1：並列
E20: 12：持ち下げ・起動供出機：約定間全量不落（余力活用契約で最低出力維持） | F20: =F$2 -> 1：該当（起動供出機） | H20: 8：持ち下げ・起動供出機：全量不落2：該当（持ち下げ供出機） | I20: =I$2 -> 1：対象 | K20: 10：持ち下げ・起動供出機：約定間全量不落（約定間停止・再起動）1：該当（起動供出機） | L20: =L$3 -> 2：解列
E21: 12：持ち下げ・起動供出機：約定間全量不落（余力活用契約で最低出力維持） | F21: =F$3 -> 2：該当（持ち下げ供出機） | H21: 8：持ち下げ・起動供出機：全量不落2：該当（持ち下げ供出機） | I21: =I$3 -> 0：非対象 | K21: 10：持ち下げ・起動供出機：約定間全量不落（約定間停止・再起動）2：該当（持ち下げ供出機） | L21: =L$2 -> 1：並列
E22: 13：その他 | H22: 9：持ち下げ・起動供出機：一部不落1：該当（起動供出機） | I22: =I$2 -> 1：対象 | K22: 10：持ち下げ・起動供出機：約定間全量不落（約定間停止・再起動）2：該当（持ち下げ供出機） | L22: =L$3 -> 2：解列
E23: 13：その他 | F23: =F$2 -> 1：該当（起動供出機） | H23: 9：持ち下げ・起動供出機：一部不落1：該当（起動供出機） | I23: =I$3 -> 0：非対象 | K23: 11：持ち下げ・起動供出機：約定間全量不落（余力活用契約で停止・再起動）1：該当（起動供出機） | L23: 2：解列
E24: 13：その他 | F24: =F$3 -> 2：該当（持ち下げ供出機） | H24: 9：持ち下げ・起動供出機：一部不落2：該当（持ち下げ供出機） | I24: =I$2 -> 1：対象 | K24: 11：持ち下げ・起動供出機：約定間全量不落（余力活用契約で停止・再起動）2：該当（持ち下げ供出機） | L24: =L$2 -> 1：並列
H25: 9：持ち下げ・起動供出機：一部不落2：該当（持ち下げ供出機） | I25: =I$3 -> 0：非対象 | K25: 11：持ち下げ・起動供出機：約定間全量不落（余力活用契約で停止・再起動）2：該当（持ち下げ供出機） | L25: =L$3 -> 2：解列
H26: 10：持ち下げ・起動供出機：約定間全量不落（約定間停止・再起動）1：該当（起動供出機） | I26: =I$2 -> 1：対象 | K26: 12：持ち下げ・起動供出機：約定間全量不落（余力活用契約で最低出力維持）1：該当（起動供出機） | L26: =L$2 -> 1：並列
H27: 10：持ち下げ・起動供出機：約定間全量不落（約定間停止・再起動）1：該当（起動供出機） | I27: =I$3 -> 0：非対象 | K27: 12：持ち下げ・起動供出機：約定間全量不落（余力活用契約で最低出力維持）2：該当（持ち下げ供出機） | L27: 1：並列
H28: 10：持ち下げ・起動供出機：約定間全量不落（約定間停止・再起動）2：該当（持ち下げ供出機） | I28: =I$2 -> 1：対象 | K28: 12：持ち下げ・起動供出機：約定間全量不落（余力活用契約で最低出力維持）2：該当（持ち下げ供出機） | L28: =L$3 -> 2：解列
H29: 10：持ち下げ・起動供出機：約定間全量不落（約定間停止・再起動）2：該当（持ち下げ供出機） | I29: =I$3 -> 0：非対象 | K29: 13：その他 | L29: =L$2 -> 1：並列
H30: 11：持ち下げ・起動供出機：約定間全量不落（余力活用契約で停止・再起動）1：該当（起動供出機） | I30: =I$2 -> 1：対象 | K30: 13：その他 | L30: =L$3 -> 2：解列
H31: 11：持ち下げ・起動供出機：約定間全量不落（余力活用契約で停止・再起動）2：該当（持ち下げ供出機） | I31: =I$2 -> 1：対象 | K31: 13：その他1：該当（起動供出機） | L31: =L$2 -> 1：並列
H32: 11：持ち下げ・起動供出機：約定間全量不落（余力活用契約で停止・再起動）2：該当（持ち下げ供出機） | I32: =I$3 -> 0：非対象 | K32: 13：その他1：該当（起動供出機） | L32: =L$3 -> 2：解列
H33: 12：持ち下げ・起動供出機：約定間全量不落（余力活用契約で最低出力維持）1：該当（起動供出機） | I33: =I$2 -> 1：対象 | K33: 13：その他2：該当（持ち下げ供出機） | L33: =L$2 -> 1：並列
H34: 12：持ち下げ・起動供出機：約定間全量不落（余力活用契約で最低出力維持）2：該当（持ち下げ供出機） | I34: =I$2 -> 1：対象 | K34: 13：その他2：該当（持ち下げ供出機） | L34: =L$3 -> 2：解列
H35: 12：持ち下げ・起動供出機：約定間全量不落（余力活用契約で最低出力維持）2：該当（持ち下げ供出機） | I35: =I$3 -> 0：非対象
H36: 13：その他 | I36: =I$2 -> 1：対象
H37: 13：その他 | I37: =I$3 -> 0：非対象
H38: =E23&F23 -> 13：その他1：該当（起動供出機） | I38: =I$2 -> 1：対象
H39: =E23&F23 -> 13：その他1：該当（起動供出機） | I39: =I$3 -> 0：非対象
H40: =E24&F24 -> 13：その他2：該当（持ち下げ供出機） | I40: =I$2 -> 1：対象
H41: =E24&F24 -> 13：その他2：該当（持ち下げ供出機） | I41: =I$3 -> 0：非対象

Sheet tmpData (hidden)

Sheet 入力方法等の規制
B1: 〇入力方法等の規制
B2: No. | C2: 項目 | D2: 入力方法規制 | E2: 入力内容規制 | F2: 備考
B3: 1 | C3: 取引年月 | D3: 数字６桁 | E3: 無 | F3: YYYYMM 整数
B4: 2 | C4: MMSコード | D4: 英数字４桁 | E4: 無
B5: 3 | C5: 対象エリア | D5: 選択式 | E5: 無 | F5: 【選択リスト】 １：北海道 ２：東北 ３：東京 ４：中部 ５：北陸 ６：関西 ７：中国 ８：四国 ９：九州
B6: 4 | C6: 事象NO | D6: 数字のみ | E6: 無 | F6: 整数
B7: 5 | C7: 精算パターン | D7: 選択式 | E7: 無 | F7: 【選択リスト】 １：約定間全量不落（最低出力維持） ２：全量不落 ３：一部不落 ４：約定間全量不落（約定間停止・再起動） ５：約定間全量不落（余力活用契約で最低出力維持） ６：約定間全量不落（余力活用契約で停止・再起動） ７：持ち下げ・起動供出機：約定間全量不落（最低出力維持） ８：持ち下げ・起動供出機：全量不落 ９：持ち下げ・起動供出機：一部不落 １０：持ち下げ・起動供出機：約定間全量不落（約定間停止・再起動） １１：持ち下げ・起動供出機：約定間全量不落（余力活用契約で停止・再起動） １２：持ち下げ・起動供出機：約定間全量不落（余力活用契約で最低出力維持） １３：その他
B8: 6 | C8: 余力活用契約対象リソース区分 | D8: 選択式 | E8: 有 | F8: 【選択リスト】 １：対象 ２：非対象
B9: 7 | C9: 取引日 | D9: 数字８桁 | E9: 無 | F9: YYYYMMDD 整数
B10: 8 | C10: 時刻コード | D10: 数字２桁 | E10: 無 | F10: 整数
B11: 9 | C11: 持ち下げ供出機区分 | D11: 選択式 | E11: 無 | F11: 【選択リスト】 １：該当（起動供出機） ２：該当（持ち下げ供出機） ※精算パターン１～６の場合は選択不可
B12: 10 | C12: 系統コード | D12: 英数字５桁 | E12: 無
B13: 11 | C13: 系統コード（差替後） | D13: 英数字５桁 | E13: 無
B14: 12 | C14: 商品区分 | D14: 選択式 | E14: 無 | F14: 【選択リスト】 １：複合市場商品 ２：三次調整力②
B15: 13 | C15: 売り入札ID | D15: 英数字のみ | E15: 無
B16: 14 | C16: 約定番号 | D16: 英数字のみ | E16: 無
B17: 15 | C17: 約定識別ID | D17: 英数字のみ | E17: 無
B18: 16 | C18: MMS起動費単価 | D18: 数字のみ | E18: 無 | F18: 小数点２桁まで
B19: 17 | C19: 加重平均前のΔkW単価 | D19: 数字のみ | E19: 無 | F19: 小数点２桁まで
B20: 18 | C20: 加重平均起動費未回収分相当額 | D20: 数字のみ | E20: 無 | F20: 小数点２桁まで
B21: 19 | C21: 最低出力までの発電電力量の機会費用単価 | D21: 数字のみ | E21: 無 | F21: 小数点２桁まで
B22: 20 | C22: 発電計画 | D22: 数字のみ | E22: 有 | F22: 整数
B23: 21 | C23: 最低出力 | D23: 数字のみ | E23: 有 | F23: 整数
B24: 22 | C24: 約定希望ΔkW | D24: 数字のみ | E24: 有 | F24: 整数
B25: 23 | C25: ΔkW約定量 | D25: 数字のみ | E25: 有 | F25: 整数
B26: 24 | C26: 最低出力までの発電電力量の機会費用単価×(約定希望ΔkW-ΔkW約定量) | D26: － | E26: 無 | F26: 入力不可
B27: 25 | C27: 最低出力維持した場合の費用合計 | D27: － | E27: 無 | F27: 入力不可
B28: 26 | C28: 停止・再起動にかかる費用 | D28: 数字のみ | E28: 無 | F28: 小数点２桁まで
B29: 27 | C29: 事象毎の最終行 | D29: － | E29: 無 | F29: 入力不可
B30: 28 | C30: 妥当性確認 | D30: － | E30: 無 | F30: 入力不可
B31: 29 | C31: 応札状況 | D31: － | E31: 有 | F31: 入力不可
B32: 30 | C32: 約定状況 | D32: － | E32: 有 | F32: 入力不可
B33: 31 | C33: 並解列状態(実績) | D33: 選択式 | E33: 有 | F33: 【選択リスト】 １：並列 ２：解列
B34: 32 | C34: 起動費未回収分相当額 | D34: － | E34: 無 | F34: 入力不可
B35: 33 | C35: 最低出力までの発電電力量の機会費用 | D35: － | E35: 無 | F35: 入力不可
B36: 34 | C36: 停止・再起動にかかる費用 | D36: － | E36: 無 | F36: 入力不可
B37: 35 | C37: ＜精算対象申請小計＞ 起動費未回収分相当額 | D37: － | E37: 無 | F37: 入力不可
B38: 36 | C38: ＜精算対象申請小計＞ 最低出力までの発電電力量の機会費用 | D38: － | E38: 無 | F38: 入力不可
B39: 37 | C39: ＜精算対象申請小計＞ 停止・再起動にかかる費用 | D39: － | E39: 無 | F39: 入力不可
B40: 38 | C40: 合計 | D40: － | E40: 無 | F40: 入力不可

Sheet 精算パターン（持ち下げ供出機区分）毎の入力内容規制
B1: 〇精算パターン（持ち下げ供出機区分）毎の入力内容規制
B2: 精算パターン | C2: 持ち下げ供給機区分 | D2: 余力活用契約対象リソース区分 | E2: 約定希望ΔkW and ΔkW約定量 | F2: ΔkW約定量 | G2: 発電計画 | H2: 最低出力 | I2: 応札状況 | J2: 約定状況 | K2: 並解列状態（実績）
B3: 1:約定間全量不落（最低出力維持） | C3: 入力対象外 | D3: １または０ | E3: 応札ΔkW≧約定量 | F3: 0 | G3: １以上 | H3: １以上 | I3: 応札 | J3: 未約定 | K3: 並列
B4: 2:全量不落 | C4: 入力対象外 | D4: １または０ | E4: 応札ΔkW≧約定量 | F4: 0 | G4: 0以上 | H4: ０以上 | I4: 応札 | J4: 未約定 | K4: 並列または解列
B5: 3:一部不落 | C5: 入力対象外 | D5: １または０ | E5: 応札ΔkW≧約定量 | F5: １以上 | G5: ０以上 | H5: ０以上 | I5: 応札 | J5: 一部約定 | K5: 並列または解列
